Workbook

Sheet Содержание
B1: 205.14.00.02 | D1: ЗАВОД «ОПК» Тел.: +7 (496) 704-52-11 e-mail:manager@ozpk.ru сайт: ozpk.ru
B2: Ваша скидка | C2: - | D2: 0
B3: НДС | C3: -
B4: Холодильное оборудование (встроенное холодоснабжение)
B5: Холодильные витрины Cryspi | D5: Низкотемпературные шкафы Cryspi
B6: Витрины со статической системой охлаждения | D6: VERONA
D7: Шкаф-надстройка Milan
D8: MILAN S
B9: Витрины OCTAVA | D9: Лари Italfrost
B10: Витрины OCTAVA Quadro | D10: Морозильные лари с гнутыми раздвижными стеклами
B11: Витрины OCTAVA XL | D11: Морозильные лари с прямыми раздвижными стеклами
B12: Витрины GAMMA-2 | D12: Морозильные лари с глухой крышкой
B13: Витрины GAMMA Quadro | D13: Морозильные лари с глухой крышкой (крышка из нерж. стали)
B14: Витрины GAMMA Quadro Fish | D14: Морозильные лари с гнутыми раздвижными стеклами (4+)
B15: Витрины GAMMA Quadro SELF | D15: Морозильные лари с прямыми раздвижными стеклами (4+)
B16: Витрины Sonata Quadro | D16: Морозильные лари для мягкого мороженого
B17: Витрины настольные Vivo 1000 | D17: Опции для ларей
B18: Витрины с динамической системой охлаждения
B19: Витрины Magnum | D19: Ларь-бонеты ITALFROST
B20: Витрины Magnum ECO | D20: Лари-бонеты ITALFROST
B21: Витрины Magnum Quadro | D21: Лари-бонеты ITALFROST Push
D22: Лари-бонеты RONDO с термостатом
B23: Витрины Cryspi без агрегата (под выносное хладоснабжение) | D23: Лари-бонеты RONDO с контроллером
B24: Витрины GAMMA-2 БА | D24: Комплектующие для ларей-бонет
B25: Витрины GAMMA QUADRO БА
B26: Витрины MAGNUM ECO БА | D26: Ледогенераторы
B27: Витрины MAGNUM БА | D27: Льдогенератор кубикового льда
B28: Витрины MAGNUM QUADRO БА
B29: Кондитерские витрины
B30: Витрины Adagio
B31: Витрины Elegia
B32: Опции и аксессуары для витрин Cryspi
B33: Опции и аксессуары для витрин и стеллажей Cryspi
B35: Витрины Italfrigo без агрегата
B36: Витрины TOSCANA Q
B37: Витрины серии Veneto Quadro
B38: Опции для витрин Italfrigo
B40: Горки Cryspi | D40: Cтандартные цвета
B41: Solo L7/L9 | D41: Таблица расчета нестандартных RAL
B42: Solo SML | D42: БРЕНДИРОВАНИЕ ЛАРЕЙ ITALFROST
B43: Опции для витрин Cryspi
B45: Стеллажи Italfrigo под выносное холодообеспечение
B46: Охлаждаемые стеллажи RIMINI
B47: Охлаждаемые стеллажи LAZIO
B48: Опции для cтеллажей Italfrigo

Sheet Витрины Cryspi
I1: ЗАВОД «ОПК» Тел.: +7 (496) 704-52-11 e-mail:manager@ozpk.ru сайт: ozpk.ru
C3: Ваша скидка: | F3: =Содержание!D2 -> 0
C4: НДС: | F4: =IF(Лист2!A1=TRUE,"С НДС","БЕЗ НДС") -> С НДС
A7: Витрины Cryspi со встроенным агрегатом. Статическая система охлаждения
A9: Базовая комплектация: - Статическая система охлаждения, компрессор R-290; - Электронный контроллер для управления работой витрины; - Оттайка для версий ВПС - естественная (без ТЭНа), для версий ВПСН и ВПН - ТЭН (по умолчанию); - Общее светодиодное освещение для версий с высоким стеклом - стандартный - 4000К, опционально - 3000К, 6500К; - Товарный накопитель для линейных модулей (запасник с дверкой) (кроме НТ); - Упаковка в деревянную обрешетку; | G9: - Внутренний объем для витрин ВПС и ВПСН - оцинкованный металл, внутренний объем в зоне выкладки - нерж.сталь; - Внутренний объем для витрин ВПН - оцинкованный металл с полимерным покрытием - Ночные шторки для витрин с высоким стеклом; - Фронтальное стекло закаленное, не открывается; - Емкость для сбора талой воды, опционально возможно применение выпаривателя;
A10: № | B10: Комплектация | C10: Изображение | D10: Артикул | E10: Наименование | G10: Температурный режим,°C | H10: Площадь экспозиции, кв.м. | I10: Габариты, (LxWxH) мм | J10: Габариты в упаковке, (LxWxH) мм | K10: Базовая цена, руб. (с НДС) | L10: =[5]Лист2!$A$5 -> Ваша цена, руб.
A12: 1 | B12: Витрины серии OCTAVA, глубина выкладки 660 мм, стандартный Ral 3002. | K12: Опции Octava | M12: EL.2.G3002гл.В7021гл.V0.PS
D13: =D58 -> Среднетемпературные, ВПС | M13: нажмите чтобы перейти в список опций
D14: О ВПС1 120ГR290 | E14: Octava 1200 | G14: 0…+7 | H14: 0.72 | I14: 1180х955х1265 | J14: 1400х1200х1110 | K14: 81292 | L14: =ROUND(K14*(1-$F$3)/Лист2!$A$6,0) -> 81292
D15: О ВПС1 150ГR290 | E15: Octava 1500 | G15: 0…+7 | H15: 0.92 | I15: 1480х955х1265 | J15: 1700х1200х1110 | K15: 88183 | L15: =ROUND(K15*(1-$F$3)/Лист2!$A$6,0) -> 88183
D16: О ВПС1 180ГR290 | E16: Octava 1800 | G16: 0…+7 | H16: 1.12 | I16: 1780х955х1265 | J16: 2000х1200х1110 | K16: 97998 | L16: =ROUND(K16*(1-$F$3)/Лист2!$A$6,0) -> 97998
D17: =D62 -> Средне-низкотемпературные, ВПСН
D18: О ВПСН1 120ГR290 | E18: Octava SN 1200 | G18: -6…+6 | H18: 0.72 | I18: 1180х955х1265 | J18: 1400х1200х1110 | K18: 90377 | L18: =ROUND(K18*(1-$F$3)/Лист2!$A$6,0) -> 90377
D19: О ВПСН1 150ГR290 | E19: Octava SN 1500 | G19: -6…+6 | H19: 0.92 | I19: 1480х955х1265 | J19: 1700х1200х1110 | K19: 101905 | L19: =ROUND(K19*(1-$F$3)/Лист2!$A$6,0) -> 101905
D20: О ВПСН1 180ГR290 | E20: Octava SN 1800 | G20: -6…+6 | H20: 1.12 | I20: 1780х955х1265 | J20: 2000х1200х1110 | K20: 113177 | L20: =ROUND(K20*(1-$F$3)/Лист2!$A$6,0) -> 113177
D21: =D66 -> Низкотемпературные, ВПН
D22: О ВПН1 120ГR290 | E22: Octava M 1200 | G22: -13…-15 | H22: 0.69 | I22: 1180х955х1265 | J22: 1400х1200х1110 | K22: 96509 | L22: =ROUND(K22*(1-$F$3)/Лист2!$A$6,0) -> 96509
D23: О ВПН1 150ГR290 | E23: Octava M 1500 | G23: -13…-15 | H23: 0.89 | I23: 1480х955х1265 | J23: 1700х1200х1110 | K23: 110391 | L23: =ROUND(K23*(1-$F$3)/Лист2!$A$6,0) -> 110391
D24: О ВПН1 180ГR290 | E24: Octava M 1800 | G24: -13…-15 | H24: 1.08 | I24: 1780х955х1265 | J24: 2000х1200х1110 | K24: 121972 | L24: =ROUND(K24*(1-$F$3)/Лист2!$A$6,0) -> 121972
D25: Угловые витрины
D26: O ВПС1 OC90Д R290 | E26: Octava OC (угол внеш.) | G26: 0…+7 | H26: 0.79 | I26: 1180х1180х1265 | J26: 1750х1250х1110 | K26: 137982 | L26: =ROUND(K26*(1-$F$3)/Лист2!$A$6,0) -> 137982
D27: O ВПС1 IC90Д R290 | E27: Octava IC (угол внутр.) | G27: 0…+7 | H27: 0.61 | I27: 1354х1354х1265 | J27: 2050х1150х1110 | K27: 125667 | L27: =ROUND(K27*(1-$F$3)/Лист2!$A$6,0) -> 125667
D28: Кассовые прилавки
D29: O КНП 50ББ | E29: Прилавок Octava КНП 500 ББ (без боковин) | I29: 500 х 910 х 905 | J29: 800х1100х1110 | K29: 21190 | L29: =ROUND(K29*(1-$F$3)/Лист2!$A$6,0) -> 21190
D30: O КНП 50ББ К | E30: Прилавок Octava КНП 500 ББ (без боковин, с колесами) | I30: 500 х 910 х 905 | J30: 800х1100х1110 | K30: 24525 | L30: =ROUND(K30*(1-$F$3)/Лист2!$A$6,0) -> 24525
D31: O КНП 60 | E31: Прилавок Octava КНП 600 (с боковинами) | I31: 580 х 910 х 905 | J31: 800х1100х1110 | K31: 31047 | L31: =ROUND(K31*(1-$F$3)/Лист2!$A$6,0) -> 31047
D32: O КНП 60 К | E32: Прилавок Octava КНП 600 (с боковинами, с колесами) | I32: 580 х 910 х 905 | J32: 800х1100х1110 | K32: 34787 | L32: =ROUND(K32*(1-$F$3)/Лист2!$A$6,0) -> 34787
D33: O КНП 60ББ | E33: Прилавок Octava КНП 600 ББ (без боковин) | I33: 600 х 910 х 905 | J33: 900х1100х1110 | K33: 22695 | L33: =ROUND(K33*(1-$F$3)/Лист2!$A$6,0) -> 22695
D34: O КНП 60ББ К | E34: Прилавок Octava КНП 600 ББ (без боковин, с колесами) | I34: 600 х 910 х 905 | J34: 900х1100х1110 | K34: 26339 | L34: =ROUND(K34*(1-$F$3)/Лист2!$A$6,0) -> 26339
D35: O КНП 70 | E35: Прилавок Octava КНП 700 (с боковинами) | I35: 680 х 910 х 905 | J35: 900х1100х1110 | K35: 32604 | L35: =ROUND(K35*(1-$F$3)/Лист2!$A$6,0) -> 32604
D36: O КНП 70 К | E36: Прилавок Octava КНП 700 (с боковинами, с колесами) | I36: 680 х 910 х 905 | J36: 900х1100х1110 | K36: 36139 | L36: =ROUND(K36*(1-$F$3)/Лист2!$A$6,0) -> 36139
D37: O КНП 70ББ | E37: Прилавок Octava КНП 700 ББ (без боковин) | I37: 700 х 910 х 905 | J37: 1000х1100х1110 | K37: 24118 | L37: =ROUND(K37*(1-$F$3)/Лист2!$A$6,0) -> 24118
D38: O КНП 70ББ К | E38: Прилавок Octava КНП 700 ББ (без боковин, с колесами) | I38: 700 х 910 х 905 | J38: 1000х1100х1110 | K38: 27606 | L38: =ROUND(K38*(1-$F$3)/Лист2!$A$6,0) -> 27606
D39: O КНП 80 | E39: Прилавок Octava КНП 800 (с боковинами) | I39: 780 х 910 х 905 | J39: 1000х1100х1110 | K39: 34426 | L39: =ROUND(K39*(1-$F$3)/Лист2!$A$6,0) -> 34426
D40: O КНП 80 К | E40: Прилавок Octava КНП 800 (с боковинами, с колесами) | I40: 780 х 910 х 905 | J40: 1000х1100х1110 | K40: 37726 | L40: =ROUND(K40*(1-$F$3)/Лист2!$A$6,0) -> 37726
D41: O КНП 80 ББ | E41: Прилавок Octava КНП 800 ББ (без боковин) | I41: 800 х 910 х 905 | J41: 1100х1100х1110 | K41: 25881 | L41: =ROUND(K41*(1-$F$3)/Лист2!$A$6,0) -> 25881
D42: O КНП 80 ББ К | E42: Прилавок Octava КНП 800 ББ (без боковин, с колесами) | I42: 800 х 910 х 905 | J42: 1100х1100х1110 | K42: 29142 | L42: =ROUND(K42*(1-$F$3)/Лист2!$A$6,0) -> 29142
D43: O КНП 90 | E43: Прилавок Octava КНП 900 (с боковинами) | I43: 880 х 910 х 905 | J43: 1100х1100х1110 | K43: 35993 | L43: =ROUND(K43*(1-$F$3)/Лист2!$A$6,0) -> 35993
D44: O КНП 90 К | E44: Прилавок Octava КНП 900 (с боковинами, с колесами) | I44: 880 х 910 х 905 | J44: 1100х1100х1110 | K44: 39259 | L44: =ROUND(K44*(1-$F$3)/Лист2!$A$6,0) -> 39259
D45: O КНП 90 ББ | E45: Прилавок Octava КНП 900 ББ (без боковин) | I45: 900 х 910 х 905 | J45: 1200х1100х1110 | K45: 27559 | L45: =ROUND(K45*(1-$F$3)/Лист2!$A$6,0) -> 27559
D46: O КНП 90 ББ К | E46: Прилавок Octava КНП 900 ББ (без боковин, с колесами) | I46: 900 х 910 х 905 | J46: 1200х1100х1110 | K46: 31054 | L46: =ROUND(K46*(1-$F$3)/Лист2!$A$6,0) -> 31054
D47: O КНП IC90 | E47: Прилавок Octava КНП IC (угол внутр., с боковинами) | I47: 1720 х 1000 х 905 | J47: 2050х1300х1085 | K47: 43740 | L47: =ROUND(K47*(1-$F$3)/Лист2!$A$6,0) -> 43740
D48: O КНП IC90 ББ | E48: Прилавок Octava КНП IC ББ (угол внутр., без боковин) | I48: 1670 х 980 х 905 | J48: 2050х1300х1085 | K48: 33691 | L48: =ROUND(K48*(1-$F$3)/Лист2!$A$6,0) -> 33691
D49: O КНП OC90 | E49: Прилавок Octava КНП OC (угол внеш., с боковинами) | I49: 1410 х 1040 х 905 | J49: 1700х1200х1110 | K49: 40612 | L49: =ROUND(K49*(1-$F$3)/Лист2!$A$6,0) -> 40612
D50: O КНП OC90 ББ | E50: Прилавок Octava КНП OC ББ (угол внеш., без боковин) | I50: 1365 х 1015 х 905 | J50: 1700х1200х1110 | K50: 30220 | L50: =ROUND(K50*(1-$F$3)/Лист2!$A$6,0) -> 30220
D51: O КНП 100 | E51: Прилавок Octava КНП 1000 (с боковинами) | I51: 980 х 910 х 905 | J51: 1200х1100х1110 | K51: 37778 | L51: =ROUND(K51*(1-$F$3)/Лист2!$A$6,0) -> 37778
D52: O КНП 100 К | E52: Прилавок Octava КНП 1000 (с боковинами, с колесами) | I52: 9800 х 910 х 905 | J52: 1200х1100х1110 | K52: 41425 | L52: =ROUND(K52*(1-$F$3)/Лист2!$A$6,0) -> 41425
D53: O КНП 100 ББ | E53: Прилавок Octava КНП 1000 ББ (без боковин) | I53: 1000 х 910 х 905 | J53: 1300х1100х1110 | K53: 28897 | L53: =ROUND(K53*(1-$F$3)/Лист2!$A$6,0) -> 28897
D54: O КНП 100 ББ К | E54: Прилавок Octava КНП 1000 ББ (без боковин, с колесами) | I54: 1000 х 910 х 905 | J54: 1300х1100х1110 | K54: 32303 | L54: =ROUND(K54*(1-$F$3)/Лист2!$A$6,0) -> 32303
D55: O КНП 1100 | E55: Прилавок Octava КНП 1100 (с боковинами) | I55: 1080 х 910 х 905 | J55: 1300х1100х1110 | K55: 39121 | L55: =ROUND(K55*(1-$F$3)/Лист2!$A$6,0) -> 39121
D56: O КНП 1100 К | E56: Прилавок Octava КНП 1100 (с боковинами, с колесами) | I56: 1080 х 910 х 905 | J56: 1300х1100х1110 | K56: 42210 | L56: =ROUND(K56*(1-$F$3)/Лист2!$A$6,0) -> 42210
A57: 2 | B57: Витрины серии OCTAVA Q, глубина выкладки 660 мм, стандартный RAL 7016 | M57: EL.2.G7016гл.В7016гл.V0.PS
D58: Среднетемпературные, ВПС
D59: OKQВПС 120 R290 | E59: Octava Q 1200 | G59: 0…+7 | H59: 0.72 | I59: 1180х925х1200 | J59: 1400х1200х1110 | K59: 85884 | L59: =ROUND(K59*(1-$F$3)/Лист2!$A$6,0) -> 85884
D60: OKQВПС 150 R290 | E60: Octava Q 1500 | G60: 0…+7 | H60: 0.92 | I60: 1480х925х1200 | J60: 1700х1200х1110 | K60: 96769 | L60: =ROUND(K60*(1-$F$3)/Лист2!$A$6,0) -> 96769
D61: OKQВПС 180 R290 | E61: Octava Q 1800 | G61: 0…+7 | H61: 1.12 | I61: 1780х925х1200 | J61: 2000х1200х1110 | K61: 110663 | L61: =ROUND(K61*(1-$F$3)/Лист2!$A$6,0) -> 110663
D62: Средне-низкотемпературные, ВПСН
D63: OKQВПСН 120 R290 | E63: Octava Q SN 1200 | G63: -6…+6 | H63: 0.72 | I63: 1180х925х1200 | J63: 1400х1200х1110 | K63: 94390 | L63: =ROUND(K63*(1-$F$3)/Лист2!$A$6,0) -> 94390
D64: OKQВПСН 150 R290 | E64: Octava Q SN 1500 | G64: -6…+6 | H64: 0.92 | I64: 1480х925х1200 | J64: 1700х1200х1110 | K64: 108110 | L64: =ROUND(K64*(1-$F$3)/Лист2!$A$6,0) -> 108110
D65: OKQВПСН 180 R290 | E65: Octava Q SN 1800 | G65: -6…+6 | H65: 1.12 | I65: 1780х925х1200 | J65: 2000х1200х1110 | K65: 121721 | L65: =ROUND(K65*(1-$F$3)/Лист2!$A$6,0) -> 121721
D66: Низкотемпературные, ВПН
D67: OKQВПН 120 R290 | E67: Octava Q M 1200 | G67: -15…-18 | H67: 0.69 | I67: 1180х925х1200 | J67: 1400х1200х1110 | K67: 105997 | L67: =ROUND(K67*(1-$F$3)/Лист2!$A$6,0) -> 105997
D68: OKQВПН 150 R290 | E68: Octava Q M 1500 | G68: -15…-18 | H68: 0.89 | I68: 1480х925х1200 | J68: 1700х1200х1110 | K68: 116873 | L68: =ROUND(K68*(1-$F$3)/Лист2!$A$6,0) -> 116873
D69: OKQВПН 180 R290 | E69: Octava Q M 1800 | G69: -15…-18 | H69: 1.08 | I69: 1780х925х1200 | J69: 2000х1200х1110 | K69: 132254 | L69: =ROUND(K69*(1-$F$3)/Лист2!$A$6,0) -> 132254
A70: 3 | B70: Витрины серии OCTAVA XL, глубина выкладки 780 мм, стандартный Ral 7016. | M70: EL.2.В7016гл.V0.PS
A71: Стандартная комплектация: | D71: Среднетемпературные, ВПС
D72: OХL ВПС1 120 R290 | E72: Octava XL 1200 | G72: 0…+7 | H72: 0.93 | I72: 1218х1069х1214 | J72: 1400х1200х1110 | K72: 86129 | L72: =ROUND(K72*(1-$F$3)/Лист2!$A$6,0) -> 86129
D73: OХL ВПС1 150 R290 | E73: Octava XL 1500 | G73: 0…+7 | H73: 1.15 | I73: 1518х1069х1214 | J73: 1700х1200х1110 | K73: 95334 | L73: =ROUND(K73*(1-$F$3)/Лист2!$A$6,0) -> 95334
D74: OХL ВПС1 180 R290 | E74: Octava XL 1800 | G74: 0…+7 | H74: 1.4 | I74: 1818х1069х1214 | J74: 2000х1200х1110 | K74: 108098 | L74: =ROUND(K74*(1-$F$3)/Лист2!$A$6,0) -> 108098
D75: Средне-низкотемпературные, ВПСН
D76: OXL ВПСН1 120 R290 | E76: Octava XL SN 1200 | G76: -6…+6 | H76: 0.93 | I76: 1218х1069х1214 | J76: 1400х1200х1110 | K76: 101446 | L76: =ROUND(K76*(1-$F$3)/Лист2!$A$6,0) -> 101446
D77: OXL ВПСН1 150 R290 | E77: Octava XL SN 1500 | G77: -6…+6 | H77: 1.15 | I77: 1518х1069х1214 | J77: 1700х1200х1110 | K77: 107250 | L77: =ROUND(K77*(1-$F$3)/Лист2!$A$6,0) -> 107250
D78: OXL ВПСН1 180 R290 | E78: Octava XL SN 1800 | G78: -6…+6 | H78: 1.4 | I78: 1818х1069х1214 | J78: 2000х1200х1110 | K78: 124992 | L78: =ROUND(K78*(1-$F$3)/Лист2!$A$6,0) -> 124992
D79: Низкотемпературные, ВПН
D80: OХL ВПН1 120 R290 | E80: Octava XL М 1200 | G80: -15…-18 | H80: 0.85 | I80: 1218х1093х1300 | J80: 1400х1200х1110 | K80: 125000 | L80: =ROUND(K80*(1-$F$3)/Лист2!$A$6,0) -> 125000
D81: OХL ВПН1 150 R290 | E81: Octava XL М 1500 | G81: -15…-18 | H81: 1.1 | I81: 1518х1093х1300 | J81: 1700х1200х1110 | K81: 144618 | L81: =ROUND(K81*(1-$F$3)/Лист2!$A$6,0) -> 144618
D82: OХL ВПН1 180 R290 | E82: Octava XL М 1800 | G82: -15…-18 | H82: 1.3 | I82: 1818х1093х1300 | J82: 2000х1200х1110 | K82: 158716 | L82: =ROUND(K82*(1-$F$3)/Лист2!$A$6,0) -> 158716
D83: Кассовые прилавки
D84: OХЛ КНП 500 ББ | E84: Octava XL КНП 500 ББ | G84: - | H84: - | K84: 24733 | L84: =ROUND(K84*(1-$F$3)/Лист2!$A$6,0) -> 24733
D85: OХЛ КНП 620 ББ | E85: Octava XL КНП 620 ББ | G85: - | H85: - | I85: 600х1069х940 | J85: 750х1250х1095 | K85: 26959 | L85: =ROUND(K85*(1-$F$3)/Лист2!$A$6,0) -> 26959
A86: 4 | B86: Витрины серии GAMMA-2, глубина выкладки 760 мм, стандартный Ral 3004. | K86: Опции Gamma-2 | M86: EL.2.G3004гл.В3004гл.V0.PS
D87: Среднетемпературные, ВПС | M87: *нажмите чтобы перейти в список опций
D88: G2 ВПС1 120 R290 | E88: Gamma-2 1200 | F88: с боковинами | G88: 0…+7 | H88: 0.85 | I88: 1218х1093х1300 | J88: 1400х1200х1110 | K88: 92747 | L88: =ROUND(K88*(1-$F$3)/Лист2!$A$6,0) -> 92747
D89: G2 ВПС1 120 R290ББ | F89: без боковин | I89: 1118х1093х1300 | J89: 1400х1200х1110 | K89: 79540 | L89: =ROUND(K89*(1-$F$3)/Лист2!$A$6,0) -> 79540
D90: G2 ВПС1 150 R290 | E90: Gamma-2 1500 | F90: с боковинами | G90: 0…+7 | H90: 1.1 | I90: 1518х1093х1300 | J90: 1700х1200х1110 | K90: 98815 | L90: =ROUND(K90*(1-$F$3)/Лист2!$A$6,0) -> 98815
D91: G2 ВПС1 150 R290ББ | F91: без боковин | I91: 1418х1093х1300 | J91: 1700х1200х1110 | K91: 85607 | L91: =ROUND(K91*(1-$F$3)/Лист2!$A$6,0) -> 85607
D92: G2 ВПС1 180 R290 | E92: Gamma-2 1800 | F92: с боковинами | G92: 0…+7 | H92: 1.3 | I92: 1818х1093х1300 | J92: 2000х1200х1110 | K92: 115595 | L92: =ROUND(K92*(1-$F$3)/Лист2!$A$6,0) -> 115595
D93: G2 ВПС1 180 R290ББ | F93: без боковин | I93: 1718х1093х1300 | J93: 2000х1200х1110 | K93: 102387 | L93: =ROUND(K93*(1-$F$3)/Лист2!$A$6,0) -> 102387
D94: Средне-низкотемпературные, ВПСН
D95: G2 ВПСН1 120 R290 | E95: Gamma-2 SN 1200 | F95: с боковинами | G95: -6…+6 | H95: 0.85 | I95: 1218х1093х1300 | J95: 1400х1200х1110 | K95: 104052 | L95: =ROUND(K95*(1-$F$3)/Лист2!$A$6,0) -> 104052
D96: G2 ВПСН1 120 R290ББ | F96: без боковин | I96: 1118х1093х1300 | J96: 1400х1200х1110 | K96: 90844 | L96: =ROUND(K96*(1-$F$3)/Лист2!$A$6,0) -> 90844
D97: G2 ВПСН1 150 R290 | E97: Gamma-2 SN 1500 | F97: с боковинами | G97: -6…+6 | H97: 1.1 | I97: 1518х1093х1300 | J97: 1700х1200х1110 | K97: 116508 | L97: =ROUND(K97*(1-$F$3)/Лист2!$A$6,0) -> 116508
D98: G2 ВПСН1 150 ББ R290 | F98: без боковин | I98: 1418х1093х1300 | J98: 1700х1200х1110 | K98: 103300 | L98: =ROUND(K98*(1-$F$3)/Лист2!$A$6,0) -> 103300
D99: G2 ВПСН1 180 R290 | E99: Gamma-2 SN 1800 | F99: с боковинами | G99: -6…+6 | H99: 1.3 | I99: 1818х1093х1300 | J99: 2000х1200х1110 | K99: 132736 | L99: =ROUND(K99*(1-$F$3)/Лист2!$A$6,0) -> 132736
D100: G2 ВПСН1 180 ББ R290 | F100: без боковин | I100: 1718х1093х1300 | J100: 2000х1200х1110 | K100: 119528 | L100: =ROUND(K100*(1-$F$3)/Лист2!$A$6,0) -> 119528
D101: Средне-низкотемпературные для рыбы, ВПСН
D102: G2ВПСН1 120F R290 | E102: Gamma-2 Fish 1200 | F102: с боковинами | G102: -6…+6 | H102: 0.85 | I102: 1218х1093х1300 | J102: 1400х1200х1110 | K102: 115452 | L102: =ROUND(K102*(1-$F$3)/Лист2!$A$6,0) -> 115452
F103: без боковин | I103: 1118х1093х1300 | J103: 1400х1200х1110 | K103: 102244 | L103: =ROUND(K103*(1-$F$3)/Лист2!$A$6,0) -> 102244
D104: G2ВПСН1 150F R290 | E104: Gamma-2 Fish 1500 | F104: с боковинами | G104: -6…+6 | H104: 1.1 | I104: 1518х1093х1300 | J104: 1700х1200х1110 | K104: 133628 | L104: =ROUND(K104*(1-$F$3)/Лист2!$A$6,0) -> 133628
F105: без боковин | I105: 1418х1093х1300 | J105: 1700х1200х1110 | K105: 120420 | L105: =ROUND(K105*(1-$F$3)/Лист2!$A$6,0) -> 120420
D106: G2ВПСН1 180F R290 | E106: Gamma-2 Fish 1800 | F106: с боковинами | G106: -6…+6 | H106: 1.3 | I106: 1818х1093х1300 | J106: 2000х1200х1110 | K106: 172815 | L106: =ROUND(K106*(1-$F$3)/Лист2!$A$6,0) -> 172815
F107: без боковин | I107: 1718х1093х1300 | J107: 2000х1200х1110 | K107: 159608 | L107: =ROUND(K107*(1-$F$3)/Лист2!$A$6,0) -> 159608
D108: Низкотемпературные, ВПН
D109: G2 ВПН1 120 R290 | E109: Gamma-2 М 1200 | F109: с боковинами | G109: от -18 | H109: 0.85 | I109: 1218х1093х1300 | J109: 1400х1200х1110 | K109: 128445 | L109: =ROUND(K109*(1-$F$3)/Лист2!$A$6,0) -> 128445
D110: G2 ВПН1 120 ББ R290 | F110: без боковин | I110: 1118х1093х1300 | J110: 1400х1200х1110 | K110: 115034 | L110: =ROUND(K110*(1-$F$3)/Лист2!$A$6,0) -> 115034
D111: G2 ВПН1 150 R290 | E111: Gamma-2 М 1500 | F111: с боковинами | G111: от -18 | H111: 1.1 | I111: 1518х1093х1300 | J111: 1700х1200х1110 | K111: 146856 | L111: =ROUND(K111*(1-$F$3)/Лист2!$A$6,0) -> 146856
D112: G2 ВПН1 150 ББ R290 | F112: без боковин | I112: 1418х1093х1300 | J112: 1700х1200х1110 | K112: 133446 | L112: =ROUND(K112*(1-$F$3)/Лист2!$A$6,0) -> 133446
D113: G2 ВПН1 180 R290 | E113: Gamma-2 М 1800 | F113: с боковинами | G113: от -18 | H113: 1.3 | I113: 1818х1093х1300 | J113: 2000х1200х1110 | K113: 161700 | L113: =ROUND(K113*(1-$F$3)/Лист2!$A$6,0) -> 161700
D114: G2 ВПН1 180 ББ R290 | F114: без боковин | I114: 1718х1093х1300 | J114: 2000х1200х1110 | K114: 148289 | L114: =ROUND(K114*(1-$F$3)/Лист2!$A$6,0) -> 148289
D115: Угловые витрины (ВПС)
D116: G2ВПС1 ОС90Д R290 | E116: Gamma-2 OC 90 (угол внеш.) | F116: с боковинами | G116: 0…+7 | H116: 0.92 | I116: 1180х1180х1300 | J116: 1750х1400х1110 | K116: 134946 | L116: =ROUND(K116*(1-$F$3)/Лист2!$A$6,0) -> 134946
D117: G2ВПС1 ОС90Д R290ББ | F117: без боковин | I117: 1130х1130х1300 | J117: 1750х1400х1110 | K117: 121739 | L117: =ROUND(K117*(1-$F$3)/Лист2!$A$6,0) -> 121739
D118: G2ВПС1 IС90 R290 | E118: Gamma-2 IC 90 (угол внутр.) | F118: с боковинами | G118: 0…+7 | H118: 0.74 | I118: 1355х1355х1300 | J118: 2050х1200х1110 | K118: 149289 | L118: =ROUND(K118*(1-$F$3)/Лист2!$A$6,0) -> 149289
D119: G2ВПС1 IС90 R290 ББ | F119: без боковин | I119: 1305х1305х1300 | J119: 2050х1200х1110 | K119: 136082 | L119: =ROUND(K119*(1-$F$3)/Лист2!$A$6,0) -> 136082
D120: Кассовые прилавки
D121: G КНП 50ББ | E121: Прилавок Gamma КНП 500 ББ (без боковин) | F121: без боковин | I121: 500 х 1090 х 940 | J121: 800х1200х1110 | K121: 21327 | L121: =ROUND(K121*(1-$F$3)/Лист2!$A$6,0) -> 21327
D122: G КНП 50ББ К | E122: Прилавок Gamma КНП 500 ББ (без боковин, с колесами) | F122: без боковин, с колесами | I122: 500 х 1090 х 940 | J122: 800х1200х1110 | K122: 25088 | L122: =ROUND(K122*(1-$F$3)/Лист2!$A$6,0) -> 25088
D123: G КНП 60 | E123: Прилавок Gamma КНП 600 (с боковинами) | F123: с боковинами | I123: 600 х 1090 х 940 | J123: 800х1200х1110 | K123: 32581 | L123: =ROUND(K123*(1-$F$3)/Лист2!$A$6,0) -> 32581
D124: G КНП 60 К | E124: Прилавок Gamma КНП 600 (с боковинами, с колесами) | F124: c боковинами, с колесами | I124: 600 х 1090 х 940 | J124: 800х1200х1110 | K124: 36343 | L124: =ROUND(K124*(1-$F$3)/Лист2!$A$6,0) -> 36343
D125: G КНП 60ББ | E125: Прилавок Gamma КНП 600 ББ (без боковин) | F125: без боковин | I125: 600 х 1090 х 940 | J125: 900х1200х1110 | K125: 24496 | L125: =ROUND(K125*(1-$F$3)/Лист2!$A$6,0) -> 24496
D126: G КНП 60ББ К | E126: Прилавок Gamma КНП 600 ББ (без боковин, с колесами) | F126: без боковин, с колесами | I126: 600 х 1090 х 940 | J126: 900х1200х1110 | K126: 28257 | L126: =ROUND(K126*(1-$F$3)/Лист2!$A$6,0) -> 28257
D127: G КНП 70 | E127: Прилавок Gamma КНП 700 (с боковинами) | F127: с боковинами | I127: 700 х 1090 х 940 | J127: 900х1200х1110 | K127: 34077 | L127: =ROUND(K127*(1-$F$3)/Лист2!$A$6,0) -> 34077
D128: G КНП 70 К | E128: Прилавок Gamma КНП 700 (с боковинами, с колесами) | F128: c боковинами, с колесами | I128: 700 х 1090 х 940 | J128: 900х1200х1110 | K128: 37838 | L128: =ROUND(K128*(1-$F$3)/Лист2!$A$6,0) -> 37838
D129: G КНП 70ББ | E129: Прилавок Gamma КНП 700 ББ (без боковин) | F129: без боковин | I129: 700 х 1090 х 940 | J129: 1000х1200х1110 | K129: 25991 | L129: =ROUND(K129*(1-$F$3)/Лист2!$A$6,0) -> 25991
D130: G КНП 70ББ К | E130: Прилавок Gamma КНП 700 ББ (без боковин, с колесами) | F130: без боковин, с колесами | I130: 700 х 1090 х 940 | J130: 1000х1200х1110 | K130: 29753 | L130: =ROUND(K130*(1-$F$3)/Лист2!$A$6,0) -> 29753
D131: G КНП 80 | E131: Прилавок Gamma КНП 800 (с боковинами) | F131: с боковинами | I131: 800 х 1090 х 940 | J131: 1000х1200х1110 | K131: 34831 | L131: =ROUND(K131*(1-$F$3)/Лист2!$A$6,0) -> 34831
D132: G КНП 80 К | E132: Прилавок Gamma КНП 800 (с боковинами, с колесами) | F132: c боковинами, с колесами | I132: 800 х 1090 х 940 | J132: 1000х1200х1110 | K132: 38593 | L132: =ROUND(K132*(1-$F$3)/Лист2!$A$6,0) -> 38593
D133: G КНП 80 ББ | E133: Прилавок Gamma КНП 800 ББ (без боковин) | F133: без боковин | I133: 800 х 1090 х 940 | J133: 1100х1200х1110 | K133: 28966 | L133: =ROUND(K133*(1-$F$3)/Лист2!$A$6,0) -> 28966
D134: G КНП 80 ББ К | E134: Прилавок Gamma КНП 800 ББ (без боковин, с колесами) | F134: без боковин, с колесами | I134: 800 х 1090 х 940 | J134: 1100х1200х1110 | K134: 32728 | L134: =ROUND(K134*(1-$F$3)/Лист2!$A$6,0) -> 32728
D135: G КНП 90 | E135: Прилавок Gamma КНП 900 (с боковинами) | F135: с боковинами | I135: 900 х 1090 х 940 | J135: 1100х1200х1110 | K135: 36451 | L135: =ROUND(K135*(1-$F$3)/Лист2!$A$6,0) -> 36451
D136: G КНП 90 К | E136: Прилавок Gamma КНП 900 (с боковинами, с колесами) | F136: c боковинами, с колесами | I136: 900 х 1090 х 940 | J136: 1100х1200х1110 | K136: 40212 | L136: =ROUND(K136*(1-$F$3)/Лист2!$A$6,0) -> 40212
D137: G КНП 90 ББ | E137: Прилавок Gamma КНП 900 ББ (без боковин) | F137: без боковин | I137: 900 х 1090 х 940 | J137: 1200х1200х1110 | K137: 29985 | L137: =ROUND(K137*(1-$F$3)/Лист2!$A$6,0) -> 29985
D138: G КНП 90 ББ К | E138: Прилавок Gamma КНП 900 ББ (без боковин, с колесами) | F138: без боковин, с колесами | I138: 900 х 1090 х 940 | J138: 1200х1200х1110 | K138: 33746 | L138: =ROUND(K138*(1-$F$3)/Лист2!$A$6,0) -> 33746
D139: G КНП IC90 | E139: Прилавок Gamma КНП IC (угол внутр., с боковинами) | F139: с боковинами | I139: 1885 х 1120 х 940 | J139: 2050х1300х1095 | K139: 48083 | L139: =ROUND(K139*(1-$F$3)/Лист2!$A$6,0) -> 48083
D140: G КНП IC90 ББ | E140: Прилавок Gamma КНП IC ББ (угол внутр., без боковин) | F140: без боковин | I140: 1835 х 1105 х 940 | J140: 2050х1300х1095 | K140: 36831 | L140: =ROUND(K140*(1-$F$3)/Лист2!$A$6,0) -> 36831
D141: G КНП OC90 | E141: Прилавок Gamma КНП OC (угол внеш., с боковинами) | F141: с боковинами | I141: 1665 х 1220 х 940 | J141: 1850х1390х1095 | K141: 48938 | L141: =ROUND(K141*(1-$F$3)/Лист2!$A$6,0) -> 48938
D142: G КНП OC90 ББ | E142: Прилавок Gamma КНП OC ББ (угол внеш., без боковин) | F142: без боковин | I142: 1620 х 1195 х 940 | J142: 1850х1390х1095 | K142: 37686 | L142: =ROUND(K142*(1-$F$3)/Лист2!$A$6,0) -> 37686
D143: G КНП 100 | E143: Прилавок Gamma КНП 1000 (с боковинами) | F143: с боковинами | I143: 1000 х 1090 х 940 | J143: 1200х1200х1110 | K143: 36833 | L143: =ROUND(K143*(1-$F$3)/Лист2!$A$6,0) -> 36833
D144: G КНП 100 К | E144: Прилавок Gamma КНП 1000 (с боковинами, с колесами) | F144: c боковинами, с колесами | I144: 1000 х 1090 х 940 | J144: 1200х1200х1110 | K144: 40594 | L144: =ROUND(K144*(1-$F$3)/Лист2!$A$6,0) -> 40594
D145: G КНП 100 ББ | E145: Прилавок Gamma КНП 1000 ББ (без боковин) | F145: без боковин | I145: 1000 х 1090 х 940 | J145: 1300х1200х1110 | K145: 33074 | L145: =ROUND(K145*(1-$F$3)/Лист2!$A$6,0) -> 33074
D146: G КНП 100 ББ К | E146: Прилавок Gamma КНП 1000 ББ (без боковин, с колесами) | F146: без боковин, с колесами | I146: 1000 х 1090 х 940 | J146: 1300х1200х1110 | K146: 36835 | L146: =ROUND(K146*(1-$F$3)/Лист2!$A$6,0) -> 36835
D147: G КНП 1100 | E147: Прилавок Gamma КНП 1100 (с боковинами) | F147: с боковинами | I147: 1100 х 1090 х 940 | J147: 1300х1200х1110 | K147: 38970 | L147: =ROUND(K147*(1-$F$3)/Лист2!$A$6,0) -> 38970
D148: G КНП 1100 К | E148: Прилавок Gamma КНП 1100 (с боковинами, с колесами) | F148: c боковинами, с колесами | I148: 1100 х 1090 х 940 | J148: 1300х1200х1110 | K148: 42731 | L148: =ROUND(K148*(1-$F$3)/Лист2!$A$6,0) -> 42731
E149: Комплект колес для КНП | K149: 3762 | L149: =ROUND(K149*(1-$F$3)/Лист2!$A$6,0) -> 3762
E150: Ящик для КНП | K150: 2643 | L150: =ROUND(K150*(1-$F$3)/Лист2!$A$6,0) -> 2643
A151: 5 | B151: Витрины серии GAMMA-2 LED, глубина выкладки 760 мм, стандартный Ral 3004.
B152: Стандартная комплектация: | E152: Среднетемпературные
B153: - агрегат | E153: Gamma-2 1200 LED | F153: с боковинами | G153: 0…+7 | H153: 0.85 | I153: 1218х1093х1300 | K153: 79279 | L153: =ROUND(K153*(1-$F$3)/Лист2!$A$6,0) -> 79279
B154: - испаритель | F154: без боковин | I154: 1118х1093х1300 | K154: 68488 | L154: =ROUND(K154*(1-$F$3)/Лист2!$A$6,0) -> 68488
B155: - шторки из оргстекла | E155: Gamma-2 1500 LED | F155: с боковинами | G155: 0…+7 | H155: 1.1 | I155: 1518х1093х1300 | K155: 84487 | L155: =ROUND(K155*(1-$F$3)/Лист2!$A$6,0) -> 84487
B156: - комплект боковин и боковых стекол | F156: без боковин | I156: 1418х1093х1300 | K156: 73696 | L156: =ROUND(K156*(1-$F$3)/Лист2!$A$6,0) -> 73696
B157: - комплект фронтальных стекол | E157: Gamma-2 1800 LED | F157: с боковинами | G157: 0…+7 | H157: 1.3 | I157: 1818х1093х1300 | K157: 99221 | L157: =ROUND(K157*(1-$F$3)/Лист2!$A$6,0) -> 99221
B158: - экспозиционные полки из шлифованной стали | F158: без боковин | I158: 1718х1093х1300 | K158: 88105 | L158: =ROUND(K158*(1-$F$3)/Лист2!$A$6,0) -> 88105
B159: - ёмкость для сбора талой воды | E159: Средне-низкотемпературные
B160: - светодиодная подсветка | E160: Gamma-2 SN 1200 LED | F160: с боковинами | G160: -6…+6 | H160: 0.85 | I160: 1218х1093х1300 | K160: 89313 | L160: =ROUND(K160*(1-$F$3)/Лист2!$A$6,0) -> 89313
B161: - электронный пульт управления | F161: без боковин | I161: 1118х1093х1300 | K161: 78198 | L161: =ROUND(K161*(1-$F$3)/Лист2!$A$6,0) -> 78198
B162: - деревянная тара | E162: Gamma-2 SN 1500 LED | F162: с боковинами | G162: -6…+6 | H162: 1.1 | I162: 1518х1093х1300 | K162: 100002 | L162: =ROUND(K162*(1-$F$3)/Лист2!$A$6,0) -> 100002
F163: без боковин | I163: 1418х1093х1300 | K163: 88888 | L163: =ROUND(K163*(1-$F$3)/Лист2!$A$6,0) -> 88888
E164: Gamma-2 SN 1800 LED | F164: с боковинами | G164: -6…+6 | H164: 1.3 | I164: 1818х1093х1300 | K164: 113934 | L164: =ROUND(K164*(1-$F$3)/Лист2!$A$6,0) -> 113934
F165: без боковин | I165: 1718х1093х1300 | K165: 102818 | L165: =ROUND(K165*(1-$F$3)/Лист2!$A$6,0) -> 102818
E166: Низкотемпературные
E167: Gamma-2 М 1200 LED | F167: с боковинами | G167: от -18 | H167: 0.85 | I167: 1218х1093х1300 | K167: 110250 | L167: =ROUND(K167*(1-$F$3)/Лист2!$A$6,0) -> 110250
F168: без боковин | I168: 1118х1093х1300 | K168: 98964 | L168: =ROUND(K168*(1-$F$3)/Лист2!$A$6,0) -> 98964
E169: Gamma-2 М 1500 LED | F169: с боковинами | G169: от -18 | H169: 1.1 | I169: 1518х1093х1300 | K169: 126052 | L169: =ROUND(K169*(1-$F$3)/Лист2!$A$6,0) -> 126052
F170: без боковин | I170: 1418х1093х1300 | K170: 114766 | L170: =ROUND(K170*(1-$F$3)/Лист2!$A$6,0) -> 114766
E171: Gamma-2 М 1800 LED | F171: с боковинами | G171: от -18 | H171: 1.3 | I171: 1818х1093х1300 | K171: 138793 | L171: =ROUND(K171*(1-$F$3)/Лист2!$A$6,0) -> 138793
F172: без боковин | I172: 1718х1093х1300 | K172: 127507 | L172: =ROUND(K172*(1-$F$3)/Лист2!$A$6,0) -> 127507
A173: 6 | B173: Витрины серии GAMMA-2 FISH, глубина выкладки 760 мм, стандартный Ral 3004.
E174: Средне-низкотемпературные
B175: - усиленный поддон для льда и рыбы | E175: Gamma-2 SN FISH 1200 | F175: с боковинами | G175: -6…+6 | H175: 0.85 | I175: 1218х1093х1300 | K175: 97693 | L175: =ROUND(K175*(1-$F$3)/Лист2!$A$6,0) -> 97693
B176: - коррозионностойкая решётка защиты испарителя | F176: без боковин | I176: 1118х1093х1300 | K176: 86578 | L176: =ROUND(K176*(1-$F$3)/Лист2!$A$6,0) -> 86578
B177: - увеличенный слив (Д 40 мм) | E177: Gamma-2 SN FISH 1500 | F177: с боковинами | G177: -6…+6 | H177: 1.1 | I177: 1518х1093х1300 | K177: 112989 | L177: =ROUND(K177*(1-$F$3)/Лист2!$A$6,0) -> 112989
F178: без боковин | I178: 1418х1093х1300 | K178: 101874 | L178: =ROUND(K178*(1-$F$3)/Лист2!$A$6,0) -> 101874
E179: Gamma-2 SN FISH 1800 | F179: с боковинами | G179: -6…+6 | H179: 1.3 | I179: 1818х1093х1300 | K179: 126856 | L179: =ROUND(K179*(1-$F$3)/Лист2!$A$6,0) -> 126856
F180: без боковин | I180: 1718х1093х1300 | K180: 115742 | L180: =ROUND(K180*(1-$F$3)/Лист2!$A$6,0) -> 115742
A181: 5 | B181: Витрины серии GAMMA QUADRO, глубина выкладки 760 мм, стандартный Ral 9016/7016. | K181: Опции Gamma Quadro | M181: EL.2.G9016гл.В7016гл.V0.PS
A182: Стандартная комплектация: | D182: Среднетемпературные, ВПС | M182: *нажмите чтобы перейти в список опций
D183: G2QUADLXВПС1 120R290 | E183: Gamma Quadro 1200 | F183: с боковинами | G183: 0…+7 | H183: 0.85 | I183: 1218х1087х1209 | J183: 1400х1200х1110 | K183: 112221 | L183: =ROUND(K183*(1-$F$3)/Лист2!$A$6,0) -> 112221
D184: G2QUADLXВПС1 120R290ББ | F184: без боковин | I184: 1118х1087х1209 | J184: 1400х1200х1110 | K184: 98369 | L184: =ROUND(K184*(1-$F$3)/Лист2!$A$6,0) -> 98369
D185: G2QUADLXВПС1 150R290 | E185: Gamma Quadro 1500 | F185: с боковинами | G185: 0…+7 | H185: 1.1 | I185: 1518х1087х1209 | J185: 1700х1200х1110 | K185: 119910 | L185: =ROUND(K185*(1-$F$3)/Лист2!$A$6,0) -> 119910
D186: G2QUADLXВПС1 150R290ББ | F186: без боковин | I186: 1418х1087х1209 | J186: 1700х1200х1110 | K186: 106059 | L186: =ROUND(K186*(1-$F$3)/Лист2!$A$6,0) -> 106059
D187: G2QUADLXВПС1 180R290 | E187: Gamma Quadro 1800 | F187: с боковинами | G187: 0…+7 | H187: 1.3 | I187: 1818х1087х1209 | J187: 2000х1200х1110 | K187: 143784 | L187: =ROUND(K187*(1-$F$3)/Лист2!$A$6,0) -> 143784
D188: G2QUADLXВПС1 180R290ББ | F188: без боковин | I188: 1718х1087х1209 | J188: 2000х1200х1110 | K188: 129932 | L188: =ROUND(K188*(1-$F$3)/Лист2!$A$6,0) -> 129932
D189: Средне-низкотемпературные, ВПСН
D190: G2QUADLXВПСН1 120R290 | E190: Gamma Quadro SN 1200 | F190: с боковинами | G190: -6…+6 | H190: 0.85 | I190: 1218х1087х1209 | J190: 1400х1200х1110 | K190: 121371 | L190: =ROUND(K190*(1-$F$3)/Лист2!$A$6,0) -> 121371
D191: G2QLXВПСН1 120VR290 | F191: без боковин | I191: 1118х1087х1209 | J191: 1400х1200х1110 | K191: 107519 | L191: =ROUND(K191*(1-$F$3)/Лист2!$A$6,0) -> 107519
D192: G2QUADLXВПСН1 150R290 | E192: Gamma Quadro SN 1500 | F192: с боковинами | G192: -6…+6 | H192: 1.1 | I192: 1518х1087х1209 | J192: 1700х1200х1110 | K192: 139831 | L192: =ROUND(K192*(1-$F$3)/Лист2!$A$6,0) -> 139831
D193: G2QUADLXВПСН1 150R290ББ | F193: без боковин | I193: 1418х1087х1209 | J193: 1700х1200х1110 | K193: 125979 | L193: =ROUND(K193*(1-$F$3)/Лист2!$A$6,0) -> 125979
D194: G2QUADLXВПСН1 180R290 | E194: Gamma Quadro SN 1800 | F194: с боковинами | G194: -6…+6 | H194: 1.3 | I194: 1818х1087х1209 | J194: 2000х1200х1110 | K194: 158766 | L194: =ROUND(K194*(1-$F$3)/Лист2!$A$6,0) -> 158766
D195: G2QUADLXВПСН1 180R290ББ | F195: без боковин | I195: 1718х1087х1209 | J195: 2000х1200х1110 | K195: 144914 | L195: =ROUND(K195*(1-$F$3)/Лист2!$A$6,0) -> 144914
D196: Низкотемпературные, ВПН
D197: G2QUADLXВПН1 120R290 | E197: Gamma Quadro М 1200 | F197: с боковинами | G197: от -18 | H197: 0.85 | I197: 1218х1087х1209 | J197: 1400х1200х1110 | K197: 141892 | L197: =ROUND(K197*(1-$F$3)/Лист2!$A$6,0) -> 141892
D198: G2QUADLXВПН1 120R290 ББ | F198: без боковин | I198: 1118х1087х1209 | J198: 1400х1200х1110 | K198: 124654 | L198: =ROUND(K198*(1-$F$3)/Лист2!$A$6,0) -> 124654
D199: G2QUADLXВПН1 150R290 | E199: Gamma Quadro М 1500 | F199: с боковинами | G199: от -18 | H199: 1.1 | I199: 1518х1087х1209 | J199: 1700х1200х1110 | K199: 161482 | L199: =ROUND(K199*(1-$F$3)/Лист2!$A$6,0) -> 161482
F200: без боковин | I200: 1418х1087х1209 | J200: 1700х1200х1110 | K200: 144244 | L200: =ROUND(K200*(1-$F$3)/Лист2!$A$6,0) -> 144244
D201: G2QUADLXВПН1 180R290 | E201: Gamma Quadro М 1800 | F201: с боковинами | G201: от -18 | H201: 1.3 | I201: 1818х1087х1209 | J201: 2000х1200х1110 | K201: 187722 | L201: =ROUND(K201*(1-$F$3)/Лист2!$A$6,0) -> 187722
D202: G2QUADLXВПН1 180R290ББ | F202: без боковин | I202: 1718х1087х1209 | J202: 2000х1200х1110 | K202: 170485 | L202: =ROUND(K202*(1-$F$3)/Лист2!$A$6,0) -> 170485
D203: Угловые витрины (ВПС)
D204: G2QUADLXВПС1 OC90Д R290 | E204: Gamma Quadro OC 90 (угол внеш.) | F204: с боковинами | G204: 0…+7 | H204: 0.92 | I204: 1180х1180х1209 | J204: 1750х1400х1110 | K204: 167853 | L204: =ROUND(K204*(1-$F$3)/Лист2!$A$6,0) -> 167853
D205: G2QUADLXВПС1 OC90Д ББR290 | F205: без боковин | I205: 1130х1130х1209 | J205: 1750х1400х1110 | K205: 154004 | L205: =ROUND(K205*(1-$F$3)/Лист2!$A$6,0) -> 154004
... 171 more rows

Sheet Витрины Cryspi (выносное ХО)
B3: Ваша скидка: | E3: =Содержание!D2 -> 0
B4: НДС: | E4: =IF(Лист2!A1=TRUE,"С НДС","БЕЗ НДС") -> С НДС
B7: Витрины Cryspi без агрегата
A8: № | B8: Изображение | C8: Артикул | D8: Наименование | E8: Температурный режим, C° | F8: Площадь экспозиции, кв.м. | G8: Габариты без боковин, мм (L/W/H) | H8: Габариты в упаковке, мм (L/W/H) | I8: Базовая цена, руб. (с НДС) | J8: =[6]Лист2!$A$5 -> Ваша цена, руб.
A10: Базовая комплектация: - Статическая система охлаждения, компрессор R-290; - Электронный контроллер для управления работой витрины; - Оттайка для версий ВПС - естественная (без ТЭНа), для версий ВПСН и ВПН - ТЭН (по умолчанию); - Общее светодиодное освещение для версий с высоким стеклом - стандартный - 4000К, опционально - 3000К, 6500К, мясной; - Товарный накопитель для линейных модулей (запасник с дверкой) (кроме НТ); - без боковин; - Упаковка в деревянную обрешетку | E10: - Внутренний объем для витрин ВПС и ВПСН - оцинкованный металл, внутренний объем в зоне выкладки - нерж.сталь; - Внутренний объем для витрин ВПН - оцинкованный металл с полимерным покрытием - Ночные шторки для витрин с высоким стеклом; - Фронтальное стекло закаленное, не открывается; - Емкость для сбора талой воды, опционально возможно применение выпаривателя;
A11: 1 | B11: Витрины серии GAMMA-2, глубина выкладки 760 мм | I11: Опции Gamma-2
C12: Среднетемпературные витрины (без боковых панелей и боковых стекол) | K12: EL.2.G3004гл.В3004гл.V0.PS
C13: G2 ВПС2 120 R290ББ | D13: Gamma-2 1200 БА ББ | E13: 0…+7 | F13: 0.85 | G13: 1118х1093х1300 | H13: 1400х1200х1110 | I13: 73044 | J13: =ROUND(I13*(1-$E$3)/Лист2!$A$6,0) -> 73044
C14: G2 ВПС2 150 R290ББ | D14: Gamma-2 1500 БА ББ | E14: 0…+7 | F14: 1.1 | G14: 1418х1093х1300 | H14: 1700х1200х1110 | I14: 82006 | J14: =ROUND(I14*(1-$E$3)/Лист2!$A$6,0) -> 82006
C15: G2 ВПС2 180 R290ББ | D15: Gamma-2 1800 БА ББ | E15: 0…+7 | F15: 1.3 | G15: 1718х1093х1300 | H15: 2000х1200х1110 | I15: 95781 | J15: =ROUND(I15*(1-$E$3)/Лист2!$A$6,0) -> 95781
C16: Средне-низкотемпературные витрины (без боковых панелей и боковых стекол)
C17: G2 ВПСН2 120 R290ББ | D17: Gamma-2 SN 1200 БА ББ | E17: -6…+6 | F17: 0.85 | G17: 1118х1093х1300 | H17: 1400х1200х1110 | I17: 84267 | J17: =ROUND(I17*(1-$E$3)/Лист2!$A$6,0) -> 84267
C18: G2 ВПСН2 150 R290ББ | D18: Gamma-2 SN 1500 БА ББ | E18: -6…+6 | F18: 1.1 | G18: 1418х1093х1300 | H18: 1700х1200х1110 | I18: 92709 | J18: =ROUND(I18*(1-$E$3)/Лист2!$A$6,0) -> 92709
C19: G2 ВПСН2 180 R290ББ | D19: Gamma-2 SN 1800 БА ББ | E19: -6…+6 | F19: 1.3 | G19: 1718х1093х1300 | H19: 2000х1200х1110 | I19: 113400 | J19: =ROUND(I19*(1-$E$3)/Лист2!$A$6,0) -> 113400
C20: Низкотемпературные витрины (без боковых панелей и боковых стекол)
D21: Gamma-2 М 1200 БА ББ | E21: от -18 | F21: 0.85 | G21: 1118х1093х1300 | H21: 1400х1200х1110 | I21: 92935 | J21: =ROUND(I21*(1-$E$3)/Лист2!$A$6,0) -> 92935
D22: Gamma-2 М 1500 БА ББ | E22: от -18 | F22: 1.1 | G22: 1418х1093х1300 | H22: 1700х1200х1110 | I22: 106409 | J22: =ROUND(I22*(1-$E$3)/Лист2!$A$6,0) -> 106409
D23: Gamma-2 М 1800 БА ББ | E23: от -18 | F23: 1.3 | G23: 1718х1093х1300 | H23: 2000х1200х1110 | I23: 119719 | J23: =ROUND(I23*(1-$E$3)/Лист2!$A$6,0) -> 119719
C24: Угловые среднетемпературные и нейтральные витрины, кассовые прилавки
C25: G2ВПС2 ОС90Д ББ | D25: Gamma-2 OC 90 (угол внеш.) БА ББ | E25: 0…+7 | F25: 0.92 | G25: 1130х1130х1300 | H25: 1180х1180х1300 | I25: 117495 | J25: =ROUND(I25*(1-$E$3)/Лист2!$A$6,0) -> 117495
C26: G2ВПС2 IС90Д ББ | D26: Gamma-2 IC (угол внутр.) БА ББ | E26: 0…+7 | F26: 0.74 | G26: 1295х1295х1300 | H26: 1305х1305х1300 | I26: 126553 | J26: =ROUND(I26*(1-$E$3)/Лист2!$A$6,0) -> 126553
A27: 2 | B27: Витрины серии GAMMA Quadro LED, глубина выкладки 760 мм | I27: Опции Gamma Quadro | K27: EL.2.G9016гл.В7016гл.V0.PS
C28: Среднетемпературные витрины (без боковых панелей и боковых стекол)
C29: G2QUADLXВПС1 120БА ББ | D29: Gamma Quadro 1200 LED БА ББ | E29: 0…+7 | F29: 0.85 | G29: 1118х1093х1300 | H29: 1400х1200х1110 | I29: 92958 | J29: =ROUND(I29*(1-$E$3)/Лист2!$A$6,0) -> 92958
C30: G2QUADLXВПС1 150БА ББ | D30: Gamma Quadro 1500 LED БА ББ | E30: 0…+7 | F30: 1.1 | G30: 1418х1093х1300 | H30: 1700х1200х1110 | I30: 100224 | J30: =ROUND(I30*(1-$E$3)/Лист2!$A$6,0) -> 100224
C31: G2QUADLXВПС1 180БА ББ | D31: Gamma Quadro 1800 LED БА ББ | E31: 0…+7 | F31: 1.3 | G31: 1718х1093х1300 | H31: 2000х1200х1110 | I31: 116939 | J31: =ROUND(I31*(1-$E$3)/Лист2!$A$6,0) -> 116939
C32: Средне-низкотемпературные витрины (без боковых панелей и боковых стекол)
C33: G2QUADLXВПСН1 120БА ББ | D33: Gamma Quadro SN 1200 LED БА ББ | E33: -6…+6 | F33: 0.85 | G33: 1118х1093х1300 | H33: 1400х1200х1110 | I33: 96766 | J33: =ROUND(I33*(1-$E$3)/Лист2!$A$6,0) -> 96766
C34: G2QUADLXВПСН1 150БА ББ | D34: Gamma Quadro SN 1500 LED БА ББ | E34: -6…+6 | F34: 1.1 | G34: 1418х1093х1300 | H34: 1700х1200х1110 | I34: 113383 | J34: =ROUND(I34*(1-$E$3)/Лист2!$A$6,0) -> 113383
C35: G2QUADLXВПСН1 180БА ББ | D35: Gamma Quadro SN 1800 LED БА ББ | E35: -6…+6 | F35: 1.3 | G35: 1718х1093х1300 | H35: 2000х1200х1110 | I35: 130421 | J35: =ROUND(I35*(1-$E$3)/Лист2!$A$6,0) -> 130421
C36: Низкотемпературные витрины (без боковых панелей и боковых стекол)
D37: Gamma Quadro M 1200 LED БА ББ | E37: от -18 | F37: 0.85 | G37: 1118х1093х1300 | H37: 1400х1200х1110 | I37: 112189 | J37: =ROUND(I37*(1-$E$3)/Лист2!$A$6,0) -> 112189
D38: Gamma Quadro M 1500 LED БА ББ | E38: от -18 | F38: 1.1 | G38: 1418х1093х1300 | H38: 1700х1200х1110 | I38: 129818 | J38: =ROUND(I38*(1-$E$3)/Лист2!$A$6,0) -> 129818
C39: G2QUADLXВПН1 180БА ББ | D39: Gamma Quadro M 1800 LED БА ББ | E39: от -18 | F39: 1.3 | G39: 1718х1093х1300 | H39: 2000х1200х1110 | I39: 153435 | J39: =ROUND(I39*(1-$E$3)/Лист2!$A$6,0) -> 153435
C40: Угловые витрины
C41: G2QUADLXВПС1 ОС90 БА ББ | D41: Витрина холодильная ВПС Gamma-2 QuadroLX ОС90 БА ББ | E41: 0…+7 | F41: 0.92 | G41: 1180х1180х1209 | H41: 1180х1180х1300 | I41: 130902 | J41: =ROUND(I41*(1-$E$3)/Лист2!$A$6,0) -> 130902 | K41: установка за февраль
C42: G2QUADLXВПС1 IС90 БА ББ | D42: Витрина холодильная ВПС Gamma-2 QuadroLX IС90 БА ББ | E42: 0…+7 | F42: 0.74 | G42: 1355х1355х1209 | H42: 1305х1305х1300 | I42: 123203 | J42: =ROUND(I42*(1-$E$3)/Лист2!$A$6,0) -> 123203
A44: Базовая комплектация: Динамическая система охлаждения, - Электронный контроллер; - Оттайка для версий ВПС - естественная, для версий ВПСН и ВПН - ТЭН (по умолчанию); - Общее освещение для версий с высоким стеклом - нейтральное (4000К), витрины с низким стеклом без освещения; - Товарный накопитель для линейных модулей (запасник с дверкой); - Без боковин; - Упаковка в деревянной обрешетке; | E44: - Внутренний объем - оцинкованный металл, внутренний объем в зоне выкладки - нерж.сталь; - Ночные шторки для витрин с высоким стеклом; - Фронтальное стекло закаленное (Magnum Eco – стекло открывается сверху-вниз, Magnum Quadro – стекло открывается сверху-вниз без гидролифта; Magnum – стекло открывается снизу-вверх, опционально возможно применение гидролифта;) - Емкость для сбора талой воды, опционально возможно применение выпаривателя;
A45: 3 | B45: Витрины серии MAGNUM Eco, глубина выкладки 860 мм
C46: Среднетемпературные | I46: Опции Magnum ECO | K46: EL.PS.2.V0.T.Y7016.P7016 для витрин с боковинами добавить комплекты боковин: 676.50.01.00; 676.50.02.00
C47: 1138.00.00.00 | D47: Magnum Eco 1250 БА ББ | E47: 0…+7 | F47: 1.075 | G47: 1250х1130х1235 | H47: 1510х1190х1150 | I47: 96267 | J47: =ROUND(I47*(1-$E$3)/Лист2!$A$6,0) -> 96267
C48: 1138.00.00.00-01 | D48: Magnum Eco 1880 БА ББ | F48: 1.61 | G48: 1875х1130х1235 | H48: 2140х1190х1150 | I48: 125770 | J48: =ROUND(I48*(1-$E$3)/Лист2!$A$6,0) -> 125770
C49: 1138.00.00.00-02 | D49: Magnum Eco 2500 БА ББ | F49: 2.15 | G49: 2500х1130х1235 | H49: 2760х1190х1150 | I49: 159794 | J49: =ROUND(I49*(1-$E$3)/Лист2!$A$6,0) -> 159794
C50: 1138.00.00.00-03 | D50: Magnum Eco 3750 БА ББ | F50: 3.22 | G50: 3750х1130х1235 | H50: 4010х1190х1150 | I50: 203239 | J50: =ROUND(I50*(1-$E$3)/Лист2!$A$6,0) -> 203239
C51: Средне-низкотемпературные
C52: 1139.00.00.00 | D52: Magnum Eco SN 1250 БА ББ | E52: ­5…+7 | F52: 1.075 | G52: 1250х1130х1235 | H52: 1510х1190х1150 | I52: 104530 | J52: =ROUND(I52*(1-$E$3)/Лист2!$A$6,0) -> 104530
C53: 1139.00.00.00-01 | D53: Magnum Eco SN 1880 БА ББ | F53: 1.61 | G53: 1875х1130х1235 | H53: 2140х1190х1150 | I53: 133585 | J53: =ROUND(I53*(1-$E$3)/Лист2!$A$6,0) -> 133585
C54: 1139.00.00.00-02 | D54: Magnum Eco SN 2500 БА ББ | F54: 2.15 | G54: 2500х1130х1235 | H54: 2760х1190х1150 | I54: 164650 | J54: =ROUND(I54*(1-$E$3)/Лист2!$A$6,0) -> 164650
C55: 1139.00.00.00-03 | D55: Magnum Eco SN 3750 БА ББ | F55: 3.22 | G55: 3750х1130х1235 | H55: 4010х1190х1150 | I55: 224291 | J55: =ROUND(I55*(1-$E$3)/Лист2!$A$6,0) -> 224291
A56: 4 | B56: Витрины серии MAGNUM, глубина выкладки 860 мм | I56: Опции Magnum
C57: Среднетемпературные | K57: EL.PS.2.V0.T.Y7016.P7016 для витрин с боковинами добавить комплекты боковин: 433.50.1000.00; 433.50.2000.00
C58: MAG ВПС2 125 БА ББ | D58: Magnum 1250 БА ББ | E58: 0…+7 | F58: 1.075 | G58: 1250х1095х1235 | H58: 1510х1190х1150 | I58: 117540 | J58: =ROUND(I58*(1-$E$3)/Лист2!$A$6,0) -> 117540
C59: MAG ВПС2 188 БА ББ | D59: Magnum 1880 БА ББ | F59: 1.61 | G59: 1875х1095х1235 | H59: 2140х1190х1150 | I59: 162662 | J59: =ROUND(I59*(1-$E$3)/Лист2!$A$6,0) -> 162662
C60: MAG ВПС2 250 БА ББ | D60: Magnum 2500 БА ББ | F60: 2.15 | G60: 2500х1095х1235 | H60: 2760х1190х1150 | I60: 191452 | J60: =ROUND(I60*(1-$E$3)/Лист2!$A$6,0) -> 191452
C61: MAG ВПС2 375 БА ББ | D61: Magnum 3750 БА ББ | F61: 3.22 | G61: 3750х1095х1235 | H61: 4010х1190х1150 | I61: 245394 | J61: =ROUND(I61*(1-$E$3)/Лист2!$A$6,0) -> 245394
C62: Средне-низкотемпературные
C63: MAG ВПСН2 125 БА ББ | D63: Magnum SN 1250 БА ББ | E63: ­5…+7 | F63: 1.075 | G63: 1250х1095х1235 | H63: 1510х1190х1150 | I63: 128078 | J63: =ROUND(I63*(1-$E$3)/Лист2!$A$6,0) -> 128078
C64: MAG ВПСН2 188 БА ББ | D64: Magnum SN 1880 БА ББ | F64: 1.61 | G64: 1875х1095х1235 | H64: 2140х1190х1150 | I64: 172633 | J64: =ROUND(I64*(1-$E$3)/Лист2!$A$6,0) -> 172633
C65: MAG ВПСН2 250 БА ББ | D65: Magnum SN 2500 БА ББ | F65: 2.15 | G65: 2500х1095х1235 | H65: 2760х1190х1150 | I65: 211957 | J65: =ROUND(I65*(1-$E$3)/Лист2!$A$6,0) -> 211957
C66: MAG ВПСН2 375 БА ББ | D66: Magnum SN 3750 БА ББ | F66: 3.22 | G66: 3750х1095х1235 | H66: 4010х1190х1150 | I66: 279014 | J66: =ROUND(I66*(1-$E$3)/Лист2!$A$6,0) -> 279014
C67: Низкотемпературные | K67: EL.PS.2.V0.T.Y7016.P7016 для витрин с боковинами добавить комплекты боковин: 476.50.1000.00; 476.50.2000.00
C68: 1208.00.00.00 | D68: Magnum F 1250 БА ББ | E68: не выше -15 | F68: 1.075 | G68: 1250х1095х1235 | H68: 1510х1190х1150 | I68: 142599 | J68: =ROUND(I68*(1-$E$3)/Лист2!$A$6,0) -> 142599
C69: 1208.00.00.00-01 | D69: Magnum F 1880 БА ББ | F69: 1.61 | G69: 1875х1095х1235 | H69: 2140х1190х1150 | I69: 201550 | J69: =ROUND(I69*(1-$E$3)/Лист2!$A$6,0) -> 201550
C70: 1208.00.00.00-02 | D70: Magnum F 2500 БА ББ | F70: 2.15 | G70: 2500х1095х1235 | H70: 2760х1190х1150 | I70: 232293 | J70: =ROUND(I70*(1-$E$3)/Лист2!$A$6,0) -> 232293
C71: 1208.00.00.00-03 | D71: Magnum F 3750 БА ББ | F71: 3.22 | G71: 3750х1095х1235 | H71: 4010х1190х1150 | I71: 366793 | J71: =ROUND(I71*(1-$E$3)/Лист2!$A$6,0) -> 366793
C72: Среднетемпературные с низким стеклом | K72: EL.PS.0.V0.T.Y7016.P7016 для витрин с боковинами добавить комплекты боковин: 276.50.01.000; 276.50.02.00
C73: MAG ВПС2 SG125 БА ББ | D73: Magnum SG 1250 БА ББ | E73: 0…+7 | F73: 1.075 | G73: 1250х1095х895 | H73: 1510х1190х1150 | I73: 100775 | J73: =ROUND(I73*(1-$E$3)/Лист2!$A$6,0) -> 100775
C74: MAG ВПС2 SG188 БА ББ | D74: Magnum SG 1880 БА ББ | F74: 1.61 | G74: 1880х1095х895 | H74: 2140х1190х1150 | I74: 135921 | J74: =ROUND(I74*(1-$E$3)/Лист2!$A$6,0) -> 135921
C75: MAG ВПС2 SG250 БА ББ | D75: Magnum SG 2500 БА ББ | F75: 2.15 | G75: 2500х1095х895 | H75: 2760х1190х1150 | I75: 164424 | J75: =ROUND(I75*(1-$E$3)/Лист2!$A$6,0) -> 164424
C76: MAG ВПС2 SG375 БА ББ | D76: Magnum SG 3750 БА ББ | F76: 3.22 | G76: 3750х1095х895 | H76: 4010х1190х1150 | I76: 208973 | J76: =ROUND(I76*(1-$E$3)/Лист2!$A$6,0) -> 208973
C77: Угловые витрины | K77: EL.PS.2.V0.T.Y7016.P7016 для витрин с боковинами добавить комплекты боковин: 476.50.1000.00; 476.50.2000.00
C78: MAG ВПС2 ОC90 БА ББ | D78: Magnum OC 90 БА ББ | E78: 0…+7 | F78: 1.192 | G78: 1360х1360х1235 | H78: 2170х1380х1080 | I78: 213620 | J78: =ROUND(I78*(1-$E$3)/Лист2!$A$6,0) -> 213620
C79: MAG ВПС2 ОCSG90 БА ББ | D79: Magnum ОC SG 90 БА ББ | F79: 1.192 | G79: 1360х1360х895 | H79: 2170х1300х1080 | I79: 165644 | J79: =ROUND(I79*(1-$E$3)/Лист2!$A$6,0) -> 165644
C80: MAG ВПС2 IC90 БА ББ | D80: Magnum IC 90 БА ББ | F80: 1.08 | G80: 1320х1320х1235 | H80: 2170х1380х1080 | I80: 207418 | J80: =ROUND(I80*(1-$E$3)/Лист2!$A$6,0) -> 207418 | K80: EL.PS.0.V0.T.Y7016.P7016 для витрин с боковинами добавить комплекты боковин: 276.50.01.000; 276.50.02.00
C81: MAG ВПС2 ICSG90 БА ББ | D81: Magnum IC SG 90 БА ББ | F81: 1.08 | G81: 1320х1320х895 | H81: 2170х1300х1080 | I81: 195382 | J81: =ROUND(I81*(1-$E$3)/Лист2!$A$6,0) -> 195382
A82: 5 | B82: Витрины серии MAGNUM Quadro, глубина выкладки 860 мм
C83: Среднетемпературные | I83: Опции Magnum Q | K83: EL.PS.2.V0.T.B7016.P7016 для витрин с боковинами добавить комплекты боковин: 1007.48.00.00; 1007.48.00.00mir
C84: MAGQ ВПС1 125 БА ББ | D84: Magnum Quadro 1250 БА ББ | E84: 0…+7 | F84: 1.075 | G84: 1250х1095х1225 | H84: 1510х1190х1150 | I84: 118463 | J84: =ROUND(I84*(1-$E$3)/Лист2!$A$6,0) -> 118463
C85: MAGQ ВПС1 188 БА ББ | D85: Magnum Quadro 1875 БА ББ | F85: 1.61 | G85: 1875х1095х1225 | H85: 2140х1190х1150 | I85: 147325 | J85: =ROUND(I85*(1-$E$3)/Лист2!$A$6,0) -> 147325
C86: MAGQ ВПС1 250 БА ББ | D86: Magnum Quadro 2500 БА ББ | F86: 2.15 | G86: 2500х1095х1225 | H86: 2760х1190х1150 | I86: 173328 | J86: =ROUND(I86*(1-$E$3)/Лист2!$A$6,0) -> 173328
C87: MAGQ ВПС1 375 БА ББ | D87: Magnum Quadro 3750 БА ББ | F87: 3.22 | G87: 3750х1095х1225 | H87: 4010х1190х1150 | I87: 251141 | J87: =ROUND(I87*(1-$E$3)/Лист2!$A$6,0) -> 251141
C88: Средне-низкотемпературные
C89: MAGQ ВПСН1 125 БА ББ | D89: Magnum Quadro SN 1250 БА ББ | E89: ­5…+7 | F89: 1.075 | G89: 1250х1095х1225 | H89: 1510х1190х1150 | I89: 135163 | J89: =ROUND(I89*(1-$E$3)/Лист2!$A$6,0) -> 135163
C90: MAGQ ВПСН1 188 БА ББ | D90: Magnum Quadro SN 1875 БА ББ | F90: 1.61 | G90: 1875х1095х1225 | H90: 2140х1190х1150 | I90: 168283 | J90: =ROUND(I90*(1-$E$3)/Лист2!$A$6,0) -> 168283
C91: MAGQ ВПСН1 250 БА ББ | D91: Magnum Quadro SN 2500 БА ББ | F91: 2.15 | G91: 2500х1095х1225 | H91: 2760х1190х1150 | I91: 197575 | J91: =ROUND(I91*(1-$E$3)/Лист2!$A$6,0) -> 197575
C92: MAGQ ВПСН1 375 БА ББ | D92: Magnum Quadro SN 3750 БА ББ | F92: 3.22 | G92: 3750х1095х1225 | H92: 4010х1190х1150 | I92: 286112 | J92: =ROUND(I92*(1-$E$3)/Лист2!$A$6,0) -> 286112
C93: Низкотемпературные | K93: EL.PS.2.V0.T.B7016.P7016 для витрин с боковинами добавить комплекты боковин: 1030.48.00.00; 1030.48.00.00mir
C94: 1182.00.00.00 | D94: ВПН Magnum Quadro 1250 БА ББ | E94: не выше -15 | F94: 1.075 | G94: 1250х1095х1225 | H94: 1510х1190х1150 | I94: 148156 | J94: =ROUND(I94*(1-$E$3)/Лист2!$A$6,0) -> 148156
C95: 1182.00.00.00-01 | D95: ВПН Magnum Quadro 1875 БА ББ | F95: 1.61 | G95: 1875х1095х1225 | H95: 2140х1190х1150 | I95: 184350 | J95: =ROUND(I95*(1-$E$3)/Лист2!$A$6,0) -> 184350
C96: 1182.00.00.00-02 | D96: ВПН Magnum Quadro 2500 БА ББ | F96: 2.15 | G96: 2500х1095х1225 | H96: 2760х1190х1150 | I96: 216654 | J96: =ROUND(I96*(1-$E$3)/Лист2!$A$6,0) -> 216654
C97: 1182.00.00.00-03 | D97: ВПН Magnum Quadro 3750 БА ББ | F97: 3.22 | G97: 3750х1095х1225 | H97: 4010х1190х1150 | I97: 313159 | J97: =ROUND(I97*(1-$E$3)/Лист2!$A$6,0) -> 313159
C98: Среднетемпературные с низким стеклом | K98: EL.PS.0.V0.T.B7016.P7016 для витрин с боковинами добавить комплекты боковин: 1013.48.00.00; 1013.48.00.00mir
C99: MAGQ ВПС1 SG125 БА ББ | D99: Magnum Quadro Self 1250 БА ББ | E99: 0…+7 | F99: 1.075 | G99: 1250х1095х865 | H99: 1510х1190х1150 | I99: 116924 | J99: =ROUND(I99*(1-$E$3)/Лист2!$A$6,0) -> 116924
C100: MAGQ ВПС1 SG188 БА ББ | D100: Magnum Quadro Self 1875 БА ББ | F100: 1.61 | G100: 1875х1095х865 | H100: 2140х1190х1150 | I100: 148183 | J100: =ROUND(I100*(1-$E$3)/Лист2!$A$6,0) -> 148183
C101: MAGQ ВПС1 SG250 БА ББ | D101: Magnum Quadro Self 2500 БА ББ | F101: 2.15 | G101: 2500х1095х865 | H101: 2760х1190х1150 | I101: 174484 | J101: =ROUND(I101*(1-$E$3)/Лист2!$A$6,0) -> 174484
C102: MAGQ ВПС1 SG375 БА ББ | D102: Magnum Quadro Self 3750 БА ББ | F102: 3.22 | G102: 3750х1095х865 | H102: 4010х1190х1150 | I102: 254667 | J102: =ROUND(I102*(1-$E$3)/Лист2!$A$6,0) -> 254667
C103: Угловые витрины | K103: EL.PS.2.V0.T.B7016.P7016 для витрин с боковинами добавить комплекты боковин: 1007.48.00.00; 1007.48.00.00mir
C104: 1183.00.00.00 | D104: Magnum Quadro OC 90 БА ББ | E104: 0…+7 | F104: 1.2 | G104: 1355х1355х1225 | H104: 2170х1380х1080 | I104: 164906 | J104: =ROUND(I104*(1-$E$3)/Лист2!$A$6,0) -> 164906
C105: 1184.00.00.00 | D105: Magnum Quadro IC 90 БА ББ | F105: 1.08 | G105: 1325х1325х1225 | H105: 2170х1300х1080 | I105: 157263 | J105: =ROUND(I105*(1-$E$3)/Лист2!$A$6,0) -> 157263
C106: 1185.00.00.00 | D106: Magnum Quadro Self OC 90 БА ББ | F106: 1.2 | G106: 1355х1355х865 | H106: 2170х1380х1080 | I106: 157222 | J106: =ROUND(I106*(1-$E$3)/Лист2!$A$6,0) -> 157222 | K106: EL.PS.0.V0.T.B7016.P7016 для витрин с боковинами добавить комплекты боковин: 1013.48.00.00; 1013.48.00.00mir
C107: 1186.00.00.00 | D107: Magnum Quadro Self IC 90 БА ББ | F107: 1.08 | G107: 1325х1325х865 | H107: 2170х1300х1080 | I107: 149338 | J107: =ROUND(I107*(1-$E$3)/Лист2!$A$6,0) -> 149338
C108: Рыбные витрины ВСПН/ВПСН Self | K108: EL.PS.2.V0.T.B7016.P7016 для витрин с боковинами добавить комплекты боковин: 1007.48.00.00; 1007.48.00.00mir
C109: 1250.00.00.00 | D109: Magnum Quadro Fish 1250 БА ББ | E109: ­5…+7 | G109: 1250х1095х1225 | H109: 1510х1190х1150 | I109: 148156 | J109: =ROUND(I109*(1-$E$3)/Лист2!$A$6,0) -> 148156
C110: 1250.00.00.00-01 | D110: Magnum Quadro Fish 1875 БА ББ | G110: 1875х1095х1225 | H110: 2140х1190х1150 | I110: 184350 | J110: =ROUND(I110*(1-$E$3)/Лист2!$A$6,0) -> 184350
C111: 1251.00.00.00 | D111: Magnum Quadro Fish Self 1250 БА ББ | G111: 1250х1095х865 | H111: 1510х1190х1150 | I111: 138871 | J111: =ROUND(I111*(1-$E$3)/Лист2!$A$6,0) -> 138871 | K111: EL.PS.0.V0.T.B7016.P7016 для витрин с боковинами добавить комплекты боковин: 1013.48.00.00; 1013.48.00.00mir
C112: 1251.00.00.00-01 | D112: Magnum Quadro Fish Self 1875 БА ББ | G112: 1875х1095х865 | H112: 2140х1190х1150 | I112: 172331 | J112: =ROUND(I112*(1-$E$3)/Лист2!$A$6,0) -> 172331
I113: 0
G115: наверх

Sheet Кондитерские витрины
H1: ЗАВОД «ОПК» Тел.: +7 (495) 987-4388 e-mail: info@cryspi.ru сайт: cryspi.ru | L1: На главную
B3: Ваша скидка: | E3: =Содержание!D2 -> 0
B4: НДС: | E4: =IF(Лист2!A1=TRUE,"С НДС","БЕЗ НДС") -> С НДС
A6: Кондитерские витрины Cryspi со встроенным агрегатом
A9: № | B9: Изображение | C9: Артикул | D9: Наименование | F9: Температурный режим,°C | G9: Площадь экспозиции, кв.м. | H9: Габариты, (LxWxH) мм | I9: Габариты в упаковке, (LxWxH) мм | J9: Базовая цена, руб. (с НДС) | K9: =[5]Лист2!$A$5 -> Ваша цена, руб.
A11: 1 | B11: ADAGIO | M11: СЕЧЕНИЯ
M12: ADAGIO | R12: ADAGIO CUBE | W12: ELEGIA
A13: Стандартная комплектация: - 3 уровня навесных полок, 230, 320, 380 мм (Adagio/Adagio LX), 380 мм (Adagio Cube/Adagio LX Cube); - подсветка всех полок (4500К или 2700К) - фронтальная металическая панель - Возможно применение фронтальной панели из ЛДСП с наценкой в 4%. - Компрессор R-290 - Электронный контроллер Carel - Цифровой термометр | F13: - Оттайка испарителя естественным способом; Автоматическое выпаривание конденсата - Задняя дверца - оргстекло (Adagio), закаленный стеклопакет (Adagio LX); - Вентилируемое (динамическое) охлаждение - Внутренний объем - сталь оцинкованная - зона выкладки - сталь оцинкованна с покраской - шелкография стекол черного цвета (Ral 9005) - Упаковка в деревянной обрешетке;
C14: Витрины охлаждаемые, кондитерские, закаленное стекло
C15: ADAGV 90 R290 | D15: Витрина холодильная ВПВ (ADAGIO 900 Д) | F15: +6..+12°С | G15: 1.27 | H15: 900х620х1330 | J15: 97364 | K15: =ROUND(J15*(1-$E$3)/Лист2!$A$6,0) -> 97364
C16: ADAGV 130 R290 | D16: Витрина холодильная ВПВ (ADAGIO 1300 Д) | F16: +6..+12°С | G16: 1.58 | H16: 1300Х620Х1330 | J16: 104965 | K16: =ROUND(J16*(1-$E$3)/Лист2!$A$6,0) -> 104965
C17: ADAGVCUBE 90 R290 | D17: Витрина холодильная ВПВ (ADAGIO Cube 900 Д) | F17: +6..+12°С | G17: 1.46 | H17: 900х620х1330 | J17: 97364 | K17: =ROUND(J17*(1-$E$3)/Лист2!$A$6,0) -> 97364
C18: ADAGVCUBE 130 R290 | D18: Витрина холодильная ВПВ (ADAGIO Cube 1300 Д) | F18: +6..+12°С | G18: 1.83 | H18: 1300Х620Х1330 | J18: 104965 | K18: =ROUND(J18*(1-$E$3)/Лист2!$A$6,0) -> 104965
C19: Витрины охлаждаемые, кондитерские, закаленный стеклопакет
C20: ADAGLX 90 R290 | D20: Витрина холодильная ВПС (ADAGIO LX 900 Д) | F20: 0..+7°С | G20: 1.27 | H20: 900х620х1330 | J20: 128031 | K20: =ROUND(J20*(1-$E$3)/Лист2!$A$6,0) -> 128031
C21: ADAGLX 130 R290 | D21: Витрина холодильная ВПС (ADAGIO LX 1300 Д) | F21: 0..+7°С | G21: 1.58 | H21: 1300Х620Х1330 | J21: 151591 | K21: =ROUND(J21*(1-$E$3)/Лист2!$A$6,0) -> 151591
C22: ADAGLXCUBE 90 R290 | D22: Витрина холодильная ВПС (ADAGIO LX Cube 900 Д) | F22: 0..+7°С | G22: 1.46 | H22: 900х620х1330 | J22: 128031 | K22: =ROUND(J22*(1-$E$3)/Лист2!$A$6,0) -> 128031
C23: ADAGLXCUBE 130 R290 | D23: Витрина холодильная ВПС (ADAGIO LX Cube 1300 Д) | F23: 0..+7°С | G23: 1.83 | H23: 1300Х620Х1330 | J23: 151591 | K23: =ROUND(J23*(1-$E$3)/Лист2!$A$6,0) -> 151591
C24: Витрины для самообслуживания охлаждаемые, кондитерские
C25: ADAGVSELF 90 R290 | D25: Витрина холодильная ВПВ (ADAGIO Self 900 Д) | F25: +6..+12°С | G25: 1.27 | H25: 900х620х1330 | I25: 1100х790х1475 | J25: 143301 | K25: =ROUND(J25*(1-$E$3)/Лист2!$A$6,0) -> 143301
C26: ADAGVSELF 130 R290 | D26: Витрина холодильная ВПВ (ADAGIO Self 1300 Д) | F26: +6..+12°С | G26: 1.58 | H26: 1300Х620Х1330 | I26: 1500х790х1475 | J26: 169367 | K26: =ROUND(J26*(1-$E$3)/Лист2!$A$6,0) -> 169367
C27: DAGVSELFCUBE 90 R290 | D27: Витрина холодильная ВПВ (ADAGIO Self Cube 900 Д) | F27: +6..+12°С | G27: 1.46 | H27: 900х620х1330 | I27: 1100х790х1475 | J27: 145292 | K27: =ROUND(J27*(1-$E$3)/Лист2!$A$6,0) -> 145292
C28: ADAGVSELFCUBE 130 R290 | D28: Витрина холодильная ВПВ (ADAGIO Self Cube 1300 Д) | F28: +6..+12°С | G28: 1.83 | H28: 1300Х620Х1330 | I28: 1500х790х1475 | J28: 171685 | K28: =ROUND(J28*(1-$E$3)/Лист2!$A$6,0) -> 171685
C29: Витрины нейтральные, кондитерские без охлаждения для самообслуживания
C30: ADAGNSELF 90 | D30: Витрина нейтральная ВП (ADAGIO N Self 900) | F30: - | G30: 1.27 | H30: 900х620х1330 | I30: 1100х790х1475 | J30: 75468 | K30: =ROUND(J30*(1-$E$3)/Лист2!$A$6,0) -> 75468
C31: ADAGNSELF 130 | D31: Витрина нейтральная ВП (ADAGIO N Self 1300) | F31: - | G31: 1.58 | H31: 1300Х620Х1330 | I31: 1500х790х1475 | J31: 83894 | K31: =ROUND(J31*(1-$E$3)/Лист2!$A$6,0) -> 83894
C32: ADAGNSELFCUBE 90 | D32: Витрина холодильная ВПВ (ADAGIO N Self Cube 900 Д) | F32: - | G32: 1.46 | H32: 900х620х1330 | I32: 1100х790х1475 | J32: 77552 | K32: =ROUND(J32*(1-$E$3)/Лист2!$A$6,0) -> 77552
C33: ADAGNSELFCUBE 130 | D33: Витрина холодильная ВПВ (ADAGIO N Self Cube 1300 Д) | F33: - | G33: 1.83 | H33: 1300Х620Х1330 | I33: 1500х790х1475 | J33: 81685 | K33: =ROUND(J33*(1-$E$3)/Лист2!$A$6,0) -> 81685
C34: Витрины нейтральные, кондитерские без охлаждения для самообслуживания. Хлебная модификация
C35: ADAGNSELFCUBE 90 | D35: Витрина холодильная ВПВ (ADAGIO N Self Cube 900 Д) | F35: - | G35: 1.46 | H35: 900х620х1330 | I35: 1100х790х1475 | J35: 73792 | K35: =ROUND(J35*(1-$E$3)/Лист2!$A$6,0) -> 73792
C36: ADAGNSELFCUBE 130 | D36: Витрина холодильная ВПВ (ADAGIO N Self Cube 1300 Д) | F36: - | G36: 1.83 | H36: 1300Х620Х1330 | I36: 1500х790х1475 | J36: 79448 | K36: =ROUND(J36*(1-$E$3)/Лист2!$A$6,0) -> 79448
C37: Кассовый нейтральный прилавок (КНП)
C38: ADAGLXKNP 60 | D38: Прилавок КНП ADAGIO 600 (фронтальные панели металл) | F38: - | G38: - | H38: 600х650х906 | I38: 800х790х1065 | J38: 24511 | K38: =ROUND(J38*(1-$E$3)/Лист2!$A$6,0) -> 24511
C39: ADAGLXKNP 90 | D39: Прилавок КНП ADAGIO 900 (фронтальные панели металл) | F39: - | G39: - | H39: 900Х650Х906 | I39: 1100х790х1065 | J39: 29804 | K39: =ROUND(J39*(1-$E$3)/Лист2!$A$6,0) -> 29804
C40: ADAGLXKNP 60 | D40: Прилавок КНП ADAGIO 600 (фронтальные панели ЛДСП) | F40: - | G40: - | H40: 600х650х906 | I40: 800х790х1065 | J40: 26941 | K40: =ROUND(J40*(1-$E$3)/Лист2!$A$6,0) -> 26941
C41: ADAGLXKNP 90 | D41: Прилавок КНП ADAGIO 900 (фронтальные панели ЛДСП) | F41: - | G41: - | H41: 900Х650Х906 | I41: 1100х790х1065 | J41: 31192 | K41: =ROUND(J41*(1-$E$3)/Лист2!$A$6,0) -> 31192
A42: 2 | B42: ELEGIA QUADRO
C44: Стандартная комплектация: - 3 уровня навесных полок, 300, 350, 400 мм (Elegia Quadro), 190, 290, 390 мм (Elegia Quadro Self); - подсветка полок и вертикальное освещение в витринах Elegia Quadro - подсветка всех полок (4500К или 2700К) для Elegia Quadro Self - фронтальная металическая панель (стандарт) - Возможно применение фронтальной панели из ЛДСП с наценкой в 10%. - Компрессор R-290 - Электронный контроллер - Цифровой термометр | G44: -- Оттайка испарителя естественным способом; Автоматическое выпаривание конденсата - Задние дверцы - раздвижные, стеклопакет; - Вентилируемое (динамическое) охлаждение - Внутренний объем - сталь оцинкованная с покраской (возможно изготовление из нержавеющей стали с наценкой в 20%.) - зона выкладки - сталь оцинкованна с покраской - шелкография стекол черного цвета (Ral 9005) - Упаковка в деревянной обрешетке;
C46: EQ 850 R290 | D46: Elegia Quadro К 850 | F46: +3...+8 | G46: 1.23 | H46: 852х764х1314 | I46: 1050х990х1550 | J46: 160524 | K46: =ROUND(J46*(1-$E$3)/Лист2!$A$6,0) -> 160524
C47: EQ 100 R290 | D47: Elegia Quadro К 1000 | F47: +3...+8 | G47: 1.48 | H47: 1 002×764×1 314 | I47: 1250х990х1550 | J47: 177018 | K47: =ROUND(J47*(1-$E$3)/Лист2!$A$6,0) -> 177018
C48: EQ 125 R290 | D48: Elegia Quadro K 1250 | F48: +3...+8 | G48: 1.85 | H48: 1 252×764×1 314 | I48: 1450х990х1550 | J48: 193648 | K48: =ROUND(J48*(1-$E$3)/Лист2!$A$6,0) -> 193648
C49: EQ SELF 100 R290 | D49: Elegia Quadro SELF 1000 (для самообслуживания) | F49: +3...+8 | G49: 1.37 | H49: 1 002×764×1 314 | I49: 1250х990х1550 | J49: 177018 | K49: =ROUND(J49*(1-$E$3)/Лист2!$A$6,0) -> 177018
C50: EQ SELF 125 R290 | D50: Elegia Quadro SELF 1250 (для самообслуживания) | F50: +3...+8 | G50: 1.72 | H50: 1 252×764×1 312 | I50: 1450х990х1550 | J50: 177826 | K50: =ROUND(J50*(1-$E$3)/Лист2!$A$6,0) -> 177826
C51: EQKNP900NEW | D51: Прилавок КНП Elegia Quadro 600 | F51: - | G51: - | H51: 600х764х870 | I51: 740х950х1025 | J51: 28577 | K51: =ROUND(J51*(1-$E$3)/Лист2!$A$6,0) -> 28577
H53: НАВЕРХ

Sheet Опции для витрин Cryspi
F1: На главную
C3: Ваша скидка: | E3: =Содержание!D2 -> 0
C4: НДС: | E4: =IF(Лист2!A1=TRUE,"С НДС","БЕЗ НДС") -> С НДС
C7: Опции для витрин Cryspi | D7: СОДЕРЖАНИЕ
A8: № | C8: Название | D8: Базовая цена, руб. (с НДС) | E8: =[5]Лист2!$A$5 -> Ваша цена, руб.
F9: Комментарий
A10: 1 | C10: Octava | D10: Вернуться к прайсу Octava
B11: З0000089012 | C11: Разделитель передвижной низкий(оргстекл) 343.55.00.00 для ВПС/ВПСН Octava | D11: 1254 | E11: =ROUND(D11*(1-$E$3)/Лист2!$A$6,0) -> 1254
B12: З0000089013 | C12: Разделитель передвижной высокий(оргстекл) 343.56.00.00 для ВПС/ВПСН Octava | D12: 2194 | E12: =ROUND(D12*(1-$E$3)/Лист2!$A$6,0) -> 2194
B13: З0000090244 | C13: Комплект полки навесной для весов 343.54.00.00 для ВПС/ВПСН/ВПН Octava | D13: 3645 | E13: =ROUND(D13*(1-$E$3)/Лист2!$A$6,0) -> 3645
A14: 2 | C14: Gamma-2 | D14: Вернуться к прайсу Gamma-2
C15: Комплект боковин 337.40.00.00 для ВПС/ВПСН Gamma 2 | D15: 13208 | E15: =ROUND(D15*(1-$E$3)/Лист2!$A$6,0) -> 13208
C16: Комплект боковин 350.40.00.00 для ВПН Gamma-2 | D16: 13411 | E16: =ROUND(D16*(1-$E$3)/Лист2!$A$6,0) -> 13411
C17: Комплект боковин 354.41.00.00 для КНП Gamma-2 | D17: 10443 | E17: =ROUND(D17*(1-$E$3)/Лист2!$A$6,0) -> 10443
C18: Комплект боковин 391.40.00.00 для ВПВ Gamma-2 | D18: 0 | E18: =ROUND(D18*(1-$E$3)/Лист2!$A$6,0) -> 0
C19: Комплект боковины левой 337.40.01.00 для ВПС/ВПСН Gamma-2 | D19: 6604 | E19: =ROUND(D19*(1-$E$3)/Лист2!$A$6,0) -> 6604
C20: Комплект боковины правой 337.40.01.00-01 для ВПС/ВПСН Gamma-2 | D20: 6604 | E20: =ROUND(D20*(1-$E$3)/Лист2!$A$6,0) -> 6604
C21: Комплект боковины левой 350.40.01.00 для ВПН Gamma-2 | D21: 6706 | E21: =ROUND(D21*(1-$E$3)/Лист2!$A$6,0) -> 6706
C22: Комплект боковины правой 350.40.01.00-01 для ВПН Gamma-2 | D22: 6706 | E22: =ROUND(D22*(1-$E$3)/Лист2!$A$6,0) -> 6706
C23: Комплект герметичного разделителя 337.83.00.00 для ВПС/ВПСН/ВПН Gamma-2 | D23: 15222 | E23: =ROUND(D23*(1-$E$3)/Лист2!$A$6,0) -> 15222
C24: Комплект для рыбы и морепродуктов 865.60.00.00 для Gamma/Gamma Quadro 1200 | D24: 10479 | E24: =ROUND(D24*(1-$E$3)/Лист2!$A$6,0) -> 10479
C25: Комплект для рыбы и морепродуктов 865.60.00.00-01 для Gamma/Gamma Quadro 1500 | D25: 13253 | E25: =ROUND(D25*(1-$E$3)/Лист2!$A$6,0) -> 13253
C26: Комплект для рыбы и морепродуктов 865.60.00.00-02 для Gamma/Gamma Quadro 1800 | D26: 15613 | E26: =ROUND(D26*(1-$E$3)/Лист2!$A$6,0) -> 15613
C27: Полка навесная 337.46.00.00 L=1200 для ВПС/ВПСН/ВПН Gamma-2 | D27: 4658 | E27: =ROUND(D27*(1-$E$3)/Лист2!$A$6,0) -> 4658 | F27: Полка дополнительная для отдельно стоящей витрины
C28: Полка навесная 337.46.00.00-01 L=1500 для ВПС/ВПСН/ВПН Gamma-2 | D28: 4927 | E28: =ROUND(D28*(1-$E$3)/Лист2!$A$6,0) -> 4927 | F28: Полка дополнительная для отдельно стоящей витрины
C29: Полка навесная 337.46.00.00-02 L=1800 для ВПС/ВПСН/ВПН Gamma-2 | D29: 5199 | E29: =ROUND(D29*(1-$E$3)/Лист2!$A$6,0) -> 5199 | F29: Полка дополнительная для отдельно стоящей витрины
C30: Разделитель передвижной низкий 337.47.00.00 для ВПС/ВПСН Gamma-2 | D30: 623 | E30: =ROUND(D30*(1-$E$3)/Лист2!$A$6,0) -> 623 | F30: Из стекла!
C31: Разделитель передвижной низкий из оргстекла 337.48.00.00 для ВПС/ВПСН Gamma-2 | D31: 1192 | E31: =ROUND(D31*(1-$E$3)/Лист2!$A$6,0) -> 1192
C32: Разделитель передвижной высокий 337.49.00.00 для ВПС/ВПСН Gamma-2 | D32: 1106 | E32: =ROUND(D32*(1-$E$3)/Лист2!$A$6,0) -> 1106 | F32: Из стекла!
C33: Разделитель передвижной высокий из оргстекла 337.53.00.00 для ВПС/ВПСН Gamma-2 | D33: 3694 | E33: =ROUND(D33*(1-$E$3)/Лист2!$A$6,0) -> 3694
C34: Комплект соединительный 337.50.00.00 для ВПС/ВПСН/ВПН Gamma-2 | D34: 4698 | E34: =ROUND(D34*(1-$E$3)/Лист2!$A$6,0) -> 4698
C35: Комплект соединительный 391.50.00.00 для ВПВ Gamma-2 | D35: 8121 | E35: =ROUND(D35*(1-$E$3)/Лист2!$A$6,0) -> 8121
C36: Комплект полки навесной для весов 337.54.00.00 для ВПС/ВПСН/ВПН Gamma-2 | D36: 5771 | E36: =ROUND(D36*(1-$E$3)/Лист2!$A$6,0) -> 5771
C37: Перемычка 337.60.00.00 для ВПС/ВПСН/ВПН Gamma-2 | D37: 4282 | E37: =ROUND(D37*(1-$E$3)/Лист2!$A$6,0) -> 4282
C38: Доска навесная для нарезки 337.61.00.00 для ВПС/ВПСН/ВПН Gamma-2 | D38: 9210 | E38: =ROUND(D38*(1-$E$3)/Лист2!$A$6,0) -> 9210
C39: Полка дополнительная 337.70.00.00 L=1200 для ВПС/ВПСН/ВПН Gamma-2 | D39: 4596 | E39: =ROUND(D39*(1-$E$3)/Лист2!$A$6,0) -> 4596 | F39: Полка дополнительная (стыковка левым торцом)
C40: Полка дополнительная 337.70.00.00-01 L=1500 для ВПС/ВПСН/ВПН Gamma-2 | D40: 4866 | E40: =ROUND(D40*(1-$E$3)/Лист2!$A$6,0) -> 4866 | F40: Полка дополнительная (стыковка левым торцом)
C41: Полка дополнительная 337.70.00.00-02 L=1800 для ВПС/ВПСН/ВПН Gamma-2 | D41: 5135 | E41: =ROUND(D41*(1-$E$3)/Лист2!$A$6,0) -> 5135 | F41: Полка дополнительная (стыковка левым торцом)
C42: Полка дополнительная 337.70.00.00-03 L=1200 для ВПС/ВПСН/ВПН Gamma-2 | D42: 1218 | E42: =ROUND(D42*(1-$E$3)/Лист2!$A$6,0) -> 1218 | F42: Полка дополнительная (стыковка с двух сторон)
C43: Полка дополнительная 337.70.00.00-04 L=1500 для ВПС/ВПСН/ВПН Gamma-2 | D43: 1469 | E43: =ROUND(D43*(1-$E$3)/Лист2!$A$6,0) -> 1469 | F43: Полка дополнительная (стыковка с двух сторон)
C44: Полка дополнительная 337.70.00.00-05 L=1800 для ВПС/ВПСН/ВПН Gamma-2 | D44: 1813 | E44: =ROUND(D44*(1-$E$3)/Лист2!$A$6,0) -> 1813 | F44: Полка дополнительная (стыковка с двух сторон)
C45: Полка дополнительная 337.70.00.00-06 L=1200 для ВПС/ВПСН/ВПН Gamma-2 | D45: 4596 | E45: =ROUND(D45*(1-$E$3)/Лист2!$A$6,0) -> 4596 | F45: Полка дополнительная (стыковка правым торцом)
C46: Полка дополнительная 337.70.00.00-07 L=1500 для ВПС/ВПСН/ВПН Gamma-2 | D46: 4866 | E46: =ROUND(D46*(1-$E$3)/Лист2!$A$6,0) -> 4866 | F46: Полка дополнительная (стыковка правым торцом)
C47: Полка дополнительная 337.70.00.00-08 L=1800 для ВПС/ВПСН/ВПН Gamma-2 | D47: 5135 | E47: =ROUND(D47*(1-$E$3)/Лист2!$A$6,0) -> 5135 | F47: Полка дополнительная (стыковка правым торцом)
C48: Подиум одноступенчатый 337.80.00.00 L=1200 для ВПС/ВПСН Gamma-2 | D48: 2491 | E48: =ROUND(D48*(1-$E$3)/Лист2!$A$6,0) -> 2491 | F48: Комплект на витрину
C49: Подиум одноступенчатый 337.80.00.00-01 L=1500 для ВПС/ВПСН Gamma-2 | D49: 2966 | E49: =ROUND(D49*(1-$E$3)/Лист2!$A$6,0) -> 2966 | F49: Комплект на витрину
C50: Подиум одноступенчатый 337.80.00.00-02 L=1800 для ВПС/ВПСН Gamma-2 | D50: 3784 | E50: =ROUND(D50*(1-$E$3)/Лист2!$A$6,0) -> 3784 | F50: Комплект на витрину
C51: Подиум одноступенчатый 351.80.00.00 OC 90 для ВПС Gamma-2 | D51: 3132 | E51: =ROUND(D51*(1-$E$3)/Лист2!$A$6,0) -> 3132 | F51: Комплект на витрину
C52: Подиум двухступенчатый 337.81.00.00 L=1200 для ВПС/ВПСН Gamma-2 | D52: 5908 | E52: =ROUND(D52*(1-$E$3)/Лист2!$A$6,0) -> 5908 | F52: Комплект на витрину
C53: Подиум двухступенчатый 337.81.00.00-01L=1500 для ВПС/ВПСН Gamma-2 | D53: 6918 | E53: =ROUND(D53*(1-$E$3)/Лист2!$A$6,0) -> 6918 | F53: Комплект на витрину
C54: Подиум двухступенчатый 337.81.00.00-02 L=1800 для ВПС/ВПСН Gamma-2 | D54: 8931 | E54: =ROUND(D54*(1-$E$3)/Лист2!$A$6,0) -> 8931 | F54: Комплект на витрину
C55: Подиум двухступенчатый 351.81.00.00 OC 90 для ВПС Gamma-2 | D55: 7219 | E55: =ROUND(D55*(1-$E$3)/Лист2!$A$6,0) -> 7219 | F55: Комплект на витрину
C56: Монтажный набор (до 4 кВт) 1106.120.00.00S для ВПВ/ВПС/ВПСН/ВПН | D56: 10225 | E56: =ROUND(D56*(1-$E$3)/Лист2!$A$6,0) -> 10225
C57: Опора гастроемкостей для витрин 337.85.00.00 L=1200 для ВПС/ВПСН Gamma-2 | D57: 3057 | E57: =ROUND(D57*(1-$E$3)/Лист2!$A$6,0) -> 3057
C58: Опора гастроемкостей для витрин 337.85.00.00-01 L=1500 для ВПС/ВПСН Gamma-2 | D58: 3415 | E58: =ROUND(D58*(1-$E$3)/Лист2!$A$6,0) -> 3415
C59: Опора гастроемкостей для витрин 337.85.00.00-02 L=1800 для ВПС/ВПСН Gamma-2 | D59: 5047 | E59: =ROUND(D59*(1-$E$3)/Лист2!$A$6,0) -> 5047
C60: Комплект для декорирования 337.87.00.00 для Gamma-2 L=1200 | D60: 11201 | E60: =ROUND(D60*(1-$E$3)/Лист2!$A$6,0) -> 11201
C61: Комплект для декорирования 337.87.00.00-01 для Gamma-2 L=1500 | D61: 12651 | E61: =ROUND(D61*(1-$E$3)/Лист2!$A$6,0) -> 12651
C62: Комплект для декорирования 337.87.00.00-02 для Gamma-2 L=1800 | D62: 14022 | E62: =ROUND(D62*(1-$E$3)/Лист2!$A$6,0) -> 14022
C63: Комплект колес для КНП | D63: 3762 | E63: =ROUND(D63*(1-$E$3)/Лист2!$A$6,0) -> 3762
C64: Ящик для КНП | D64: 2643 | E64: =ROUND(D64*(1-$E$3)/Лист2!$A$6,0) -> 2643
A65: 3 | C65: Gamma Quadro | D65: Вернуться к прайсу Gamma Q
C66: Комплект боковины левой 1062.40.00.00 для ВПС/ВПСН GAMMA-2 Quadro | D66: 6926 | E66: =ROUND(D66*(1-$E$3)/Лист2!$A$6,0) -> 6926
C67: Комплект боковины правой 1062.40.00.00mir для ВПС/ВПСН GAMMA-2 Quadro | D67: 6926 | E67: =ROUND(D67*(1-$E$3)/Лист2!$A$6,0) -> 6926
C68: Комплект боковины левой 1064.40.00.00 для ВПН GAMMA-2 Quadro | D68: 8619 | E68: =ROUND(D68*(1-$E$3)/Лист2!$A$6,0) -> 8619
C69: Комплект боковины правой 1064.40.00.00mir для ВПН GAMMA-2 Quadro | D69: 8619 | E69: =ROUND(D69*(1-$E$3)/Лист2!$A$6,0) -> 8619
C70: Комплект герметичного разделителя 643.83.00.00 для ВПС/ВПН/ВПСН GAMMA-2 Quadro | D70: 15960 | E70: =ROUND(D70*(1-$E$3)/Лист2!$A$6,0) -> 15960
C71: Комплект герметичного разделителя с доп. полкой 643.84.00.00 для ВПС/ВПН/ВПСН GAMMA-2 Quadro | D71: 17701 | E71: =ROUND(D71*(1-$E$3)/Лист2!$A$6,0) -> 17701
C72: Комплект соединительный 1062.50.00.00 для ВПС/ВПН/ВПСН GAMMA-2 Quadro | D72: 3397 | E72: =ROUND(D72*(1-$E$3)/Лист2!$A$6,0) -> 3397
C73: Разделитель передвижной высокий (стекло) 643.43.00.00 для ВПС/ВПН/ВПСН GAMMA-2 Quadro | D73: 1574 | E73: =ROUND(D73*(1-$E$3)/Лист2!$A$6,0) -> 1574
C74: Разделитель передвижной низкий (оргстекло) 643.42.00.00 для ВПС/ВПН/ВПСН GAMMA-2 Quadro | D74: 1306 | E74: =ROUND(D74*(1-$E$3)/Лист2!$A$6,0) -> 1306
C75: Разделитель передвижной низкий (стекло) 643.41.00.00 для ВПС/ВПН/ВПСН GAMMA-2 Quadro | D75: 838 | E75: =ROUND(D75*(1-$E$3)/Лист2!$A$6,0) -> 838
C76: Комплект полки навесной для весов L=420 мм. 643.54.00.00 для ВПС/ВПН/ВПСН GAMMA-2 Quadro | D76: 6049 | E76: =ROUND(D76*(1-$E$3)/Лист2!$A$6,0) -> 6049
C77: Комплект отбойника фронтального 15х30 мм. 643.55.00.00 для ВПС/ВПН/ВПСН GAMMA-2 Quadro L=1200 | D77: 2081 | E77: =ROUND(D77*(1-$E$3)/Лист2!$A$6,0) -> 2081
C78: Комплект отбойника фронтального 15х30 мм. 643.55.00.00-01 для ВПС/ВПН/ВПСН GAMMA-2 Quadro L=1500 | D78: 2325 | E78: =ROUND(D78*(1-$E$3)/Лист2!$A$6,0) -> 2325
C79: Комплект отбойника фронтального 15х30 мм. 643.55.00.00-02 для ВПС/ВПН/ВПСН GAMMA-2 Quadro L=1800 | D79: 2568 | E79: =ROUND(D79*(1-$E$3)/Лист2!$A$6,0) -> 2568
C80: Доска навесная для нарезки 643.61.00.00 для ВПС/ВПН/ВПСН GAMMA-2 Quadro | D80: 22031 | E80: =ROUND(D80*(1-$E$3)/Лист2!$A$6,0) -> 22031
C81: Полка дополнительная 643.46.00.00 L=1200 для ВПС/ВПН/ВПСН GAMMA-2 Quadro | D81: 4107 | E81: =ROUND(D81*(1-$E$3)/Лист2!$A$6,0) -> 4107
C82: Полка дополнительная 643.46.00.00-01 L=1500 для ВПС/ВПН/ВПСН GAMMA-2 Quadro | D82: 4465 | E82: =ROUND(D82*(1-$E$3)/Лист2!$A$6,0) -> 4465
C83: Полка дополнительная 643.46.00.00-02 L=1800 для ВПС/ВПН/ВПСН GAMMA-2 Quadro | D83: 4802 | E83: =ROUND(D83*(1-$E$3)/Лист2!$A$6,0) -> 4802
C84: Подиум одноступенчатый 337.80.00.00 L=1200 для ВПС/ВПСН Gamma-2 | D84: 2490 | E84: =ROUND(D84*(1-$E$3)/Лист2!$A$6,0) -> 2490
C85: Подиум одноступенчатый 337.80.00.00-01 L=1500 для ВПС/ВПСН Gamma-2 | D85: 2970 | E85: =ROUND(D85*(1-$E$3)/Лист2!$A$6,0) -> 2970
C86: Подиум одноступенчатый 337.80.00.00-02 L=1800 для ВПС/ВПСН Gamma-2 | D86: 3788 | E86: =ROUND(D86*(1-$E$3)/Лист2!$A$6,0) -> 3788
C87: Подиум одноступенчатый 351.80.00.00 OC 90 для ВПС Gamma-2 | D87: 3133 | E87: =ROUND(D87*(1-$E$3)/Лист2!$A$6,0) -> 3133
C88: Подиум двухступенчатый 337.81.00.00 L=1200 для ВПС/ВПСН Gamma-2 | D88: 5906 | E88: =ROUND(D88*(1-$E$3)/Лист2!$A$6,0) -> 5906
C89: Подиум двухступенчатый 337.81.00.00-01L=1500 для ВПС/ВПСН Gamma-2 | D89: 6918 | E89: =ROUND(D89*(1-$E$3)/Лист2!$A$6,0) -> 6918
C90: Подиум двухступенчатый 337.81.00.00-02 L=1800 для ВПС/ВПСН Gamma-2 | D90: 8933 | E90: =ROUND(D90*(1-$E$3)/Лист2!$A$6,0) -> 8933
C91: Подиум двухступенчатый 351.81.00.00 OC 90 для ВПС Gamma-2 | D91: 7219 | E91: =ROUND(D91*(1-$E$3)/Лист2!$A$6,0) -> 7219
A92: 4 | B92: Код 1С | C92: Magnum | D92: Вернуться к прайсу Magnum
B93: З0000101899 | C93: Комплект боковины левой со стеклом 433.50.1000.00 для ВПС/ВПСН Magnum | D93: 8459 | E93: =ROUND(D93*(1-$E$3)/Лист2!$A$6,0) -> 8459
B94: З0000101900 | C94: Комплект боковины правой со стеклом 433.50.2000.00 для ВПС/ВПСН Magnum | D94: 8459 | E94: =ROUND(D94*(1-$E$3)/Лист2!$A$6,0) -> 8459
B95: З0000101907 | C95: Комплект боковины левой со стеклом 476.50.1000.00 для ВПН Magnum | D95: 10228 | E95: =ROUND(D95*(1-$E$3)/Лист2!$A$6,0) -> 10228
B96: З0000101908 | C96: Комплект боковины правой со стеклом 476.50.2000.00 для ВПН Magnum | D96: 10228 | E96: =ROUND(D96*(1-$E$3)/Лист2!$A$6,0) -> 10228
B97: З0000101902 | C97: Комплект боковины левой со стеклом 276.50.01.00 для ВПС Magnum SG | D97: 8300 | E97: =ROUND(D97*(1-$E$3)/Лист2!$A$6,0) -> 8300
B98: З0000101903 | C98: Комплект боковины правой со стеклом 276.50.02.00 для ВПС Magnum SG | D98: 8300 | E98: =ROUND(D98*(1-$E$3)/Лист2!$A$6,0) -> 8300
B99: З0000276011 | C99: Доска навесная для весов 1007.60.00.00 (420х325) для Magnum/Eco/Quadro | D99: 8843 | E99: =ROUND(D99*(1-$E$3)/Лист2!$A$6,0) -> 8843
B100: З0000304079 | C100: Доска навесная для нарезки 1007.62.00.00 (420х325) для Magnum/Eco/Quadro | D100: 12103 | E100: =ROUND(D100*(1-$E$3)/Лист2!$A$6,0) -> 12103
B101: З0000296634 | C101: Доска навесная универсальная для весов и для нарезки (450х410) 1007.160.00.00 для Magnum, Magnum Eco, Magnum Quadro | D101: 3862 | E101: =ROUND(D101*(1-$E$3)/Лист2!$A$6,0) -> 3862
B102: З0000297102 | C102: Комплект бампера 1098.72.00.00 для ВПС/ВПСН/ВПН Magnum 1250 | D102: 4230 | E102: =ROUND(D102*(1-$E$3)/Лист2!$A$6,0) -> 4230
B103: З0000297098 | C103: Комплект бампера 1098.72.00.00-01 для ВПС/ВПСН/ВПН Magnum 1880 | D103: 6238 | E103: =ROUND(D103*(1-$E$3)/Лист2!$A$6,0) -> 6238
B104: З0000297099 | C104: Комплект бампера 1098.72.00.00-02 для ВПС/ВПСН/ВПН Magnum 2500 | D104: 6787 | E104: =ROUND(D104*(1-$E$3)/Лист2!$A$6,0) -> 6787
B105: З0000297100 | C105: Комплект бампера 1098.72.00.00-03 для ВПС/ВПСН/ВПН Magnum 3750 | D105: 9347 | E105: =ROUND(D105*(1-$E$3)/Лист2!$A$6,0) -> 9347
B106: З0000304089 | C106: Комплект бампера 1102.72.00.00 для Magnum OС 90 | D106: 12544 | E106: =ROUND(D106*(1-$E$3)/Лист2!$A$6,0) -> 12544
B107: З0000297110 | C107: Комплект бампера 1103.72.00.00 для Magnum IС 90 | D107: 11002 | E107: =ROUND(D107*(1-$E$3)/Лист2!$A$6,0) -> 11002
B108: З0000101796 | C108: Комплект гидроамортизаторов 263.67.00.00 для ВПС/ВПСН/ВПН Magnum L=1250 | D108: 8727 | E108: =ROUND(D108*(1-$E$3)/Лист2!$A$6,0) -> 8727
B109: З0000101797 | C109: Комплект гидроамортизаторов 263.67.00.00-01 для ВПС/ВПСН/ВПН Magnum L=1880 | D109: 16466 | E109: =ROUND(D109*(1-$E$3)/Лист2!$A$6,0) -> 16466
B110: З0000101798 | C110: Комплект гидроамортизаторов 263.67.00.00-02 для ВПС/ВПСН/ВПН Magnum L=2500 | D110: 18936 | E110: =ROUND(D110*(1-$E$3)/Лист2!$A$6,0) -> 18936
B111: З0000110281 | C111: Комплект гидроамортизаторов 263.67.00.00-03 для ВПС/ВПСН/ВПН Magnum L=3750 | D111: 24023 | E111: =ROUND(D111*(1-$E$3)/Лист2!$A$6,0) -> 24023
B112: З0000101812 | C112: Комплект гидроамортизаторов 268.67.00.00 для ВПС Magnum IС 90 | D112: 15564 | E112: =ROUND(D112*(1-$E$3)/Лист2!$A$6,0) -> 15564
B113: З0000101811 | C113: Комплект гидроамортизаторов 267.67.00.00 для ВПС Magnum OС 90 | D113: 15564 | E113: =ROUND(D113*(1-$E$3)/Лист2!$A$6,0) -> 15564
B114: З0000101612 | C114: Комплект соединительный 263.55.00.00 для ВПС/ВПСН/ВПН Magnum | D114: 1841 | E114: =ROUND(D114*(1-$E$3)/Лист2!$A$6,0) -> 1841
B115: З0000101725 | C115: Компл соединительный 276.55.00.00 для ВПС Magnum SG | D115: 1842 | E115: =ROUND(D115*(1-$E$3)/Лист2!$A$6,0) -> 1842
B116: З0000104851 | C116: Комплект подиума двухступ(нерж) 433.73.0000.00 L=1250 для ВПС/ВПСН/ВПН Magnum | D116: 4620 | E116: =ROUND(D116*(1-$E$3)/Лист2!$A$6,0) -> 4620 | F116: ступенька на экспозиционную полку в витрине
B117: З0000104852 | C117: Комплект подиума двухступ(нерж) 433.73.0000.00-01 L=1880 для ВПС/ВПСН/ВПН Magnum | D117: 5851 | E117: =ROUND(D117*(1-$E$3)/Лист2!$A$6,0) -> 5851 | F117: ступенька на экспозиционную полку в витрине
B118: З0000104853 | C118: Комплект подиума двухступ(нерж) 433.73.0000.00-02 L=2500 для ВПС/ВПСН/ВПН Magnum | D118: 9240 | E118: =ROUND(D118*(1-$E$3)/Лист2!$A$6,0) -> 9240 | F118: ступенька на экспозиционную полку в витрине
B119: З0000104854 | C119: Комплект подиума двухступ(нерж) 433.73.0000.00-03 L=3750 для ВПС/ВПСН/ВПН Magnum | D119: 13864 | E119: =ROUND(D119*(1-$E$3)/Лист2!$A$6,0) -> 13864 | F119: ступенька на экспозиционную полку в витрине
B120: З0000101740 | C120: Подиум двухступенчатый 268.58.00.00 IC 90 для ВПС Magnum | D120: 6519 | E120: =ROUND(D120*(1-$E$3)/Лист2!$A$6,0) -> 6519 | F120: ступенька на экспозиционную полку в витрине
B121: З0000101738 | C121: Подиум двухступенчатый 267.58.00.00 OC 90 для ВПС Magnum | D121: 4346 | E121: =ROUND(D121*(1-$E$3)/Лист2!$A$6,0) -> 4346 | F121: ступенька на экспозиционную полку в витрине
B122: З0000280986 | C122: Комплект герметичного разделителя 1098.43.00.00 для ВПС/ВПСН/ВПН Magnum | D122: 18293 | E122: =ROUND(D122*(1-$E$3)/Лист2!$A$6,0) -> 18293
B123: З0000304091 | C123: Комплект герметичного разделителя 1101.43.00.00 для ВПС/ВПСН Magnum SG | D123: 14099 | E123: =ROUND(D123*(1-$E$3)/Лист2!$A$6,0) -> 14099
B124: З0000280988 | C124: Комплект разделителя передвижного высокого 1098.42.00.00 для ВПС/ВПСН/ВПН Magnum | D124: 1656 | E124: =ROUND(D124*(1-$E$3)/Лист2!$A$6,0) -> 1656
B125: З0000280987 | C125: Комплект разделителя передвижного низкого 1098.41.00.00 для ВПС/ВПСН/ВПН Magnum | D125: 1337 | E125: =ROUND(D125*(1-$E$3)/Лист2!$A$6,0) -> 1337
B126: З0000101825 | C126: ТЭН оттайки испарителя 273.65.00.00 L=1250 для ВПС Magnum / IС 90 / ОС 90 / Eco / Quadro | D126: 1945 | E126: =ROUND(D126*(1-$E$3)/Лист2!$A$6,0) -> 1945
B127: З0000101826 | C127: ТЭН оттайки испарителя 273.65.00.00-01 L=1880 для ВПС Magnum / Eco / Quadro | D127: 3501 | E127: =ROUND(D127*(1-$E$3)/Лист2!$A$6,0) -> 3501
B128: З0000101828 | C128: ТЭН оттайки испарителя 273.65.00.00-02 L=2500 для ВПС Magnum / Eco / Quadro | D128: 4167 | E128: =ROUND(D128*(1-$E$3)/Лист2!$A$6,0) -> 4167
B129: З0000101829 | C129: ТЭН оттайки испарителя 273.65.00.00-03 L=3750 для ВПС Magnum / Eco / Quadro | D129: 6702 | E129: =ROUND(D129*(1-$E$3)/Лист2!$A$6,0) -> 6702
B130: З0000302271 | C130: Комплект шторок ночных 1101.40.00.00 для Magnum SG исп.1250 | D130: 5115 | E130: =ROUND(D130*(1-$E$3)/Лист2!$A$6,0) -> 5115
B131: З0000302272 | C131: Комплект шторок ночных 1101.40.00.00-01 для Magnum SG исп.1875 | D131: 7630 | E131: =ROUND(D131*(1-$E$3)/Лист2!$A$6,0) -> 7630
B132: З0000302273 | C132: Комплект шторок ночных 1101.40.00.00-02 для Magnum SG исп.2500 | D132: 10203 | E132: =ROUND(D132*(1-$E$3)/Лист2!$A$6,0) -> 10203
B133: З0000302274 | C133: Комплект шторок ночных 1101.40.00.00-03 для Magnum SG исп.3750 | D133: 15022 | E133: =ROUND(D133*(1-$E$3)/Лист2!$A$6,0) -> 15022
A134: 5 | B134: Код 1С | C134: Magnum ECO | D134: Вернуться к прайсу Magnum ECO
B135: З0000123582 | C135: Комплект боковины левой 676.50.01.00 для ВПС/ВПСН Magnum Eco | D135: 8459 | E135: =ROUND(D135*(1-$E$3)/Лист2!$A$6,0) -> 8459
B136: З0000123583 | C136: Комплект боковины правой 676.50.02.00 для ВПС/ВПСН Magnum Eco | D136: 8459 | E136: =ROUND(D136*(1-$E$3)/Лист2!$A$6,0) -> 8459
B137: З0000276011 | C137: Доска навесная для весов 1007.60.00.00 (420х325) для Magnum/Eco/Quadro | D137: 6102 | E137: =ROUND(D137*(1-$E$3)/Лист2!$A$6,0) -> 6102
B138: З0000304079 | C138: Доска навесная для нарезки 1007.62.00.00 (420х325) для Magnum/Eco/Quadro | D138: 8993 | E138: =ROUND(D138*(1-$E$3)/Лист2!$A$6,0) -> 8993
B139: З0000296634 | C139: Доска навесная универсальная для весов и для нарезки (450х410) 1007.160.00.00 для Magnum, Magnum Eco, Magnum Quadro | D139: 3862 | E139: =ROUND(D139*(1-$E$3)/Лист2!$A$6,0) -> 3862
B140: З0000123589 | C140: Комплект соединительный 676.40.00.00 для ВПС/ВПСН/ВПН Magnum Eco | D140: 1842 | E140: =ROUND(D140*(1-$E$3)/Лист2!$A$6,0) -> 1842
B141: З0000104851 | C141: Комплект подиума двухступ(нерж) 433.73.0000.00 L=1250 для ВПС/ВПСН/ВПН Magnum | D141: 4620 | E141: =ROUND(D141*(1-$E$3)/Лист2!$A$6,0) -> 4620 | F141: ступенька на экспозиционную полку в витрине
B142: З0000104852 | C142: Комплект подиума двухступ(нерж) 433.73.0000.00-01 L=1880 для ВПС/ВПСН/ВПН Magnum | D142: 5851 | E142: =ROUND(D142*(1-$E$3)/Лист2!$A$6,0) -> 5851 | F142: ступенька на экспозиционную полку в витрине
B143: З0000104853 | C143: Комплект подиума двухступ(нерж) 433.73.0000.00-02 L=2500 для ВПС/ВПСН/ВПН Magnum | D143: 9240 | E143: =ROUND(D143*(1-$E$3)/Лист2!$A$6,0) -> 9240 | F143: ступенька на экспозиционную полку в витрине
B144: З0000104854 | C144: Комплект подиума двухступ(нерж) 433.73.0000.00-03 L=3750 для ВПС/ВПСН/ВПН Magnum | D144: 13864 | E144: =ROUND(D144*(1-$E$3)/Лист2!$A$6,0) -> 13864 | F144: ступенька на экспозиционную полку в витрине
B145: З0000101825 | C145: ТЭН оттайки испарителя 273.65.00.00 L=1250 для ВПС Magnum / IС 90 / ОС 90 / Eco / Quadro | D145: 1945 | E145: =ROUND(D145*(1-$E$3)/Лист2!$A$6,0) -> 1945
B146: З0000101826 | C146: ТЭН оттайки испарителя 273.65.00.00-01 L=1880 для ВПС Magnum / Eco / Quadro | D146: 3501 | E146: =ROUND(D146*(1-$E$3)/Лист2!$A$6,0) -> 3501
B147: З0000101828 | C147: ТЭН оттайки испарителя 273.65.00.00-02 L=2500 для ВПС Magnum / Eco / Quadro | D147: 4167 | E147: =ROUND(D147*(1-$E$3)/Лист2!$A$6,0) -> 4167
B148: З0000101829 | C148: ТЭН оттайки испарителя 273.65.00.00-03 L=3750 для ВПС Magnum / Eco / Quadro | D148: 6702 | E148: =ROUND(D148*(1-$E$3)/Лист2!$A$6,0) -> 6702
A149: 6 | B149: Код 1С | C149: MAGNUM Quadro | D149: Вернуться к прайсу Magnum Q
C150: Комплект общей подсветки для Magnum Quadro L=1250 мм | D150: 2396 | E150: =ROUND(D150*(1-$E$3)/Лист2!$A$6,0) -> 2396 | F150: Спектр освещения определяется характеристикой (пятый символ, "1" - 6500К, "2" - 4000К, "3" - 3000 К)
C151: Комплект общей подсветки для Magnum Quadro L=1875 мм | D151: 3565 | E151: =ROUND(D151*(1-$E$3)/Лист2!$A$6,0) -> 3565
C152: Комплект общей подсветки для Magnum Quadro L=2500 мм | D152: 3565 | E152: =ROUND(D152*(1-$E$3)/Лист2!$A$6,0) -> 3565
C153: Комплект общей подсветки для Magnum Quadro L=3750 мм | D153: 6151 | E153: =ROUND(D153*(1-$E$3)/Лист2!$A$6,0) -> 6151
C154: Комплект общей подсветки для Magnum Quadro OC90 | D154: 3596 | E154: =ROUND(D154*(1-$E$3)/Лист2!$A$6,0) -> 3596
C155: Комплект общей подсветки для Magnum Quadro IC90 | D155: 2157 | E155: =ROUND(D155*(1-$E$3)/Лист2!$A$6,0) -> 2157
C156: Комплект декоративной фронтальной панели металлической узкой L=1250 мм | D156: 3471 | E156: =ROUND(D156*(1-$E$3)/Лист2!$A$6,0) -> 3471 | F156: Определяется характеристикой Восьмой символ характеристики - ВХХХХ где ХХХХ цвет со структурой, пример - В7016гл
C157: Комплект декоративной фронтальной панели металлической узкой L=1875 мм | D157: 4954 | E157: =ROUND(D157*(1-$E$3)/Лист2!$A$6,0) -> 4954
C158: Комплект декоративной фронтальной панели металлической узкой L=2500 мм | D158: 5906 | E158: =ROUND(D158*(1-$E$3)/Лист2!$A$6,0) -> 5906
C159: Комплект декоративной фронтальной панели металлической узкой L=3750 мм | D159: 8388 | E159: =ROUND(D159*(1-$E$3)/Лист2!$A$6,0) -> 8388
C160: Комплект декоративной фронтальной панели металлической узкой OC90 | D160: 5919 | E160: =ROUND(D160*(1-$E$3)/Лист2!$A$6,0) -> 5919
C161: Комплект декоративной фронтальной панели металлической узкой IC90 | D161: 3645 | E161: =ROUND(D161*(1-$E$3)/Лист2!$A$6,0) -> 3645
C162: Комплект декоративной фронтальной панели металлической узкой с отбойником L=1250 мм | D162: 5555 | E162: =ROUND(D162*(1-$E$3)/Лист2!$A$6,0) -> 5555 | F162: Определяется характеристикой Восьмой символ характеристики - DХХХХ где ХХХХ цвет со структурой, пример - D7016гл
C163: Комплект декоративной фронтальной панели металлической узкой с отбойником L=1875 мм | D163: 7927 | E163: =ROUND(D163*(1-$E$3)/Лист2!$A$6,0) -> 7927
C164: Комплект декоративной фронтальной панели металлической узкой с отбойником L=2500 мм | D164: 9449 | E164: =ROUND(D164*(1-$E$3)/Лист2!$A$6,0) -> 9449
C165: Комплект декоративной фронтальной панели металлической узкой с отбойником OC90 | D165: 9471 | E165: =ROUND(D165*(1-$E$3)/Лист2!$A$6,0) -> 9471
C166: Комплект декоративной фронтальной панели металлической узкой с отбойником IC90 | D166: 5833 | E166: =ROUND(D166*(1-$E$3)/Лист2!$A$6,0) -> 5833
C167: Комплект декоративной фронтальной панели металлической широкой L=1250 мм | D167: 3748 | E167: =ROUND(D167*(1-$E$3)/Лист2!$A$6,0) -> 3748 | F167: Определяется характеристикой Восьмой символ характеристики - AХХХХ где ХХХХ цвет со структурой, пример - A7016гл
C168: Комплект декоративной фронтальной панели металлической широкой L=1875 мм | D168: 5350 | E168: =ROUND(D168*(1-$E$3)/Лист2!$A$6,0) -> 5350
C169: Комплект декоративной фронтальной панели металлической широкой L=2500 мм | D169: 6378 | E169: =ROUND(D169*(1-$E$3)/Лист2!$A$6,0) -> 6378
C170: Комплект декоративной фронтальной панели металлической широкой для OC90 | D170: 6394 | E170: =ROUND(D170*(1-$E$3)/Лист2!$A$6,0) -> 6394
C171: Комплект декоративной фронтальной панели металлической широкой для IC90 | D171: 3937 | E171: =ROUND(D171*(1-$E$3)/Лист2!$A$6,0) -> 3937
C172: Комплект декоративной фронтальной панели металлической широкой с отбойником L=1250 мм | D172: 5998 | E172: =ROUND(D172*(1-$E$3)/Лист2!$A$6,0) -> 5998 | F172: Определяется характеристикой Восьмой символ характеристики - СХХХХ где ХХХХ цвет со структурой, пример - С7016гл
C173: Комплект декоративной фронтальной панели металлической широкой с отбойником L=1875 мм | D173: 8561 | E173: =ROUND(D173*(1-$E$3)/Лист2!$A$6,0) -> 8561
C174: Комплект декоративной фронтальной панели металлической широкой с отбойником L=2500 мм | D174: 10205 | E174: =ROUND(D174*(1-$E$3)/Лист2!$A$6,0) -> 10205
C175: Комплект декоративной фронтальной панели металлической широкой с отбойником для OC90 | D175: 10230 | E175: =ROUND(D175*(1-$E$3)/Лист2!$A$6,0) -> 10230
C176: Комплект декоративной фронтальной панели металлической широкой с отбойником для IC90 | D176: 6298 | E176: =ROUND(D176*(1-$E$3)/Лист2!$A$6,0) -> 6298
C177: Комплект декоративной фронтальной панели металлической узкой L=1250 мм, ЛДСП | D177: 6248 | E177: =ROUND(D177*(1-$E$3)/Лист2!$A$6,0) -> 6248 | F177: Расшифровка характеристик ЛДСП (нажать)
C178: Комплект декоративной фронтальной панели металлической узкой L=1875 мм, ЛДСП | D178: 8917 | E178: =ROUND(D178*(1-$E$3)/Лист2!$A$6,0) -> 8917
C179: Комплект декоративной фронтальной панели металлической узкой L=2500 мм, ЛДСП | D179: 10630 | E179: =ROUND(D179*(1-$E$3)/Лист2!$A$6,0) -> 10630
C180: Комплект декоративной фронтальной панели металлической узкой OC90, ЛДСП | D180: 10656 | E180: =ROUND(D180*(1-$E$3)/Лист2!$A$6,0) -> 10656
C181: Комплект декоративной фронтальной панели металлической узкой IC90, ЛДСП | D181: 6562 | E181: =ROUND(D181*(1-$E$3)/Лист2!$A$6,0) -> 6562
C182: Комплект декоративной фронтальной панели металлической узкой с отбойником L=1250 мм, ЛДСП | D182: 8332 | E182: =ROUND(D182*(1-$E$3)/Лист2!$A$6,0) -> 8332 | F182: Расшифровка характеристик ЛДСП (нажать)
C183: Комплект декоративной фронтальной панели металлической узкой с отбойником L=1875 мм, ЛДСП | D183: 11890 | E183: =ROUND(D183*(1-$E$3)/Лист2!$A$6,0) -> 11890
C184: Комплект декоративной фронтальной панели металлической узкой с отбойником L=2500 мм, ЛДСП | D184: 14173 | E184: =ROUND(D184*(1-$E$3)/Лист2!$A$6,0) -> 14173
C185: Комплект декоративной фронтальной панели металлической узкой с отбойником OC90, ЛДСП | D185: 14207 | E185: =ROUND(D185*(1-$E$3)/Лист2!$A$6,0) -> 14207
C186: Комплект декоративной фронтальной панели металлической узкой с отбойником IC90, ЛДСП | D186: 8747 | E186: =ROUND(D186*(1-$E$3)/Лист2!$A$6,0) -> 8747
C187: Комплект декоративной фронтальной панели металлической широкой L=1250 мм, ЛДСП | D187: 6748 | E187: =ROUND(D187*(1-$E$3)/Лист2!$A$6,0) -> 6748 | F187: Расшифровка характеристик ЛДСП (нажать)
C188: Комплект декоративной фронтальной панели металлической широкой L=1875 мм, ЛДСП | D188: 9631 | E188: =ROUND(D188*(1-$E$3)/Лист2!$A$6,0) -> 9631
C189: Комплект декоративной фронтальной панели металлической широкой L=2500 мм, ЛДСП | D189: 11481 | E189: =ROUND(D189*(1-$E$3)/Лист2!$A$6,0) -> 11481
C190: Комплект декоративной фронтальной панели металлической широкой для OC90, ЛДСП | D190: 11508 | E190: =ROUND(D190*(1-$E$3)/Лист2!$A$6,0) -> 11508
C191: Комплект декоративной фронтальной панели металлической широкой для IC90, ЛДСП | D191: 7086 | E191: =ROUND(D191*(1-$E$3)/Лист2!$A$6,0) -> 7086
C192: Комплект декоративной фронтальной панели металлической широкой с отбойником L=1250 мм, ЛДСП | D192: 8999 | E192: =ROUND(D192*(1-$E$3)/Лист2!$A$6,0) -> 8999 | F192: Расшифровка характеристик ЛДСП (нажать)
C193: Комплект декоративной фронтальной панели металлической широкой с отбойником L=1875 мм, ЛДСП | D193: 12842 | E193: =ROUND(D193*(1-$E$3)/Лист2!$A$6,0) -> 12842
C194: Комплект декоративной фронтальной панели металлической широкой с отбойником L=2500 мм, ЛДСП | D194: 15308 | E194: =ROUND(D194*(1-$E$3)/Лист2!$A$6,0) -> 15308
C195: Комплект декоративной фронтальной панели металлической широкой с отбойником для OC90, ЛДСП | D195: 15344 | E195: =ROUND(D195*(1-$E$3)/Лист2!$A$6,0) -> 15344
C196: Комплект декоративной фронтальной панели металлической широкой с отбойником для IC90, ЛДСП | D196: 9448 | E196: =ROUND(D196*(1-$E$3)/Лист2!$A$6,0) -> 9448
C197: Система выпаривания конденсата для Magnum Quadro L=1250 мм | D197: 3961 | E197: =ROUND(D197*(1-$E$3)/Лист2!$A$6,0) -> 3961 | F197: Применение выпаривателя определяется характеристикой (шестой символ, "V0" - без выпаривателя, "V1" - выпариватель применен)
C198: Система выпаривания конденсата для Magnum Quadro L=1875 мм | D198: 6733 | E198: =ROUND(D198*(1-$E$3)/Лист2!$A$6,0) -> 6733
C199: Система выпаривания конденсата для Magnum Quadro L=2500 мм | D199: 8872 | E199: =ROUND(D199*(1-$E$3)/Лист2!$A$6,0) -> 8872
C200: Система выпаривания конденсата для Magnum Quadro OC90 | D200: 6733 | E200: =ROUND(D200*(1-$E$3)/Лист2!$A$6,0) -> 6733
C201: Система выпаривания конденсата для Magnum Quadro IC90 | D201: 3565 | E201: =ROUND(D201*(1-$E$3)/Лист2!$A$6,0) -> 3565
B202: З0000252734 | C202: Комплект боковины левой под узкую фронтальную панель 1007.48.00.00 для ВПС/ВПСН Magnum Quadro | D202: 8478 | E202: =ROUND(D202*(1-$E$3)/Лист2!$A$6,0) -> 8478
B203: З0000252736 | C203: Комплект боковины правой под узкую фронтальную панель 1007.48.00.00mir дляВПС/ВПСН Magnum Quadro | D203: 8478 | E203: =ROUND(D203*(1-$E$3)/Лист2!$A$6,0) -> 8478
... 33 more rows

Sheet Витрины Italfrigo
K1: На главную
J2: На главную
B3: Ваша скидка: | E3: =Содержание!D2 -> 0
B4: НДС: | E4: =IF(Лист2!A1=TRUE,"С НДС","БЕЗ НДС") -> С НДС
B7: Витрины Italfrigo без агрегата
A8: № | B8: Изображение | C8: Артикул | D8: Наименование | E8: Температурный режим, C° | F8: Площадь экспозиции, кв.м. | G8: Габариты без боковин, мм (L/W/H) | H8: Габариты в упаковке, мм (L/W/H) | I8: Базовая цена, руб. (с НДС) | J8: =[6]Лист2!$A$5 -> Ваша цена, руб.
A10: 1 | B10: Витрины серии TOSCANA Q, глубина выкладки 860 мм
A11: Стандартная комплектация: 1.Фронтальное стекло закаленное, открывается сверху-вниз (микролифт не применяется); 2. Вентилируемое охлаждение; 3. Поддоны выкладки, внутренней задней стенки с решётками вентиляционными, столешница — нерж. сталь AISI430, шлифованная /в модификации FISH Базовые поддоны для льда из нержавеющей стали со сливом; 4. ТРВ 5. Электронный контроллер 6. Комплект подключения к системе дренажа; 7. Цифровой термометр на фронтальной части столешницы; 8. Суперструктура нерж.сталь; 9. Профиль для навески доп. оборудования (подставки под весы, разделочные доски, под ножи, пакеты) по всей длине витрины; 10. Витрины ВПСН оснащены электрической оттайкой испарителя (ТЭН); 11. Без боковин; Стандартная характеристика для витрины - S.E.0.S.0.0
C12: Среднетемпературные витрины
C13: 125ITSQВПС2 | D13: Витрина холодильная ВПC Italfrigo Toscana Q 1250 Д | E13: 0…+5 С | G13: 1250х1060х1195 | H13: 1500х1190х1080 | I13: 109527 | J13: =ROUND(I13*(1-$E$3)/Лист2!$A$6,0) -> 109527
C14: 188ITSQВПС2 | D14: Витрина холодильная ВПC Italfrigo Toscana Q 1875 Д | G14: 1875х1060х1195 | H14: 2100х1190х1080 | I14: 147489 | J14: =ROUND(I14*(1-$E$3)/Лист2!$A$6,0) -> 147489
C15: 250ITSQВПС2 | D15: Витрина холодильная ВПC Italfrigo Toscana Q 2500 Д | G15: 2500х1060х1195 | H15: 2750х1190х1080 | I15: 171545 | J15: =ROUND(I15*(1-$E$3)/Лист2!$A$6,0) -> 171545
C16: 375ITSQВПС2 | D16: Витрина холодильная ВПC Italfrigo Toscana Q 3750 Д | G16: 3750х1060х1195 | H16: 4050х1190х1080 | I16: 230645 | J16: =ROUND(I16*(1-$E$3)/Лист2!$A$6,0) -> 230645
C17: Среднетемпературные витрины c низким стеклом
C18: ITSQВПС2SG125Д | D18: Витрина холодильная ВПC Italfrigo Toscana Q Self 1250 Д | E18: 0…+5 С | G18: 1250х1060х880 | H18: 1500х1190х1080 | I18: 88367 | J18: =ROUND(I18*(1-$E$3)/Лист2!$A$6,0) -> 88367
C19: ITSQВПС2SG188Д | D19: Витрина холодильная ВПC Italfrigo Toscana Q Self 1875 Д | G19: 1875х1060х880 | H19: 2100х1190х1080 | I19: 108572 | J19: =ROUND(I19*(1-$E$3)/Лист2!$A$6,0) -> 108572
C20: ITSQВПС2SG250Д | D20: Витрина холодильная ВПC Italfrigo Toscana Q Self 2500 Д | G20: 2500х1060х880 | H20: 2750х1190х1080 | I20: 129827 | J20: =ROUND(I20*(1-$E$3)/Лист2!$A$6,0) -> 129827
C21: ITSQВПС2SG375Д | D21: Витрина холодильная ВПC Italfrigo Toscana Q Self 3750 Д | G21: 3750х1060х880 | H21: 4050х1190х1080 | I21: 172857 | J21: =ROUND(I21*(1-$E$3)/Лист2!$A$6,0) -> 172857
C22: Угловые среднетемпературные витрины
C23: OC90ITSQ ВПС2 | D23: Витрина холодильная ВПC Italfrigo Toscana Q OC 90 Д | E23: 0…+5 С | G23: 1355х1355х1195 | H23: 2170х1380х1055 | I23: 199507 | J23: =ROUND(I23*(1-$E$3)/Лист2!$A$6,0) -> 199507
C24: IC90ITSQ ВПС2 | D24: Витрина холодильная ВПC Italfrigo Toscana Q IC 90 Д | G24: 1295х1295х1195 | H24: 2170х1380х1055 | I24: 176518 | J24: =ROUND(I24*(1-$E$3)/Лист2!$A$6,0) -> 176518
C25: Угловые среднетемпературные витрины с низким стеклом
C26: OC90ITSQВПС2SG | D26: Витрина холодильная ВПC Italfrigo Toscana Q OC90 Self Д | E26: 0…+5 С | G26: 1355х1355х880 | H26: 2170х1380х1055 | I26: 175565 | J26: =ROUND(I26*(1-$E$3)/Лист2!$A$6,0) -> 175565
C27: IC90ITSQВПС2SG | D27: Витрина холодильная ВПC Italfrigo Toscana Q IC90 Self Д | G27: 1295х1295х880 | H27: 2170х1380х1055 | I27: 155335 | J27: =ROUND(I27*(1-$E$3)/Лист2!$A$6,0) -> 155335
C28: Средне-низкотемпературные витрины FISH (рыба на льду)
C29: 125ITSQFSВПСН2 | D29: Витрина холодильно-морозильная ВПCН (Italfrigo Toscana Q Fish 1250 Д) | E29: -5…+5 С | G29: 1250х1060х1195 | H29: 1500х1190х1080 | I29: 142386 | J29: =ROUND(I29*(1-$E$3)/Лист2!$A$6,0) -> 142386
C30: 188ITSQFSВПСН2 | D30: Витрина холодильно-морозильная ВПCН (Italfrigo Toscana Q Fish 1875 Д) | G30: 1875х1060х1195 | H30: 2100х1190х1080 | I30: 163744 | J30: =ROUND(I30*(1-$E$3)/Лист2!$A$6,0) -> 163744
C31: Средне-низкотемпературные витрины FISH (рыба на льду) c низким стеклом
C32: 125ITSQFSВПСН2SG | D32: Витрина холодильно-морозильная ВПCН (Italfrigo Toscana Q Self Fish 1250 Д) | E32: -5…+5 С | G32: 1250х1060х880 | H32: 1500х1190х1080 | I32: 120907 | J32: =ROUND(I32*(1-$E$3)/Лист2!$A$6,0) -> 120907
C33: 188ITSQFSВПСН2SG | D33: Витрина холодильно-морозильная ВПCН (Italfrigo Toscana Q Self Fish 1875 Д) | G33: 1875х1060х880 | H33: 2100х1190х1080 | I33: 138983 | J33: =ROUND(I33*(1-$E$3)/Лист2!$A$6,0) -> 138983
C34: Тепловая витрина (мармит) +65, нагрев горячим паром
C35: 125ITSQВПТВМ | D35: Витрина тепловая ВПТ Italfrigo Toscana Q 1250 ВМ | E35: +65 C | G35: 1250х1060х1195 | H35: 1500х1190х1400 | I35: 198866 | J35: =ROUND(I35*(1-$E$3)/Лист2!$A$6,0) -> 198866
A36: 2 | B36: Витрины серии Veneto Quadro, глубина выкладки 960 мм
A37: Стандартная комплектация: 1. Без фронтальной верхней декоративной панели; 2. Фронтальное стекло закаленное, открывается микролифтами снизу — вверх; 3. Вентилируемое охлаждение; 4. Поддоны выкладки, внутренней задней стенки с решётками вентиляционными, столешница — нерж. сталь AISI430, шлифованная / / в модификации FISH Базовые поддоны для льда из нержавеющей стали со сливом 5. ТРВ 6. Электронный контроллер 7. Комплект подключения к системе дренажа; 8. Цифровой термометр на фронтальной части столешницы; 9. Витрины ВПСН по умолчанию оборудованы комплектом электрооотайки испарителя; 10. Суперструктура из анодированого алюминия; 11. Без боковин; Стандартная характеристика для витрины - S.E.0.T.0.0
C38: Среднетемпературные витрины
C39: IVQ ВПС2 125Д | D39: Витрина холодильная ВПC 0,195-1,2 (Italfrigo Veneto Quadro 1250 Д) | E39: +2…+4 С | G39: 1250х1165х1175 | H39: 1500х1450х1420 | I39: 122034 | J39: =ROUND(I39*(1-$E$3)/Лист2!$A$6,0) -> 122034
C40: IVQ ВПС2 188Д | D40: Витрина холодильная ВПC 0,29-1,75 (Italfrigo Veneto Quadro 1875 Д) | G40: 1875х1165х1175 | H40: 2125х1450х1420 | I40: 164746 | J40: =ROUND(I40*(1-$E$3)/Лист2!$A$6,0) -> 164746
C41: IVQ ВПС2 250Д | D41: Витрина холодильная ВПC 0,39-2,4 (Italfrigo Veneto Quadro 2500 Д) | G41: 2500х1165х1175 | H41: 2750х1450х1420 | I41: 197428 | J41: =ROUND(I41*(1-$E$3)/Лист2!$A$6,0) -> 197428
C42: IVQ ВПС2 375Д | D42: Витрина холодильная ВПC 0,585-3,5 (Italfrigo Veneto Quadro 3750 Д) | G42: 3750х1165х1175 | H42: 4000х1450х1420 | I42: 265590 | J42: =ROUND(I42*(1-$E$3)/Лист2!$A$6,0) -> 265590
C43: Среднетемпературные витрины c низким стеклом
C44: IVQ ВПС2 SG 125Д | D44: Витрина холодильная ВПC 0,195-1,2 (Italfrigo Veneto Quadro Self 1250 Д) | E44: +2…+4 С | G44: 1250х1165х870 | H44: 1500х1450х1050 | I44: 100417 | J44: =ROUND(I44*(1-$E$3)/Лист2!$A$6,0) -> 100417
C45: IVQ ВПС2 SG 188Д | D45: Витрина холодильная ВПC 0,29-1,75 (Italfrigo Veneto Quadro Self 1875 Д) | G45: 1875х1165х870 | H45: 2125х1450х1050 | I45: 123378 | J45: =ROUND(I45*(1-$E$3)/Лист2!$A$6,0) -> 123378
C46: IVQ ВПС2 SG 250Д | D46: Витрина холодильная ВПC 0,39-2,4 (Italfrigo Veneto Quadro Self 2500 Д) | G46: 2500х1165х870 | H46: 2750х1450х1050 | I46: 151667 | J46: =ROUND(I46*(1-$E$3)/Лист2!$A$6,0) -> 151667
C47: IVQ ВПС2 SG 375Д | D47: Витрина холодильная ВПC 0,585-3,5 (Italfrigo Veneto Quadro Self 3750 Д) | G47: 3750х1165х870 | H47: 4000х1450х1050 | I47: 201935 | J47: =ROUND(I47*(1-$E$3)/Лист2!$A$6,0) -> 201935
C48: Угловые среднетемпературные витрины
C49: IVQ ВПС2 OC90Д | D49: Витрина холодильная ВПC 0,226-1,33 (Italfrigo Veneto Quadro OС 90 Д) | E49: +2…+4 С | G49: 1800х1200х1175 | H49: 2000х1380х1295 | I49: 245914 | J49: =ROUND(I49*(1-$E$3)/Лист2!$A$6,0) -> 245914
C50: IVQ ВПС2 IC45Д | D50: Витрина холодильная ВПC 0,11-0,64 (Italfrigo Veneto Quadro IС 45 Д) | G50: 1455х1380х1175 | H50: 1750х1670х1395 | I50: 145087 | J50: =ROUND(I50*(1-$E$3)/Лист2!$A$6,0) -> 145087
C51: Угловые среднетемпературные витрины с низким стеклом
C52: IVQ ВПС2 SG OC90Д | D52: Витрина холодильная ВПC 0,226-1,33 (Italfrigo Veneto Quadro Self OС 90 Д) | E52: 0…+5 С | G52: 1800х1200х870 | H52: 2000х1380х1050 | I52: 223833 | J52: =ROUND(I52*(1-$E$3)/Лист2!$A$6,0) -> 223833
C53: IVQ ВПС2 SG IC45Д | D53: Витрина холодильная ВПC 0,11-0,64 (Italfrigo Veneto Quadro Self IС 45 Д) | G53: 1455х1380х870 | H53: 1750х1670х1050 | I53: 125461 | J53: =ROUND(I53*(1-$E$3)/Лист2!$A$6,0) -> 125461
C54: Средне-низкотемпературные витрины
C55: IVQ ВПСН2 125Д | D55: Витрина холодильно-морозильная ВПCН 0,195-1,2 (Italfrigo Veneto Quadro 1250 Д) | E55: -5…+5 С | G55: 1250х1165х1175 | H55: 1500х1450х1420 | I55: 128270 | J55: =ROUND(I55*(1-$E$3)/Лист2!$A$6,0) -> 128270
C56: IVQ ВПСН2 188Д | D56: Витрина холодильно-морозильная ВПCН 0,29-1,75 (Italfrigo Veneto Quadro 1875 Д) | G56: 1875х1165х1175 | H56: 2125х1450х1420 | I56: 171727 | J56: =ROUND(I56*(1-$E$3)/Лист2!$A$6,0) -> 171727
C57: IVQ ВПСН2 250Д | D57: Витрина холодильно-морозильная ВПCН 0,39-2,4 (Italfrigo Veneto Quadro 2500 Д) | G57: 2500х1165х1175 | H57: 2750х1450х1420 | I57: 204253 | J57: =ROUND(I57*(1-$E$3)/Лист2!$A$6,0) -> 204253
C58: IVQ ВПСН2 375Д | D58: Витрина холодильно-морозильная ВПCН 0,585-3,5 (Italfrigo Veneto Quadro 3750 Д) | G58: 3750х1165х1175 | H58: 4000х1450х1420 | I58: 272880 | J58: =ROUND(I58*(1-$E$3)/Лист2!$A$6,0) -> 272880
C60: IVQ КНП IC90 | D60: Прилавок КНП Italfrigo Veneto Quadro IC90 (с широкой панелью) | I60: 33315 | J60: =ROUND(I60*(1-$E$3)/Лист2!$A$6,0) -> 33315 | K60: Ахххх.Рхххх
C61: IVQ КНП 1000 | D61: Прилавок КНП Italfrigo Veneto Quadro 1000 (с широкой панелью) | I61: 41639 | J61: =ROUND(I61*(1-$E$3)/Лист2!$A$6,0) -> 41639 | K61: Ахххх.Рхххх
C62: Средне-низкотемпературные витрины FISH (рыба на льду)
C63: IVQFS ВПСН2 125Д | D63: Витрина холодильно-морозильная ВПCН 0,195-1,2 (Italfrigo Veneto Quadro Fish 1250 Д) | E63: -5…+5 С | G63: 1250х1165х1175 | H63: 1500х1450х1420 | I63: 167650 | J63: =ROUND(I63*(1-$E$3)/Лист2!$A$6,0) -> 167650
C64: IVQFS ВПСН2 188Д | D64: Витрина холодильно-морозильная ВПCН 0,29-1,75 (Italfrigo Veneto Quadro Fish 1875 Д) | G64: 1875х1165х1175 | H64: 2125х1450х1420 | I64: 203865 | J64: =ROUND(I64*(1-$E$3)/Лист2!$A$6,0) -> 203865
C65: Средне-низкотемпературные витрины FISH (рыба на льду) c низким стеклом
C66: IVQFS ВПСН2 SG 125Д | D66: Витрина холодильно-морозильная ВПCН 0,195-1,2 (Italfrigo Veneto Quadro Self Fish 1250 Д) | E66: -5…+5 С | G66: 1250х1165х870 | H66: 1500х1450х1050 | I66: 149697 | J66: =ROUND(I66*(1-$E$3)/Лист2!$A$6,0) -> 149697
C67: IVQFS ВПСН2 SG 188Д | D67: Витрина холодильно-морозильная ВПCН 0,29-1,75 (Italfrigo Veneto Quadro Self Fish 1875 Д) | G67: 1875х1165х870 | H67: 2125х1450х1050 | I67: 171083 | J67: =ROUND(I67*(1-$E$3)/Лист2!$A$6,0) -> 171083
C68: Тепловая витрина (мармит) +65, нагрев горячим паром
C69: IVQ BM125 | D69: Витрина тепловая ВПТ 0,56-0,09 (Italfrigo Veneto Quadro ВМ 1250) | E69: +65 C | G69: 1250х1165х1175 | H69: 1500х1450х1420 | I69: 232010 | J69: =ROUND(I69*(1-$E$3)/Лист2!$A$6,0) -> 232010
G72: наверх

Sheet Опции для витрин Italfrigo
F1: На главную
C3: Ваша скидка: | E3: =Содержание!D2 -> 0
C4: НДС: | E4: =IF(Лист2!A1=TRUE,"С НДС","БЕЗ НДС") -> С НДС
C7: Опции для витрин Italfrigo
A8: № | B8: Артикул | C8: Название | D8: Базовая цена, руб. (с НДС) | E8: =[5]Лист2!$A$5 -> Ваша цена, руб.
F9: Комментарий
A10: Опции VENETO | E10: Назад к списку
A11: 1. Veneto Quadro
A12: Обязательные опции для Veneto Quadro
A13: 1 | B13: 713.39.00.00 | C13: Комплект декоративной фронтальной панели широкой, без отбойника L=1250 | D13: 3471 | E13: =ROUND(D13*(1-$E$3)/Лист2!$A$6,0) -> 3471
A14: 2 | B14: 713.39.00.00-01 | C14: Комплект декоративной фронтальной панели широкой, без отбойника L=1875 | D14: 4954 | E14: =ROUND(D14*(1-$E$3)/Лист2!$A$6,0) -> 4954
A15: 3 | B15: 713.39.00.00-02 | C15: Комплект декоративной фронтальной панели широкой, без отбойника L=2500 | D15: 5906 | E15: =ROUND(D15*(1-$E$3)/Лист2!$A$6,0) -> 5906
A16: 4 | B16: 713.39.00.00-03 | C16: Комплект декоративной фронтальной панели широкой, без отбойника L=3750 | D16: 6103 | E16: =ROUND(D16*(1-$E$3)/Лист2!$A$6,0) -> 6103
A17: 5 | B17: 735.39.00.00 | C17: Комплект декоративной фронтальной панели широкой, без отбойника для ОС 90 | D17: 3630 | E17: =ROUND(D17*(1-$E$3)/Лист2!$A$6,0) -> 3630
A18: 6 | B18: 736.39.00.00 | C18: Комплект декоративной фронтальной панели широкой, без отбойника для IC 45 | D18: 2629 | E18: =ROUND(D18*(1-$E$3)/Лист2!$A$6,0) -> 2629
A19: 7 | B19: 713.35.00.00 | C19: Комплект декоративной фронтальной панели узкой, без отбойника L=1250 | D19: 3229 | E19: =ROUND(D19*(1-$E$3)/Лист2!$A$6,0) -> 3229
A20: 8 | B20: 713.35.00.00-01 | C20: Комплект декоративной фронтальной панели узкой, без отбойника L=1875 | D20: 4608 | E20: =ROUND(D20*(1-$E$3)/Лист2!$A$6,0) -> 4608
A21: 9 | B21: 713.35.00.00-02 | C21: Комплект декоративной фронтальной панели узкой, без отбойника L=2500 | D21: 5492 | E21: =ROUND(D21*(1-$E$3)/Лист2!$A$6,0) -> 5492
A22: 10 | B22: 713.35.00.00-03 | C22: Комплект декоративной фронтальной панели узкой, без отбойника L=3750 | D22: 5676 | E22: =ROUND(D22*(1-$E$3)/Лист2!$A$6,0) -> 5676
A23: 13 | B23: 713.36.00.00 | C23: Комплект декор фронт панели узкой c отбойником нерж L=1250 для Veneto Quadro | D23: 5785 | E23: =ROUND(D23*(1-$E$3)/Лист2!$A$6,0) -> 5785
A24: 14 | B24: 713.36.00.00-01 | C24: Комплект декор фронт панели узкой c отбойником нерж L=1875 для Veneto Quadro | D24: 8256 | E24: =ROUND(D24*(1-$E$3)/Лист2!$A$6,0) -> 8256
A25: 15 | B25: 713.36.00.00-02 | C25: Комплект декор фронт панели узкой c отбойником нерж L=2500 для Veneto Quadro | D25: 9843 | E25: =ROUND(D25*(1-$E$3)/Лист2!$A$6,0) -> 9843
A26: 16 | B26: 713.36.00.00-03 | C26: Комплект декор фронт панели узкой c отбойником нерж L=3750 для Veneto Quadro | D26: 10172 | E26: =ROUND(D26*(1-$E$3)/Лист2!$A$6,0) -> 10172
A27: 19 | B27: 713.47.00.00 | C27: Комплект декоративной фронтальной панели широкой, c отбойником нержав. L=1250 | D27: 7029 | E27: =ROUND(D27*(1-$E$3)/Лист2!$A$6,0) -> 7029
A28: 20 | B28: 713.47.00.00-01 | C28: Комплект декоративной фронтальной панели широкой, c отбойником нержав. L=1875 | D28: 10074 | E28: =ROUND(D28*(1-$E$3)/Лист2!$A$6,0) -> 10074
A29: 21 | B29: 713.47.00.00-02 | C29: Комплект декоративной фронтальной панели широкой, c отбойником нержав. L=2500 | D29: 12008 | E29: =ROUND(D29*(1-$E$3)/Лист2!$A$6,0) -> 12008
A30: 22 | B30: 713.47.00.00-03 | C30: Комплект декоративной фронтальной панели широкой, c отбойником нержав. L=3750 | D30: 12409 | E30: =ROUND(D30*(1-$E$3)/Лист2!$A$6,0) -> 12409
A31: 25 | B31: 537.38.00.00 | C31: Комплект нижних цветных фронтальных панелей L=1250 | D31: 7029 | E31: =ROUND(D31*(1-$E$3)/Лист2!$A$6,0) -> 7029
A32: 26 | B32: 537.38.00.00-01 | C32: Комплект нижних цветных фронтальных панелей L=1880 | D32: 7857 | E32: =ROUND(D32*(1-$E$3)/Лист2!$A$6,0) -> 7857
A33: 27 | B33: 537.38.00.00-02 | C33: Комплект нижних цветных фронтальных панелей L=2500 | D33: 11599 | E33: =ROUND(D33*(1-$E$3)/Лист2!$A$6,0) -> 11599
A34: 28 | B34: 537.38.00.00-03 | C34: Комплект нижних цветных фронтальных панелей L=3750 | D34: 12328 | E34: =ROUND(D34*(1-$E$3)/Лист2!$A$6,0) -> 12328
A35: 29 | B35: 735.38.00.00 | C35: Комплект нижних цветных фронтальных панелей ОС 90 | D35: 4891 | E35: =ROUND(D35*(1-$E$3)/Лист2!$A$6,0) -> 4891
A36: 30 | B36: 736.38.00.00 | C36: Комплект нижних цветных фронтальных панелей IC 45 | D36: 3759 | E36: =ROUND(D36*(1-$E$3)/Лист2!$A$6,0) -> 3759
A37: Подсветка светодиодная (2 ряда светильников с раздельным включением)
A38: 1 | B38: 713.70.00.00 | C38: Комплект светодиодных светильников 1250 (нейтральный, 2х18 Вт/м) | D38: 4950 | E38: =ROUND(D38*(1-$E$3)/Лист2!$A$6,0) -> 4950
A39: 2 | B39: 713.70.00.00-01 | C39: Комплект светодиодных светильников 1875 (нейтральный, 2х18 Вт/м) | D39: 5819 | E39: =ROUND(D39*(1-$E$3)/Лист2!$A$6,0) -> 5819
A40: 3 | B40: 713.70.00.00-02 | C40: Комплект светодиодных светильников 2500 (нейтральный, 2х18 Вт/м) | D40: 6064 | E40: =ROUND(D40*(1-$E$3)/Лист2!$A$6,0) -> 6064
A41: 4 | B41: 713.70.00.00-03 | C41: Комплект светодиодных светильников 3750 (нейтральный, 2х18 Вт/м) | D41: 7859 | E41: =ROUND(D41*(1-$E$3)/Лист2!$A$6,0) -> 7859
A42: 5 | B42: 735.70.00.00 | C42: Комплект светодиодных светильников для ОС 90 (нейтральный, 2х18 Вт/м) | D42: 6063 | E42: =ROUND(D42*(1-$E$3)/Лист2!$A$6,0) -> 6063
A43: 6 | B43: 736.70.00.00 | C43: Комплект светодиодных светильников для IC 45 (нейтральный, 2х18 Вт/м) | D43: 6063 | E43: =ROUND(D43*(1-$E$3)/Лист2!$A$6,0) -> 6063
A44: 7 | B44: 713.71.00.00 | C44: Комплект светодиодных светильников 1250 (теплый, 2х18 Вт/м) | D44: 5198 | E44: =ROUND(D44*(1-$E$3)/Лист2!$A$6,0) -> 5198
A45: 8 | B45: 713.71.00.00-01 | C45: Комплект светодиодных светильников 1875 (теплый, 2х18 Вт/м) | D45: 6110 | E45: =ROUND(D45*(1-$E$3)/Лист2!$A$6,0) -> 6110
A46: 9 | B46: 713.71.00.00-02 | C46: Комплект светодиодных светильников 2500 (теплый, 2х18 Вт/м) | D46: 6367 | E46: =ROUND(D46*(1-$E$3)/Лист2!$A$6,0) -> 6367
A47: 10 | B47: 713.71.00.00-03 | C47: Комплект светодиодных светильников 3750 (теплый, 2х18 Вт/м) | D47: 8251 | E47: =ROUND(D47*(1-$E$3)/Лист2!$A$6,0) -> 8251
A48: 13 | B48: 713.72.00.00 | C48: Комплект светодиодных светильников 1250 (розовый, 2х18 Вт/м) | D48: 5297 | E48: =ROUND(D48*(1-$E$3)/Лист2!$A$6,0) -> 5297
A49: 14 | B49: 713.72.00.00-01 | C49: Комплект светодиодных светильников 1875 (розовый, 2х18 Вт/м) | D49: 6227 | E49: =ROUND(D49*(1-$E$3)/Лист2!$A$6,0) -> 6227
A50: 15 | B50: 713.72.00.00-02 | C50: Комплект светодиодных светильников 2500 (розовый, 2х18 Вт/м) | D50: 6488 | E50: =ROUND(D50*(1-$E$3)/Лист2!$A$6,0) -> 6488
A51: 16 | B51: 713.72.00.00-03 | C51: Комплект светодиодных светильников 3750 (розовый 2х18 Вт/м) | D51: 8408 | E51: =ROUND(D51*(1-$E$3)/Лист2!$A$6,0) -> 8408
A52: 17 | B52: 735.72.00.00 | C52: Комплект светодиодных светильников для ОС 90 (розовый, 2х18 Вт/м) | D52: 6488 | E52: =ROUND(D52*(1-$E$3)/Лист2!$A$6,0) -> 6488
A53: 18 | B53: 736.72.00.00 | C53: Комплект светодиодных светильников для IC 45 (розовый, 2х18 Вт/м) | D53: 6488 | E53: =ROUND(D53*(1-$E$3)/Лист2!$A$6,0) -> 6488
A54: Дополнительные опции для Veneto Quadro
A55: 1 | B55: 713.52.00.00 | C55: Комплект боковины левой для Veneto Quadro, пластик черный, матовый для шир.фронт.панель | D55: 8499 | E55: =ROUND(D55*(1-$E$3)/Лист2!$A$6,0) -> 8499
A56: 2 | B56: 713.52.00.00mir | C56: Комплект боковины правой для Veneto Quadro, пластик черный, матовый для шир.фронт.панель | D56: 8499 | E56: =ROUND(D56*(1-$E$3)/Лист2!$A$6,0) -> 8499
A57: 3 | B57: 765.52.00.00 | C57: Комплект боковины левой для Veneto Quadro Self, пластик черный, матовый, для шир.фронт.панель | D57: 8094 | E57: =ROUND(D57*(1-$E$3)/Лист2!$A$6,0) -> 8094
A58: 4 | B58: 765.52.00.00mir | C58: Комплект боковины правой для Veneto Quadro Self, пластик черный, матовый для шир.фронт.панель | D58: 8094 | E58: =ROUND(D58*(1-$E$3)/Лист2!$A$6,0) -> 8094
A59: 5 | B59: 713.49.00.00 | C59: Комплект боковины металлической левой для широкой фронт. панели Veneto Quadro | D59: 12349 | E59: =ROUND(D59*(1-$E$3)/Лист2!$A$6,0) -> 12349
A60: 6 | B60: 713.49.00.00mir | C60: Комплект боковины металлической правой для широкой фронт. панели Veneto Quadro | D60: 12349 | E60: =ROUND(D60*(1-$E$3)/Лист2!$A$6,0) -> 12349
A61: 7 | B61: 713.48.00.00 | C61: Комплект боковины металлической левой для узк. фронт. панели для Veneto Quadro | D61: 11362 | E61: =ROUND(D61*(1-$E$3)/Лист2!$A$6,0) -> 11362
A62: 8 | B62: 713.48.00.00mir | C62: Комплект боковины металлической правой для узк. фронт. панели для Veneto Quadro | D62: 11362 | E62: =ROUND(D62*(1-$E$3)/Лист2!$A$6,0) -> 11362
A63: 9 | B63: 765.49.00.00 | C63: Комплект боковины металлической левой для широкой фронт.панели Veneto Quadro Self | D63: 11944 | E63: =ROUND(D63*(1-$E$3)/Лист2!$A$6,0) -> 11944
A64: 10 | B64: 765.49.00.00mir | C64: Комплект боковины металлической правой для широкой фронт. панели Veneto Quadro Self | D64: 11944 | E64: =ROUND(D64*(1-$E$3)/Лист2!$A$6,0) -> 11944
A65: 11 | B65: 765.48.00.00 | C65: Комплект боковины металлической для узк. фронт. панели для Veneto Quadro Self | D65: 10989 | E65: =ROUND(D65*(1-$E$3)/Лист2!$A$6,0) -> 10989
A66: 12 | B66: 765.48.00.00mir | C66: Комплект боковины металлической для узк. фронт. панели для Veneto Quadro Self | D66: 10989 | E66: =ROUND(D66*(1-$E$3)/Лист2!$A$6,0) -> 10989
A67: 13 | B67: 537.37.00.00 | C67: Комплект нижних боковых панелей (левая, правая) | D67: 2324 | E67: =ROUND(D67*(1-$E$3)/Лист2!$A$6,0) -> 2324
A68: 14 | B68: 713.68.00.00 | C68: Комплект торцевой заглушки для стыковки стандартной витрины с витриной SELF | D68: 1307 | E68: =ROUND(D68*(1-$E$3)/Лист2!$A$6,0) -> 1307
A69: 15 | B69: 713.56.00.00 | C69: Комплект соединительный в линию для Veneto Quadro | D69: 1345 | E69: =ROUND(D69*(1-$E$3)/Лист2!$A$6,0) -> 1345
A70: 16 | B70: 765.56.00.00 | C70: Комплект соединительный в линию для Veneto Quadro Self | D70: 862 | E70: =ROUND(D70*(1-$E$3)/Лист2!$A$6,0) -> 862
A71: 17 | B71: 713.44.00.00 | C71: Разделитель герметичный и комплект соед. для широкой фронт.панели, оргстекло (8 мм) | D71: 11216 | E71: =ROUND(D71*(1-$E$3)/Лист2!$A$6,0) -> 11216
A72: 18 | B72: 713.44.00.00-01 | C72: Разделитель герметичный и комплект соед. для узкой фронт.панели, оргстекло (8 мм) | D72: 11103 | E72: =ROUND(D72*(1-$E$3)/Лист2!$A$6,0) -> 11103
A73: 19 | B73: 713.45.00.00 | C73: Теплоизоляционный герметичный разделитель (двухкамерный стеклопакет) и компл.соед. для широкой фронтальной панели | D73: 17144 | E73: =ROUND(D73*(1-$E$3)/Лист2!$A$6,0) -> 17144
A74: 21 | B74: 713.41.00.00 | C74: Делитель внутреннего объема передвижной низкий (оргстекло) для Self | D74: 2071 | E74: =ROUND(D74*(1-$E$3)/Лист2!$A$6,0) -> 2071
A75: 22 | B75: 713.42.00.00 | C75: Делитель внутреннего объема передвижной высокий (оргстекло) | D75: 6910 | E75: =ROUND(D75*(1-$E$3)/Лист2!$A$6,0) -> 6910
A76: 24 | B76: 537.54.00.00 | C76: Комплект для электрооттайки L=1250 | D76: 1653 | E76: =ROUND(D76*(1-$E$3)/Лист2!$A$6,0) -> 1653
A77: 25 | B77: 537.54.00.00-01 | C77: Комплект для электрооттайки L=1875 | D77: 2619 | E77: =ROUND(D77*(1-$E$3)/Лист2!$A$6,0) -> 2619
A78: 26 | B78: 537.54.00.00-02 | C78: Комплект для электрооттайки L=2500 | D78: 3529 | E78: =ROUND(D78*(1-$E$3)/Лист2!$A$6,0) -> 3529
A79: 27 | B79: 537.54.00.00-03 | C79: Комплект для электрооттайки L=3750 | D79: 9465 | E79: =ROUND(D79*(1-$E$3)/Лист2!$A$6,0) -> 9465
A80: 28 | B80: 1106.120.00.00S | C80: Монтажный набор (до 4 кВт) 1106.120.00.00S L=1250/1875/2500 | D80: 10225 | E80: =ROUND(D80*(1-$E$3)/Лист2!$A$6,0) -> 10225
A81: 30 | B81: 713.60.00.00 | C81: Доска навесная для весов 500х400 мм. (нержавейка) | D81: 6550 | E81: =ROUND(D81*(1-$E$3)/Лист2!$A$6,0) -> 6550
A82: 31 | B82: 713.62.00.00 | C82: Доска навесная для нарезки 600х400 мм (полипропилен) | D82: 8598 | E82: =ROUND(D82*(1-$E$3)/Лист2!$A$6,0) -> 8598
A83: 32 | B83: 713.63.00.00 | C83: Комплект корзины навесной для упаковочного материала | D83: 8598 | E83: =ROUND(D83*(1-$E$3)/Лист2!$A$6,0) -> 8598
A84: 33 | B84: 713.61.00.00 | C84: Комплект корзины навесной для ножей | D84: 8934 | E84: =ROUND(D84*(1-$E$3)/Лист2!$A$6,0) -> 8934
A85: 35 | B85: 537.66.00.00 | C85: Подиум трехступенчатый (нержавейка) L=1250 | D85: 6162 | E85: =ROUND(D85*(1-$E$3)/Лист2!$A$6,0) -> 6162
A86: 36 | B86: 537.66.00.00-01 | C86: Подиум трехступенчатый (нержавейка) L=1880 | D86: 11793 | E86: =ROUND(D86*(1-$E$3)/Лист2!$A$6,0) -> 11793
A87: 37 | B87: 537.66.00.00-02 | C87: Подиум трехступенчатый (нержавейка) L=2500 | D87: 12323 | E87: =ROUND(D87*(1-$E$3)/Лист2!$A$6,0) -> 12323
A88: 38 | B88: 537.66.00.00-03 | C88: Подиум трехступенчатый (нержавейка) L=3750 | D88: 18485 | E88: =ROUND(D88*(1-$E$3)/Лист2!$A$6,0) -> 18485
A89: 39 | B89: 735.66.00.00 | C89: Подиум трехступенчатый (нержавейка) ОС 90 | D89: 9072 | E89: =ROUND(D89*(1-$E$3)/Лист2!$A$6,0) -> 9072
A90: 40 | B90: 538.66.00.00 | C90: Подиум трехступенчатый (нержавейка) IC 45 | D90: 6412 | E90: =ROUND(D90*(1-$E$3)/Лист2!$A$6,0) -> 6412
A91: 42 | B91: 713.40.00.00 | C91: Комплект шторок раздвижных для Veneto Quadro 1250 | D91: 3839 | E91: =ROUND(D91*(1-$E$3)/Лист2!$A$6,0) -> 3839
A92: 43 | B92: 713.40.00.00-01 | C92: Комплект шторок раздвижных для Veneto Quadro 1875 | D92: 5626 | E92: =ROUND(D92*(1-$E$3)/Лист2!$A$6,0) -> 5626
A93: 44 | B93: 713.40.00.00-02 | C93: Комплект шторок раздвижных для Veneto Quadro 2500 | D93: 7678 | E93: =ROUND(D93*(1-$E$3)/Лист2!$A$6,0) -> 7678
A94: 45 | B94: 713.40.00.00-03 | C94: Комплект шторок раздвижных для Veneto Quadro 3750 | D94: 11251 | E94: =ROUND(D94*(1-$E$3)/Лист2!$A$6,0) -> 11251
A95: 46 | B95: 735.40.00.00 | C95: Комплект шторок раздвижных для Veneto Quadro ОС 90 | D95: 5739 | E95: =ROUND(D95*(1-$E$3)/Лист2!$A$6,0) -> 5739
A96: 47 | B96: 736.40.00.00 | C96: Комплект шторок раздвижных для Veneto Quadro IC 45 | D96: 6887 | E96: =ROUND(D96*(1-$E$3)/Лист2!$A$6,0) -> 6887
A97: 2. Veneto Quadro BM
A98: Обязательные опции для Veneto Quadro BM
B99: 713.39.00.00 | C99: Комплект декоративной фронтальной панели (без отбойника) L=1250 | D99: 3471 | E99: =ROUND(D99*(1-$E$3)/Лист2!$A$6,0) -> 3471
B100: 713.36.00.00 | C100: Комплект декор фронт панели узкой c отбойником нерж L=1250 для Veneto Quadro | D100: 5785 | E100: =ROUND(D100*(1-$E$3)/Лист2!$A$6,0) -> 5785
B101: 713.47.00.00 | C101: Комплект декоративной фронтальной панели c отбойником нержав. L=1250 | D101: 7029 | E101: =ROUND(D101*(1-$E$3)/Лист2!$A$6,0) -> 7029
B102: 537.38.00.00 | C102: Комплект нижних цветных фронтальных панелей L=1250, без боковин | D102: 7029 | E102: =ROUND(D102*(1-$E$3)/Лист2!$A$6,0) -> 7029
B103: 713.70.00.00 | C103: Комплект светодиодных светильников 1250 (нейтральный, 2х18 Вт/м) | D103: 4950 | E103: =ROUND(D103*(1-$E$3)/Лист2!$A$6,0) -> 4950
B104: 713.71.00.00 | C104: Комплект светодиодных светильников 1250 (теплый, 2х18 Вт/м) | D104: 5198 | E104: =ROUND(D104*(1-$E$3)/Лист2!$A$6,0) -> 5198
B105: 713.72.00.00 | C105: Комплект светодиодных светильников 1250 (розовый, 2х18 Вт/м) | D105: 5297 | E105: =ROUND(D105*(1-$E$3)/Лист2!$A$6,0) -> 5297
A106: Дополнительные опции для Veneto Quadro BM
B107: 713.52.00.00 | C107: Комплект боковины левой для Veneto Quadro | D107: 8499 | E107: =ROUND(D107*(1-$E$3)/Лист2!$A$6,0) -> 8499
B108: 713.52.00.00mir | C108: Комплект боковины правой для Veneto Quadro | D108: 8499 | E108: =ROUND(D108*(1-$E$3)/Лист2!$A$6,0) -> 8499
B109: 713.49.00.00 | C109: Комплект боковины металлической левой для Veneto Quadro | D109: 12349 | E109: =ROUND(D109*(1-$E$3)/Лист2!$A$6,0) -> 12349
B110: 713.49.00.00mir | C110: Комплект боковины металлической правой для Veneto Quadro | D110: 12349 | E110: =ROUND(D110*(1-$E$3)/Лист2!$A$6,0) -> 12349
B111: 713.48.00.00 | C111: Комплект боковины металлической левой для узк. фронт. панели для Veneto Quadro | D111: 11362 | E111: =ROUND(D111*(1-$E$3)/Лист2!$A$6,0) -> 11362
B112: 713.48.00.00mir | C112: Комплект боковины металлической правой для узк. фронт. панели для Veneto Quadro | D112: 11362 | E112: =ROUND(D112*(1-$E$3)/Лист2!$A$6,0) -> 11362
B113: 537.37.00.00 | C113: Комплект нижних боковых панелей (левая, правая) | D113: 2324 | E113: =ROUND(D113*(1-$E$3)/Лист2!$A$6,0) -> 2324
B114: 713.56.00.00 | C114: Комплект соединительный в линию | D114: 1345 | E114: =ROUND(D114*(1-$E$3)/Лист2!$A$6,0) -> 1345
B115: 713.45.00.00 | C115: Комплект теплоизоляционного герметичного разделителя (двухкамерный стеклопакет) для широкой фронтальной панели | D115: 17144 | E115: =ROUND(D115*(1-$E$3)/Лист2!$A$6,0) -> 17144
B116: 713.60.00.00 | C116: Доска навесная для весов 500х400 мм. (нержавейка) | D116: 6550 | E116: =ROUND(D116*(1-$E$3)/Лист2!$A$6,0) -> 6550
B117: 713.62.00.00 | C117: Доска навесная для нарезки 600х400 мм (полипропилен) | D117: 8598 | E117: =ROUND(D117*(1-$E$3)/Лист2!$A$6,0) -> 8598
B118: 713.63.00.00 | C118: Комплект корзины навесной для упаковочного материала | D118: 6247 | E118: =ROUND(D118*(1-$E$3)/Лист2!$A$6,0) -> 6247
B119: 713.61.00.00 | C119: Комплект корзины навесной для ножей | D119: 8934 | E119: =ROUND(D119*(1-$E$3)/Лист2!$A$6,0) -> 8934
A120: Опции TOSCANA | E120: Назад к списку
A121: 2. Toscana Q
A122: Обязательные опции для Toscana Q
B123: 815.39.00.00 | C123: Комплект декоративной фронтальной панели широкой исп.1250 | D123: 3749 | E123: =ROUND(D123*(1-$E$3)/Лист2!$A$6,0) -> 3749
B124: 815.39.00.00-01 | C124: Комплект декоративной фронтальной панели широкой исп.1875 | D124: 5351 | E124: =ROUND(D124*(1-$E$3)/Лист2!$A$6,0) -> 5351
B125: 815.39.00.00-02 | C125: Комплект декоративной фронтальной панели широкой исп. 2500 | D125: 6379 | E125: =ROUND(D125*(1-$E$3)/Лист2!$A$6,0) -> 6379
B126: 815.39.00.00-03 | C126: Комплект декоративной фронтальной панели широкой исп. 3750 | D126: 6591 | E126: =ROUND(D126*(1-$E$3)/Лист2!$A$6,0) -> 6591
B127: 888.39.00.00 | C127: Комплект декоративной фронтальной панели широкой исп. ОС 90 | D127: 6393 | E127: =ROUND(D127*(1-$E$3)/Лист2!$A$6,0) -> 6393
B128: 889.39.00.00 | C128: Комплект декоративной фронтальной панели широкой исп. IC 90 | D128: 3937 | E128: =ROUND(D128*(1-$E$3)/Лист2!$A$6,0) -> 3937
B129: 815.47.00.00 | C129: Комплект декор фронт панели широкой c отбойником нерж исп. 1250 | D129: 6326 | E129: =ROUND(D129*(1-$E$3)/Лист2!$A$6,0) -> 6326
B130: 815.47.00.00-01 | C130: Комплект декор фронт панели широкой c отбойником нерж исп. 1875 | D130: 9067 | E130: =ROUND(D130*(1-$E$3)/Лист2!$A$6,0) -> 9067
B131: 815.47.00.00-02 | C131: Комплект декор фронт панели широкой c отбойником нерж исп. 2500 | D131: 10807 | E131: =ROUND(D131*(1-$E$3)/Лист2!$A$6,0) -> 10807
B132: 815.47.00.00-03 | C132: Комплект декор фронт панели широкой c отбойником нерж исп. 3750 | D132: 11168 | E132: =ROUND(D132*(1-$E$3)/Лист2!$A$6,0) -> 11168
B133: 888.47.00.00 | C133: Комплект декор фронт панели широкой c отбойником нерж исп. ОС90 | D133: 9590 | E133: =ROUND(D133*(1-$E$3)/Лист2!$A$6,0) -> 9590
B134: 889.47.00.00 | C134: Комплект декор фронт панели широкой c отбойником нерж исп. IC90 | D134: 5905 | E134: =ROUND(D134*(1-$E$3)/Лист2!$A$6,0) -> 5905
B135: 815.35.00.00 | C135: Комплект декоративной фронтальной панели узкой исп.1250 | D135: 3471 | E135: =ROUND(D135*(1-$E$3)/Лист2!$A$6,0) -> 3471
B136: 815.35.00.00-01 | C136: Комплект декоративной фронтальной панели узкой исп.1875 | D136: 4954 | E136: =ROUND(D136*(1-$E$3)/Лист2!$A$6,0) -> 4954
B137: 815.35.00.00-02 | C137: Комплект декоративной фронтальной панели узкой исп. 2500 | D137: 5906 | E137: =ROUND(D137*(1-$E$3)/Лист2!$A$6,0) -> 5906
B138: 815.35.00.00-03 | C138: Комплект декоративной фронтальной панели узкой исп. 3750 | D138: 6103 | E138: =ROUND(D138*(1-$E$3)/Лист2!$A$6,0) -> 6103
B139: 888.35.00.00 | C139: Комплект декоративной фронтальной панели узкой исп. ОС 90 | D139: 5920 | E139: =ROUND(D139*(1-$E$3)/Лист2!$A$6,0) -> 5920
B140: 889.35.00.00 | C140: Комплект декоративной фронтальной панели узкой исп. IC 90 | D140: 3645 | E140: =ROUND(D140*(1-$E$3)/Лист2!$A$6,0) -> 3645
B141: 815.36.00.00 | C141: Комплект декор фронт панели узкой c отбойником нерж исп. 1250 | D141: 5207 | E141: =ROUND(D141*(1-$E$3)/Лист2!$A$6,0) -> 5207
B142: 815.36.00.00-01 | C142: Комплект декор фронт панели узкой c отбойником нерж исп. 1875 | D142: 7432 | E142: =ROUND(D142*(1-$E$3)/Лист2!$A$6,0) -> 7432
B143: 815.36.00.00-02 | C143: Комплект декор фронт панели узкой c отбойником нерж исп. 2500 | D143: 8858 | E143: =ROUND(D143*(1-$E$3)/Лист2!$A$6,0) -> 8858
B144: 815.36.00.00-03 | C144: Комплект декор фронт панели узкой c отбойником нерж исп. 3750 | D144: 9154 | E144: =ROUND(D144*(1-$E$3)/Лист2!$A$6,0) -> 9154
B145: 888.36.00.00 | C145: Комплект декор фронт панели узкой c отбойником нерж исп. ОС90 | D145: 8880 | E145: =ROUND(D145*(1-$E$3)/Лист2!$A$6,0) -> 8880
B146: 889.36.00.00 | C146: Комплект декор фронт панели узкой c отбойником нерж исп. IC90 | D146: 5468 | E146: =ROUND(D146*(1-$E$3)/Лист2!$A$6,0) -> 5468
B147: 815.34.00.00 | C147: Комплект декоративной фронтальной панели широкой исп.1250 (текстура дерева, ЛДСП) | D147: 6749 | E147: =ROUND(D147*(1-$E$3)/Лист2!$A$6,0) -> 6749
B148: 815.34.00.00-01 | C148: Комплект декоративной фронтальной панели широкой исп.1875 (текстура дерева, ЛДСП) | D148: 9631 | E148: =ROUND(D148*(1-$E$3)/Лист2!$A$6,0) -> 9631
B149: 815.34.00.00-02 | C149: Комплект декоративной фронтальной панели широкой исп. 2500 (текстура дерева, ЛДСП) | D149: 11480 | E149: =ROUND(D149*(1-$E$3)/Лист2!$A$6,0) -> 11480
B150: 815.34.00.00-03 | C150: Комплект декоративной фронтальной панели широкой исп. 3750 (текстура дерева, ЛДСП) | D150: 11863 | E150: =ROUND(D150*(1-$E$3)/Лист2!$A$6,0) -> 11863
B151: 888.34.00.00 | C151: Комплект декоративной фронтальной панели широкой исп. OC90 (текстура дерева, ЛДСП) | D151: 11508 | E151: =ROUND(D151*(1-$E$3)/Лист2!$A$6,0) -> 11508
B152: 889.34.00.00 | C152: Комплект декоративной фронтальной панели широкой исп. IC90 (текстура дерева, ЛДСП) | D152: 7086 | E152: =ROUND(D152*(1-$E$3)/Лист2!$A$6,0) -> 7086
B153: 815.33.00.00 | C153: Комплект декоративной фронтальной панели узкой исп.1250 (текстура дерева, ЛДСП) | D153: 6248 | E153: =ROUND(D153*(1-$E$3)/Лист2!$A$6,0) -> 6248
B154: 815.33.00.00-01 | C154: Комплект декоративной фронтальной панели узкой исп.1875 (текстура дерева, ЛДСП) | D154: 8917 | E154: =ROUND(D154*(1-$E$3)/Лист2!$A$6,0) -> 8917
B155: 815.33.00.00-02 | C155: Комплект декоративной фронтальной панели узкой исп. 2500 (текстура дерева, ЛДСП) | D155: 10630 | E155: =ROUND(D155*(1-$E$3)/Лист2!$A$6,0) -> 10630
B156: 815.33.00.00-03 | C156: Комплект декоративной фронтальной панели узкой исп. 3750 (текстура дерева, ЛДСП) | D156: 10985 | E156: =ROUND(D156*(1-$E$3)/Лист2!$A$6,0) -> 10985
B157: 888.33.00.00 | C157: Комплект декоративной фронтальной панели узкой исп. OC90 (текстура дерева, ЛДСП) | D157: 10656 | E157: =ROUND(D157*(1-$E$3)/Лист2!$A$6,0) -> 10656
B158: 889.33.00.00 | C158: Комплект декоративной фронтальной панели узкой исп. IC90 (текстура дерева, ЛДСП) | D158: 6561 | E158: =ROUND(D158*(1-$E$3)/Лист2!$A$6,0) -> 6561
B159: 815.38.00.01 | C159: Нижняя фронтальная панель исп. 1250 | D159: 3165 | E159: =ROUND(D159*(1-$E$3)/Лист2!$A$6,0) -> 3165
B160: 815.38.00.01-01 | C160: Нижняя фронтальная панель исп. 1875 | D160: 3956 | E160: =ROUND(D160*(1-$E$3)/Лист2!$A$6,0) -> 3956
B161: 815.38.00.01-02 | C161: Нижняя фронтальная панель исп. 2500 | D161: 5839 | E161: =ROUND(D161*(1-$E$3)/Лист2!$A$6,0) -> 5839
B162: 815.38.00.01-03 | C162: Нижняя фронтальная панель исп. 3750 | D162: 7519 | E162: =ROUND(D162*(1-$E$3)/Лист2!$A$6,0) -> 7519
B163: 888.38.00.01 | C163: Нижняя фронтальная панель исп. OC90 | D163: 7294 | E163: =ROUND(D163*(1-$E$3)/Лист2!$A$6,0) -> 7294
B164: 889.38.00.01 | C164: Нижняя фронтальная панель исп. IC90 | D164: 3322 | E164: =ROUND(D164*(1-$E$3)/Лист2!$A$6,0) -> 3322
A165: Подсветка светодиодная (2 ряда светильников с раздельным включением)
B166: 815.80.00.00 | C166: Комплект светодиодных светильников 1250 (нейтральный, 2х18 Вт/м) | D166: 4208 | E166: =ROUND(D166*(1-$E$3)/Лист2!$A$6,0) -> 4208
B167: 815.80.00.00-01 | C167: Комплект светодиодных светильников 1875 (нейтральный, 2х18 Вт/м) | D167: 4946 | E167: =ROUND(D167*(1-$E$3)/Лист2!$A$6,0) -> 4946
B168: 815.80.00.00-02 | C168: Комплект светодиодных светильников 2500 (нейтральный, 2х18 Вт/м) | D168: 5156 | E168: =ROUND(D168*(1-$E$3)/Лист2!$A$6,0) -> 5156
B169: 815.80.00.00-03 | C169: Комплект светодиодных светильников 3750 (нейтральный, 2х18 Вт/м) | D169: 6680 | E169: =ROUND(D169*(1-$E$3)/Лист2!$A$6,0) -> 6680
B170: 888.82.00.00 | C170: Комплект светодиодных светильников OC90 (нейтральный, 2х18 Вт/м) | D170: 6186 | E170: =ROUND(D170*(1-$E$3)/Лист2!$A$6,0) -> 6186
B171: 889.82.00.00 | C171: Комплект светодиодных светильников IC90 (нейтральный, 2х18 Вт/м) | D171: 3787 | E171: =ROUND(D171*(1-$E$3)/Лист2!$A$6,0) -> 3787
B172: 815.81.00.00 | C172: Комплект светодиодных светильников 1250 (теплый, 2х18 Вт/м) | D172: 4418 | E172: =ROUND(D172*(1-$E$3)/Лист2!$A$6,0) -> 4418
B173: 815.81.00.00-01 | C173: Комплект светодиодных светильников 1875 (теплый, 2х18 Вт/м) | D173: 5194 | E173: =ROUND(D173*(1-$E$3)/Лист2!$A$6,0) -> 5194
B174: 815.81.00.00-02 | C174: Комплект светодиодных светильников 2500 (теплый, 2х18 Вт/м) | D174: 5413 | E174: =ROUND(D174*(1-$E$3)/Лист2!$A$6,0) -> 5413
B175: 815.81.00.00-03 | C175: Комплект светодиодных светильников 3750 (теплый, 2х18 Вт/м) | D175: 7013 | E175: =ROUND(D175*(1-$E$3)/Лист2!$A$6,0) -> 7013
B176: 888.82.00.00 | C176: Комплект светодиодных светильников OC90 (теплый, 2х18 Вт/м) | D176: 6495 | E176: =ROUND(D176*(1-$E$3)/Лист2!$A$6,0) -> 6495
B177: 889.81.00.00 | C177: Комплект светодиодных светильников IC90 (теплый, 2х18 Вт/м) | D177: 3976 | E177: =ROUND(D177*(1-$E$3)/Лист2!$A$6,0) -> 3976
B178: 815.82.00.00 | C178: Комплект светодиодных светильников 1250 (розовый, 2х18 Вт/м) | D178: 4292 | E178: =ROUND(D178*(1-$E$3)/Лист2!$A$6,0) -> 4292
B179: 815.82.00.00-01 | C179: Комплект светодиодных светильников 1875 (розовый, 2х18 Вт/м) | D179: 5046 | E179: =ROUND(D179*(1-$E$3)/Лист2!$A$6,0) -> 5046
B180: 815.82.00.00-02 | C180: Комплект светодиодных светильников 2500 (розовый, 2х18 Вт/м) | D180: 5258 | E180: =ROUND(D180*(1-$E$3)/Лист2!$A$6,0) -> 5258
B181: 815.82.00.00-03 | C181: Комплект светодиодных светильников 3750 (розовый, 2х18 Вт/м) | D181: 6813 | E181: =ROUND(D181*(1-$E$3)/Лист2!$A$6,0) -> 6813
B182: 888.82.00.00 | C182: Комплект светодиодных светильников OC90 (розовый, 2х18 Вт/м) | D182: 6309 | E182: =ROUND(D182*(1-$E$3)/Лист2!$A$6,0) -> 6309
B183: 889.81.00.00 | C183: Комплект светодиодных светильников IC90 (розовый, 2х18 Вт/м) | D183: 3862 | E183: =ROUND(D183*(1-$E$3)/Лист2!$A$6,0) -> 3862
A184: Дополнительные опции для Toscana Q
B185: 815.50.00.00 | C185: Комплект боковины металлич. левой для широкой фронтальной панели Toscana | D185: 8499 | E185: =ROUND(D185*(1-$E$3)/Лист2!$A$6,0) -> 8499
B186: 815.50.00.00mir | C186: Комплект боковины металлич.правой для широкой фронтальной панели Toscana | D186: 8499 | E186: =ROUND(D186*(1-$E$3)/Лист2!$A$6,0) -> 8499
B187: 815.52.00.00 | C187: Комплект боковины ЛДСП левой для широк фронт панели Toscana | D187: 11899 | E187: =ROUND(D187*(1-$E$3)/Лист2!$A$6,0) -> 11899
B188: 815.52.00.00mir | C188: Комплект боковины ЛДСП правой для широк фронт панели Toscana | D188: 11899 | E188: =ROUND(D188*(1-$E$3)/Лист2!$A$6,0) -> 11899
B189: 815.48.00.00 | C189: Комплект боковины металлич. лев для узкой фронт панели Toscana | D189: 8074 | E189: =ROUND(D189*(1-$E$3)/Лист2!$A$6,0) -> 8074
B190: 815.48.00.00mir | C190: Комплект боковины металлич. прав для узкой фронт панели Toscana | D190: 8074 | E190: =ROUND(D190*(1-$E$3)/Лист2!$A$6,0) -> 8074
B191: 815.53.00.00 | C191: Комплект боковины ЛДСП левой для узкой фронт панели Toscana | D191: 11304 | E191: =ROUND(D191*(1-$E$3)/Лист2!$A$6,0) -> 11304
B192: 815.53.00.00mir | C192: Комплект боковины ЛДСП правой для узкой фронт панели Toscana | D192: 11304 | E192: =ROUND(D192*(1-$E$3)/Лист2!$A$6,0) -> 11304
B193: 816.50.00.00 | C193: Комплект боковины металлич. левой для широкой фронтальной панели Toscana SELF | D193: 8093 | E193: =ROUND(D193*(1-$E$3)/Лист2!$A$6,0) -> 8093
B194: 816.50.00.00mir | C194: Комплект боковины металлич. правой для широкой фронтальной панели Toscana SELF | D194: 8093 | E194: =ROUND(D194*(1-$E$3)/Лист2!$A$6,0) -> 8093
B195: 816.52.00.00 | C195: Комп боковины ЛДСП левой для широк фронт панели Toscana SELF | D195: 11330 | E195: =ROUND(D195*(1-$E$3)/Лист2!$A$6,0) -> 11330
B196: 816.52.00.00mir | C196: Комп боковины ЛДСП правой для широк фронт панели Toscana SELF | D196: 11330 | E196: =ROUND(D196*(1-$E$3)/Лист2!$A$6,0) -> 11330
B197: 816.48.00.00 | C197: Комплект боковины металлич. левой для узкой фронтальной панели Toscana SELF | D197: 7688 | E197: =ROUND(D197*(1-$E$3)/Лист2!$A$6,0) -> 7688
B198: 816.48.00.00mir | C198: Комплект боковины металлич. правой для узкой фронтальной панели Toscana SELF | D198: 7688 | E198: =ROUND(D198*(1-$E$3)/Лист2!$A$6,0) -> 7688
B199: 816.53.00.00 | C199: Комп боковины ЛДСП левой для узк фронт панели Toscana Self | D199: 10763 | E199: =ROUND(D199*(1-$E$3)/Лист2!$A$6,0) -> 10763
B200: 816.53.00.00mir | C200: Комп боковины ЛДСП правой для узк фронт панели Toscana Self | D200: 10763 | E200: =ROUND(D200*(1-$E$3)/Лист2!$A$6,0) -> 10763
B201: 815.37.00.00 | C201: Комплект нижних боковых панелей (левая, правая) | D201: 2324 | E201: =ROUND(D201*(1-$E$3)/Лист2!$A$6,0) -> 2324
B202: 815.56.00.00 | C202: Компллект соединительный для стыковки в линию витрин Toscana | D202: 1345 | E202: =ROUND(D202*(1-$E$3)/Лист2!$A$6,0) -> 1345
B203: 816.56.00.00 | C203: Компллект соединительный для стыковки в линию витрин Toscana SELF | D203: 862 | E203: =ROUND(D203*(1-$E$3)/Лист2!$A$6,0) -> 862
... 55 more rows

Sheet Горки Cryspi
H1: ЗАВОД «ОПК» Тел.: +7 (496) 704-52-11 e-mail:manager@ozpk.ru сайт: ozpk.ru | L1: На главную
B3: Ваша скидка: | E3: =Содержание!D2 -> 0
B4: НДС: | E4: =IF(Лист2!A1=TRUE,"С НДС","БЕЗ НДС") -> С НДС
A6: Охлаждаемые стеллажи Cryspi со встроенным агрегатом
A9: № | B9: Изображение | C9: Артикул | D9: Наименование | F9: Температурный режим,°C | G9: Площадь экспозиции, кв.м. | H9: Габариты, (LxWxH) мм | I9: Габариты в упаковке(в обрешетке), (LxWxH) мм | J9: Базовая цена, руб. (с НДС) | K9: =[5]Лист2!$A$5 -> Ваша цена, руб.
A11: 1 | B11: Solo L7 | J11: Опции SOLO L7 | M11: СЕЧЕНИЯ
M12: Solo L7 | Q12: Solo L7 Фруктовая | U12: Solo L7 DG
A13: Базовая комплектация стеллажа: - внутренний объем - оцинкованный металл - внутренняя поверхность ванны из оцинкованного пластификата (двойная защита от коррозии); - электронный контроллер для управления работой оборудования; - без освещения - цифрофой термометр; - компрессор R-290; -стандартная упаковка на поддоне, опцонально в деревянной обрешетке - блок остекления со стеклопакетом для стеллажей DG - ночная шторкa для открытого стеллажа Характеристика EL.S.0.0.P.PS.0.0.0.0.внеш7016гл_внутр7016гл | D13: Комплектация "Фрукты-овощи" + к базовой комплектации: - Общее светодиодное освещение, стандартный - 4000К, опционально 2700К, 6500К; - 3 ряда полок с ценникодержателем; - выпариватель; - боковины с зеркалом; - комплект наклонного зеркала - наклонная решетка для базовой полки Характеристика EL.S.2.3.P.PS.L.V.Z.Z.внеш7016гл_внутр7016гл | F13: Комплектация "Гастрономия" + к базовой комплектации: - Общее светодиодное освещение, стандартный - 4000К, опционально 2700К, 6500К, - 5 рядов полок глубиной 400 с ценникодержателем; - выпариватель; - боковины со стеклопакетом; Характеристика EL.S.2.5.P.PS.0.V.S.S.внеш7016гл_внутр7016гл
C14: Solo L7 Открытое исполнение (ночные шторки)
C15: SO L7 125 R290 | D15: Стеллаж холодильный ВПВ С (SOLO L7 1250) R290 | E15: фруктовая | F15: +1…+7 С | G15: 2.8 | H15: 1330х700х2090 | I15: 1500х820х2230/ 1550х870х2230 | J15: 195606 | K15: =ROUND(J15*(1-$E$3)/Лист2!$A$6,0) -> 195606
E16: гастрономическая | H16: 1330х700х2090 | J16: 194358 | K16: =ROUND(J16*(1-$E$3)/Лист2!$A$6,0) -> 194358
E17: базовая (пустая) | H17: 1250х700х2090 | J17: 150862 | K17: =ROUND(J17*(1-$E$3)/Лист2!$A$6,0) -> 150862
C18: SO L7 150 R290 | D18: Стеллаж холодильный ВПВ С (SOLO L7 1500) R290 | E18: фруктовая | F18: +1…+7 С | G18: 3.36 | H18: 1580х700х2090 | I18: 1750х820х2230/ 1800х870х2230 | J18: 228794 | K18: =ROUND(J18*(1-$E$3)/Лист2!$A$6,0) -> 228794
E19: гастрономическая | H19: 1580х700х2090 | J19: 225876 | K19: =ROUND(J19*(1-$E$3)/Лист2!$A$6,0) -> 225876
E20: базовая (пустая) | H20: 1500х700х2090 | J20: 177718 | K20: =ROUND(J20*(1-$E$3)/Лист2!$A$6,0) -> 177718
C21: SO L7 188 R290 | D21: Стеллаж холодильный ВПВ С (SOLO L7 1875) R290 | E21: фруктовая | F21: +1…+7 С | G21: 4.2 | H21: 1955х700х2090 | I21: 2130х820х2230/ 2180х870х2230 | J21: 243973 | K21: =ROUND(J21*(1-$E$3)/Лист2!$A$6,0) -> 243973
E22: гастрономическая | H22: 1955х700х2090 | J22: 241768 | K22: =ROUND(J22*(1-$E$3)/Лист2!$A$6,0) -> 241768
E23: базовая (пустая) | H23: 1875х700х2090 | J23: 185434 | K23: =ROUND(J23*(1-$E$3)/Лист2!$A$6,0) -> 185434
C24: Solo L7 DG. Фронтальный блок остекления - стеклопакет (DG - Double Glass)
C25: SO L7DG 125 R290 | D25: Стеллаж холодильный ВПВ С (SOLO L7 DG 1250) R290 | E25: фруктовая | F25: -1…+5 С | G25: 2.8 | H25: 1330х700х2090 | I25: 1500х820х2230/ 1550х870х2230 | J25: 216698 | K25: =ROUND(J25*(1-$E$3)/Лист2!$A$6,0) -> 216698
E26: гастрономическая | H26: 1330х700х2090 | J26: 215451 | K26: =ROUND(J26*(1-$E$3)/Лист2!$A$6,0) -> 215451
E27: базовая (пустая) | H27: 1250х700х2090 | J27: 171955 | K27: =ROUND(J27*(1-$E$3)/Лист2!$A$6,0) -> 171955
C28: SO L7DG 150 R290 | D28: Стеллаж холодильный ВПВ С (SOLO L7 DG 1500) R290 | E28: фруктовая | F28: -1…+5 С | G28: 3.36 | H28: 1580х700х2090 | I28: 1750х820х2230/ 1800х870х2230 | J28: 238554 | K28: =ROUND(J28*(1-$E$3)/Лист2!$A$6,0) -> 238554
E29: гастрономическая | H29: 1580х700х2090 | J29: 235636 | K29: =ROUND(J29*(1-$E$3)/Лист2!$A$6,0) -> 235636
E30: базовая (пустая) | H30: 1500х700х2090 | J30: 187478 | K30: =ROUND(J30*(1-$E$3)/Лист2!$A$6,0) -> 187478
C31: SO L7DG 188 R290 | D31: Стеллаж холодильный ВПВ С (SOLO L7 DG 1875) R290 | E31: фруктовая | F31: -1…+5 С | G31: 4.2 | H31: 1955х700х2090 | I31: 2130х820х2230/ 2180х870х2230 | J31: 262508 | K31: =ROUND(J31*(1-$E$3)/Лист2!$A$6,0) -> 262508
E32: гастрономическая | H32: 1955х700х2090 | J32: 260304 | K32: =ROUND(J32*(1-$E$3)/Лист2!$A$6,0) -> 260304
E33: базовая (пустая) | H33: 1875х700х2090 | J33: 203970 | K33: =ROUND(J33*(1-$E$3)/Лист2!$A$6,0) -> 203970
C34: SO L7DG 250 R290 | D34: Стеллаж холодильный ВПВ С (SOLO L7 DG 2500) R290 | E34: фруктовая | F34: -1…+5 С | G34: 5.6 | H34: 2580х700х2090 | I34: 2750х820х2230/ 2800х870х2230 | J34: 0 | K34: =ROUND(J34*(1-$E$3)/Лист2!$A$6,0) -> 0
E35: гастрономическая | H35: 2580х700х2090 | J35: 371821 | K35: =ROUND(J35*(1-$E$3)/Лист2!$A$6,0) -> 371821
E36: базовая (пустая) | H36: 2500х700х2090 | J36: 311269 | K36: =ROUND(J36*(1-$E$3)/Лист2!$A$6,0) -> 311269
C37: (Модуль 1250 мм. - 1 дверной блок (2 двери); 1500 мм. - 1 дверной блок (2 двери); 1875 мм. - 1 дверной блок (3 двери); 2500 мм. - 2 дверных блока по 2 двери)
A38: 2 | B38: Solo L9 | J38: Опции SOLO L9 | M38: СЕЧЕНИЯ
M39: Solo L9 | Q39: Solo L9 Фруктовая | U39: Solo L9 DG
A40: Базовая комплектация стеллажа: - внутренний объем - оцинкованный металл - внутренняя поверхность ванны из оцинкованного пластификата (двойная защита от коррозии); - электронный контроллер для управления работой оборудования; - без освещения - цифрофой термометр; - компрессор R-290; -стандартная упаковка на поддоне, опцонально в деревянной обрешетке - блок остекления со стеклопакетом для стеллажей DG - ночная шторкa для открытого стеллажа Характеристика EL.S.0.0.P.PS.0.0.0.0.внеш7016гл_внутр7016гл | D40: Комплектация "Фрукты-овощи" + к базовой комплектации: - Общее светодиодное освещение, стандартный - 4000К, опционально 2700К, 6500К; - 3 ряда полок с ценникодержателем; - выпариватель; - боковины с зеркалом; - комплект наклонного зеркала - наклонная решетка для базовой полки Характеристика EL.S.2.3.P.PS.L.V.Z.Z.внеш7016гл_внутр7016гл | F40: Комплектация "Гастрономия" + к базовой комплектации: - Общее светодиодное освещение, стандартный - 4000К, опционально 2700К, 6500К, - 5 рядов полок глубиной 500 с ценникодержателем; - выпариватель; - боковины со стеклопакетом; Характеристика EL.S.2.5.P.PS.0.V.S.S.внеш7016гл_внутр7016гл
C41: Solo L9 Открытое исполнение (ночные шторки)
C42: SO L9 125 R290 | D42: Стеллаж холодильный ВПВ С (SOLO L9 1250) R290 | E42: фруктовая | F42: +1…+7 С | G42: 3.76 | H42: 1330х910х2090 | I42: 1500х1030х2230/ 1550х1080х2230 | J42: 209774 | K42: =ROUND(J42*(1-$E$3)/Лист2!$A$6,0) -> 209774
E43: гастрономическая | H43: 1330х910х2090 | J43: 208494 | K43: =ROUND(J43*(1-$E$3)/Лист2!$A$6,0) -> 208494
E44: базовая (пустая) | H44: 1250х910х2090 | J44: 159760 | K44: =ROUND(J44*(1-$E$3)/Лист2!$A$6,0) -> 159760
C45: SO L9 150 R290 | D45: Стеллаж холодильный ВПВ С (SOLO L9 1500) R290 | E45: фруктовая | F45: +1…+7 С | G45: 4.51 | H45: 1580х910х2090 | I45: 1750х1030х2230/ 1800х1080х2230 | J45: 237436 | K45: =ROUND(J45*(1-$E$3)/Лист2!$A$6,0) -> 237436
E46: гастрономическая | H46: 1580х910х2090 | J46: 233911 | K46: =ROUND(J46*(1-$E$3)/Лист2!$A$6,0) -> 233911
E47: базовая (пустая) | H47: 1500х910х2090 | J47: 179961 | K47: =ROUND(J47*(1-$E$3)/Лист2!$A$6,0) -> 179961
C48: SO L9 188 R290 | D48: Стеллаж холодильный ВПВ С (SOLO L9 1875) R290 | E48: фруктовая | F48: +1…+7 С | G48: 5.63 | H48: 1955х910х2090 | I48: 2130х1030х2230/ 2180х1080х2230 | J48: 262483 | K48: =ROUND(J48*(1-$E$3)/Лист2!$A$6,0) -> 262483
E49: гастрономическая | H49: 1955х910х2090 | J49: 259207 | K49: =ROUND(J49*(1-$E$3)/Лист2!$A$6,0) -> 259207
E50: базовая (пустая) | H50: 1875х910х2090 | J50: 197401 | K50: =ROUND(J50*(1-$E$3)/Лист2!$A$6,0) -> 197401
C51: Solo L9 DG. Фронтальный блок остекления - стеклопакет (DG - Double Glass)
C52: SO L9DG 125 R290 | D52: Стеллаж холодильный ВПВ С (SOLO L9 DG 1250) R290 | E52: фруктовая | F52: -1…+5 С | G52: 3.76 | H52: 1330х910х2090 | I52: 1500х1030х2230/ 1550х1080х2230 | J52: 234234 | K52: =ROUND(J52*(1-$E$3)/Лист2!$A$6,0) -> 234234
E53: гастрономическая | H53: 1330х910х2090 | J53: 232954 | K53: =ROUND(J53*(1-$E$3)/Лист2!$A$6,0) -> 232954
E54: базовая (пустая) | H54: 1250х910х2090 | J54: 184220 | K54: =ROUND(J54*(1-$E$3)/Лист2!$A$6,0) -> 184220
C55: SO L9DG 150 R290 | D55: Стеллаж холодильный ВПВ С (SOLO L9 DG 1500) R290 | E55: фруктовая | F55: -1…+5 С | G55: 4.51 | H55: 1580х910х2090 | I55: 1750х1030х2230/ 1800х1080х2230 | J55: 256898 | K55: =ROUND(J55*(1-$E$3)/Лист2!$A$6,0) -> 256898
E56: гастрономическая | H56: 1580х910х2090 | J56: 253373 | K56: =ROUND(J56*(1-$E$3)/Лист2!$A$6,0) -> 253373
E57: базовая (пустая) | H57: 1500х910х2090 | J57: 199423 | K57: =ROUND(J57*(1-$E$3)/Лист2!$A$6,0) -> 199423
C58: SO L9DG 188 R290 | D58: Стеллаж холодильный ВПВ С (SOLO L9 DG 1875) R290 | E58: фруктовая | F58: -1…+5 С | G58: 5.63 | H58: 1955х910х2090 | I58: 2130х1030х2230/ 2180х1080х2230 | J58: 284655 | K58: =ROUND(J58*(1-$E$3)/Лист2!$A$6,0) -> 284655
E59: гастрономическая | H59: 1955х910х2090 | J59: 281380 | K59: =ROUND(J59*(1-$E$3)/Лист2!$A$6,0) -> 281380
E60: базовая (пустая) | H60: 1875х910х2090 | J60: 219574 | K60: =ROUND(J60*(1-$E$3)/Лист2!$A$6,0) -> 219574
C61: SO L9DG 250 R290 | D61: Стеллаж холодильный ВПВ С (SOLO L9 DG 2500) R290 | E61: фруктовая | F61: -1…+5 С | G61: 7.51 | H61: 2580х910х2090 | I61: 2750х1030х2230/ 2800х1080х2230 | J61: 0 | K61: =ROUND(J61*(1-$E$3)/Лист2!$A$6,0) -> 0
E62: гастрономическая | H62: 2580х910х2090 | J62: 412183 | K62: =ROUND(J62*(1-$E$3)/Лист2!$A$6,0) -> 412183
E63: базовая (пустая) | H63: 2500х910х2090 | J63: 343526 | K63: =ROUND(J63*(1-$E$3)/Лист2!$A$6,0) -> 343526
D64: (Модуль 1250 мм. - 1 дверной блок (2 двери); 1500 мм. - 1 дверной блок (2 двери); 1875 мм. - 1 дверной блок (3 двери); 2500 мм. - 2 дверных блока по 2 двери)
A65: 3 | B65: Solo SML | J65: Опции Solo SML | M65: Solo SML
A67: Стандартная комплектация стеллажа: - Внутренняя поверхность ванны из оцинкованного пластификата (двойная защита от коррозии) - электронный контроллер для управления работой оборудования; - цифрофой термометр; - компрессор R-290; - автоматическая система выпаривания конденсата; - ночные штороки; -стандартная упаковка на поддоне, опцонально в деревянной обрешетке Характеристика:C.0.0-0.0, внеш 7016гл_внутр 7016гл
C68: SOLOSML 1000 ВПВС1 R290 | D68: Стеллаж холодильный ВПВ С (SOLO SML 1000 Д) R290 ББ | E68: с боковинами | F68: +1...+10 С | G68: 1.94 | H68: 1050х854х1600 | I68: 1170х970х1690 | J68: 179225 | K68: =ROUND(J68*(1-$E$3)/Лист2!$A$6,0) -> 179225
C69: SOLOSML 1000 ВПВС1 R290ББ | E69: без боковин | H69: 1000х854х1600 | J69: 148741 | K69: =ROUND(J69*(1-$E$3)/Лист2!$A$6,0) -> 148741
C70: SOLOSML 1250 ВПВС1 R290 | D70: Стеллаж холодильный ВПВ С (SOLO SML 1250 Д) R290 ББ | E70: с боковинами | F70: +1...+10 С | G70: 2.43 | H70: 1300х854х1600 | I70: 1420х970х1690 | J70: 185703 | K70: =ROUND(J70*(1-$E$3)/Лист2!$A$6,0) -> 185703
C71: SOLOSML 1250 ВПВС1 R290ББ | E71: без боковин | H71: 1250х854х1600 | J71: 155220 | K71: =ROUND(J71*(1-$E$3)/Лист2!$A$6,0) -> 155220
C72: SOLOSML 1875 ВПВС1 R290 | D72: Стеллаж холодильный ВПВ С (SOLO SML 1875 Д) R290 | E72: с боковинами | F72: +1...+10 С | G72: 3.64 | H72: 1925х854х1600 | I72: 2050х970х1690 | J72: 233451 | K72: =ROUND(J72*(1-$E$3)/Лист2!$A$6,0) -> 233451
C73: SOLOSML 1875 ВПВС1 R290ББ | E73: без боковин | H73: 1875х854х1600 | J73: 202967 | K73: =ROUND(J73*(1-$E$3)/Лист2!$A$6,0) -> 202967
H75: НАВЕРХ

Sheet Опции для горок Cryspi
E1: На главную
B3: Ваша скидка: | D3: =Содержание!D2 -> 0
B4: НДС: | D4: =IF(Лист2!A1=TRUE,"С НДС","БЕЗ НДС") -> С НДС
A7: Опции для витрин Cryspi
A8: Solo L7, Solo L9
A9: Обязательные опции для базовой комплектации Solo. Дополнительные опции для гастрономической комплектации Solo. | H9: вернуться к прайсу стеллажей
A10: Общее освещение
A11: Нейтральный свет (4000-4500К) подходит всем товарным категориям (не искажает натуральный цвет продуктов). Тёплый свет (2700-3000К) подходит категории "Фрукты, овощи, сыры" (категория выглядит ярче, насыщеннее). Мясной свет подходит категории "Мясо, мясная гастрономия" (категория выглядит ярче, насыщеннее)
A12: 1 | B12: Комплект общей подсветки стеллажа Т8 1004.15.02.00-01 L=1250 для Solo L | C12: Спектр освещения определяется характеристикой (третий символ, "1" - 3000К, "2" - 4000К) | F12: 2396 | G12: =ROUND(F12*(1-$D$3)/Лист2!$A$6,0) -> 2396
A13: 2 | B13: Комплект общей подсветки стеллажа Т8 1004.15.02.00-02 L=1500 для Solo L | F13: 3180 | G13: =ROUND(F13*(1-$D$3)/Лист2!$A$6,0) -> 3180
A14: 3 | B14: Комплект общей подсветки стеллажа Т8 1004.15.02.00-03 L=1875 для Solo L | F14: 3566 | G14: =ROUND(F14*(1-$D$3)/Лист2!$A$6,0) -> 3566
A15: 4 | B15: Комплект общей подсветки стеллажа Т8 1004.15.02.00-04 L=2500 для Solo L | F15: 3744 | G15: =ROUND(F15*(1-$D$3)/Лист2!$A$6,0) -> 3744
A16: Дополнительные опции для Solo
A17: Вертикальная подсветка для DG
A18: =A15+1 -> 5 | B18: Комплект вертикального светильника 1004.104.00.00-01 для Solo DG 1250 | C18: 1004.104.00.00-01 | D18: Спектр освещения определяется отдельной опцией в заказе, спектр определяется характеристикой ("1"- 3000К, "2" - 4000К) | F18: 4794 | G18: =ROUND(F18*(1-$D$3)/Лист2!$A$6,0) -> 4794
A19: =A18+1 -> 6 | B19: Комплект вертикального светильника 1004.104.00.00-02 для Solo DG 1500 | C19: 1004.104.00.00-02 | F19: 6711 | G19: =ROUND(F19*(1-$D$3)/Лист2!$A$6,0) -> 6711
A20: =A19+1 -> 7 | B20: Комплект вертикального светильника 1004.104.00.00-03 для Solo DG 1875 | C20: 1004.104.00.00-03 | F20: 7670 | G20: =ROUND(F20*(1-$D$3)/Лист2!$A$6,0) -> 7670
A21: =A20+1 -> 8 | B21: Комплект вертикального светильника 1004.104.00.00-04 для Solo DG 2500 | C21: 1004.104.00.00-04 | F21: 9586 | G21: =ROUND(F21*(1-$D$3)/Лист2!$A$6,0) -> 9586
A22: =A21+1 -> 9 | B22: Система выпаривания конденсата для стеллажа Solo длиной 1250 мм | C22: Применение выпаривателя определяется характеристикой (восьмой символ, "0" -без выпаривателя, "V" - выпариватель применен) | F22: 3961 | G22: =ROUND(F22*(1-$D$3)/Лист2!$A$6,0) -> 3961
A23: =A22+1 -> 10 | B23: Система выпаривания конденсата для стеллажа Solo длиной 1500 мм | F23: 5546 | G23: =ROUND(F23*(1-$D$3)/Лист2!$A$6,0) -> 5546
A24: =A23+1 -> 11 | B24: Система выпаривания конденсата для стеллажа Solo длиной 1875 мм | F24: 6733 | G24: =ROUND(F24*(1-$D$3)/Лист2!$A$6,0) -> 6733
A25: 12 | B25: Система выпаривания конденсата для стеллажа Solo длиной 2500 мм | F25: 8872 | G25: =ROUND(F25*(1-$D$3)/Лист2!$A$6,0) -> 8872
A26: Подсветка полок (универсальная для полок разной глубины - 300, 400, 500 мм) Нейтральный свет (4000-4500К) подходит всем товарным категориям (не искажает натуральный цвет продуктов). Тёплый свет (2700-3000К) подходит категории "Фрукты, овощи, сыры" (категория выглядит ярче, насыщеннее). Мясной свет подходит категории "Мясо, мясная гастрономия" (категория выглядит ярче, насыщеннее)
A27: =A25+1 -> 13 | B27: Комплект подсветки полок (3 ряда) Т8 1004.99.00.00-01 L=1250 для Solo L | C27: 1004.99.00.00-01 | D27: Спектр освещения определяется характеристикой (третий символ, "1" - 3000К, "2" - 4000К) | F27: 6146 | G27: =ROUND(F27*(1-$D$3)/Лист2!$A$6,0) -> 6146
A28: =A27+1 -> 14 | B28: Комплект подсветки полок (3 ряда) Т8 1004.99.00.00-02 L=1500 для Solo L | C28: 1004.99.00.00-02 | F28: 10291 | G28: =ROUND(F28*(1-$D$3)/Лист2!$A$6,0) -> 10291
A29: 15 | B29: Комплект подсветки полок (3 ряда) Т8 1004.99.00.00-03 L=1875 для Solo L | C29: 1004.99.00.00-03 | F29: 11131 | G29: =ROUND(F29*(1-$D$3)/Лист2!$A$6,0) -> 11131
A30: 16 | B30: Комплект подсветки полок (3 ряда) Т8 1004.99.00.00-04 L=2500 для Solo L | C30: 1004.99.00.00-04 | F30: 16114 | G30: =ROUND(F30*(1-$D$3)/Лист2!$A$6,0) -> 16114
A31: 17 | B31: Комплект подсветки полок (4 ряда) Т8 1004.100.00.00-01 L=1250 для Solo L | C31: 1004.100.00.00-01 | F31: 7064 | G31: =ROUND(F31*(1-$D$3)/Лист2!$A$6,0) -> 7064
A32: 18 | B32: Комплект подсветки полок (4 ряда) Т8 1004.100.00.00-02 L=1500 для Solo L | C32: 1004.100.00.00-02 | F32: 11828 | G32: =ROUND(F32*(1-$D$3)/Лист2!$A$6,0) -> 11828
A33: 19 | B33: Комплект подсветки полок (4 ряда) Т8 1004.100.00.00-03 L=1875 для Solo L | C33: 1004.100.00.00-03 | F33: 12795 | G33: =ROUND(F33*(1-$D$3)/Лист2!$A$6,0) -> 12795
A34: 20 | B34: Комплект подсветки полок (4 ряда) Т8 1004.100.00.00-03 L=2500 для Solo L | C34: 1004.100.00.00-04 | F34: 18522 | G34: =ROUND(F34*(1-$D$3)/Лист2!$A$6,0) -> 18522
A35: 21 | B35: Комплект подсветки полок (5 рядов) Т8 1004.101.00.00-01 L=1250 для Solo L | C35: 1004.101.00.00-01 | F35: 8335 | G35: =ROUND(F35*(1-$D$3)/Лист2!$A$6,0) -> 8335
A36: 22 | B36: Комплект подсветки полок (5 рядов) Т8 1004.101.00.00-02 L=1500 для Solo L | C36: 1004.101.00.00-02 | F36: 13957 | G36: =ROUND(F36*(1-$D$3)/Лист2!$A$6,0) -> 13957
A37: 23 | B37: Комплект подсветки полок (5 рядов) Т8 1004.101.00.00-03 L=1875 для Solo L | C37: 1004.101.00.00-03 | F37: 15099 | G37: =ROUND(F37*(1-$D$3)/Лист2!$A$6,0) -> 15099
A38: 24 | B38: Комплект подсветки полок (5 рядов) Т8 1004.101.00.00-03 L=2500 для Solo L | C38: 1004.101.00.00-04 | F38: 21855 | G38: =ROUND(F38*(1-$D$3)/Лист2!$A$6,0) -> 21855
A39: 25 | B39: Комплект подсветки полок (6 рядов) Т8 1004.102.00.00-01 L=1250 для Solo L | C39: 1004.102.00.00-01 | F39: 9503 | G39: =ROUND(F39*(1-$D$3)/Лист2!$A$6,0) -> 9503
A40: 26 | B40: Комплект подсветки полок (6 рядов) Т8 1004.102.00.00-02 L=1500 для Solo L | C40: 1004.102.00.00-02 | F40: 15911 | G40: =ROUND(F40*(1-$D$3)/Лист2!$A$6,0) -> 15911
A41: 27 | B41: Комплект подсветки полок (6 рядов) Т8 1004.102.00.00-03 L=1875 для Solo L | C41: 1004.102.00.00-03 | F41: 17212 | G41: =ROUND(F41*(1-$D$3)/Лист2!$A$6,0) -> 17212
A42: 28 | B42: Комплект подсветки полок (6 рядов) Т8 1004.102.00.00-03 L=2500 для Solo L | C42: 1004.102.00.00-04 | F42: 24915 | G42: =ROUND(F42*(1-$D$3)/Лист2!$A$6,0) -> 24915
A43: Дополнительные опции для Solo
A44: =A42+1 -> 29 | B44: Комплект боковины глухой левой для Solo L9 | C44: 1014.40.00.00 | D44: Наличие и тип боковины определяется характеристикой (левая боковина 9 символ, правая боковина 10 символ). Боковина не применяется когда стеллаж в линии - "0". Боковина глухая - "G" | F44: 12714 | G44: =ROUND(F44*(1-$D$3)/Лист2!$A$6,0) -> 12714
A45: =A44+1 -> 30 | B45: Комплект боковины глухой правой для Solo L9 | C45: 1014.40.00.00mir | F45: 12714 | G45: =ROUND(F45*(1-$D$3)/Лист2!$A$6,0) -> 12714
A46: 31 | B46: Комплект боковины глухой левой для Solo L7 | C46: 1004.40.00.00 | F46: 11995 | G46: =ROUND(F46*(1-$D$3)/Лист2!$A$6,0) -> 11995
A47: 32 | B47: Комплект боковины глухой правой для Solo L7 | C47: 1004.40.00.00mir | F47: 11995 | G47: =ROUND(F47*(1-$D$3)/Лист2!$A$6,0) -> 11995
A49: =A47+1 -> 33 | B49: Компл боковины глух лев с зерк для Solo L9 | C49: 1014.37.00.00 | D49: Наличие и тип боковины определяется характеристикой (левая боковина 9 символ, правая боковина 10 символ). Боковина не применяется когда стеллаж в линии - "0". Боковина глухая с зеркалом - "Z". | F49: 14042 | G49: =ROUND(F49*(1-$D$3)/Лист2!$A$6,0) -> 14042
A50: =A49+1 -> 34 | B50: Компл боковины глух прав с зерк для Solo L9 | C50: 1014.37.00.00mir | F50: 14042 | G50: =ROUND(F50*(1-$D$3)/Лист2!$A$6,0) -> 14042
A51: 35 | B51: Компл боковины глух лев с зерк для Solo L7 | C51: 1004.37.00.00 | F51: 12915 | G51: =ROUND(F51*(1-$D$3)/Лист2!$A$6,0) -> 12915
A52: 36 | B52: Компл боковины глух прав с зерк для Solo L7 | C52: 1004.37.00.00mir | F52: 12915 | G52: =ROUND(F52*(1-$D$3)/Лист2!$A$6,0) -> 12915
A54: =A52+1 -> 37 | B54: Компл боковины со стеклопак лев для Solo L9 | C54: 1014.41.00.00 | D54: Наличие и тип боковины определяется характеристикой (левая боковина 9 символ, правая боковина 10 символ). Боковина не применяется когда стеллаж в линии - "0". Боковина панорамная - "S". | F54: 14356 | G54: =ROUND(F54*(1-$D$3)/Лист2!$A$6,0) -> 14356
A55: =A54+1 -> 38 | B55: Компл боковины со стеклопак прав для Solo L9 | C55: 1014.41.00.00mir | F55: 14356 | G55: =ROUND(F55*(1-$D$3)/Лист2!$A$6,0) -> 14356
A56: 39 | B56: Компл боковины со стеклопак лев для Solo L7 | C56: 1004.41.00.00 | F56: 13171 | G56: =ROUND(F56*(1-$D$3)/Лист2!$A$6,0) -> 13171
A57: 40 | B57: Компл боковины со стеклопак прав для Solo L7 | C57: 1004.41.00.00mir | F57: 13171 | G57: =ROUND(F57*(1-$D$3)/Лист2!$A$6,0) -> 13171
A59: =A57+1 -> 41 | B59: Компл герметичн разделителя (оргст) для Solo L9 | C59: 1014.44.00.00 | F59: 16860 | G59: =ROUND(F59*(1-$D$3)/Лист2!$A$6,0) -> 16860
A60: =A59+1 -> 42 | B60: Компл герметичн разделителя (оргст) для Solo L7 | C60: 1004.44.00.00 | F60: 14427 | G60: =ROUND(F60*(1-$D$3)/Лист2!$A$6,0) -> 14427
A62: =A60+1 -> 43 | B62: Компл зеркал герметичн разделителя для Solo L9 | C62: 1014.45.00.00 | F62: 23253 | G62: =ROUND(F62*(1-$D$3)/Лист2!$A$6,0) -> 23253
A63: =A62+1 -> 44 | B63: Компл зеркал герметичн разделителя для Solo L7 | C63: 1004.45.00.00 | F63: 22742 | G63: =ROUND(F63*(1-$D$3)/Лист2!$A$6,0) -> 22742
A65: =A63+1 -> 45 | B65: Комплект соединительный в линию для Solo L | C65: 1004.60.00.00 | F65: 2445 | G65: =ROUND(F65*(1-$D$3)/Лист2!$A$6,0) -> 2445
A67: 69 | B67: Полка навесная с кронштейнами (ОЦ) 1250х500 929.67.00.00-01 для Solo для исп 1250, 2500 | C67: 929.67.00.00-01 | F67: 2612 | G67: =ROUND(F67*(1-$D$3)/Лист2!$A$6,0) -> 2612
A68: =A67+1 -> 70 | B68: Полка навесная с кронштейнами (ОЦ) 1500х500 1014.67.00.00-02 для Solo для исп 1500 | C68: 1014.67.00.00-02 | F68: 3134 | G68: =ROUND(F68*(1-$D$3)/Лист2!$A$6,0) -> 3134
A69: =A68+1 -> 71 | B69: Полка навесная с кронштейнами (ОЦ) 937х500 1015.67.00.00-03 для Solo для исп. 1875 | C69: 1015.67.00.00-03 | F69: 2195 | G69: =ROUND(F69*(1-$D$3)/Лист2!$A$6,0) -> 2195
A70: 72 | B70: Полка навесная с кронштейнами (ОЦ) 1250х400 811.68.00.00 для Rimini для исп.1250,2500 | C70: 811.68.00.00 | F70: 2038 | G70: =ROUND(F70*(1-$D$3)/Лист2!$A$6,0) -> 2038
A71: 73 | B71: Полка навесная с кронштейнами (ОЦ) 1500х400 1004.68.00.00-02 для Solo L 1500 | C71: 1004.68.00.00-02 | F71: 2450 | G71: =ROUND(F71*(1-$D$3)/Лист2!$A$6,0) -> 2450
A72: 74 | B72: Полка навесная с кронштейнами (ОЦ) 937х400 811.68.00.00-01 для Solo для исп. 1875 | C72: 811.68.00.00-01 | F72: 1885 | G72: =ROUND(F72*(1-$D$3)/Лист2!$A$6,0) -> 1885
A73: 75 | B73: Ценникодержатель съемный,L=1250, T-TH 0100125, прозрачный | C73: T-TH 0100125 | F73: 121 | G73: =ROUND(F73*(1-$D$3)/Лист2!$A$6,0) -> 121
A74: 76 | B74: Ценникодержатель съемный, L=1500, T-TH 0100150, прозрачный | C74: н№15085.3 | F74: 168 | G74: =ROUND(F74*(1-$D$3)/Лист2!$A$6,0) -> 168
A75: 77 | B75: Ценникодержатель съемный, L=925, прозрачный | C75: н№15085.2 | F75: 84 | G75: =ROUND(F75*(1-$D$3)/Лист2!$A$6,0) -> 84
A77: =A75+1 -> 78 | B77: Решетка фруктовая (базовая), 932х635 мм. для Rimini H9/L9, Solo L9 | C77: 781.75.00.00 | F77: 3693 | G77: =ROUND(F77*(1-$D$3)/Лист2!$A$6,0) -> 3693
A78: =A77+1 -> 79 | B78: Решетка базовая (фруктовая) 750х635 мм. для Solo L9 | C78: 1014.75.00.00-02 | F78: 3323 | G78: =ROUND(F78*(1-$D$3)/Лист2!$A$6,0) -> 3323
A79: =A78+1 -> 80 | B79: Решетка фруктовая (базовая), 1245x635 мм. для Rimini H9/L9 | C79: 781.75.00.00-01 | F79: 4085 | G79: =ROUND(F79*(1-$D$3)/Лист2!$A$6,0) -> 4085
A80: 81 | B80: Решетка базовая (фруктовая) 932х455 мм. для Rimini H7/L7 | C80: 798.75.00.00 | F80: 2773 | G80: =ROUND(F80*(1-$D$3)/Лист2!$A$6,0) -> 2773
A81: 82 | B81: Решетка базовая (фруктовая) 750х635 мм. для Solo L7 | C81: 1004.75.00.00-02 | F81: 2496 | G81: =ROUND(F81*(1-$D$3)/Лист2!$A$6,0) -> 2496
A82: 83 | B82: Решетка базовая (фруктовая) 1245х455 мм. для Rimini H7/L7, Solo L7 | C82: 798.75.00.00-01 | F82: 3139 | G82: =ROUND(F82*(1-$D$3)/Лист2!$A$6,0) -> 3139
A84: =A82+1 -> 84 | B84: Комплект зеркала наклон(с кронш) (1250) 1014.53.00.00-01 L=1250 для Solo L9 | C84: 1014.53.00.00-01 | F84: 3289 | G84: =ROUND(F84*(1-$D$3)/Лист2!$A$6,0) -> 3289
A85: =A84+1 -> 85 | B85: Комплект зеркала наклон(с кронш) (1500) 1014.53.00.00-02 L=1500 для Solo L9 | C85: 1014.53.00.00-02 | F85: 4111 | G85: =ROUND(F85*(1-$D$3)/Лист2!$A$6,0) -> 4111
A86: =A85+1 -> 86 | B86: Комплект зеркала наклон(с кронш) (937) 1014.53.00.00-03 L=1875 для Solo L9 | C86: 1014.53.00.00-03 | F86: 2818 | G86: =ROUND(F86*(1-$D$3)/Лист2!$A$6,0) -> 2818
A87: 87 | B87: Комплект заглушек для зеркала наклонного 1014.52.00.00 для Solo L9 | C87: 1014.52.00.00 | F87: 854 | G87: =ROUND(F87*(1-$D$3)/Лист2!$A$6,0) -> 854
A88: 88 | B88: Комплект зеркала наклон(с кронш) (1250) 1004.53.00.00-01 L=1250 для Solo L7 | C88: 1004.53.00.00-01 | F88: 2939 | G88: =ROUND(F88*(1-$D$3)/Лист2!$A$6,0) -> 2939
A89: 89 | B89: Комплект зеркала наклон(с кронш) (1500) 1004.53.00.00-02 L=1500 для Solo L7 | C89: 1004.53.00.00-02 | F89: 3674 | G89: =ROUND(F89*(1-$D$3)/Лист2!$A$6,0) -> 3674
A90: 90 | B90: Комплект зеркала наклон(с кронш) (937) 1004.53.00.00-03 L=1875 для Solo L7 | C90: 1004.53.00.00-03 | F90: 2523 | G90: =ROUND(F90*(1-$D$3)/Лист2!$A$6,0) -> 2523
A91: 91 | B91: Комплект заглушек для зеркала наклонного 757.52.00.00 для Solo L7 | C91: 1004.52.00.00 | F91: 627 | G91: =ROUND(F91*(1-$D$3)/Лист2!$A$6,0) -> 627
A93: =A91+1 -> 92 | B93: Разделитель объема для полок(500) 1004.115.00.00 для Solo L | C93: 1004.115.00.00 | F93: 3270 | G93: =ROUND(F93*(1-$D$3)/Лист2!$A$6,0) -> 3270
A94: =A93+1 -> 93 | B94: Разделитель объема для полок(400) 1004.116.00.00 для Solo L | C94: 1004.116.00.00 | F94: 2269 | G94: =ROUND(F94*(1-$D$3)/Лист2!$A$6,0) -> 2269
A95: 94 | B95: Делитель передвижной H=150 (500) оргст 646.51.00.01-01 L=1250/2500 для стеллажей Italfrigo, Solo | C95: 646.51.00.01-01 | F95: 759 | G95: =ROUND(F95*(1-$D$3)/Лист2!$A$6,0) -> 759
A96: 95 | B96: Делитель передвижной H=150 (400) оргст 646.51.00.01 L=1250/2500 для стеллажей Italfrigo, Solo | C96: 646.51.00.01 | F96: 663 | G96: =ROUND(F96*(1-$D$3)/Лист2!$A$6,0) -> 663
A97: 96 | B97: Фронтальный ограничитель 40мм (1250) оргст 646.54.00.03 L=1250/2500 для для Solo | C97: 646.54.00.03 | F97: 761 | G97: =ROUND(F97*(1-$D$3)/Лист2!$A$6,0) -> 761
A98: 97 | B98: Фронтальный ограничитель Н=40мм, L=1500 (оргст) 1004.54.00.03-02 L=1500 для стеллажей Solo | C98: 646.54.00.03-02 | F98: 952 | G98: =ROUND(F98*(1-$D$3)/Лист2!$A$6,0) -> 952
A99: 98 | B99: Фронтальный ограничитель 40мм (937) оргст 646.54.00.03-01 L=1875 для Solo | C99: 646.54.00.03-01 | F99: 357 | G99: =ROUND(F99*(1-$D$3)/Лист2!$A$6,0) -> 357
A100: 99 | B100: Фронтальный ограничитель Н=60мм, L=1250 (оргст) 646.54.00.04 L=1250/2500 для Rimini/Lazio, Solo | C100: 646.54.00.04 | F100: 1116 | G100: =ROUND(F100*(1-$D$3)/Лист2!$A$6,0) -> 1116
A101: 100 | B101: Фронтальный ограничитель Н=60мм, L=1500 (оргст) 1004.54.00.04-02 L=1500 для Solo | C101: 646.54.00.04-02 | F101: 1395 | G101: =ROUND(F101*(1-$D$3)/Лист2!$A$6,0) -> 1395
A102: 101 | B102: Фронтальный ограничитель Н=60мм, L=937 (оргст) 646.54.00.04-01 L=1875 для Rimini/Lazio, Solo | C102: 646.54.00.04-01 | F102: 904 | G102: =ROUND(F102*(1-$D$3)/Лист2!$A$6,0) -> 904
A103: 102 | B103: Ограничитель проволочный(ОЦ, полимерное покрытие) 1235х57мм 781.76.00.01 | C103: 781.76.00.01 | F103: 337 | G103: =ROUND(F103*(1-$D$3)/Лист2!$A$6,0) -> 337
A104: 103 | B104: Ограничитель проволочный(ОЦ, полимерное покрытие) 926х57мм 781.76.00.01-01, Solo | C104: 781.76.00.01-01 | F104: 269 | G104: =ROUND(F104*(1-$D$3)/Лист2!$A$6,0) -> 269
A105: 104 | B105: Ограничитель проволочный(ОЦ, полимерное покрытие) 1500х57мм 1004.76.00.01-02 | C105: 781.76.00.01-02 | F105: 421 | G105: =ROUND(F105*(1-$D$3)/Лист2!$A$6,0) -> 421
A107: =A105+1 -> 105 | B107: Комплект отбойника фронтального (пластик) L=1250 | C107: 646.56.00.00 | F107: 1020 | G107: =ROUND(F107*(1-$D$3)/Лист2!$A$6,0) -> 1020
A108: =A107+1 -> 106 | B108: Комплект отбойника фронтального (пластик) L=1875 | C108: 646.56.00.00-01 | F108: 1476 | G108: =ROUND(F108*(1-$D$3)/Лист2!$A$6,0) -> 1476
A109: =A108+1 -> 107 | B109: Комплект отбойника фронтального (пластик) L=2500 | C109: 646.56.00.00-02 | F109: 1931 | G109: =ROUND(F109*(1-$D$3)/Лист2!$A$6,0) -> 1931
A110: 108 | B110: Комплект отбойника фронтального (пластик) L=3750 | C110: 646.56.00.00-03 | F110: 2842 | G110: =ROUND(F110*(1-$D$3)/Лист2!$A$6,0) -> 2842
A111: 109 | B111: Комплект отбойника фронтального (пластик) L=1500 | C111: 646.56.00.00-04 | F111: 1376 | G111: =ROUND(F111*(1-$D$3)/Лист2!$A$6,0) -> 1376
A112: 110 | B112: Торцевой элемент НБИЛГ 7.116.007 н№950.28 | C112: н№950.28 | F112: 325 | G112: =ROUND(F112*(1-$D$3)/Лист2!$A$6,0) -> 325
A113: 111 | B113: Комплект отбойника фронтального 15х30 (труба нерж.) L=1250 | C113: 781.55.00.00 | F113: 2038 | G113: =ROUND(F113*(1-$D$3)/Лист2!$A$6,0) -> 2038
A114: 112 | B114: Комплект отбойника фронтального 15х30 (труба нерж.) L=1875 | C114: 781.55.00.00-01 | F114: 2953 | G114: =ROUND(F114*(1-$D$3)/Лист2!$A$6,0) -> 2953
A115: 113 | B115: Комплект отбойника фронтального 15х30 (труба нерж) L=2500 | C115: 781.55.00.00-02 | F115: 3861 | G115: =ROUND(F115*(1-$D$3)/Лист2!$A$6,0) -> 3861
A116: 114 | B116: Комплект отбойника фронтального 15х30 (труба нерж) L=3750 | C116: 781.55.00.00-03 | F116: 5683 | G116: =ROUND(F116*(1-$D$3)/Лист2!$A$6,0) -> 5683
A117: 115 | B117: Комплект отбойника фронтального 15х30 (труба нерж) L=1500 | C117: 781.55.00.00-04 | F117: 2746 | G117: =ROUND(F117*(1-$D$3)/Лист2!$A$6,0) -> 2746
A119: 119 | B119: Комплект подвесов для колбасы(две штанг + 4 блока крюков) 1004.59.00.00-01 L=1250, 2500 25 шаг | C119: 1004.59.00.00-01 | F119: 7362 | G119: =ROUND(F119*(1-$D$3)/Лист2!$A$6,0) -> 7362
A120: =A119+1 -> 120 | B120: Комплект подвесов для колбасы(две штанг + 8 блока крюков) 1004.59.00.00-02 L=1500, 25 шаг | C120: 1004.59.00.00-02 | F120: 9571 | G120: =ROUND(F120*(1-$D$3)/Лист2!$A$6,0) -> 9571
A121: =A120+1 -> 121 | B121: Комплект подвесов для колбасы(две штанг + 4 блока крюков) 1004.59.00.00-03 L=937, 25 шаг | C121: 1004.59.00.00-03 | F121: 6363 | G121: =ROUND(F121*(1-$D$3)/Лист2!$A$6,0) -> 6363
A122: 122 | B122: Штанга для навески крюков 1004.57.00.00-01 L=1250, 15х30 мм. 25 шаг | C122: 1004.57.00.00-01 | F122: 2750 | G122: =ROUND(F122*(1-$D$3)/Лист2!$A$6,0) -> 2750
A123: 123 | B123: Штанга для навески крюков 1004.57.00.00-02 L=1500, 15х30 мм. 25 шаг | C123: 1004.57.00.00-02 | F123: 3576 | G123: =ROUND(F123*(1-$D$3)/Лист2!$A$6,0) -> 3576
A124: 124 | B124: Штанга для навески крюков 1004.57.00.00-03 L=937, 15х30 мм. 25 шаг | C124: 1004.57.00.00-03 | F124: 2233 | G124: =ROUND(F124*(1-$D$3)/Лист2!$A$6,0) -> 2233
A125: 125 | B125: Крючок на штангу одинарный хромированный с ценникодержателем, 400 мм / диаметр 8,0 мм | C125: н№15074.32 | F125: 728 | G125: =ROUND(F125*(1-$D$3)/Лист2!$A$6,0) -> 728
A126: 126 | B126: Крючок на штангу одинарный хромированный с ценникодержателем, 500 мм / диаметр 10,0 мм | C126: н№15074.33 | F126: 886 | G126: =ROUND(F126*(1-$D$3)/Лист2!$A$6,0) -> 886
A127: Solo SML
A128: Опции для комплектации Solo SML. | H128: вернуться к прайсу стеллажей
A129: Общее освещение
A130: Нейтральный свет (4000-4500К) подходит всем товарным категориям (не искажает натуральный цвет продуктов). Тёплый свет (2700-3000К) подходит категории "Фрукты, овощи, сыры" (категория выглядит ярче, насыщеннее). Мясной свет подходит категории "Мясо, мясная гастрономия" (категория выглядит ярче, насыщеннее)
A131: 4 | B131: Комплект общей подсветки стеллажа Т8 1004.15.02.00 L=1000 для Solo L | C131: Спектр освещения определяется характеристикой (третий символ, "1" - 3000К, "2" - 4000К) | F131: 2336 | G131: =ROUND(F131*(1-$D$3)/Лист2!$A$6,0) -> 2336
A132: 5 | B132: Комплект общей подсветки стеллажа Т8 1004.15.02.00-01 L=1250 для Solo L | F132: 2396 | G132: =ROUND(F132*(1-$D$3)/Лист2!$A$6,0) -> 2396
A133: 6 | B133: Комплект общей подсветки стеллажа Т8 1004.15.02.00-03 L=1875 для Solo L | F133: 3566 | G133: =ROUND(F133*(1-$D$3)/Лист2!$A$6,0) -> 3566
A134: Подсветка полок (универсальная для полок разной глубины - 300, 400, 500 мм) Нейтральный свет (4000-4500К) подходит всем товарным категориям (не искажает натуральный цвет продуктов). Тёплый свет (2700-3000К) подходит категории "Фрукты, овощи, сыры" (категория выглядит ярче, насыщеннее). Мясной свет подходит категории "Мясо, мясная гастрономия" (категория выглядит ярче, насыщеннее)
A135: 7 | B135: Комплект подсветки полок (3 ряда) Т8 1015.92.00.00 L=1000 для Solo | C135: 1015.92.00.00 | D135: Спектр освещения определяется характеристикой (третий символ, "1" - 3000К, "2" - 4000К) | F135: 4393 | G135: =ROUND(F135*(1-$D$3)/Лист2!$A$6,0) -> 4393
A136: =A135+1 -> 8 | B136: Комплект подсветки полок (3 ряда) Т8 1004.99.00.00-01 L=1250 для Solo L | C136: 1004.99.00.00-01 | F136: 6146 | G136: =ROUND(F136*(1-$D$3)/Лист2!$A$6,0) -> 6146
A137: =A136+1 -> 9 | B137: Комплект подсветки полок (3 ряда) Т8 1004.99.00.00-03 L=1875 для Solo L | C137: 1004.99.00.00-03 | F137: 11131 | G137: =ROUND(F137*(1-$D$3)/Лист2!$A$6,0) -> 11131
A139: 11 | B139: Комплект боковины со стеклопакет лев 929.41.00.00 для ВПВ SOLO SML | C139: 929.41.00.00 | F139: 15242 | G139: =ROUND(F139*(1-$D$3)/Лист2!$A$6,0) -> 15242
A140: =A139+1 -> 12 | B140: Комплект боковины со стеклопакет прав 929.41.00.00mir для ВПВ SOLO SML | C140: 929.41.00.00mir | F140: 15242 | G140: =ROUND(F140*(1-$D$3)/Лист2!$A$6,0) -> 15242
A142: 13 | B142: Комплект соединительный в линию 929.60.00.00 для стеллажей SOLO SML | C142: 929.60.00.00 | F142: 1654 | G142: =ROUND(F142*(1-$D$3)/Лист2!$A$6,0) -> 1654
A144: 14 | B144: Комплект полок навесных (с кроншт) L=1000 (300, 400, 500) для SOLO SML | C144: 1015.66.00.00 | F144: 5312 | G144: =ROUND(F144*(1-$D$3)/[7]Лист2!$A$6,0) -> 5312
A145: 15 | B145: Комплект полок навесных (с кроншт) L=1250 (300, 400, 500) для SOLO SML | C145: 1015.66.00.00-01 | F145: 6820 | G145: =ROUND(F145*(1-$D$3)/Лист2!$A$6,0) -> 6820
A146: 16 | B146: Комплект полок навесных (с кроншт) L=1875 (300, 400, 500) для SOLO SML | C146: 1015.66.00.00-03 | F146: 12958 | G146: =ROUND(F146*(1-$D$3)/Лист2!$A$6,0) -> 12958
A148: 17 | B148: Ценникодержатель съемный 1000 Т-ТН 0100100(СТ 046.00.00.105-01) н№15085 | C148: СТ 046.00.00.105-01 | F148: 121 | G148: =ROUND(F148*(1-$D$3)/Лист2!$A$6,0) -> 121
A149: 18 | B149: Ценникодержатель съемный, L=1250, T-TH 0100125, прозрачный | C149: T-TH 0100125 | F149: 121 | G149: =ROUND(F149*(1-$D$3)/Лист2!$A$6,0) -> 121
A150: 19 | B150: Ценникодержатель съемный, L=925, прозрачный | C150: н№15085.2 | F150: 84 | G150: =ROUND(F150*(1-$D$3)/Лист2!$A$6,0) -> 84
A152: =A150+1 -> 20 | B152: Решетка фруктовая (базовая), 1245x635 мм. для Rimini H9/L9 | C152: 781.75.00.00-01 | F152: 4085 | G152: =ROUND(F152*(1-$D$3)/Лист2!$A$6,0) -> 4085
A153: =A152+1 -> 21 | B153: Решетка фруктовая (базовая), 932х635 мм. для Rimini H9/L9, Solo L9 | C153: 781.75.00.00 | F153: 3693 | G153: =ROUND(F153*(1-$D$3)/Лист2!$A$6,0) -> 3693
A155: 22 | B155: Делитель передвижной H=150 (500) оргст 646.51.00.01-01 L=1250/2500 для стеллажей Italfrigo, Solo | C155: 646.51.00.01-01 | F155: 759 | G155: =ROUND(F155*(1-$D$3)/Лист2!$A$6,0) -> 759
A156: =A155+1 -> 23 | B156: Делитель передвижной H=150 (400) оргст 646.51.00.01 L=1250/2500 для стеллажей Italfrigo, Solo | C156: 646.51.00.01 | F156: 663 | G156: =ROUND(F156*(1-$D$3)/Лист2!$A$6,0) -> 663
A157: 24 | B157: Фронтальный ограничитель 40мм (1250) оргст 646.54.00.03 L=1250/2500 для для Solo | C157: 646.54.00.03 | F157: 761 | G157: =ROUND(F157*(1-$D$3)/Лист2!$A$6,0) -> 761
A158: 25 | B158: Фронтальный ограничитель 40мм (937) оргст 646.54.00.03-01 L=1875 для Solo | C158: 646.54.00.03-01 | F158: 635 | G158: =ROUND(F158*(1-$D$3)/Лист2!$A$6,0) -> 635
A159: 26 | B159: Фронтальный ограничитель Н=40мм, L=1000 (оргст) 622.54.00.03 | C159: 622.54.00.03 | F159: 608 | G159: =ROUND(F159*(1-$D$3)/Лист2!$A$6,0) -> 608
A160: 27 | B160: Фронтальный ограничитель Н=60мм, L=1250 (оргст) 646.54.00.04 L=1250/2500 для Rimini/Lazio, Solo | C160: 646.54.00.04 | F160: 1116 | G160: =ROUND(F160*(1-$D$3)/Лист2!$A$6,0) -> 1116
A161: 28 | B161: Фронтальный ограничитель Н=60мм, L=937 (оргст) 646.54.00.04-01 L=1875 для Rimini/Lazio, Solo | C161: 646.54.00.04-01 | F161: 904 | G161: =ROUND(F161*(1-$D$3)/Лист2!$A$6,0) -> 904
A162: 29 | B162: Ограничитель проволочный(ОЦ, полимерное покрытие) 1235х57мм 781.76.00.01 | C162: 781.76.00.01 | F162: 465 | G162: =ROUND(F162*(1-$D$3)/Лист2!$A$6,0) -> 465
A163: 30 | B163: Ограничитель проволочный(ОЦ, полимерное покрытие) 926х57мм 781.76.00.01-01, Solo | C163: 781.76.00.01-01 | F163: 269 | G163: =ROUND(F163*(1-$D$3)/Лист2!$A$6,0) -> 269
A165: 31 | B165: Комплект отбойника фронтального (пластик) L=1000 | C165: 1015.56.00.00 | F165: 893 | G165: =ROUND(F165*(1-$D$3)/Лист2!$A$6,0) -> 893
A166: 32 | B166: Комплект отбойника фронтального (пластик) L=1250 | C166: 1015.56.00.00-01 | F166: 1020 | G166: =ROUND(F166*(1-$D$3)/Лист2!$A$6,0) -> 1020
A167: =A166+1 -> 33 | B167: Комплект отбойника фронтального (пластик) L=1875 | C167: 1015.56.00.00-03 | F167: 1476 | G167: =ROUND(F167*(1-$D$3)/Лист2!$A$6,0) -> 1476
A168: =A167+1 -> 34 | B168: Торцевой элемент НБИЛГ 7.116.007 н№950.28 | C168: н№950.28 | F168: 325 | G168: =ROUND(F168*(1-$D$3)/Лист2!$A$6,0) -> 325
A169: 35 | B169: Комплект отбойника фронтального 15х30 (труба нерж.) L=1250 | C169: 781.55.00.00 | F169: 2038 | G169: =ROUND(F169*(1-$D$3)/Лист2!$A$6,0) -> 2038
A170: 36 | B170: Комплект отбойника фронтального 15х30 (труба нерж.) L=1875 | C170: 781.55.00.00-01 | F170: 2953 | G170: =ROUND(F170*(1-$D$3)/Лист2!$A$6,0) -> 2953
A172: =A170+1 -> 37 | B172: Усиленная упаковка Solo 1250 | F172: 4625
A173: =A172+1 -> 38 | B173: Усиленная упаковка Solo 1500 | F173: 4978
A174: =A173+1 -> 39 | B174: Усиленная упаковка Solo 1875 | F174: 5487
A175: =A174+1 -> 40 | B175: Усиленная упаковка Solo 2500 | F175: 7171
A177: *Коэффициент скидки на усиленную упаковку не применяется
A178: *Цена на розовую подсветку по запросу | F178: Наверх

Sheet Горки Italfrigo
H1: ЗАВОД «ОПК» Тел.: +7 (496) 704-52-11 e-mail:manager@ozpk.ru сайт: ozpk.ru | L1: На главную
B3: Ваша скидка: | E3: =Содержание!D2 -> 0
B4: НДС: | E4: =IF(Лист2!A1=TRUE,"С НДС","БЕЗ НДС") -> С НДС
A6: Охлаждаемые стеллажи Italfrigo под выносное холодообеспечение
A9: № | B9: Изображение | C9: Артикул | D9: Наименование | F9: Температурный режим,°C | G9: Площадь экспозиции, кв.м. | H9: Габариты, (LxWxH) мм | I9: Габариты в упаковке, (LxWxH) мм | J9: Базовая цена, руб. (с НДС) | K9: =[5]Лист2!$A$5 -> Ваша цена, руб.
A11: 1 | B11: Охлаждаемые стеллажи RIMINI | J11: Опции Rimini
A13: Базовая комплектация стеллажа: - без противоударного бампера - внутренний объем - оцинкованный металл - внутренняя поверхность ванны из оцинкованного пластификата (двойная защита от коррозии); - электронный контроллер для управления работой оборудования; - без освещения - без полок - цифрофой термометр; - механический ТРВ Sanhua -стандартная упаковка на поддоне, опцонально в деревянной обрешетке - блок остекления со стеклопакетом для стеллажей DG - ночная шторкa для открытого стеллажа - стандартные вентиляторы - комплект подключения к системе дренажа - Стеллажи производятся в разобранном виде "BOX" - без боковин - упаковка в деревянной обрешетке Характеристика:EL.S.Y.0.0.PS.0.внеш 7016гл_внутр 7016гл | D13: Комплектация "Фрукты-овощи" + к базовой комплектации: - Общее светодиодное освещение, стандартный - 4000К, опционально 2700К, 6500К; - 3 ряда полок с ценникодержателем (Rimini L7/H7 - полки глубиной 400 мм., Rimini L9/H9 - полки глубиной 500 мм., Rimini H10 - полки глубиной 600 мм.); - комплект наклонного зеркала - наклонная решетка для базовой полки Комплект наклонного зекрала и наклонной решетки для базовой полки в отдельном ящике Характеристика:EL.S.Y.2.3.PS.Т.внеш 7016гл_внутр 7016гл | F13: Комплектация "Гастрономия" + к базовой комплектации: - Общее светодиодное освещение, стандартный - 4000К, опционально 2700К, 6500К, - 5 рядов полок с ценникодержателем (Rimini L7/H7 - полки глубиной 400 мм., Rimini L9/H9 - полки глубиной 500 мм., Rimini H10 - полки глубиной 600 мм.); Характеристика:EL.S.Y.2.5.PS.0.внеш 7016гл_внутр 7016гл
A14: Rimini L7 BOX Открытое исполнение (ночные шторки)
C15: IRML7B 125 | D15: Стеллаж охлаждаемый ВПВ С (Italfrigo Rimini L7 BOX 1250 Д) | E15: гастрономическая | F15: 0…+7 С | G15: 3.12 | H15: 1250х700х1964 | I15: 2130х1110х850 | J15: 121452 | K15: =ROUND(J15*(1-$E$3)/Лист2!$A$6,0) -> 121452
E16: базовая (пустая) | J16: 109839 | K16: =ROUND(J16*(1-$E$3)/Лист2!$A$6,0) -> 109839
C17: IRML7В 188 | D17: Стеллаж охлаждаемый ВПВ С (Italfrigo Rimini L7 BOX 1875 Д) | E17: гастрономическая | F17: 0…+7 С | G17: 4.68 | H17: 1875х700х1964 | I17: 2265х1110х850 | J17: 165694 | K17: =ROUND(J17*(1-$E$3)/Лист2!$A$6,0) -> 165694
E18: базовая (пустая) | J18: 145417 | K18: =ROUND(J18*(1-$E$3)/Лист2!$A$6,0) -> 145417 | O18: `
C19: IRML7В 250 | D19: Стеллаж охлаждаемый ВПВ С (Italfrigo Rimini L7 BOX 2500 Д) | E19: гастрономическая | F19: 0…+7 С | G19: 6.25 | H19: 2500х700х1964 | I19: 2700х1110х850 | J19: 196743 | K19: =ROUND(J19*(1-$E$3)/Лист2!$A$6,0) -> 196743
E20: базовая (пустая) | J20: 174438 | K20: =ROUND(J20*(1-$E$3)/Лист2!$A$6,0) -> 174438
C21: IRML7В 375 | D21: Стеллаж охлаждаемый ВПВ С (Italfrigo Rimini L7 BOX 3750 Д) | E21: гастрономическая | F21: 0…+7 С | G21: 9.4 | H21: 3750х700х1964 | I21: 4000х1110х850 | J21: 262355 | K21: =ROUND(J21*(1-$E$3)/Лист2!$A$6,0) -> 262355
E22: базовая (пустая) | J22: 229749 | K22: =ROUND(J22*(1-$E$3)/Лист2!$A$6,0) -> 229749
A23: Rimini L7 DG BOX Фронтальный блок остекления - стеклопакет (DG - Double Glass)
C24: IRML7DB 125 | D24: Стеллаж охлаждаемый ВПВ С (Italfrigo Rimini L7 DG BOX 1250 Д) | E24: гастрономическая | F24: -1…+6 С | G24: 3.12 | H24: 1250х700х1964 | I24: 2130х1180х850 | J24: 130999 | K24: =ROUND(J24*(1-$E$3)/Лист2!$A$6,0) -> 130999
E25: базовая (пустая) | J25: 119385 | K25: =ROUND(J25*(1-$E$3)/Лист2!$A$6,0) -> 119385
C26: IRML7DB 188 | D26: Стеллаж охлаждаемый ВПВ С (Italfrigo Rimini L7 DG BOX 1875 Д) | E26: гастрономическая | F26: -1…+6 С | G26: 4.68 | H26: 1875х700х1964 | I26: 2265х1180х850 | J26: 186555 | K26: =ROUND(J26*(1-$E$3)/Лист2!$A$6,0) -> 186555
E27: базовая (пустая) | J27: 166278 | K27: =ROUND(J27*(1-$E$3)/Лист2!$A$6,0) -> 166278
C28: IRML7DB 250 | D28: Стеллаж охлаждаемый ВПВ С (Italfrigo Rimini L7 DG BOX 2500 Д) | E28: гастрономическая | F28: -1…+6 С | G28: 6.25 | H28: 2500х700х1964 | I28: 2700х1180х850 | J28: 221325 | K28: =ROUND(J28*(1-$E$3)/Лист2!$A$6,0) -> 221325
E29: базовая (пустая) | J29: 199019 | K29: =ROUND(J29*(1-$E$3)/Лист2!$A$6,0) -> 199019
C30: IRML7DB 375 | D30: Стеллаж охлаждаемый ВПВ С (Italfrigo Rimini L7 DG BOX 3750 Д) | E30: гастрономическая | F30: -1…+6 С | G30: 9.4 | H30: 3750х700х1964 | I30: 4000х1180х850 | J30: 315149 | K30: =ROUND(J30*(1-$E$3)/Лист2!$A$6,0) -> 315149
E31: базовая (пустая) | J31: 282544 | K31: =ROUND(J31*(1-$E$3)/Лист2!$A$6,0) -> 282544
A32: Rimini Н7 BOX Открытое исполнение (ночные шторки)
C33: IRMН7B 125 | D33: Стеллаж охлаждаемый ВПВ С (Italfrigo Rimin Н7 BOX 1250 Д) | E33: гастрономическая | F33: 0…+7 С | G33: 3.12 | H33: 1250х700х2164 | I33: 2130х1110х850 | J33: 123694 | K33: =ROUND(J33*(1-$E$3)/Лист2!$A$6,0) -> 123694
E34: базовая (пустая) | J34: 112081 | K34: =ROUND(J34*(1-$E$3)/Лист2!$A$6,0) -> 112081
C35: IRMН7В 188 | D35: Стеллаж охлаждаемый ВПВ С (Italfrigo Rimini Н7 BOX 1875 Д) | E35: гастрономическая | F35: 0…+7 С | G35: 4.68 | H35: 1875х700х2164 | I35: 2265х1110х850 | J35: 168662 | K35: =ROUND(J35*(1-$E$3)/Лист2!$A$6,0) -> 168662
E36: базовая (пустая) | J36: 148384 | K36: =ROUND(J36*(1-$E$3)/Лист2!$A$6,0) -> 148384
C37: IRMН7В 250 | D37: Стеллаж охлаждаемый ВПВ С (Italfrigo Rimini Н7 BOX 2500 Д) | E37: гастрономическая | F37: 0…+7 С | G37: 6.25 | H37: 2500х700х2164 | I37: 2700х1110х850 | J37: 200303 | K37: =ROUND(J37*(1-$E$3)/Лист2!$A$6,0) -> 200303
E38: базовая (пустая) | J38: 177998 | K38: =ROUND(J38*(1-$E$3)/Лист2!$A$6,0) -> 177998
C39: IRMН7В 375 | D39: Стеллаж охлаждаемый ВПВ С (Italfrigo Rimini Н7 BOX 3750 Д) | E39: гастрономическая | F39: 0…+7 С | G39: 9.4 | H39: 3750х700х2164 | I39: 4000х1110х850 | J39: 267044 | K39: =ROUND(J39*(1-$E$3)/Лист2!$A$6,0) -> 267044
E40: базовая (пустая) | J40: 234438 | K40: =ROUND(J40*(1-$E$3)/Лист2!$A$6,0) -> 234438
A41: Rimini Н7 DG BOX Фронтальный блок остекления - стеклопакет (DG - Double Glass)
C42: IRMH7DB 125 | D42: Стеллаж охлаждаемый ВПВ С (Italfrigo Rimini Н7 DG BOX 1250 Д) | E42: гастрономическая | F42: -1…+6 С | G42: 3.12 | H42: 1250х700х2164 | I42: 2130х1180х850 | J42: 132457 | K42: =ROUND(J42*(1-$E$3)/Лист2!$A$6,0) -> 132457
E43: базовая (пустая) | J43: 120844 | K43: =ROUND(J43*(1-$E$3)/Лист2!$A$6,0) -> 120844
C44: IRMH7DB 188 | D44: Стеллаж охлаждаемый ВПВ С (Italfrigo Rimini Н7 DG BOX 1875 Д) | E44: гастрономическая | F44: -1…+6 С | G44: 4.68 | H44: 1875х700х2164 | I44: 2265х1180х850 | J44: 189049 | K44: =ROUND(J44*(1-$E$3)/Лист2!$A$6,0) -> 189049
E45: базовая (пустая) | J45: 168772 | K45: =ROUND(J45*(1-$E$3)/Лист2!$A$6,0) -> 168772
C46: IRMH7DB 250 | D46: Стеллаж охлаждаемый ВПВ С (Italfrigo Rimini Н7 DG BOX 2500 Д) | E46: гастрономическая | F46: -1…+6 С | G46: 6.25 | H46: 2500х700х2164 | I46: 2700х1180х850 | J46: 224310 | K46: =ROUND(J46*(1-$E$3)/Лист2!$A$6,0) -> 224310
E47: базовая (пустая) | J47: 202005 | K47: =ROUND(J47*(1-$E$3)/Лист2!$A$6,0) -> 202005
C48: IRMH7DB 375 | D48: Стеллаж охлаждаемый ВПВ С (Italfrigo Rimini Н7 DG BOX 3750 Д) | E48: гастрономическая | F48: -1…+6 С | G48: 9.4 | H48: 3750х700х2164 | I48: 4000х1180х850 | J48: 319388 | K48: =ROUND(J48*(1-$E$3)/Лист2!$A$6,0) -> 319388
E49: базовая (пустая) | J49: 286782 | K49: =ROUND(J49*(1-$E$3)/Лист2!$A$6,0) -> 286782
A50: Rimini L9 BOX Открытое исполнение (ночные шторки)
C51: IRML9B 125 | D51: Стеллаж охлаждаемый ВПВ С (Italfrigo Rimini L9 BOX 1250 Д) | E51: гастрономическая | F51: 0…+7 С | G51: 4.01 | H51: 1250х910х1964 | I51: 2130х1110х850 | J51: 124597 | K51: =ROUND(J51*(1-$E$3)/Лист2!$A$6,0) -> 124597
E52: базовая (пустая) | J52: 110381 | K52: =ROUND(J52*(1-$E$3)/Лист2!$A$6,0) -> 110381
C53: IRML9B 188 | D53: Стеллаж охлаждаемый ВПВ С (Italfrigo Rimini L9 BOX 1875 Д) | E53: гастрономическая | F53: 0…+7 С | G53: 6.01 | H53: 1875х910х1964 | I53: 2265х1110х850 | J53: 169274 | K53: =ROUND(J53*(1-$E$3)/Лист2!$A$6,0) -> 169274
E54: базовая (пустая) | J54: 146167 | K54: =ROUND(J54*(1-$E$3)/Лист2!$A$6,0) -> 146167
C55: IRML9B 250 | D55: Стеллаж охлаждаемый ВПВ С (Italfrigo Rimini L9 BOX 2500 Д) | E55: гастрономическая | F55: 0…+7 С | G55: 8.02 | H55: 2500х910х1964 | I55: 2700х1110х850 | J55: 202959 | K55: =ROUND(J55*(1-$E$3)/Лист2!$A$6,0) -> 202959
E56: базовая (пустая) | J56: 175448 | K56: =ROUND(J56*(1-$E$3)/Лист2!$A$6,0) -> 175448
C57: IRML9B 375 | D57: Стеллаж охлаждаемый ВПВ С (Italfrigo Rimini L9 BOX 3750 Д) | E57: гастрономическая | F57: 0…+7 С | G57: 12.03 | H57: 3750х910х1964 | I57: 4000х1110х850 | J57: 265291 | K57: =ROUND(J57*(1-$E$3)/Лист2!$A$6,0) -> 265291
E58: базовая (пустая) | J58: 224875 | K58: =ROUND(J58*(1-$E$3)/Лист2!$A$6,0) -> 224875
A59: Rimini L9 DG BOX Фронтальный блок остекления - стеклопакет (DG - Double Glass)
C60: IRML9DB 125 | D60: Стеллаж охлаждаемый ВПВ С (Italfrigo Rimini L9 DG BOX 1250 Д) | E60: гастрономическая | F60: -1…+6 С | G60: 4.01 | H60: 1250х910х1964 | I60: 2130х1180х850 | J60: 147426 | K60: =ROUND(J60*(1-$E$3)/Лист2!$A$6,0) -> 147426
E61: базовая (пустая) | J61: 133210 | K61: =ROUND(J61*(1-$E$3)/Лист2!$A$6,0) -> 133210
C62: IRML9DB 188 | D62: Стеллаж охлаждаемый ВПВ С (Italfrigo Rimini L9 DG BOX 1875 Д) | E62: гастрономическая | F62: -1…+6 С | G62: 6.01 | H62: 1875х910х1964 | I62: 2265х1180х850 | J62: 202467 | K62: =ROUND(J62*(1-$E$3)/Лист2!$A$6,0) -> 202467
E63: базовая (пустая) | J63: 179361 | K63: =ROUND(J63*(1-$E$3)/Лист2!$A$6,0) -> 179361
C64: IRML9DB 250 | D64: Стеллаж охлаждаемый ВПВ С (Italfrigo Rimini L9 DG BOX 2500 Д) | E64: гастрономическая | F64: -1…+6 С | G64: 8.02 | H64: 2500х910х1964 | I64: 2700х1180х850 | J64: 250402 | K64: =ROUND(J64*(1-$E$3)/Лист2!$A$6,0) -> 250402
E65: базовая (пустая) | J65: 222890 | K65: =ROUND(J65*(1-$E$3)/Лист2!$A$6,0) -> 222890
C66: IRML9DB 375 | D66: Стеллаж охлаждаемый ВПВ С (Italfrigo Rimini L9 DG BOX 3750 Д) | E66: гастрономическая | F66: -1…+6 С | G66: 12.03 | H66: 3750х910х1964 | I66: 4000х1180х850 | J66: 351500 | K66: =ROUND(J66*(1-$E$3)/Лист2!$A$6,0) -> 351500
E67: базовая (пустая) | J67: 311085 | K67: =ROUND(J67*(1-$E$3)/Лист2!$A$6,0) -> 311085
A68: Rimini Н9 BOX Открытое исполнение (ночные шторки)
C69: IRMH9B 125 | D69: Стеллаж охлаждаемый ВПВ С (Italfrigo Rimini H9 BOX 1250 Д) | E69: гастрономическая | F69: 0…+7 С | G69: 4.01 | H69: 1250х910х2164 | I69: 2130х1110х850 | J69: 129595 | K69: =ROUND(J69*(1-$E$3)/Лист2!$A$6,0) -> 129595
E70: базовая (пустая) | J70: 115379 | K70: =ROUND(J70*(1-$E$3)/Лист2!$A$6,0) -> 115379
C71: IRMH9B 188 | D71: Стеллаж охлаждаемый ВПВ С (Italfrigo Rimini H9 BOX 1875 Д) | E71: гастрономическая | F71: 0…+7 С | G71: 6.01 | H71: 1875х910х2164 | I71: 2265х1110х850 | J71: 175242 | K71: =ROUND(J71*(1-$E$3)/Лист2!$A$6,0) -> 175242
E72: базовая (пустая) | J72: 152135 | K72: =ROUND(J72*(1-$E$3)/Лист2!$A$6,0) -> 152135
C73: IRMH9B 250 | D73: Стеллаж охлаждаемый ВПВ С (Italfrigo Rimini H9 BOX 2500 Д) | E73: гастрономическая | F73: 0…+7 С | G73: 8.02 | H73: 2500х910х2164 | I73: 2700х1110х850 | J73: 210527 | K73: =ROUND(J73*(1-$E$3)/Лист2!$A$6,0) -> 210527
E74: базовая (пустая) | J74: 183016 | K74: =ROUND(J74*(1-$E$3)/Лист2!$A$6,0) -> 183016
C75: IRMH9B 375 | D75: Стеллаж охлаждаемый ВПВ С (Italfrigo Rimini H9 BOX 3750 Д) | E75: гастрономическая | F75: 0…+7 С | G75: 12.03 | H75: 3750х910х2164 | I75: 4000х1110х850 | J75: 276873 | K75: =ROUND(J75*(1-$E$3)/Лист2!$A$6,0) -> 276873
E76: базовая (пустая) | J76: 236458 | K76: =ROUND(J76*(1-$E$3)/Лист2!$A$6,0) -> 236458
A77: Rimini Н9 DG BOX Фронтальный блок остекления - стеклопакет (DG - Double Glass)
C78: IRMH9DB 125 | D78: Стеллаж охлаждаемый ВПВ С (Italfrigo Rimini H9 DG BOX 1250 Д) | E78: гастрономическая | F78: -1…+6 С | G78: 4.01 | H78: 1250х910х2164 | I78: 2130х1180х850 | J78: 150223 | K78: =ROUND(J78*(1-$E$3)/Лист2!$A$6,0) -> 150223
E79: базовая (пустая) | J79: 136007 | K79: =ROUND(J79*(1-$E$3)/Лист2!$A$6,0) -> 136007
C80: IRMH9DB 188 | D80: Стеллаж охлаждаемый ВПВ С (Italfrigo Rimini H9 DG BOX 1875 Д) | E80: гастрономическая | F80: -1…+6 С | G80: 6.01 | H80: 1875х910х2164 | I80: 2265х1180х850 | J80: 197696 | K80: =ROUND(J80*(1-$E$3)/Лист2!$A$6,0) -> 197696
E81: базовая (пустая) | J81: 174589 | K81: =ROUND(J81*(1-$E$3)/Лист2!$A$6,0) -> 174589
C82: IRMH9DB 250 | D82: Стеллаж охлаждаемый ВПВ С (Italfrigo Rimini H9 DG BOX 2500 Д) | E82: гастрономическая | F82: -1…+6 С | G82: 8.02 | H82: 2500х910х2164 | I82: 2700х1180х850 | J82: 251100 | K82: =ROUND(J82*(1-$E$3)/Лист2!$A$6,0) -> 251100
E83: базовая (пустая) | J83: 223589 | K83: =ROUND(J83*(1-$E$3)/Лист2!$A$6,0) -> 223589
C84: IRMH9DB 375 | D84: Стеллаж охлаждаемый ВПВ С (Italfrigo Rimini H9 DG BOX 3750 Д) | E84: гастрономическая | F84: -1…+6 С | G84: 12.03 | H84: 3750х910х2164 | I84: 4000х1180х850 | J84: 357444 | K84: =ROUND(J84*(1-$E$3)/Лист2!$A$6,0) -> 357444
E85: базовая (пустая) | J85: 317028 | K85: =ROUND(J85*(1-$E$3)/Лист2!$A$6,0) -> 317028
A86: Rimini Н10 BOX Открытое исполнение (ночные шторки)
C87: IRMH10B 125 | D87: Стеллаж охлаждаемый ВПВ С (Italfrigo Rimini H10 BOX 1250 Д) | E87: гастрономическая | F87: 0…+7 С | G87: 4.75 | H87: 1250х1000х2164 | I87: 2130х1180х850 | J87: 139113 | K87: =ROUND(J87*(1-$E$3)/Лист2!$A$6,0) -> 139113
E88: базовая (пустая) | J88: 123456 | K88: =ROUND(J88*(1-$E$3)/Лист2!$A$6,0) -> 123456
C89: IRMH10B 188 | D89: Стеллаж охлаждаемый ВПВ С (Italfrigo Rimini H10 BOX 1875 Д) | E89: гастрономическая | F89: 0…+7 С | G89: 7.12 | H89: 1875х1000х2164 | I89: 2265х1180х850 | J89: 187722 | K89: =ROUND(J89*(1-$E$3)/Лист2!$A$6,0) -> 187722
E90: базовая (пустая) | J90: 162785 | K90: =ROUND(J90*(1-$E$3)/Лист2!$A$6,0) -> 162785
C91: IRMH10B 250 | D91: Стеллаж охлаждаемый ВПВ С (Italfrigo Rimini H10 BOX 2500 Д) | E91: гастрономическая | F91: 0…+7 С | G91: 9.5 | H91: 2500х1000х2164 | I91: 2700х1180х850 | J91: 226220 | K91: =ROUND(J91*(1-$E$3)/Лист2!$A$6,0) -> 226220
E92: базовая (пустая) | J92: 195827 | K92: =ROUND(J92*(1-$E$3)/Лист2!$A$6,0) -> 195827
C93: IRMH10B 375 | D93: Стеллаж охлаждаемый ВПВ С (Italfrigo Rimini H10 BOX 3750 Д) | E93: гастрономическая | F93: 0…+7 С | G93: 14.25 | H93: 3750х1000х2164 | I93: 4000х1180х850 | J93: 288288 | K93: =ROUND(J93*(1-$E$3)/Лист2!$A$6,0) -> 288288
E94: базовая (пустая) | J94: 243552 | K94: =ROUND(J94*(1-$E$3)/Лист2!$A$6,0) -> 243552
A95: Rimini Н10 DG BOX Фронтальный блок остекления - стеклопакет (DG - Double Glass)
C96: IRMH10DB 125 | D96: Стеллаж охлаждаемый ВПВ С (Italfrigo Rimini H10 DG BOX 1250 Д) | E96: гастрономическая | F96: -1…+6 С | G96: 4.75 | H96: 1250х1000х2164 | I96: 2130х1180х850 | J96: 153097 | K96: =ROUND(J96*(1-$E$3)/Лист2!$A$6,0) -> 153097
E97: базовая (пустая) | J97: 137440 | K97: =ROUND(J97*(1-$E$3)/Лист2!$A$6,0) -> 137440
C98: IRMH10DB 188 | D98: Стеллаж охлаждаемый ВПВ С (Italfrigo Rimini H10 DG BOX 1875 Д) | E98: гастрономическая | F98: -1…+6 С | G98: 7.12 | H98: 1875х1000х2164 | I98: 2265х1180х850 | J98: 207271 | K98: =ROUND(J98*(1-$E$3)/Лист2!$A$6,0) -> 207271
E99: базовая (пустая) | J99: 182333 | K99: =ROUND(J99*(1-$E$3)/Лист2!$A$6,0) -> 182333
C100: IRMH10DB 250 | D100: Стеллаж охлаждаемый ВПВ С (Italfrigo Rimini H10 DG BOX 2500 Д) | E100: гастрономическая | F100: -1…+6 С | G100: 9.5 | H100: 2500х1000х2164 | I100: 2700х1180х850 | J100: 261062 | K100: =ROUND(J100*(1-$E$3)/Лист2!$A$6,0) -> 261062
E101: базовая (пустая) | J101: 230669 | K101: =ROUND(J101*(1-$E$3)/Лист2!$A$6,0) -> 230669
C102: IRMH10DB 375 | D102: Стеллаж охлаждаемый ВПВ С (Italfrigo Rimini H10 DG BOX 3750 Д) | E102: гастрономическая | F102: -1…+6 С | G102: 14.25 | H102: 3750х1000х2164 | I102: 4000х1180х850 | J102: 380437 | K102: =ROUND(J102*(1-$E$3)/Лист2!$A$6,0) -> 380437
E103: базовая (пустая) | J103: 337062 | K103: =ROUND(J103*(1-$E$3)/Лист2!$A$6,0) -> 337062
A104: 2 | B104: Охлаждаемые стеллажи полувертикальные LAZIO | J104: Опции Rimini
A106: Базовая комплектация стеллажа: - без противоударного бампера - внутренний объем - оцинкованный металл - внутренняя поверхность ванны из оцинкованного пластификата (двойная защита от коррозии); - электронный контроллер для управления работой оборудования; - без освещения - без полок - цифрофой термометр; - механический ТРВ Sanhua -стандартная упаковка на поддоне, опцонально в деревянной обрешетке - блок остекления со стеклопакетом для стеллажей DG - ночная шторкa для открытого стеллажа - стандартные вентиляторы - комплект подключения к системе дренажа - без боковин - упаковка на поддоне Характеристика:EL.S.Y.0.0.PS.0.внеш 7016гл_внутр 7016гл | D106: Комплектация "Фрукты-овощи" + к базовой комплектации: - Общее светодиодное освещение, стандартный - 4000К, опционально 2700К, 6500К; - 2 ряда полок с ценникодержателем - полки глубиной 400 мм.и глубиной 500 мм. - наклонная решетка для базовой полки Комплект наклонного зекрала и наклонной решетки для базовой полки в отдельном ящике Характеристика:EL.S.Y.2.2.PS.T.внеш 7016гл_внутр 7016гл | F106: Комплектация "Гастрономия" + к базовой комплектации: - Общее светодиодное освещение, стандартный - 4000К, опционально 2700К, 6500К, - 3 ряда полок с ценникодержателем полки глубиной 300мм,400 мм. 500 мм.; Характеристика:EL.S.Y.2.3.PS.0.внеш 7016гл_внутр 7016гл
A107: LAZIO S9, Открытое исполнение (ночные шторки)
C108: ILZS9 125 | D108: Стеллаж охлаждаемый полувертикальный ВПВ С (Italfrigo Lazio S9 1250 Д) | E108: гастрономическая | F108: 0…+7 С | G108: 2.34 | H108: 1250х910х1562 | I108: 1450х1020х1665/ 1500х1070х1715 | J108: 110790 | K108: =ROUND(J108*(1-$E$3)/Лист2!$A$6,0) -> 110790
E109: базовая (пустая) | J109: 96362 | K109: =ROUND(J109*(1-$E$3)/Лист2!$A$6,0) -> 96362
C110: ILZS9 188 | D110: Стеллаж охлаждаемый полувертикальный ВПВ С (Italfrigo Lazio S9 1875 Д) | E110: гастрономическая | F110: 0…+7 С | G110: 3.5 | H110: 1875х910х1562 | I110: 2080х1020х1665/ 2130х1070х1715 | J110: 134676 | K110: =ROUND(J110*(1-$E$3)/Лист2!$A$6,0) -> 134676
E111: базовая (пустая) | J111: 119242 | K111: =ROUND(J111*(1-$E$3)/Лист2!$A$6,0) -> 119242
C112: ILZS9 250 | D112: Стеллаж охлаждаемый полувертикальный ВПВ С (Italfrigo Lazio S9 2500 Д) | E112: гастрономическая | F112: 0…+7 С | G112: 4.68 | H112: 2500х910х1562 | I112: 2700х1020х1665/ 2750х1070х1715 | J112: 161248 | K112: =ROUND(J112*(1-$E$3)/Лист2!$A$6,0) -> 161248
E113: базовая (пустая) | J113: 144379 | K113: =ROUND(J113*(1-$E$3)/Лист2!$A$6,0) -> 144379
C114: ILZS9 375 | D114: Стеллаж охлаждаемый полувертикальный ВПВ С (Italfrigo Lazio S9 3750 Д) | E114: гастрономическая | F114: 0…+7 С | G114: 7.02 | H114: 3750х910х1562 | I114: 3950х1020х1665/ 4000х1070х1715 | J114: 221418 | K114: =ROUND(J114*(1-$E$3)/Лист2!$A$6,0) -> 221418
E115: базовая (пустая) | J115: 197568 | K115: =ROUND(J115*(1-$E$3)/Лист2!$A$6,0) -> 197568
C116: ILZS9Т 188 | D116: Стеллаж охлаждаемый полувертикальный торцевой ВПВ С (Italfrigo Lazio S9 1875 Д) | E116: гастрономическая | F116: 0…+7 С | G116: 3.5 | H116: 1950х910х1562 | I116: 2080х1020х1665/ 2130х1070х1715 | J116: 161430 | K116: =ROUND(J116*(1-$E$3)/Лист2!$A$6,0) -> 161430
E117: базовая (пустая) | J117: 145996 | K117: =ROUND(J117*(1-$E$3)/Лист2!$A$6,0) -> 145996
A118: LAZIO S10, Открытое исполнение (ночные шторки)
A121: Низкотемпературные шкафы под выносное холодообеспечение
A124: 3 | B124: MILAN S
A126: Стандартная комплектация: - светодиодная подсветка внутреннего объема (4000/6000К) верхняя и вертикальная - оттайка ТЭНами - сифон для подключения к канализации - 3/4 уровня решетчатых полок с ценникодержателями - базовые полки-решетки - ТРВ для R404a - без фронтального отбойника - электроллный контроллер управления - без боковин - без полок -без корзин сетчатых на базовую полку
C127: IMS ШН2 234 Д | D127: Шкаф морозильный ШН (Italfrigo Milan S D3 2343) | F127: -22…-18 | H127: 2343х885х1515 | J127: 367764 | K127: =ROUND(J127*(1-$E$3)/Лист2!$A$6,0) -> 367764
K128: =ROUND(J128*(1-$E$3)/Лист2!$A$6,0) -> 0
K129: =ROUND(J129*(1-$E$3)/Лист2!$A$6,0) -> 0
K130: =ROUND(J130*(1-$E$3)/Лист2!$A$6,0) -> 0
K131: =ROUND(J131*(1-$E$3)/Лист2!$A$6,0) -> 0
K132: =ROUND(J132*(1-$E$3)/Лист2!$A$6,0) -> 0
K133: =ROUND(J133*(1-$E$3)/Лист2!$A$6,0) -> 0
K134: =ROUND(J134*(1-$E$3)/Лист2!$A$6,0) -> 0
K135: =ROUND(J135*(1-$E$3)/Лист2!$A$6,0) -> 0
K136: =ROUND(J136*(1-$E$3)/Лист2!$A$6,0) -> 0
K137: =ROUND(J137*(1-$E$3)/Лист2!$A$6,0) -> 0
K138: =ROUND(J138*(1-$E$3)/Лист2!$A$6,0) -> 0
K139: =ROUND(J139*(1-$E$3)/Лист2!$A$6,0) -> 0
K140: =ROUND(J140*(1-$E$3)/Лист2!$A$6,0) -> 0
K141: =ROUND(J141*(1-$E$3)/Лист2!$A$6,0) -> 0
K142: =ROUND(J142*(1-$E$3)/Лист2!$A$6,0) -> 0

Sheet Gamma в линию (hidden)
A1: Примечания: | AY1: В содержание
A2: 1. Витрины с различными температурными режимами желательно разделять боковинами
A3: 2. В комплект герметичного разделителя входит комплект соединительный
A5: 1. Линия витрин GAMMA-2
C7: боковина | E7: GAMMA-2 ББ | P7: GAMMA-2 ББ | AA7: GAMMA-2 ББ | AL7: боковина
C12: Вариант спецификации
C13: Наименование | AT13: Кол-во
C14: Gamma-2 1200 | AA14: без боковин | AT14: 1
C15: Gamma-2 1500 | AA15: без боковин | AT15: 1
C16: Gamma-2 1800 | AA16: без боковин | AT16: 1
C17: Комплект соединительный 337.50.00.00 для ВПС/ВПСН/ВПН Gamma-2 | AT17: 2
C18: Комплект боковин 337.40.00.00 для ВПС/ВПСН Gamma 2 | AT18: 1
A21: 2. Линия витрин GAMMA-2 через герметичный разделитель
C23: боковина | E23: GAMMA-2 ББ | P23: герм.разд. | R23: GAMMA-2 ББ | AC23: герм.разд. | AE23: GAMMA-2 ББ | AP23: боковина
C28: Вариант спецификации
C29: Наименование | AT29: Кол-во
C30: Gamma-2 1200 | AA30: без боковин | AT30: 1
C31: Gamma-2 1500 | AA31: без боковин | AT31: 1
C32: Gamma-2 1800 | AA32: без боковин | AT32: 1
C33: Комплект герметичного разделителя 337.83.00.00 для ВПС/ВПСН/ВПН Gamma-2 | AT33: 2
C34: Комплект боковин 337.40.00.00 для ВПС/ВПСН Gamma 2 | AT34: 1

Sheet Опции для горок Italfrigo
E1: На главную
B3: Ваша скидка: | D3: =Содержание!D2 -> 0
B4: НДС: | D4: =IF(Лист2!A1=TRUE,"С НДС","БЕЗ НДС") -> С НДС
A7: Опции для горок Italfrigo
A8: Rimini/ Lazio
A9: Обязательные опции для базовой комплектации Solo. Дополнительные опции для гастрономической комплектации Solo.
A10: Общее освещение
A11: Нейтральный свет (4000-4500К) подходит всем товарным категориям (не искажает натуральный цвет продуктов). Тёплый свет (2700-3000К) подходит категории "Фрукты, овощи, сыры" (категория выглядит ярче, насыщеннее). Мясной свет подходит категории "Мясо, мясная гастрономия" (категория выглядит ярче, насыщеннее)
A12: 1 | B12: Комплект горизонтального освещения 1106.89.00.00 L=1250 для Rimini/Lazio | C12: Спектр освещения определяется характеристикой (третий символ, "1" - 3000К, "2" - 4000) | F12: 1797 | G12: =ROUND(F12*(1-$D$3)/Лист2!$A$6,0) -> 1797
A13: 2 | B13: Комплект горизонтального освещения 1106.89.00.00-01 L=1875 для Rimini/Lazio | F13: 2385 | G13: =ROUND(F13*(1-$D$3)/Лист2!$A$6,0) -> 2385
A14: 3 | B14: Комплект горизонтального освещения 1106.89.00.00-02 L=2500 для Rimini/Lazio | F14: 2674 | G14: =ROUND(F14*(1-$D$3)/Лист2!$A$6,0) -> 2674
A15: 4 | B15: Комплект горизонтального освещения 1106.89.00.00-03 L=3750 для Rimini/Lazio | F15: 3160 | G15: =ROUND(F15*(1-$D$3)/Лист2!$A$6,0) -> 3160
A16: Дополнительные опции д
A17: Вертикальная подсветка для DG
A18: =A15+1 -> 5 | B18: Комплект электрооттайки испарителя 1058.65.00.00 L=1250 для Rimini | C18: 1058.65.00.00 | F18: 2996 | G18: =ROUND(F18*(1-$D$3)/Лист2!$A$6,0) -> 2996
A19: =A18+1 -> 6 | B19: Комплект электрооттайки испарителя 1058.65.00.00-01 L=1875 для Rimini | C19: 1058.65.00.00-01 | F19: 3976 | G19: =ROUND(F19*(1-$D$3)/Лист2!$A$6,0) -> 3976
A20: =A19+1 -> 7 | B20: Комплект электрооттайки испарителя 1058.65.00.00-02 L=2500 для Rimini | C20: 1058.65.00.00-02 | F20: 4457 | G20: =ROUND(F20*(1-$D$3)/Лист2!$A$6,0) -> 4457
A21: 8 | B21: Комплект электрооттайки испарителя 1058.65.00.00-03 L=3750 для Rimini | C21: 1058.65.00.00-03 | F21: 5530 | G21: =ROUND(F21*(1-$D$3)/Лист2!$A$6,0) -> 5530
A22: 13 | B22: Монтажный набор 1106.120.00.00S | C22: 1106.120.00.00S | F22: 10225 | G22: =ROUND(F22*(1-$D$3)/Лист2!$A$6,0) -> 10225
A23: Подсветка полок (универсальная для полок разной глубины - 300, 400, 500 мм) Нейтральный свет (4000-4500К) подходит всем товарным категориям (не искажает натуральный цвет продуктов). Тёплый свет (2700-3000К) подходит категории "Фрукты, овощи, сыры" (категория выглядит ярче, насыщеннее). Мясной свет подходит категории "Мясо, мясная гастрономия" (категория выглядит ярче, насыщеннее)
A24: =A22+1 -> 14 | B24: Комплект подсветки двух рядов полок T8 1058.91.00.00 для Rimini L=1250 | C24: 1058.91.00.00 | D24: Спектр освещения определяется характеристикой (третий символ, "1" - 3000К, "2" - 4000К) | F24: 5125 | G24: =ROUND(F24*(1-$D$3)/Лист2!$A$6,0) -> 5125
A25: =A24+1 -> 15 | B25: Комплект подсветки двух рядов полок T8 1058.91.00.00-01 для Rimini L=1875 | C25: 1058.91.00.00-01 | F25: 9033 | G25: =ROUND(F25*(1-$D$3)/Лист2!$A$6,0) -> 9033
A26: 16 | B26: Комплект подсветки двух рядов полок T8 1058.91.00.00-02 для Rimini L=2500 | C26: 1058.91.00.00-02 | F26: 10296 | G26: =ROUND(F26*(1-$D$3)/Лист2!$A$6,0) -> 10296
A27: 17 | B27: Комплект подсветки двух рядов полок T8 1058.91.00.00-03 для Rimini L=3750 | C27: 1058.91.00.00-03 | F27: 12772 | G27: =ROUND(F27*(1-$D$3)/Лист2!$A$6,0) -> 12772
A28: 18 | B28: Комплект подсветки трёх рядов полок T8 1058.92.00.00 для Rimini L=1250 | C28: 1058.92.00.00 | F28: 6406 | G28: =ROUND(F28*(1-$D$3)/Лист2!$A$6,0) -> 6406
A29: 19 | B29: Комплект подсветки трёх рядов полок T8 1058.92.00.00-01 для Rimini L=1875 | C29: 1058.92.00.00-01 | F29: 11292 | G29: =ROUND(F29*(1-$D$3)/Лист2!$A$6,0) -> 11292
A30: 20 | B30: Комплект подсветки трёх рядов полок T8 1058.92.00.00-02 для Rimini L=2500 | C30: 1058.92.00.00-02 | F30: 12870 | G30: =ROUND(F30*(1-$D$3)/Лист2!$A$6,0) -> 12870
A31: 21 | B31: Комплект подсветки трёх рядов полок T8 1058.92.00.00-03 для Rimini L=3750 | C31: 1058.92.00.00-03 | F31: 15966 | G31: =ROUND(F31*(1-$D$3)/Лист2!$A$6,0) -> 15966
A32: 22 | B32: Комплект подсветки четырёх рядов полок T8 1058.93.00.00 для Rimini L=1250 | C32: 1058.93.00.00 | F32: 8241 | G32: =ROUND(F32*(1-$D$3)/Лист2!$A$6,0) -> 8241
A33: 23 | B33: Комплект подсветки четырёх рядов полок T8 1058.93.00.00-01 для Rimini L=1875 | C33: 1058.93.00.00-01 | F33: 13799 | G33: =ROUND(F33*(1-$D$3)/Лист2!$A$6,0) -> 13799
A34: 24 | B34: Комплект подсветки четырёх рядов полок T8 1058.93.00.00-02 для Rimini L=2500 | C34: 1058.93.00.00-02 | F34: 14928 | G34: =ROUND(F34*(1-$D$3)/Лист2!$A$6,0) -> 14928
A35: 25 | B35: Комплект подсветки четырёх рядов полок T8 1058.93.00.00-03 для Rimini L=3750 | C35: 1058.93.00.00-03 | F35: 21608 | G35: =ROUND(F35*(1-$D$3)/Лист2!$A$6,0) -> 21608
A36: 26 | B36: Комплект подсветки пяти рядов полок T8 1058.94.00.00 для Rimini L=1250 | C36: 1058.94.00.00 | F36: 9602 | G36: =ROUND(F36*(1-$D$3)/Лист2!$A$6,0) -> 9602
A37: 27 | B37: Комплект подсветки пяти рядов полок T8 1058.94.00.00-01 для Rimini L=1875 | C37: 1058.94.00.00-01 | F37: 16182 | G37: =ROUND(F37*(1-$D$3)/Лист2!$A$6,0) -> 16182
A38: 28 | B38: Комплект подсветки пяти рядов полок T8 1058.94.00.00-02 для Rimini L=2500 | C38: 1058.94.00.00-02 | F38: 17564 | G38: =ROUND(F38*(1-$D$3)/Лист2!$A$6,0) -> 17564
A39: 29 | B39: Комплект подсветки пяти рядов полок T8 1058.94.00.00-03 для Rimini L=3750 | C39: 1058.94.00.00-03 | F39: 25807 | G39: =ROUND(F39*(1-$D$3)/Лист2!$A$6,0) -> 25807
A40: 30 | B40: Комплект подсветки шести рядов полок T8 1058.95.00.00 для Rimini L=1250 | C40: 1058.95.00.00 | F40: 10670 | G40: =ROUND(F40*(1-$D$3)/Лист2!$A$6,0) -> 10670
A41: 31 | B41: Комплект подсветки шести рядов полок T8 1058.95.00.00-01 для Rimini L=1875 | C41: 1058.95.00.00-01 | F41: 18064 | G41: =ROUND(F41*(1-$D$3)/Лист2!$A$6,0) -> 18064
A42: 32 | B42: Комплект подсветки шести рядов полок T8 1058.95.00.00-02 для Rimini L=2500 | C42: 1058.95.00.00-02 | F42: 21205 | G42: =ROUND(F42*(1-$D$3)/Лист2!$A$6,0) -> 21205
A43: 33 | B43: Комплект подсветки шести рядов полок T8 1058.95.00.00-03 для Rimini L=3750 | C43: 1058.95.00.00-03 | F43: 31957 | G43: =ROUND(F43*(1-$D$3)/Лист2!$A$6,0) -> 31957
A44: Дополнительные опции
A45: =A43+1 -> 34 | B45: Комплект боковины глухой левой 1118.40.00.00 для Rimini H10 | C45: 1118.40.00.00 | F45: 14326 | G45: =ROUND(F45*(1-$D$3)/Лист2!$A$6,0) -> 14326
A46: =A45+1 -> 35 | B46: Комплект боковины глухой правой 1118.40.00.00mir для Rimini H10 | C46: 1118.40.00.00mir | F46: 14326 | G46: =ROUND(F46*(1-$D$3)/Лист2!$A$6,0) -> 14326
A47: =A45+1 -> 35 | B47: Комплект боковины глухой левой 1058.40.00.00 для Rimini H9 | C47: 1058.40.00.00 | F47: 12456 | G47: =ROUND(F47*(1-$D$3)/Лист2!$A$6,0) -> 12456
A48: 36 | B48: Комплект боковины глухой правой 1058.40.00.00mir для Rimini H9 | C48: 1058.40.00.00mir | F48: 12456 | G48: =ROUND(F48*(1-$D$3)/Лист2!$A$6,0) -> 12456
A49: =A47+1 -> 36 | B49: Комплект боковины глухой левой 1109.40.00.00 для Rimini L9 | C49: 1109.40.00.00 | F49: 10747 | G49: =ROUND(F49*(1-$D$3)/Лист2!$A$6,0) -> 10747
A50: 37 | B50: Комплект боковины глухой правой 1109.40.00.00mir для Rimini L9 | C50: 1109.40.00.00mir | F50: 10747 | G50: =ROUND(F50*(1-$D$3)/Лист2!$A$6,0) -> 10747
A51: =A49+1 -> 37 | B51: Комплект боковины глухой левой 1112.40.00.00 для Rimini H7 | C51: 1112.40.00.00 | F51: 12425 | G51: =ROUND(F51*(1-$D$3)/Лист2!$A$6,0) -> 12425
A52: 38 | B52: Комплект боковины глухой правой 1112.40.00.00mir для Rimini H7 | C52: 1112.40.00.00mir | F52: 12425 | G52: =ROUND(F52*(1-$D$3)/Лист2!$A$6,0) -> 12425
A53: =A51+1 -> 38 | B53: Комплект боковины глухой левой 1115.40.00.00 для Rimini L7 | C53: 1115.40.00.00 | F53: 10904 | G53: =ROUND(F53*(1-$D$3)/Лист2!$A$6,0) -> 10904
A54: 39 | B54: Комплект боковины глухой правой 1115.40.00.00mir для Rimini L7 | C54: 1115.40.00.00mir | F54: 10904 | G54: =ROUND(F54*(1-$D$3)/Лист2!$A$6,0) -> 10904
A55: =A53+1 -> 39 | B55: Комплект боковины глухой левой 1215.40.00.00 для Lazio S9 | C55: 1215.40.00.00 | F55: 8731 | G55: =ROUND(F55*(1-$D$3)/Лист2!$A$6,0) -> 8731
A56: 40 | B56: Комплект боковины глухой правой 1215.40.00.00mir для Lazio S9 | C56: 1215.40.00.00mir | F56: 8731 | G56: =ROUND(F56*(1-$D$3)/Лист2!$A$6,0) -> 8731
A58: 41 | B58: Комплект боковины с зеркалом 1118.38.00.00 для Rimini H10 | C58: 1118.38.00.00 | F58: 15110 | G58: =ROUND(F58*(1-$D$3)/Лист2!$A$6,0) -> 15110
A59: =A58+1 -> 42 | B59: Комплект боковины с зеркалом 1058.38.00.00 для Rimini H9 | C59: 1058.38.00.00 | F59: 13838 | G59: =ROUND(F59*(1-$D$3)/Лист2!$A$6,0) -> 13838
A60: =A59+1 -> 43 | B60: Комплект боковины с зеркалом 1109.38.00.00 для Rimini L9 | C60: 1109.38.00.00 | F60: 12766 | G60: =ROUND(F60*(1-$D$3)/Лист2!$A$6,0) -> 12766
A61: =A60+1 -> 44 | B61: Комплект боковины с зеркалом 1112.38.00.00 для Rimini Н7 | C61: 1112.38.00.00 | F61: 12425 | G61: =ROUND(F61*(1-$D$3)/Лист2!$A$6,0) -> 12425
A62: 45 | B62: Комплект боковины с зеркалом 1115.38.00.00 для Rimini L7 | C62: 1115.38.00.00 | F62: 11740 | G62: =ROUND(F62*(1-$D$3)/Лист2!$A$6,0) -> 11740
A63: 46 | B63: Комплект боковины глухой левой с зеркалом 1215.37.00.00 для Lazio S9 | C63: 1215.37.00.00 | F63: 10703 | G63: =ROUND(F63*(1-$D$3)/Лист2!$A$6,0) -> 10703
A64: 47 | B64: Комплект боковины глухой правой с зеркалом 1215.37.00.00mir для Lazio S9 | C64: 1215.37.00.00mir | F64: 10703 | G64: =ROUND(F64*(1-$D$3)/Лист2!$A$6,0) -> 10703
A66: 48 | B66: Комплект боковины со стеклопакетом левой 1118.41.00.00 для Rimini H10 | C66: 1118.41.00.00 | F66: 16357 | G66: =ROUND(F66*(1-$D$3)/Лист2!$A$6,0) -> 16357
A67: =A66+1 -> 49 | B67: Комплект боковины со стеклопакетом правой 1118.41.00.00mir для Rimini H10 | C67: 1118.41.00.00mir | F67: 16357 | G67: =ROUND(F67*(1-$D$3)/Лист2!$A$6,0) -> 16357
A68: =A66+1 -> 49 | B68: Комплект боковины со стеклопакетом левой 1058.41.00.00 для Rimini H9 | C68: 1058.41.00.00 | F68: 14651 | G68: =ROUND(F68*(1-$D$3)/Лист2!$A$6,0) -> 14651
A69: =A68+1 -> 50 | B69: Комплект боковины со стеклопакетом правой 1058.41.00.00mir для Rimini H9 | C69: 1058.41.00.00mir | F69: 14651 | G69: =ROUND(F69*(1-$D$3)/Лист2!$A$6,0) -> 14651
A70: =A68+1 -> 50 | B70: Комплект боковины со стеклопакетом левой 1109.41.00.00 для Rimini L9 | C70: 1109.41.00.00 | F70: 13750 | G70: =ROUND(F70*(1-$D$3)/Лист2!$A$6,0) -> 13750
A71: =A70+1 -> 51 | B71: Комплект боковины со стеклопакетом правой 1109.41.00.00mir для Rimini L9 | C71: 1109.41.00.00mir | F71: 13750 | G71: =ROUND(F71*(1-$D$3)/Лист2!$A$6,0) -> 13750
A72: =A70+1 -> 51 | B72: Комплект боковины со стеклопакетом левой 1112.41.00.00 для Rimini H7 | C72: 1112.41.00.00 | F72: 13321 | G72: =ROUND(F72*(1-$D$3)/Лист2!$A$6,0) -> 13321
A73: =A72+1 -> 52 | B73: Комплект боковины со стеклопакетом правой 1112.41.00.00mir для Rimini H7 | C73: 1112.41.00.00mir | F73: 13321 | G73: =ROUND(F73*(1-$D$3)/Лист2!$A$6,0) -> 13321
A74: =A72+1 -> 52 | B74: Комплект боковины со стеклопакетом левой 1115.41.00.00 для Rimini L7 | C74: 1115.41.00.00 | F74: 11973 | G74: =ROUND(F74*(1-$D$3)/Лист2!$A$6,0) -> 11973
A75: =A74+1 -> 53 | B75: Комплект боковины со стеклопакетом правой 1115.41.00.00mir для Rimini L7 | C75: 1115.41.00.00mir | F75: 11973 | G75: =ROUND(F75*(1-$D$3)/Лист2!$A$6,0) -> 11973
A76: =A74+1 -> 53 | B76: Комплект боковины со стеклопакетом левой 1215.41.00.00 для Lazio S9 | C76: 1215.41.00.00 | F76: 22479 | G76: =ROUND(F76*(1-$D$3)/Лист2!$A$6,0) -> 22479
A77: =A76+1 -> 54 | B77: Комплект боковины со стеклопакетом правой 1215.41.00.00mir для Lazio S9 | C77: 1215.41.00.00mir | F77: 22479 | G77: =ROUND(F77*(1-$D$3)/Лист2!$A$6,0) -> 22479
A79: 55 | B79: Комплект герметичного разделителя (оргст) 1118.44.00.00 для Rimini H10 | C79: 1118.44.00.00 | F79: 20675 | G79: =ROUND(F79*(1-$D$3)/Лист2!$A$6,0) -> 20675
A80: =A79+1 -> 56 | B80: Комплект герметичного разделителя (оргст) 1058.44.00.00 для Rimini H9 | C80: 1058.44.00.00 | F80: 18503 | G80: =ROUND(F80*(1-$D$3)/Лист2!$A$6,0) -> 18503
A81: =A80+1 -> 57 | B81: Комплект герметичного разделителя (оргст) 1109.44.00.00 для Rimini L9 | C81: 1109.44.00.00 | F81: 16860 | G81: =ROUND(F81*(1-$D$3)/Лист2!$A$6,0) -> 16860
A82: =A81+1 -> 58 | B82: Комплект герметичного разделителя (оргст) 1112.44.00.00 для Rimini H7 | C82: 1112.44.00.00 | F82: 16002 | G82: =ROUND(F82*(1-$D$3)/Лист2!$A$6,0) -> 16002
A83: 59 | B83: Комплект герметичного разделителя (оргст) 1115.44.00.00 для Rimini L7 | C83: 1115.44.00.00 | F83: 14427 | G83: =ROUND(F83*(1-$D$3)/Лист2!$A$6,0) -> 14427
A84: 60 | B84: Комплект герметичного разделителя (оргстекло) для 1215.44.00.00 Lazio S9 | C84: 1215.44.00.00 | F84: 15286 | G84: =ROUND(F84*(1-$D$3)/Лист2!$A$6,0) -> 15286
A86: =A84+1 -> 61 | B86: Комплект зеркального герметичного разделителя 1118.45.00.00 для Rimini H10 | C86: 1118.45.00.00 | F86: 24978 | G86: =ROUND(F86*(1-$D$3)/Лист2!$A$6,0) -> 24978
A87: =A86+1 -> 62 | B87: Комплект зеркального герметичного разделителя 1058.45.00.00 для Rimini H9 | C87: 1058.45.00.00 | F87: 24130 | G87: =ROUND(F87*(1-$D$3)/Лист2!$A$6,0) -> 24130
A88: =A87+1 -> 63 | B88: Комплект зеркального герметичного разделителя 1109.45.00.00 для Rimini L9 | C88: 1109.45.00.00 | F88: 21139 | G88: =ROUND(F88*(1-$D$3)/Лист2!$A$6,0) -> 21139
A89: =A88+1 -> 64 | B89: Комплект зеркального герметичного разделителя 1112.45.00.00 для Rimini H7 | C89: 1112.45.00.00 | F89: 21139 | G89: =ROUND(F89*(1-$D$3)/Лист2!$A$6,0) -> 21139
A90: =A89+1 -> 65 | B90: Комплект зеркального герметичного разделителя 1115.45.00.00 для Rimini L7 | C90: 1115.45.00.00 | F90: 20674 | G90: =ROUND(F90*(1-$D$3)/Лист2!$A$6,0) -> 20674
A92: =A90+1 -> 66 | B92: Комплект панорамного герметичного разделителя (стеклопакет) для Rimini H10 | C92: 811.46.00.00 | F92: 17314 | G92: =ROUND(F92*(1-$D$3)/Лист2!$A$6,0) -> 17314
A94: =A92+1 -> 67 | B94: Комплект соединительный в линию для Rimini | C94: 1058.60.00.00 | F94: 2222 | G94: =ROUND(F94*(1-$D$3)/Лист2!$A$6,0) -> 2222
A95: =A94+1 -> 68 | B95: Комплект соединительный в линию для 1215.60.00.00 для Lazio | C95: 1215.60.00.00 | F95: 1097 | G95: =ROUND(F95*(1-$D$3)/Лист2!$A$6,0) -> 1097
A97: =A95+1 -> 69 | B97: Полка навесная с кронштейнами (ОЦ) 1250х600 1106.65.00.00 для Rimini для исп1250,2500,3750 | C97: 1106.65.00.00 | F97: 2662 | G97: =ROUND(F97*(1-$D$3)/Лист2!$A$6,0) -> 2662
A98: =A97+1 -> 70 | B98: Полка навесная с кронштейнами (ОЦ) 937х600 1106.65.00.00-01 для Rimini для исп. 1875 | C98: 1106.65.00.00-01 | F98: 2179 | G98: =ROUND(F98*(1-$D$3)/Лист2!$A$6,0) -> 2179
A99: =A98+1 -> 71 | B99: Полка навесная с кронштейнами (ОЦ) 1250х500 1106.66.00.00 для Rimini для исп1250,2500,3750 | C99: 1106.66.00.00 | F99: 2374 | G99: =ROUND(F99*(1-$D$3)/Лист2!$A$6,0) -> 2374
A100: 72 | B100: Полка навесная с кронштейнами (ОЦ) 937х500 1106.66.00.00-01 для Rimini для исп. 1875 | C100: 1106.66.00.00-01 | F100: 1996 | G100: =ROUND(F100*(1-$D$3)/Лист2!$A$6,0) -> 1996
A101: 73 | B101: Полка навесная с кронштейнами (ОЦ) 1250х400 1106.62.00.00 для Rimini для исп1250,2500,3750 | C101: 1106.62.00.00 | F101: 1853 | G101: =ROUND(F101*(1-$D$3)/Лист2!$A$6,0) -> 1853
A102: 74 | B102: Полка навесная с кронштейнами (ОЦ) 937х400 1106.62.00.00-01 для Rimini для исп. 1875 | C102: 1106.62.00.00-01 | F102: 1713 | G102: =ROUND(F102*(1-$D$3)/Лист2!$A$6,0) -> 1713
A103: 75 | B103: Полка навесная с кронштейнами (ОЦ) 1250х300 1106.63.00.00 для Rimini/Lazio для исп1250,2500,3750 | C103: 1106.63.00.00 | F103: 1737 | G103: =ROUND(F103*(1-$D$3)/Лист2!$A$6,0) -> 1737
A104: 76 | B104: Полка навесная с кронштейнами (ОЦ) 937х300 1106.63.00.00-01 для Rimini/Lazio для исп. 1875 | C104: 1106.63.00.00-01 | F104: 1598 | G104: =ROUND(F104*(1-$D$3)/Лист2!$A$6,0) -> 1598
A105: 77 | B105: Ценникодержатель съемный,L=1250, T-TH 0100125, прозрачный | C105: T-TH 0100125 | F105: 110 | G105: =ROUND(F105*(1-$D$3)/Лист2!$A$6,0) -> 110
A106: 78 | B106: Ценникодержатель съемный, L=925, прозрачный | C106: н№15085.2 | F106: 76 | G106: =ROUND(F106*(1-$D$3)/Лист2!$A$6,0) -> 76
A108: =A106+1 -> 79 | B108: Решетка базовая (фруктовая) 932х755 мм. для Rimini H10 для исп.1875 | C108: 811.75.00.00 | F108: 3490 | G108: =ROUND(F108*(1-$D$3)/Лист2!$A$6,0) -> 3490
A109: =A108+1 -> 80 | B109: Решетка базовая (фруктовая) 1245х755 мм. для Rimini H10 для исп.1250/2500/3750 | C109: 811.75.00.00-01 | F109: 4214 | G109: =ROUND(F109*(1-$D$3)/Лист2!$A$6,0) -> 4214
A110: =A109+1 -> 81 | B110: Решетка фруктовая (базовая), 932х635 мм. для Rimini H9/L9 | C110: 781.75.00.00 | F110: 3357 | G110: =ROUND(F110*(1-$D$3)/Лист2!$A$6,0) -> 3357
A111: 82 | B111: Решетка фруктовая (базовая), 1245x635 мм. для Rimini H9/L9 1250/2500/3750 | C111: 781.75.00.00-01 | F111: 3714 | G111: =ROUND(F111*(1-$D$3)/Лист2!$A$6,0) -> 3714
A112: 83 | B112: Решетка базовая (фруктовая) 932х455 мм. для Rimini H7/L7 для исп.1875 | C112: 798.75.00.00 | F112: 2521 | G112: =ROUND(F112*(1-$D$3)/Лист2!$A$6,0) -> 2521
A113: 84 | B113: Решетка базовая (фруктовая) 1245х455 мм. для Rimini H7/L7 для исп.1250/2500/3750 | C113: 798.75.00.00-01 | F113: 2854 | G113: =ROUND(F113*(1-$D$3)/Лист2!$A$6,0) -> 2854
A115: =A113+1 -> 85 | B115: Комплект зеркала наклонного 1118.53.00.00 L=1250 для Rimini H10 | C115: 1118.53.00.00 | F115: 3782 | G115: =ROUND(F115*(1-$D$3)/Лист2!$A$6,0) -> 3782
A116: =A115+1 -> 86 | B116: Комплект зеркала наклонного 1118.53.00.00-01 L=973 для Rimini H10 | C116: 1118.53.00.00-01 | F116: 3241 | G116: =ROUND(F116*(1-$D$3)/Лист2!$A$6,0) -> 3241
A117: =A116+1 -> 87 | B117: Комплект заглушек для зеркала наклонного 1118.52.00.00 для Rimini H10 | C117: 1118.52.00.00 | F117: 1127 | G117: =ROUND(F117*(1-$D$3)/Лист2!$A$6,0) -> 1127
A118: 88 | B118: Комплект зеркала наклонного 1058.53.00.00 L=1250 для Rimini H9/L9 | C118: 1058.53.00.00 | F118: 3289 | G118: =ROUND(F118*(1-$D$3)/Лист2!$A$6,0) -> 3289
A119: 89 | B119: Комплект зеркала наклонного 1058.53.00.00-01 L=973 для Rimini H9/L9 | C119: 1058.53.00.00-01 | F119: 2818 | G119: =ROUND(F119*(1-$D$3)/Лист2!$A$6,0) -> 2818
A120: 90 | B120: Комплект заглушек для зеркала наклонного 1058.52.00.00 для Rimini H9/L9 | C120: 1058.52.00.00 | F120: 854 | G120: =ROUND(F120*(1-$D$3)/Лист2!$A$6,0) -> 854
A121: 91 | B121: Комплект зеркала наклонного 1112.53.00.00 L=1250 для Rimini H7/L7 | C121: 1112.53.00.00 | F121: 2939 | G121: =ROUND(F121*(1-$D$3)/Лист2!$A$6,0) -> 2939
A122: 92 | B122: Комплект зеркала наклонного 1112.53.00.00-01 L=973 для Rimini H7/L7 | C122: 1112.53.00.00-01 | F122: 2523 | G122: =ROUND(F122*(1-$D$3)/Лист2!$A$6,0) -> 2523
A123: 93 | B123: Комплект заглушек для зеркала наклонного 1112.52.00.00 для Rimini H7/L7 | C123: 1112.52.00.00 | F123: 627 | G123: =ROUND(F123*(1-$D$3)/Лист2!$A$6,0) -> 627
A125: =A123+1 -> 94 | B125: Разделитель объема для полок(600) для Rimini | C125: 717.115.00.00 | F125: 3370 | G125: =ROUND(F125*(1-$D$3)/Лист2!$A$6,0) -> 3370
A126: =A125+1 -> 95 | B126: Разделитель объема для полок(500) для Rimini | C126: 646.116.00.00 | F126: 2973 | G126: =ROUND(F126*(1-$D$3)/Лист2!$A$6,0) -> 2973
A127: 96 | B127: Разделитель объема для полок(400) для Rimini | C127: 757.115.00.00 | F127: 2063 | G127: =ROUND(F127*(1-$D$3)/Лист2!$A$6,0) -> 2063
A128: 97 | B128: Делитель передвижной H=150 (500) оргст 646.51.00.01-01 L=1250/2500/3750 для стеллажей Italfrigo | C128: 646.51.00.01-01 | F128: 759 | G128: =ROUND(F128*(1-$D$3)/Лист2!$A$6,0) -> 759
A129: 98 | B129: Делитель передвижной H=150 (400) оргст 646.51.00.01 L=1250/2500/3750 для стеллажей Italfrigo | C129: 646.51.00.01 | F129: 603 | G129: =ROUND(F129*(1-$D$3)/Лист2!$A$6,0) -> 603
A130: 99 | B130: Фронтальный ограничитель(1250) оргст 646.54.00.01 L=1250/2500/3750 для стеллажей Italfrigo | C130: 646.54.00.01 | F130: 571 | G130: =ROUND(F130*(1-$D$3)/Лист2!$A$6,0) -> 571
A131: 100 | B131: Фронтальный ограничитель(937) оргст 646.54.00.01-01 L=1875 для стеллажей Italfrigo | C131: 646.54.00.01-01 | F131: 551 | G131: =ROUND(F131*(1-$D$3)/Лист2!$A$6,0) -> 551
A132: 101 | B132: Фронтальный ограничитель H=120 (1250) оргст 646.54.00.02 L=1250/2500/3750 для стеллажей Italfrigo | C132: 646.54.00.02 | F132: 1689 | G132: =ROUND(F132*(1-$D$3)/Лист2!$A$6,0) -> 1689
A133: 102 | B133: Фронтальный ограничитель H=120 (937) оргст 646.54.00.02-01 L=1875 для стеллажей Italfrigo | C133: 646.54.00.02-01 | F133: 1322 | G133: =ROUND(F133*(1-$D$3)/Лист2!$A$6,0) -> 1322
A134: 103 | B134: Фронтальный ограничитель Н=40мм, L=1250 (оргст) 646.54.00.03 L=1250/2500/3750 для Rimini/Lazio | C134: 646.54.00.03 | F134: 692 | G134: =ROUND(F134*(1-$D$3)/Лист2!$A$6,0) -> 692
A135: 104 | B135: Фронтальный ограничитель Н=40мм, L=937 (оргст) 646.54.00.03-01 L=1875 для Rimini/Lazio | C135: 646.54.00.03-01 | F135: 324 | G135: =ROUND(F135*(1-$D$3)/Лист2!$A$6,0) -> 324
A136: 105 | B136: Фронтальный ограничитель Н=60мм, L=1250 (оргст) 646.54.00.04 L=1250/2500/3750 для Rimini/Lazio | C136: 646.54.00.04 | F136: 1015 | G136: =ROUND(F136*(1-$D$3)/Лист2!$A$6,0) -> 1015
A137: 106 | B137: Фронтальный ограничитель Н=60мм, L=937 (оргст) 646.54.00.04-01 L=1875 для Rimini/Lazio | C137: 646.54.00.04-01 | F137: 821 | G137: =ROUND(F137*(1-$D$3)/Лист2!$A$6,0) -> 821
A138: 107 | B138: Ограничитель проволочный(ОЦ, полимерное покрытие) 1235х57мм 781.76.00.01 | C138: 781.76.00.01 | F138: 337 | G138: =ROUND(F138*(1-$D$3)/Лист2!$A$6,0) -> 337
A139: 108 | B139: Ограничитель фронтальный проволочный 141.64.00.00 H=80 L=1250 для ВПВ Rimni/Lazio 1250/2500/3750 | C139: 141.64.00.00 | F139: 571 | G139: =ROUND(F139*(1-$D$3)/Лист2!$A$6,0) -> 571
A140: 109 | B140: Ограничитель проволочный(ОЦ, полимерное покрытие) 926х57мм 781.76.00.01-01 | C140: 781.76.00.01-01 | F140: 269 | G140: =ROUND(F140*(1-$D$3)/Лист2!$A$6,0) -> 269
A141: 110 | B141: Ограничитель фронтальный проволочный 189.64.00.00 Н=80 L=940 для ВПВ Rimni/Lazio 1875 | C141: 189.64.00.00 | F141: 450 | G141: =ROUND(F141*(1-$D$3)/Лист2!$A$6,0) -> 450
A143: =A141+1 -> 111 | B143: Комплект отбойника фронтального (пластик) L=1250 | C143: 646.56.00.00 | F143: 927 | G143: =ROUND(F143*(1-$D$3)/Лист2!$A$6,0) -> 927
A144: =A143+1 -> 112 | B144: Комплект отбойника фронтального (пластик) L=1875 | C144: 646.56.00.00-01 | F144: 1342 | G144: =ROUND(F144*(1-$D$3)/Лист2!$A$6,0) -> 1342
A145: =A144+1 -> 113 | B145: Комплект отбойника фронтального (пластик) L=2500 | C145: 646.56.00.00-02 | F145: 1931 | G145: =ROUND(F145*(1-$D$3)/Лист2!$A$6,0) -> 1931
A146: 114 | B146: Комплект отбойника фронтального (пластик) L=3750 | C146: 646.56.00.00-03 | F146: 2583 | G146: =ROUND(F146*(1-$D$3)/Лист2!$A$6,0) -> 2583
A147: 115 | B147: Торцевой элемент НБИЛГ 7.116.007 н№950.28 | C147: н№950.28 | F147: 296 | G147: =ROUND(F147*(1-$D$3)/Лист2!$A$6,0) -> 296
A148: 116 | B148: Комплект отбойника фронтального 15х30 (труба нерж.) L=1250 | C148: 781.55.00.00 | F148: 1853 | G148: =ROUND(F148*(1-$D$3)/Лист2!$A$6,0) -> 1853
A149: 117 | B149: Комплект отбойника фронтального 15х30 (труба нерж.) L=1875 | C149: 781.55.00.00-01 | F149: 2685 | G149: =ROUND(F149*(1-$D$3)/Лист2!$A$6,0) -> 2685
A150: 118 | B150: Комплект отбойника фронтального 15х30 (труба нерж) L=2500 | C150: 781.55.00.00-02 | F150: 3511 | G150: =ROUND(F150*(1-$D$3)/Лист2!$A$6,0) -> 3511
A151: 119 | B151: Комплект отбойника фронтального 15х30 (труба нерж) L=3750 | C151: 781.55.00.00-03 | F151: 5167 | G151: =ROUND(F151*(1-$D$3)/Лист2!$A$6,0) -> 5167
A153: =A151+1 -> 120 | B153: Комплект подвесов для колбасы(две штанги + 4 блока крюков) 1004.59.00.00-01 L=1250, 2500 25 шаг | C153: 1004.59.00.00-01 | F153: 6693 | G153: =ROUND(F153*(1-$D$3)/Лист2!$A$6,0) -> 6693
A154: =A153+1 -> 121 | B154: Комплект подвесов для колбасы(две штанги + 4 блока крюков) 1004.59.00.00-03 L=937 25 шаг | C154: 1004.59.00.00-03 | F154: 5786 | G154: =ROUND(F154*(1-$D$3)/Лист2!$A$6,0) -> 5786
A155: =A154+1 -> 122 | B155: Штанга для навески крюков 1004.57.00.00-01 L=1250, 15х30 мм. 25 шаг для Rimini/Lazio/Solo | C155: 1004.57.00.00-01 | F155: 2500 | G155: =ROUND(F155*(1-$D$3)/Лист2!$A$6,0) -> 2500
A156: 123 | B156: Штанга для навески крюков 1004.57.00.00-03 L=937, 15х30 мм. 25 шаг для Rimini/Lazio/Solo | C156: 1004.57.00.00-03 | F156: 2028 | G156: =ROUND(F156*(1-$D$3)/Лист2!$A$6,0) -> 2028
A157: 124 | B157: Крючок на штангу одинарный хромированный с ценникодержателем, 300 мм / диаметр 8,0 мм | C157: н№15074.31 | F157: 472 | G157: =ROUND(F157*(1-$D$3)/Лист2!$A$6,0) -> 472
A158: 125 | B158: Крючок на штангу одинарный хромированный с ценникодержателем, 400 мм / диаметр 8,0 мм | C158: н№15074.32 | F158: 729 | G158: =ROUND(F158*(1-$D$3)/Лист2!$A$6,0) -> 729
A159: 126 | B159: Крючок на штангу одинарный хромированный с ценникодержателем, 500 мм / диаметр 10,0 мм | C159: н№15074.33 | F159: 886 | G159: =ROUND(F159*(1-$D$3)/Лист2!$A$6,0) -> 886
A161: Milan S
A162: 127 | B162: Комплект боковины глухой левой 939.40.00.00 для Milan S | C162: 939.40.00.00 | F162: 10250 | G162: =ROUND(F162*(1-$D$3)/Лист2!$A$6,0) -> 10250
A163: 128 | B163: Комплект боковины глухой правой 939.40.00.00mir для Milan S | C163: 939.40.00.00mir | F163: 10250 | G163: =ROUND(F163*(1-$D$3)/Лист2!$A$6,0) -> 10250
A164: 129 | B164: Комплект боковины глухой левой с зеркалом 939.37.00.00 для Milan S | C164: 939.37.00.00 | F164: 11361 | G164: =ROUND(F164*(1-$D$3)/Лист2!$A$6,0) -> 11361
A165: 130 | B165: Комплект боковины глухой правой с зеркалом 939.37.00.00mir для Milan S | C165: 939.37.00.00mir | F165: 11361 | G165: =ROUND(F165*(1-$D$3)/Лист2!$A$6,0) -> 11361
A166: 131 | B166: Комплект зеркальн гермет разделителя 939.45.00.00 для Milan S | C166: 939.45.00.00 | F166: 17174 | G166: =ROUND(F166*(1-$D$3)/Лист2!$A$6,0) -> 17174
A167: 132 | B167: Комплект боковины панорамной левой 939.41.00.00 для Milan S | C167: 939.41.00.00 | F167: 20049 | G167: =ROUND(F167*(1-$D$3)/Лист2!$A$6,0) -> 20049
A168: 133 | B168: Комплект боковины панорамной правой 939.41.00.00mir для Milan S | C168: 939.41.00.00mir | F168: 20049 | G168: =ROUND(F168*(1-$D$3)/Лист2!$A$6,0) -> 20049
A169: 134 | B169: Комплект соединительный в линию 939.60.00.00 для Milan S | C169: 939.60.00.00 | F169: 2023 | G169: =ROUND(F169*(1-$D$3)/Лист2!$A$6,0) -> 2023
A170: 135 | B170: Ценникодержатель съемный, L=1000 мм, прозрачный, откидной (на полки, рёшётку) | C170: 845.00.00.11 | F170: 149 | G170: =ROUND(F170*(1-$D$3)/Лист2!$A$6,0) -> 149
A171: 136 | B171: Полка сетчатая навесная с кронштейнами 780х513 мм для Milan S с ограничителем | C171: 939.58.00.00 | F171: 1935 | G171: =ROUND(F171*(1-$D$3)/Лист2!$A$6,0) -> 1935
A172: 137 | B172: Полка сетчатая базовая 780х574 мм, c ограничителем для Milan S | C172: 775.14.00.00 | F172: 1271 | G172: =ROUND(F172*(1-$D$3)/Лист2!$A$6,0) -> 1271
A173: 138 | B173: Комплект отбойника фронтального (пластик) L=2343 | C173: 775.56.00.00-01 | F173: 1743 | G173: =ROUND(F173*(1-$D$3)/Лист2!$A$6,0) -> 1743
A174: 139 | B174: Монтажный набор (до 4 кВт) для 1562 (D2), 2343 (D3) | C174: 1106.120.00.00S | F174: 10225 | G174: =ROUND(F174*(1-$D$3)/Лист2!$A$6,0) -> 10225
A175: 140 | B175: Комплект отбойника фронтального (15х30) L=2343 для Milan/Anzio | C175: 775.55.00.00-01 | F175: 3487 | G175: =ROUND(F175*(1-$D$3)/Лист2!$A$6,0) -> 3487
F181: Наверх

Sheet Низкотемпературные шкафы
G1: ЗАВОД «ОПК» Тел.: +7 (496) 704-52-11 e-mail:manager@ozpk.ru сайт: ozpk.ru | J1: На главную
B3: Ваша скидка: | D3: =Содержание!D2 -> 0
B4: НДС: | D4: =IF(Лист2!A1=TRUE,"С НДС","БЕЗ НДС") -> С НДС
A6: Низкотемпературные шкафы Cryspi со встроенным агрегатом
A9: № | B9: Артикул | C9: Наименование | D9: Температурный режим | E9: Площадь экспозиции | F9: Охлаждаемый объем | G9: Габариты | H9: Габариты в упаковке (в обрешетке), | I9: Базовая | J9: Ваша цена
G10: (LxWxH) мм | H10: (LxWxH) мм | I10: цена, руб. (с НДС)
A11: 1 | B11: Шкаф-надстройка Verona | K11: СЕЧЕНИЯ
K12: VERONA
C13: Стандартная комплектация: - подставка с комплектом крепежа - светодиодная подсветка внутреннего объема (4500К, 6500К) без изменения цены - автоматическая оттайка горячим газом - автоматическое выпаривание конденсата - 4 уровня решетчатых полок Характеристика С.4.2.PS.0.внеш9016гл_внутр9016гл | F13: Тип охлаждения - динамический - Климатический класс - 3 - Температура окружающей среды, С° - max +25 - Относительная влажность воздуха, % - max 60 - Хладагент - R290 - Напряжение, В - 220
C14: Надстройка для ларя 400 л.
C15: Шкаф низкотемпературный ШН Verona 1220 | D15: -23…-18 | F15: 1.076 | G15: 1217х750х2210 | I15: 174788 | J15: =ROUND(I15*(1-$D$3)/Лист2!$A$6,0) -> 174788
A21: 2 | B21: Стеллаж охлаждаемый низкотемпературный Corsa LT
B23: Стеллажи охлаждаемые (надстройки на ларями-бонетами) ВПН С Corsa с глубиной базовой полки 400мм, навесных 400мм и высотой охлаждаемого объема 790мм. Имеют динамический тип охлаждения обеспечивающее равномерное охлаждение и поддержание стабильной температуры. Оснащаются вертикальной светодиодной энергосберегающей подсветкой, электронным независимым термометром, фронтальными блоками остекления с распашными дверьми с двухкамерным стеклопакетом из низкоэмиссионного стекла, компрессорами на хладагенте R290 (пропан). Модуль 1875 мм. - 3 двери; 2100 мм. - 3 двери; 2500 мм. - 4 двери Оборудование предназначено для продажи и кратковременного хранения продуктов при температуре окружающей среды от +16˚С до +25˚С и относительной влажности воздуха не выше 60%.
C24: Базовая комплектация стеллажа: - Общее светодиодное освещение (вертикальное), стандартный - 4000-4500К, опционально 2700-3000К, 6500К, мясной - внутренний объем - оцинкованный пластификат (двойная защита от коррозии) - внутренняя поверхность ванны из оцинкованного пластификата (двойная защита от коррозии); - электронный контроллер для управления работой оборудования; - цифрофой термометр; | D24: упаковка в деревянной обрешетке. - 3 навесные сетчатые полки - решетки на бозовую полку - декоративные верхний банер - выпариватель конденсата - рама основания - ценникодержатели на базовую и навесные полки 40 мм - комплект крепления к стене
B25: Артикул | C25: Наименование | D25: Температурный режим | E25: Площадь экспозиции | F25: Охлаждаемый объем | G25: Габариты | H25: Габариты в упаковке (в обрешетке), | I25: Базовая | J25: Ваша цена
G26: (LxWxH) мм | H26: (LxWxH) мм | I26: цена, руб. (с НДС)
B27: CRS LT 1,85 | C27: Corsa LT 1850 | D27: -23 … -18 С | E27: 2,80 | F27: 0.51 | G27: 1980х815х2385 | H27: 2300х950х2050 | I27: 329400 | J27: =ROUND(I27*(1-$D$3)/Лист2!$A$6,0) -> 329400
B28: CRS LT 2,1 | C28: Corsa LT 2100 | E28: 3.15 | F28: 0.57 | G28: 2100х815х2385 | H28: 2450х950х2050 | I28: 353190 | J28: =ROUND(I28*(1-$D$3)/Лист2!$A$6,0) -> 353190
B29: CRS LT 2,5 | C29: Corsa LT 2500 | E29: 3.79 | F29: 0.79 | G29: 25000х815х238 | H29: 2850х950х2050 | I29: 400770 | J29: =ROUND(I29*(1-$D$3)/Лист2!$A$6,0) -> 400770
G30: НАВЕРХ

Sheet Лари ItalFrost
K1: На главную
M2: На главную
A3: Ваша скидка: | D3: =Содержание!D2 -> 0
A4: НДС: | D4: =IF(Лист2!A1=TRUE,"С НДС","БЕЗ НДС") -> С НДС
A5: Морозильные и холодильные лари Italfrost
A7: № | B7: Изображение | C7: Номер КД | D7: Наименование | F7: Температур-ный режим, °C | G7: Объем, л | H7: Габариты, (LxWxH) мм | I7: Базовая цена, руб. (с НДС) | J7: =Лист2!$A$5 -> Ваша цена, руб. | K7: Нажмите для расчета стоимости брендирования
A9: Стандартная комплектация: - Экологически безопасный хладагент R290 - Цвет внешнего и внутреннего корпуса и деталей RAL9003 - Цвет пластиковой крышки серый ( красный, голубой, синий, зеленый - наличие уточнять у менеджеров) - Закаленные стекла с применением шелкографии | F9: Тип охлаждения - статический - Напряжение, В - 220
A10: 1 | B10: Морозильные лари с гнутыми раздвижными стеклами
C11: 1128.00.00.00 | D11: CF200CQ | E11: без корзин | F11: -18…-25 | G11: 235 | H11: 807х662х925 | I11: 38401 | J11: =ROUND(I11*(1-$D$3)/Лист2!$A$6,0) -> 38401
E12: 3 корзины | I12: 40591 | J12: =ROUND(I12*(1-$D$3)/Лист2!$A$6,0) -> 40591
C13: 1128.00.00.00-01 | D13: CF300CQ | E13: без корзин | F13: -18…-25 | G13: 319 | H13: 1017х662х925 | I13: 42205 | J13: =ROUND(I13*(1-$D$3)/Лист2!$A$6,0) -> 42205
E14: 4 корзины | I14: 45126 | J14: =ROUND(I14*(1-$D$3)/Лист2!$A$6,0) -> 45126
C15: 1128.00.00.00-02 | D15: CF400CQ | E15: без корзин | F15: -18…-25 | G15: 398 | H15: 1217х662х925 | I15: 45759 | J15: =ROUND(I15*(1-$D$3)/Лист2!$A$6,0) -> 45759
E16: 5 корзин | I16: 49410 | J16: =ROUND(I16*(1-$D$3)/Лист2!$A$6,0) -> 49410
C17: 1128.00.00.00-03 | D17: CF500CQ | E17: без корзин | F17: -18…-25 | G17: 485 | H17: 1437х662х925 | I17: 50006 | J17: =ROUND(I17*(1-$D$3)/Лист2!$A$6,0) -> 50006
E18: 6 корзин | I18: 54387 | J18: =ROUND(I18*(1-$D$3)/Лист2!$A$6,0) -> 54387
C19: 1128.00.00.00-04 | D19: CF600CQ | E19: без корзин | F19: -18…-25 | G19: 572 | H19: 1657х662х925 | I19: 53762 | J19: =ROUND(I19*(1-$D$3)/Лист2!$A$6,0) -> 53762
E20: 7 корзин | I20: 58874 | J20: =ROUND(I20*(1-$D$3)/Лист2!$A$6,0) -> 58874
A21: 2 | B21: Морозильные лари с прямыми раздвижными стеклами (составная корона)
C22: 1127.00.00.00 | D22: CF200FQ | E22: без корзин | F22: -18…-25 | G22: 235 | H22: 807х662х925 | I22: 37312 | J22: =ROUND(I22*(1-$D$3)/Лист2!$A$6,0) -> 37312
E23: 3 корзины | I23: 39304 | J23: =ROUND(I23*(1-$D$3)/Лист2!$A$6,0) -> 39304
C24: 1127.00.00.00-01 | D24: CF300FQ | E24: без корзин | F24: -18…-25 | G24: 319 | H24: 1017х662х925 | I24: 41435 | J24: =ROUND(I24*(1-$D$3)/Лист2!$A$6,0) -> 41435
E25: 4 корзины | I25: 44092 | J25: =ROUND(I25*(1-$D$3)/Лист2!$A$6,0) -> 44092
C26: 1127.00.00.00-02 | D26: CF400FQ | E26: без корзин | F26: -18…-25 | G26: 398 | H26: 1217х662х925 | I26: 45626 | J26: =ROUND(I26*(1-$D$3)/Лист2!$A$6,0) -> 45626
E27: 5 корзин | I27: 48947 | J27: =ROUND(I27*(1-$D$3)/Лист2!$A$6,0) -> 48947
C28: 1127.00.00.00-03 | D28: CF500FQ | E28: без корзин | F28: -18…-25 | G28: 485 | H28: 1437х662х925 | I28: 50217 | J28: =ROUND(I28*(1-$D$3)/Лист2!$A$6,0) -> 50217
E29: 6 корзин | I29: 54203 | J29: =ROUND(I29*(1-$D$3)/Лист2!$A$6,0) -> 54203
C30: 1127.00.00.00-04 | D30: CF600FQ | E30: без корзин | F30: -18…-25 | G30: 572 | H30: 1657х662х925 | I30: 54077 | J30: =ROUND(I30*(1-$D$3)/Лист2!$A$6,0) -> 54077
E31: 7 корзин | I31: 58727 | J31: =ROUND(I31*(1-$D$3)/Лист2!$A$6,0) -> 58727
A32: 3 | B32: Морозильные лари с глухой крышкой
C33: 1011.00.00.00 | D33: CF200S | E33: без корзин | F33: -18…-25 | G33: 235 | H33: 808х743х904 | I33: 37808 | J33: =ROUND(I33*(1-$D$3)/Лист2!$A$6,0) -> 37808
E34: 1 корзина | I34: 38472 | J34: =ROUND(I34*(1-$D$3)/Лист2!$A$6,0) -> 38472
C35: 1011.00.00.00-01 | D35: CF300S | E35: без корзин | F35: -18…-25 | G35: 319 | H35: 1018х743х904 | I35: 41334 | J35: =ROUND(I35*(1-$D$3)/Лист2!$A$6,0) -> 41334
E36: 1 корзина | I36: 41997 | J36: =ROUND(I36*(1-$D$3)/Лист2!$A$6,0) -> 41997
C37: 1011.00.00.00-02 | D37: CF400S | E37: без корзин | F37: -18…-25 | G37: 398 | H37: 1218х743х904 | I37: 49208 | J37: =ROUND(I37*(1-$D$3)/Лист2!$A$6,0) -> 49208
E38: 1 корзина | I38: 49873 | J38: =ROUND(I38*(1-$D$3)/Лист2!$A$6,0) -> 49873
C39: 1011.00.00.00-03 | D39: CF500S | E39: без корзин | F39: -18…-25 | G39: 485 | H39: 1438х743х904 | I39: 50016 | J39: =ROUND(I39*(1-$D$3)/Лист2!$A$6,0) -> 50016
E40: 1 корзина | I40: 50680 | J40: =ROUND(I40*(1-$D$3)/Лист2!$A$6,0) -> 50680
C41: 1011.00.00.00-04 | D41: CF600S | E41: без корзин | F41: -18…-25 | G41: 572 | H41: 1658х743х904 | I41: 54553 | J41: =ROUND(I41*(1-$D$3)/Лист2!$A$6,0) -> 54553
E42: 1 корзина | I42: 55217 | J42: =ROUND(I42*(1-$D$3)/Лист2!$A$6,0) -> 55217
A43: 4 | B43: Морозильные лари с глухой крышкой (крышка из нержавеющей стали)
C44: 1011.00.00.00 | D44: CF200S нерж | E44: без корзин | F44: -18…-25 | G44: 235 | H44: 808х743х904 | I44: 42857 | J44: =ROUND(I44*(1-$D$3)/Лист2!$A$6,0) -> 42857
E45: 1 корзина | I45: 43521 | J45: =ROUND(I45*(1-$D$3)/Лист2!$A$6,0) -> 43521
C46: 1011.00.00.00-01 | D46: CF300S нерж | E46: без корзин | F46: -18…-25 | G46: 319 | H46: 1018х743х904 | I46: 47585 | J46: =ROUND(I46*(1-$D$3)/Лист2!$A$6,0) -> 47585
E47: 1 корзина | I47: 48249 | J47: =ROUND(I47*(1-$D$3)/Лист2!$A$6,0) -> 48249
C48: 1011.00.00.00-02 | D48: CF400S нерж | E48: без корзин | F48: -18…-25 | G48: 398 | H48: 1218х743х904 | I48: 56404 | J48: =ROUND(I48*(1-$D$3)/Лист2!$A$6,0) -> 56404
E49: 1 корзина | I49: 57068 | J49: =ROUND(I49*(1-$D$3)/Лист2!$A$6,0) -> 57068
C50: 1011.00.00.00-03 | D50: CF500S нерж | E50: без корзин | F50: -18…-25 | G50: 485 | H50: 1438х743х904 | I50: 57420 | J50: =ROUND(I50*(1-$D$3)/Лист2!$A$6,0) -> 57420
E51: 1 корзина | I51: 58084 | J51: =ROUND(I51*(1-$D$3)/Лист2!$A$6,0) -> 58084
C52: 1011.00.00.00-04 | D52: CF600S нерж | E52: без корзин | F52: -18…-25 | G52: 572 | H52: 1658х743х904 | I52: 61913 | J52: =ROUND(I52*(1-$D$3)/Лист2!$A$6,0) -> 61913
E53: 1 корзина | I53: 62577 | J53: =ROUND(I53*(1-$D$3)/Лист2!$A$6,0) -> 62577
A54: 5 | B54: Морозильные лари с гнутыми раздвижными стеклами (составная корона, климатический класс 4+)
D55: CFТ200CQ | E55: без корзин | F55: -18…-25 | G55: 235 | H55: 807х662х925 | I55: 43377 | J55: =ROUND(I55*(1-$D$3)/Лист2!$A$6,0) -> 43377
E56: 3 корзины | I56: 45568 | J56: =ROUND(I56*(1-$D$3)/Лист2!$A$6,0) -> 45568
D57: CFТ300CQ | E57: без корзин | F57: -18…-25 | G57: 319 | H57: 1017х662х925 | I57: 45844 | J57: =ROUND(I57*(1-$D$3)/Лист2!$A$6,0) -> 45844
E58: 4 корзины | I58: 48764 | J58: =ROUND(I58*(1-$D$3)/Лист2!$A$6,0) -> 48764
D59: CFT400CQ | E59: без корзин | F59: -18…-25 | G59: 398 | H59: 1217х662х925 | I59: 49243 | J59: =ROUND(I59*(1-$D$3)/Лист2!$A$6,0) -> 49243
E60: 5 корзин | I60: 52894 | J60: =ROUND(I60*(1-$D$3)/Лист2!$A$6,0) -> 52894
D61: CFТ500CQ | E61: без корзин | F61: -18…-25 | G61: 485 | H61: 1437х662х925 | I61: 50720 | J61: =ROUND(I61*(1-$D$3)/Лист2!$A$6,0) -> 50720
E62: 6 корзин | I62: 55101 | J62: =ROUND(I62*(1-$D$3)/Лист2!$A$6,0) -> 55101
D63: CFТ600CQ | E63: без корзин | F63: -18…-25 | G63: 572 | H63: 1657х662х925 | I63: 58926 | J63: =ROUND(I63*(1-$D$3)/Лист2!$A$6,0) -> 58926
E64: 7 корзин | I64: 64037 | J64: =ROUND(I64*(1-$D$3)/Лист2!$A$6,0) -> 64037
A65: 6 | B65: Морозильные лари с прямыми раздвижными стеклами составная корона (климатический класс 4+)
D66: CFТ200FQ | E66: без корзин | F66: -18…-25 | G66: 235 | H66: 807х662х925 | I66: 41363 | J66: =ROUND(I66*(1-$D$3)/Лист2!$A$6,0) -> 41363
E67: 3 корзины | I67: 43356 | J67: =ROUND(I67*(1-$D$3)/Лист2!$A$6,0) -> 43356
D68: CFТ300FQ | E68: без корзин | F68: -18…-25 | G68: 319 | H68: 1017х662х925 | I68: 46149 | J68: =ROUND(I68*(1-$D$3)/Лист2!$A$6,0) -> 46149
E69: 4 корзины | I69: 48805 | J69: =ROUND(I69*(1-$D$3)/Лист2!$A$6,0) -> 48805
D70: CFT400FQ | E70: без корзин | F70: -18…-25 | G70: 398 | H70: 1217х662х925 | I70: 49233 | J70: =ROUND(I70*(1-$D$3)/Лист2!$A$6,0) -> 49233
E71: 5 корзин | I71: 52555 | J71: =ROUND(I71*(1-$D$3)/Лист2!$A$6,0) -> 52555
D72: CFТ500FQ | E72: без корзин | F72: -18…-25 | G72: 485 | H72: 1437х662х925 | I72: 50244 | J72: =ROUND(I72*(1-$D$3)/Лист2!$A$6,0) -> 50244
E73: 6 корзин | I73: 54229 | J73: =ROUND(I73*(1-$D$3)/Лист2!$A$6,0) -> 54229
D74: CFТ600FQ | E74: без корзин | F74: -18…-25 | G74: 572 | H74: 1657х662х925 | I74: 59420 | J74: =ROUND(I74*(1-$D$3)/Лист2!$A$6,0) -> 59420
E75: 7 корзин | I75: 64070 | J75: =ROUND(I75*(1-$D$3)/Лист2!$A$6,0) -> 64070
A76: 7 | B76: Морозильные лари с глухой крышкой (климатический класс 4+)
C77: 1065.00.00.00 | D77: CF200ST | E77: без корзин | F77: -18…-25 | G77: 235 | H77: 808х743х904 | I77: 41589 | J77: =ROUND(I77*(1-$D$3)/Лист2!$A$6,0) -> 41589
E78: 1 корзина | I78: 42253 | J78: =ROUND(I78*(1-$D$3)/Лист2!$A$6,0) -> 42253
C79: 1065.00.00.00-01 | D79: CF300ST | E79: без корзин | F79: -18…-25 | G79: 319 | H79: 1018х743х904 | I79: 45466 | J79: =ROUND(I79*(1-$D$3)/Лист2!$A$6,0) -> 45466
E80: 1 корзина | I80: 46130 | J80: =ROUND(I80*(1-$D$3)/Лист2!$A$6,0) -> 46130
C81: 1065.00.00.00-02 | D81: CF400ST | E81: без корзин | F81: -18…-25 | G81: 398 | H81: 1218х743х904 | I81: 54128 | J81: =ROUND(I81*(1-$D$3)/Лист2!$A$6,0) -> 54128
E82: 1 корзина | I82: 54793 | J82: =ROUND(I82*(1-$D$3)/Лист2!$A$6,0) -> 54793
C83: 1065.00.00.00-03 | D83: CF500ST | E83: без корзин | F83: -18…-25 | G83: 485 | H83: 1438х743х904 | I83: 55018 | J83: =ROUND(I83*(1-$D$3)/Лист2!$A$6,0) -> 55018
E84: 1 корзина | I84: 55683 | J84: =ROUND(I84*(1-$D$3)/Лист2!$A$6,0) -> 55683
C85: 1065.00.00.00-04 | D85: CF600ST | E85: без корзин | F85: -18…-25 | G85: 572 | H85: 1658х743х904 | I85: 60009 | J85: =ROUND(I85*(1-$D$3)/Лист2!$A$6,0) -> 60009
E86: 1 корзина | I86: 60673 | J86: =ROUND(I86*(1-$D$3)/Лист2!$A$6,0) -> 60673
A87: 8 | B87: Морозильные лари с гнутыми раздвижными стеклами (составная корона, климатический класс 7) (комплектация включает подсветку, контроллер, термометр)
C88: 1372.00.00.00 | D88: ЛВН 200ГСТп | E88: без корзин | F88: -18…-25 | G88: 235 | H88: 807х662х925 | I88: 52403 | J88: =ROUND(I88*(1-$D$3)/Лист2!$A$6,0) -> 52403
E89: 3 корзины | I89: 54593 | J89: =ROUND(I89*(1-$D$3)/Лист2!$A$6,0) -> 54593
C90: 1372.00.00.00-01 | D90: ЛВН 300ГСТп | E90: без корзин | F90: -18…-25 | G90: 319 | H90: 1017х662х925 | I90: 56078 | J90: =ROUND(I90*(1-$D$3)/Лист2!$A$6,0) -> 56078
E91: 4 корзины | I91: 58998 | J91: =ROUND(I91*(1-$D$3)/Лист2!$A$6,0) -> 58998
C92: 1372.00.00.00-02 | D92: ЛВН 400ГСТп | E92: без корзин | F92: -18…-25 | G92: 398 | H92: 1217х662х925 | I92: 60828 | J92: =ROUND(I92*(1-$D$3)/Лист2!$A$6,0) -> 60828
E93: 5 корзин | I93: 64478 | J93: =ROUND(I93*(1-$D$3)/Лист2!$A$6,0) -> 64478
C94: 1372.00.00.00-03 | D94: ЛВН 500ГСТп | E94: без корзин | F94: -18…-25 | G94: 485 | H94: 1437х662х925 | I94: 63367 | J94: =ROUND(I94*(1-$D$3)/Лист2!$A$6,0) -> 63367
E95: 6 корзин | I95: 67747 | J95: =ROUND(I95*(1-$D$3)/Лист2!$A$6,0) -> 67747
A96: 9 | B96: Морозильные лари для мягкого мороженого (климатический класс 4+)(комплектация - запасник, полка под гастроемкости, подсветка внутреннего объема) корзины не устанавливаются
C97: 1273.00.00.00-01 | D97: CF 300 CSZQ | E97: - | F97: -18…-25 | G97: 319 | H97: 1017х662х1310 | I97: 56424 | J97: =ROUND(I97*(1-$D$3)/Лист2!$A$6,0) -> 56424
C98: 1273.00.00.00-02 | D98: CF 400 CSZQ | E98: - | F98: -18…-25 | G98: 398 | H98: 1217х662х1310 | I98: 63205 | J98: =ROUND(I98*(1-$D$3)/Лист2!$A$6,0) -> 63205
C99: 1273.00.00.00-03 | D99: CF 500 CSZQ | E99: - | F99: -18…-25 | G99: 485 | H99: 1437х662х1310 | I99: 64683 | J99: =ROUND(I99*(1-$D$3)/Лист2!$A$6,0) -> 64683
A100: 10 | B100: Опции для ларей
D101: Надстройка стеклянная 1145.12.00.00-01 для CF300C | I101: 8208 | J101: =ROUND(I101*(1-$D$3)/Лист2!$A$6,0) -> 8208
D102: Надстройка стеклянная 1145.12.00.00-02 для CF400C | I102: 8926 | J102: =ROUND(I102*(1-$D$3)/Лист2!$A$6,0) -> 8926
D103: Надстройка стеклянная 1145.12.00.00-03 для CF500C | I103: 9996 | J103: =ROUND(I103*(1-$D$3)/Лист2!$A$6,0) -> 9996
D104: Комплект подсветки для ларя CF200C | F104: Спектр 4000К/6000К | I104: 2299 | J104: =ROUND(I104*(1-$D$3)/Лист2!$A$6,0) -> 2299
D105: Комплект подсветки для ларя CF300C | I105: 2346 | J105: =ROUND(I105*(1-$D$3)/Лист2!$A$6,0) -> 2346
D106: Комплект подсветки для ларя CF400C | I106: 2550 | J106: =ROUND(I106*(1-$D$3)/Лист2!$A$6,0) -> 2550
D107: Комплект подсветки для ларя CF500C | I107: 2932 | J107: =ROUND(I107*(1-$D$3)/Лист2!$A$6,0) -> 2932
D108: Комплект подсветки для ларя CF600C | I108: 3372 | J108: =ROUND(I108*(1-$D$3)/Лист2!$A$6,0) -> 3372
C109: 087.42.00.00 | D109: Корзина для ларя с гнут. стек. без подсветки | F109: - | G109: - | H109: 214х498х320 | I109: 730 | J109: =ROUND(I109*(1-$D$3)/Лист2!$A$6,0) -> 730
C110: 086.42.00.00 | D110: Корзина для ларя с прям. стек. без подсветки | F110: - | G110: - | H110: 214х493х250 | I110: 664 | J110: =ROUND(I110*(1-$D$3)/Лист2!$A$6,0) -> 664
D111: Корзина для ларя с глух. крыш. без подсветки | F111: - | G111: - | H111: 214х493х250 | I111: 664 | J111: =ROUND(I111*(1-$D$3)/Лист2!$A$6,0) -> 664
C112: 1060.42.00.00 | D112: Корзина для ларя с гнут. стек. с подсветкой | F112: - | G112: - | H112: 214х498х320 | I112: 730 | J112: =ROUND(I112*(1-$D$3)/Лист2!$A$6,0) -> 730
C113: 1071.42.00.00 | D113: Корзина для ларя с прям. стек. с подсветкой | F113: - | G113: - | H113: 214х493х250 | I113: 664 | J113: =ROUND(I113*(1-$D$3)/Лист2!$A$6,0) -> 664
A114: 11 | B114: Опции заказываемые с ларем
C115: н.№14709 | D115: Опоры регулируемые М10 для ларей | I115: 249 | J115: =ROUND(I115*(1-$D$3)/Лист2!$A$6,0) -> 249
C116: н.№14601 | D116: Колесо поворотное без стопора. | I116: 371 | J116: =ROUND(I116*(1-$D$3)/Лист2!$A$6,0) -> 371
C117: н.№14601.4 | D117: Колесо поворотное со стопором | I117: 459 | J117: =ROUND(I117*(1-$D$3)/Лист2!$A$6,0) -> 459
C118: н.№24805.2 | D118: Термометр | I118: 1777 | J118: =ROUND(I118*(1-$D$3)/Лист2!$A$6,0) -> 1777
B119: Стандартный цвет короны ларя - Серый (7035), Красный (наличие красных корон уточнять у менеджеров)
B120: Опционально доступны иные цвета короны - наличие уточнять у менеджеров, наценка +1,5% к цене ларя
B121: Стандартный цвет корпуса - белый (ПлRAL9003). Наценка за нестандартный цвет корпуса +1,5% к цене ларя.
I122: НАВЕРХ

Sheet Лари-бонеты Italfrost
H1: ЗАВОД «ОПК» Тел.: +7 (496) 704-52-11 e-mail:manager@ozpk.ru сайт: ozpk.ru | M1: На главную
B3: Ваша скидка: | E3: =Содержание!D2 -> 0
B4: НДС: | E4: =IF(Лист2!A1=TRUE,"С НДС","БЕЗ НДС") -> С НДС
A6: Двухрежимные ларь-бонеты ITALFROST
A9: № | B9: Изображение | C9: Артикул | D9: Наименование | F9: Колличество делителей/корзин | G9: Температурный режим,°C | H9: Габариты, (LxWxH) мм | I9: Базовая цена, руб. (с НДС) | J9: =[5]Лист2!$A$5 -> Ваша цена, руб.
A11: 1 | B11: ЛВН низкотемпературный ITALFROST | N11: СЕЧЕНИЕ
A13: - Стандартная комплектация ЛВН Italfrost: - Корпус внешний - оцинкованный металл (RAL 9003); - Охлаждаемый объем - цвет решеток/делителей RAL 9003; - Хладагент R-290, оттайка горячим газом, система выпаривания конденсата; - Освещение; - Электронный контроллер; | F13: - Комплект верхнего бампера; - Система решеток по периметру охлаждаемого объема (1 разделитель, устанавливаемый возле агрегатного отсека во всю высоту охл.объема); - Цвет пластиковых элеметов RAL 7035 (крышка, окантовка стекла, бампер, ручки); -Деревянная обрешетка;
C15: 1057.00.00.00 | D15: Ларь-витрина низкотемпературный ЛВН 1850 (ЛБТ2 М 1850) (торцевой) | E15: Без делителей и корзин | G15: -18..-24 ̊С | H15: 1850х858х869 | I15: 118442 | J15: =ROUND(I15*(1-$E$3)/Лист2!$A$6,0) -> 118442 | K15: 3В9016.El.0.0.tn.4.PS.0
E16: С комплектом делителей (2 шт.) | I16: 119967 | J16: =ROUND(I16*(1-$E$3)/Лист2!$A$6,0) -> 119967 | K16: 3В9016.El.2.0.tn.4.PS.0
E17: С комплектом корзинами (4 шт.) | I17: 126412 | J17: =ROUND(I17*(1-$E$3)/Лист2!$A$6,0) -> 126412 | K17: 3В9016.El.0.4.tn.4.PS.0
C18: 1056.00.00.00-02 | D18: Ларь-витрина низкотемпературный ЛВН 1850 (ЛБ2 М 1850) | E18: Без делителей и корзин | H18: 1850х858х869 | I18: 115392 | J18: =ROUND(I18*(1-$E$3)/Лист2!$A$6,0) -> 115392 | K18: ВБ9016.El.0.0.tn.4.PS.0
E19: С комплектом делителей (2 шт.) | I19: 116917 | J19: =ROUND(I19*(1-$E$3)/Лист2!$A$6,0) -> 116917 | K19: ВБ9016.El.2.0.tn.4.PS.0
E20: С комплектом корзинами (4 шт.) | I20: 123362 | J20: =ROUND(I20*(1-$E$3)/Лист2!$A$6,0) -> 123362 | K20: ВБ9016.El.0.4.tn.4.PS.0
C21: 1056.00.00.00 | D21: Ларь-витрина низкотемпературный ЛВН 2100 (ЛБ2 М 2100) | E21: Без делителей и корзин | H21: 2100х858х869 | I21: 124288 | J21: =ROUND(I21*(1-$E$3)/Лист2!$A$6,0) -> 124288 | K21: ВБ9016.El.0.0.tn.4.PS.0
E22: С комплектом делителей (3 шт.) | I22: 126575 | J22: =ROUND(I22*(1-$E$3)/Лист2!$A$6,0) -> 126575 | K22: ВБ9016.El.3.0.tn.4.PS.0
E23: С комплектом корзинами (5 шт.) | I23: 134251 | J23: =ROUND(I23*(1-$E$3)/Лист2!$A$6,0) -> 134251 | K23: ВБ9016.El.0.5.tn.4.PS.0
C24: 1056.00.00.00-01 | D24: Ларь-витрина низкотемпературный ЛВН 2500 (ЛБ2 М 2500) | E24: Без делителей и корзин | H24: 2500х858х869 | I24: 134708 | J24: =ROUND(I24*(1-$E$3)/Лист2!$A$6,0) -> 134708 | K24: ВБ9016.El.0.0.tn.4.PS.0
E25: С комплектом делителей (4 шт.) | I25: 137758 | J25: =ROUND(I25*(1-$E$3)/Лист2!$A$6,0) -> 137758 | K25: ВБ9016.El.4.0.tn.4.PS.0
E26: С комплектом корзинами (6 шт.) | I26: 146664 | J26: =ROUND(I26*(1-$E$3)/Лист2!$A$6,0) -> 146664 | K26: ВБ9016.El.0.6.tn.4.PS.0
A27: 2 | B27: ЛВН низкотемпературный ITALFROST Push
A29: - Стандартная комплектация ЛВН Italfrost: - Корпус внешний - оцинкованный металл (RAL 9003); - Охлаждаемый объем - цвет решеток/делителей RAL 9003; - Хладагент R-290, оттайка горячим газом, система выпаривания конденсата; - Электронный контроллер; -Освещение | F29: - Комплект верхнего бампера (для торцевого исполенние бампер с трех сторон); - Система решеток по периметру охлаждаемого объема (1 разделитель, устанавливаемый возле агрегатного отсека во всю высоту охл.объема); - Цвет пластиковых элеметов RAL 7035 (крышка, окантовка стекла, бампер, ручки); - Деревянная обрешетка;
C31: 1201.00.00.00 | D31: Ларь-витрина низкотемпературный ЛВН 1850 (ЛБТ2 М 1850) PUSH (торцевой) | E31: Без делителей и корзин | G31: -18..-24 ̊С | H31: 1850х858х869 | I31: 135683 | J31: =ROUND(I31*(1-$E$3)/Лист2!$A$6,0) -> 135683 | K31: 3В9016.El.0.0.tn.4.PS.0
E32: С комплектом делителей (2 шт.) | I32: 137208 | J32: =ROUND(I32*(1-$E$3)/Лист2!$A$6,0) -> 137208 | K32: 3В9016.El.2.0.tn.4.PS.0
E33: С комплектом корзинами (4 шт.) | I33: 143654 | J33: =ROUND(I33*(1-$E$3)/Лист2!$A$6,0) -> 143654 | K33: 3В9016.El.0.4.tn.4.PS.0
C34: 1190.00.00.00-02 | D34: Ларь-витрина низкотемпературный ЛВН 1850 (ЛБ2 М 1850) PUSH | E34: Без делителей и корзин | H34: 1850х858х869 | I34: 135683 | J34: =ROUND(I34*(1-$E$3)/Лист2!$A$6,0) -> 135683 | K34: ВБ9016.El.0.0.tn.4.PS.0
E35: С комплектом делителей (2 шт.) | I35: 137208 | J35: =ROUND(I35*(1-$E$3)/Лист2!$A$6,0) -> 137208 | K35: ВБ9016.El.2.0.tn.4.PS.0
E36: С комплектом корзинами (4 шт.) | I36: 143654 | J36: =ROUND(I36*(1-$E$3)/Лист2!$A$6,0) -> 143654 | K36: ВБ9016.El.0.4.tn.4.PS.0
C37: 1190.00.00.00 | D37: Ларь-витрина низкотемпературный ЛВН 2100 (ЛБ2 М 2100) PUSH | E37: Без делителей и корзин | H37: 2100х858х869 | I37: 140894 | J37: =ROUND(I37*(1-$E$3)/Лист2!$A$6,0) -> 140894 | K37: ВБ9016.El.0.0.tn.4.PS.0
E38: С комплектом делителей (3 шт.) | I38: 143181 | J38: =ROUND(I38*(1-$E$3)/Лист2!$A$6,0) -> 143181 | K38: ВБ9016.El.3.0.tn.4.PS.0
E39: С комплектом корзинами (5 шт.) | I39: 150857 | J39: =ROUND(I39*(1-$E$3)/Лист2!$A$6,0) -> 150857 | K39: ВБ9016.El.0.5.tn.4.PS.0
C40: 1190.00.00.00-01 | D40: Ларь-витрина низкотемпературный ЛВН 2500 (ЛБ2 М 2500) PUSH | E40: Без делителей и корзин | H40: 2500х858х869 | I40: 144685 | J40: =ROUND(I40*(1-$E$3)/Лист2!$A$6,0) -> 144685 | K40: ВБ9016.El.0.0.tn.4.PS.0
E41: С комплектом делителей (4 шт.) | I41: 147735 | J41: =ROUND(I41*(1-$E$3)/Лист2!$A$6,0) -> 147735 | K41: ВБ9016.El.4.0.tn.4.PS.0
E42: С комплектом корзинами (6 шт.) | I42: 156641 | J42: =ROUND(I42*(1-$E$3)/Лист2!$A$6,0) -> 156641 | K42: ВБ9016.El.0.6.tn.4.PS.0
A43: 3 | B43: ЛВН низкотемпературный RONDO с термостатом
A45: - Стандартная комплектация ЛВН Italfrost: - Корпус внешний - оцинкованный металл (RAL 9003); - Охлаждаемый объем - цвет решеток/делителей RAL 9003; - Хладагент R-290, - БЕЗ оттайки горячим газом, БЕЗ системы выпаривания конденсата; - БЕЗ освещения; - Термостат (управление температурой в объеме); | F45: - БЕЗ верхнего бампера; - Система решеток по периметру охлаждаемого объема (1 разделитель, устанавливаемый возле агрегатного отсека во всю высоту охл.объема); - Температурный режим -18..-24 ̊С - Цвет пластиковых элеметов RAL 7035 (крышка, окантовка стекла, бампер, ручки); - Деревянная обрешетка;
C47: 1096.00.00.00 | D47: Ларь-витрина низкотемпературный ЛВНР 1850 (ЛБТР М 1850) | E47: Без делителей и корзин | G47: -18..-24 ̊С | H47: 1850х858х869 | I47: 99398 | J47: =ROUND(I47*(1-$E$3)/Лист2!$A$6,0) -> 99398
E48: С комплектом делителей (2 шт.) | I48: 100923 | J48: =ROUND(I48*(1-$E$3)/Лист2!$A$6,0) -> 100923 | K48: ББ9016.Т.2.0.tn.0.PS.0
E49: С комплектом корзинами (4 шт.) | I49: 107369 | J49: =ROUND(I49*(1-$E$3)/Лист2!$A$6,0) -> 107369 | K49: ББ9016.Т.0.4.tn.0.PS.0
C50: 1095.00.00.00-02 | D50: Ларь-витрина низкотемпературный ЛВНР 1850 (ЛБР М 1850) | E50: Без делителей и корзин | H50: 1850х858х869 | I50: 99398 | J50: =ROUND(I50*(1-$E$3)/Лист2!$A$6,0) -> 99398
E51: С комплектом делителей (2 шт.) | I51: 100923 | J51: =ROUND(I51*(1-$E$3)/Лист2!$A$6,0) -> 100923 | K51: ББ9016.Т.2.0.tn.0.PS.0
E52: С комплектом корзинами (4 шт.) | I52: 107369 | J52: =ROUND(I52*(1-$E$3)/Лист2!$A$6,0) -> 107369 | K52: ББ9016.Т.0.4.tn.0.PS.0
C53: 1095.00.00.00 | D53: Ларь-витрина низкотемпературный ЛВНР 2100 (ЛБР М 2100) | E53: Без делителей и корзин | H53: 2100х858х869 | I53: 102336 | J53: =ROUND(I53*(1-$E$3)/Лист2!$A$6,0) -> 102336
E54: С комплектом делителей (3 шт.) | I54: 104623 | J54: =ROUND(I54*(1-$E$3)/Лист2!$A$6,0) -> 104623 | K54: ББ9016.Т.3.0.tn.0.PS.0
E55: С комплектом корзинами (5 шт.) | I55: 112299 | J55: =ROUND(I55*(1-$E$3)/Лист2!$A$6,0) -> 112299 | K55: ББ9016.Т.0.5.tn.0.PS.0
C56: 1095.00.00.00-01 | D56: Ларь-витрина низкотемпературный ЛВНР 2500 (ЛБР М 2500) | E56: Без делителей и корзин | H56: 2500х858х869 | I56: 117741 | J56: =ROUND(I56*(1-$E$3)/Лист2!$A$6,0) -> 117741
E57: С комплектом делителей (4 шт.) | I57: 120791 | J57: =ROUND(I57*(1-$E$3)/Лист2!$A$6,0) -> 120791 | K57: ББ9016.Т.4.0.tn.0.PS.0
E58: С комплектом корзинами (6 шт.) | I58: 129697 | J58: =ROUND(I58*(1-$E$3)/Лист2!$A$6,0) -> 129697 | K58: ББ9016.Т.0.6.tn.0.PS.0
A59: 4 | B59: ЛВН низкотемпературный RONDO с контроллером
A61: - Стандартная комплектация ЛВН Italfrost: - Корпус внешний - оцинкованный металл (RAL 9003); - Охлаждаемый объем - цвет решеток/делителей RAL 9003; - хладагент R-290, - БЕЗ оттайки горячим газом, БЕЗ системы выпаривания конденсата, БЕЗ освещения; - Электронный контроллер; | F61: - БЕЗ верхнего бампера; - Система решеток по периметру охлаждаемого объема (1 разделитель, устанавливаемый возле агрегатного отсека во всю высоту охл.объема); - Температурный режим -18..-24 ̊С - Цвет пластиковых элеметов RAL 7035 (крышка, окантовка стекла, бампер, ручки); - Деревянная обрешетка;
C63: 1096.00.00.00 | D63: Ларь-витрина низкотемпературный ЛВНР 1850 (ЛБТР М 1850) | E63: Без делителей и корзин | G63: -18..-24 ̊С | H63: 1850х858х869 | I63: 101795 | J63: =ROUND(I63*(1-$E$3)/Лист2!$A$6,0) -> 101795
E64: С комплектом делителей (2 шт.) | I64: 103320 | J64: =ROUND(I64*(1-$E$3)/Лист2!$A$6,0) -> 103320 | L64: ББ9016.El.2.0.tn.0.PS.0
E65: С комплектом корзинами (4 шт.) | I65: 109765 | J65: =ROUND(I65*(1-$E$3)/Лист2!$A$6,0) -> 109765 | L65: ББ9016.El.0.4.tn.0.PS.0
C66: 1095.00.00.00-02 | D66: Ларь-витрина низкотемпературный ЛВНР 1850 (ЛБР М 1850) | E66: Без делителей и корзин | H66: 1850х858х869 | I66: 101795 | J66: =ROUND(I66*(1-$E$3)/Лист2!$A$6,0) -> 101795
E67: С комплектом делителей (2 шт.) | I67: 103320 | J67: =ROUND(I67*(1-$E$3)/Лист2!$A$6,0) -> 103320 | L67: ББ9016.El.2.0.tn.0.PS.0
E68: С комплектом корзинами (4 шт.) | I68: 109765 | J68: =ROUND(I68*(1-$E$3)/Лист2!$A$6,0) -> 109765 | L68: ББ9016.El.0.4.tn.0.PS.0
C69: 1095.00.00.00 | D69: Ларь-витрина низкотемпературный ЛВНР 2100 (ЛБР М 2100) | E69: Без делителей и корзин | H69: 2100х858х869 | I69: 104714 | J69: =ROUND(I69*(1-$E$3)/Лист2!$A$6,0) -> 104714
E70: С комплектом делителей (3 шт.) | I70: 107001 | J70: =ROUND(I70*(1-$E$3)/Лист2!$A$6,0) -> 107001 | L70: ББ9016.El.3.0.tn.0.PS.0
E71: С комплектом корзинами (5 шт.) | I71: 114677 | J71: =ROUND(I71*(1-$E$3)/Лист2!$A$6,0) -> 114677 | L71: ББ9016.El.0.5.tn.0.PS.0
C72: 1095.00.00.00-01 | D72: Ларь-витрина низкотемпературный ЛВНР 2500 (ЛБР М 2500) | E72: Без делителей и корзин | H72: 2500х858х869 | I72: 120135 | J72: =ROUND(I72*(1-$E$3)/Лист2!$A$6,0) -> 120135
E73: С комплектом делителей (4 шт.) | I73: 123185 | J73: =ROUND(I73*(1-$E$3)/Лист2!$A$6,0) -> 123185 | L73: ББ9016.El.4.0.tn.0.PS.0
E74: С комплектом корзинами (6 шт.) | I74: 132091 | J74: =ROUND(I74*(1-$E$3)/Лист2!$A$6,0) -> 132091 | L74: ББ9016.El.0.6.tn.0.PS.0
A75: 5 | B75: КОМПЛЕКТУЮЩИЕ
A77: Бампер (Определяется харакетристикой, либо для отдельного заказа)
D78: Комплект трехстороннего нижнего бампера L=1850 для ЛВН ЛБТ | I78: 1565 | J78: =ROUND(I78*(1-$E$3)/Лист2!$A$6,0) -> 1565
D79: Комплект трехстороннего верхнего бампера L=1850 для ЛВН ЛБТ | I79: 1642 | J79: =ROUND(I79*(1-$E$3)/Лист2!$A$6,0) -> 1642
C80: 1022.73.00.00-02 | D80: Комплект нижнего бампера L=1850 для ЛВН ЛБ | I80: 1299 | J80: =ROUND(I80*(1-$E$3)/Лист2!$A$6,0) -> 1299
C81: 1022.72.00.00-02 | D81: Комплект верхнего бампера L=1850 для ЛВН ЛБ | I81: 1420 | J81: =ROUND(I81*(1-$E$3)/Лист2!$A$6,0) -> 1420
C82: 1022.73.00.00 | D82: Комплект нижнего бампера L=2100 для ЛВН ЛБ | I82: 1352 | J82: =ROUND(I82*(1-$E$3)/Лист2!$A$6,0) -> 1352
C83: 1022.72.00.00 | D83: Комплект верхнего бампера L=2100 для ЛВН ЛБ | I83: 1420 | J83: =ROUND(I83*(1-$E$3)/Лист2!$A$6,0) -> 1420
C84: 1022.73.00.00-01 | D84: Комплект нижнего бампера L=2500 для ЛВН ЛБ | I84: 1472 | J84: =ROUND(I84*(1-$E$3)/Лист2!$A$6,0) -> 1472
C85: 1022.72.00.00-01 | D85: Комплект верхнего бампера L=2500 для ЛВН ЛБ | I85: 1545 | J85: =ROUND(I85*(1-$E$3)/Лист2!$A$6,0) -> 1545
A86: Разделители и корзины (полимерное покрытие, цвет - RAL 9003)
C87: 1022.45.00.00 | D87: Разделитель поперечный объема 1022.45.00.00 L=1850/2100/2500 для ЛБ М | I87: 763 | J87: =ROUND(I87*(1-$E$3)/Лист2!$A$6,0) -> 763
C88: 1022.110.00.00-01 | D88: Корзина увеличенная над агрегатным отсеком 1022.110.00.00-01 для ЛВН/ЛВС (ЛБ М) (Устанавливается над агрегатным отсеком, 1 шт. в ЛБ каждого типоразмера) | I88: 1993 | J88: =ROUND(I88*(1-$E$3)/Лист2!$A$6,0) -> 1993
C89: 1022.110.00.00 | D89: Корзина 1022.110.00.00 для ЛВН/ЛВС (ЛБ М) (в ЛБ длиной 2500 устанавливается 5 данных корзин, в 2100 - 4 корзины, в 1850 - 3 корзины) | I89: 1993 | J89: =ROUND(I89*(1-$E$3)/Лист2!$A$6,0) -> 1993
A90: Суперструктуры и опции
C91: 1022.61.00.00-02 | D91: Суперструктура пристенная 1022.61.00.00-02 для ЛВН/ЛВС (ЛБ М) 1850 | I91: 23344 | J91: =ROUND(I91*(1-$E$3)/Лист2!$A$6,0) -> 23344
C92: 1022.61.00.00 | D92: Суперструктура пристенная 1022.61.00.00 для ЛВН/ЛВС (ЛБ М) 2100 | I92: 24419 | J92: =ROUND(I92*(1-$E$3)/Лист2!$A$6,0) -> 24419
C93: 1022.61.00.00-01 | D93: Суперструктура пристенная 1022.61.00.00-01 для ЛВН/ЛВС (ЛБ М) 2500 | I93: 25941 | J93: =ROUND(I93*(1-$E$3)/Лист2!$A$6,0) -> 25941
C94: 1022.60.00.00-02 | D94: Суперструктура островная 1022.60.00.00-02 для ЛВН/ЛВС (ЛБ М) 1850 | I94: 30779 | J94: =ROUND(I94*(1-$E$3)/Лист2!$A$6,0) -> 30779
C95: 1022.60.00.00 | D95: Суперструктура островная 1022.60.00.00 для ЛВН/ЛВС (ЛБ М) 2100 | I95: 32840 | J95: =ROUND(I95*(1-$E$3)/Лист2!$A$6,0) -> 32840
C96: 1022.60.00.00-01 | D96: Суперструктура островная 1022.60.00.00-01 для ЛВН/ЛВС (ЛБ М) 2500 | I96: 35475 | J96: =ROUND(I96*(1-$E$3)/Лист2!$A$6,0) -> 35475
C98: 429.80.00.00-02 | D98: Комплект подсветки прист 429.80.00.00-02 L=1850 для ЛБ М (LED, лампа Т5) | I98: 6569 | J98: =ROUND(I98*(1-$E$3)/Лист2!$A$6,0) -> 6569
C99: 429.80.00.00 | D99: Комплект подсветки прист 429.80.00.00 L=2100 для ЛБ М (LED, лампа Т5) | I99: 6914 | J99: =ROUND(I99*(1-$E$3)/Лист2!$A$6,0) -> 6914
C100: 429.80.00.00-01 | D100: Комплект подсветки прист 429.80.00.00-01 L=2500 для ЛБ М (LED, лампа Т5) | I100: 7129 | J100: =ROUND(I100*(1-$E$3)/Лист2!$A$6,0) -> 7129
C101: 429.64.00.00-02 | D101: Комплект подсветки остр суперстр 429.64.00.00-02 L=1850 для ЛБ М (LED, лампа Т5) | I101: 12473 | J101: =ROUND(I101*(1-$E$3)/Лист2!$A$6,0) -> 12473
C102: 429.64.00.00 | D102: Комплект подсветки остр суперстр 429.64.00.00 L=2100 для ЛБ М (LED, лампа Т5) | I102: 13130 | J102: =ROUND(I102*(1-$E$3)/Лист2!$A$6,0) -> 13130
C103: 429.64.00.00-01 | D103: Комплект подсветки остр суперстр 429.64.00.00-01 L=2500 для ЛБ М (LED, лампа Т5) | I103: 13677 | J103: =ROUND(I103*(1-$E$3)/Лист2!$A$6,0) -> 13677
C105: 429.70.00.00-02 | D105: Комплект ценникодержателей прист 429.70.00.00-02 L=1850 для ЛБ М | I105: 459 | J105: =ROUND(I105*(1-$E$3)/Лист2!$A$6,0) -> 459
C106: 429.70.00.00 | D106: Комплект ценникодержателей прист 429.70.00.00 L=2100 для ЛБ М | I106: 539 | J106: =ROUND(I106*(1-$E$3)/Лист2!$A$6,0) -> 539
C107: 429.70.00.00-01 | D107: Комплект ценникодержателей прист 429.70.00.00-01 L=2500 для ЛБ М | I107: 539 | J107: =ROUND(I107*(1-$E$3)/Лист2!$A$6,0) -> 539
C108: 429.66.00.00-02 | D108: Комплект ценникодержателей остр 429.66.00.00-02 L=1850 для ЛБ М | I108: 539 | J108: =ROUND(I108*(1-$E$3)/Лист2!$A$6,0) -> 539
C109: 429.66.00.00 | D109: Комплект ценникодержателей остр 429.66.00.00 L=2100 для ЛБ М | I109: 1081 | J109: =ROUND(I109*(1-$E$3)/Лист2!$A$6,0) -> 1081
C110: 429.66.00.00-01 | D110: Комплект ценникодержателей остр 429.66.00.00-01 L=2500 для ЛБ М | I110: 1081 | J110: =ROUND(I110*(1-$E$3)/Лист2!$A$6,0) -> 1081
C112: 429.71.00.00-02 | D112: Комплект ограничителей прист 429.71.00.00-02 L=1850 для ЛБ М | I112: 1438 | J112: =ROUND(I112*(1-$E$3)/Лист2!$A$6,0) -> 1438
C113: 429.71.00.00 | D113: Комплект ограничителей прист 429.71.00.00 L=2100 для ЛБ М | I113: 1438 | J113: =ROUND(I113*(1-$E$3)/Лист2!$A$6,0) -> 1438
C114: 429.71.00.00-01 | D114: Комплект ограничителей прист 429.71.00.00-01 L=2500 для ЛБ М | I114: 1815 | J114: =ROUND(I114*(1-$E$3)/Лист2!$A$6,0) -> 1815
C115: 429.68.00.00-02 | D115: Комплект ограничителей остр 429.68.00.00-02 L=1850 для ЛБ М | I115: 2474 | J115: =ROUND(I115*(1-$E$3)/Лист2!$A$6,0) -> 2474
C116: 429.68.00.00 | D116: Комплект ограничителей остр 429.68.00.00 L=2100 для ЛБ М | I116: 2876 | J116: =ROUND(I116*(1-$E$3)/Лист2!$A$6,0) -> 2876
C117: 429.68.00.00-01 | D117: Комплект ограничителей остр 429.68.00.00-01 L=2500 для ЛБ М | I117: 3621 | J117: =ROUND(I117*(1-$E$3)/Лист2!$A$6,0) -> 3621
C119: 1022.62.00.00-02 | D119: Соединительный комплект спина к спине остр 1022.62.00.00-02 L=1850 для ЛБ М | I119: 1213 | J119: =ROUND(I119*(1-$E$3)/Лист2!$A$6,0) -> 1213
C120: 1022.62.00.00 | D120: Соединительный комплект спина к спине остр 1022.62.00.00 L=2100 для ЛБ М | I120: 1242 | J120: =ROUND(I120*(1-$E$3)/Лист2!$A$6,0) -> 1242
C121: 1022.62.00.00-01 | D121: Соединительный комплект спина к спине остр 1022.62.00.00-01 L=2500 для ЛБ М | I121: 1408 | J121: =ROUND(I121*(1-$E$3)/Лист2!$A$6,0) -> 1408
C122: 1022.89.00.00-02 | D122: Воздуховод с площадкой под ценникодержатели низкий 1022.89.00.00-02 для ЛВН/ЛВС (ЛБ М) 1850 | I122: 2954 | J122: =ROUND(I122*(1-$E$3)/Лист2!$A$6,0) -> 2954
C123: 1022.89.00.00 | D123: Воздуховод с площадкой под ценникодержатели низкий 1022.89.00.00 для ЛВН/ЛВС (ЛБ М) 2100 | I123: 2973 | J123: =ROUND(I123*(1-$E$3)/Лист2!$A$6,0) -> 2973
C124: 1022.89.00.00-01 | D124: Воздуховод с площадкой под ценникодержатели низкий 1022.89.00.00-01 для ЛВН/ЛВС (ЛБ М) 2500 | I124: 3195 | J124: =ROUND(I124*(1-$E$3)/Лист2!$A$6,0) -> 3195
C125: 1022.111.00.00 | D125: Боковая заглушка к соед. комплекту «спина к спине» остр. 1022.111.00.00 для ЛВН/ЛВС (ЛБ М) | I125: 329 | J125: =ROUND(I125*(1-$E$3)/Лист2!$A$6,0) -> 329
C127: 404.99.00.00 | D127: Компл 3-его уровн полок прист суперстр 404.99.00.00 L=1850 для ЛБТМ (G=370 мм) | I127: 3078 | J127: =ROUND(I127*(1-$E$3)/Лист2!$A$6,0) -> 3078
C128: 429.99.00.00 | D128: Компл 3-его уровн полок прист суперстр 429.99.00.00 L=2100 для ЛБМ (G=370 мм) | I128: 3228 | J128: =ROUND(I128*(1-$E$3)/Лист2!$A$6,0) -> 3228
C129: 429.100.00.00 | D129: Компл 3-его уровн полок прист суперстр 429.100.00.00 L=2500 для ЛБМ (G=370 мм) | I129: 3430 | J129: =ROUND(I129*(1-$E$3)/Лист2!$A$6,0) -> 3430
C130: 429.96.00.00 | D130: Компл 3-его уровн полок остр суперстр 429.96.00.00 L=2100 для ЛБМ (G=370 мм) | I130: 5465 | J130: =ROUND(I130*(1-$E$3)/Лист2!$A$6,0) -> 5465
C131: 429.97.00.00 | D131: Компл 3-его уровн полок остр суперстр 429.97.00.00 L=2500 для ЛБМ (G=370 мм) | I131: 5928 | J131: =ROUND(I131*(1-$E$3)/Лист2!$A$6,0) -> 5928
C132: 429.102.00.00 | D132: Компл торц полок остр суперстр 429.102.00.00 L=2100/2500 для ЛБТМ | I132: 8924 | J132: =ROUND(I132*(1-$E$3)/Лист2!$A$6,0) -> 8924
C133: 429.101.00.00 | D133: Компл торц полукр полок остр суперстр 429.101.00.00 L=2100/2500 для ЛБТМ | I133: 5307 | J133: =ROUND(I133*(1-$E$3)/Лист2!$A$6,0) -> 5307
H135: НАВЕРХ

Sheet Столы Italfrost с боковым (hidden)
O1: На главную
A3: Ваша скидка: | C3: =Содержание!D2 -> 0 | N3: На главную
A4: НДС: | C4: =IF(Лист2!A1=TRUE,"С НДС","БЕЗ НДС") -> С НДС
A6: Охлаждаемые столы с боковым расположением агрегата
A7: № | B7: Внешний вид | C7: Наименование | D7: С бортом/ без борта | E7: Количество | G7: Стандарт Gastronorm GN 1/1 | H7: Общий объём, л | I7: Полезный объём, л | J7: Габаритные размеры, мм | M7: Базовая цена, руб. (с НДС) | N7: =Лист2!$A$5 -> Ваша цена, руб.
E8: Ящиков | F8: Дверей | J8: Длина | K8: Ширина | L8: Высота
A9: Холодильные столы с нержавеющей столешницей (температурный режим, °C +1…+10)
C10: Шкаф-стол холодильный СШC-0,2 GN-1400 | D10: С бортом | E10: 0 | F10: 2 | G10: + | H10: 305 | I10: 220 | J10: 1393 | K10: 700 | L10: 840 | M10: 78937.84 | N10: =ROUND(M10*(1-$C$3)/Лист2!$A$6,0) -> 78938
C11: Шкаф-стол холодильный СШC-0,2 GNВ-1400 | D11: Без борта
C12: Шкаф-стол холодильный СШС-0,2-1400 | D12: С бортом | E12: 0 | F12: 2 | G12: - | H12: 255 | I12: 200 | J12: 1393 | K12: 600 | L12: 840 | M12: 78514.64 | N12: =ROUND(M12*(1-$C$3)/Лист2!$A$6,0) -> 78515
C13: Шкаф-стол холодильный СШС-0,2 В-1400 | D13: Без борта
C14: Шкаф-стол холодильный СШС-0,3 GN-1850 | D14: С бортом | E14: 0 | F14: 3 | G14: + | H14: 465 | I14: 310 | J14: 1838 | K14: 700 | L14: 840 | M14: 93059.84 | N14: =ROUND(M14*(1-$C$3)/Лист2!$A$6,0) -> 93060
C15: Шкаф-стол холодильный СШС-0,3 GNВ-1850 | D15: Без борта
C16: Шкаф-стол холодильный СШС-0,3-1850 | D16: С бортом | E16: 0 | F16: 3 | G16: - | H16: 395 | I16: 260 | J16: 1838 | K16: 600 | L16: 840 | M16: 92634.8 | N16: =ROUND(M16*(1-$C$3)/Лист2!$A$6,0) -> 92635
C17: Шкаф-стол холодильный СШС-0,3 В-1850 | D17: Без борта
C18: Шкаф-стол холодильный СШС-0,4 GN-2300 | D18: С бортом | E18: 0 | F18: 4 | G18: + | H18: 620 | I18: 410 | J18: 2283 | K18: 700 | L18: 840 | M18: 112828.8 | N18: =ROUND(M18*(1-$C$3)/Лист2!$A$6,0) -> 112829
C19: Шкаф-стол холодильный СШС-0,4 GNВ-2300 | D19: Без борта
C20: Шкаф-стол холодильный СШС-0,4-2300 | D20: С бортом | E20: 0 | F20: 4 | G20: - | H20: 520 | I20: 340 | J20: 2283 | K20: 600 | L20: 840 | M20: 112405.6 | N20: =ROUND(M20*(1-$C$3)/Лист2!$A$6,0) -> 112406
C21: Шкаф-стол холодильный СШС-0,4 В-2300 | D21: Без борта
A22: Морозильные столы с нержавеющей столешницей (температурный режим, °C -20…-10)
C23: Шкаф-стол морозильный СШН-0,2 GN-1400 | D23: С бортом | E23: 0 | F23: 2 | G23: + | H23: 305 | I23: 220 | J23: 1393 | K23: 700 | L23: 840 | M23: 91647.64 | N23: =ROUND(M23*(1-$C$3)/Лист2!$A$6,0) -> 91648
C24: Шкаф-стол морозильный СШН-0,2 GNВ-1400 | D24: Без борта
C25: Шкаф-стол морозильный СШН-0,2-1400 | D25: С бортом | E25: 0 | F25: 2 | G25: - | H25: 255 | I25: 200 | J25: 1393 | K25: 600 | L25: 840 | M25: 91223.52 | N25: =ROUND(M25*(1-$C$3)/Лист2!$A$6,0) -> 91224
C26: Шкаф-стол морозильный СШН-0,2 В-1400 | D26: Без борта
C27: Шкаф-стол морозильный СШН-0,3 GN-1850 | D27: С бортом | E27: 0 | F27: 3 | G27: + | H27: 465 | I27: 310 | J27: 1838 | K27: 700 | L27: 840 | M27: 117066.32 | N27: =ROUND(M27*(1-$C$3)/Лист2!$A$6,0) -> 117066
C28: Шкаф-стол морозильный СШН-0,3 GNВ-1850 | D28: Без борта
C29: Шкаф-стол морозильный СШН-0,3-1850 | D29: С бортом | E29: 0 | F29: 3 | G29: - | H29: 395 | I29: 260 | J29: 1838 | K29: 600 | L29: 840 | M29: 116642.2 | N29: =ROUND(M29*(1-$C$3)/Лист2!$A$6,0) -> 116642
C30: Шкаф-стол морозильный СШН-0,3 В-1850 | D30: Без борта
C31: Шкаф-стол морозильный СШН-0,4 GN-2300 | D31: С бортом | E31: 0 | F31: 4 | G31: + | H31: 620 | I31: 410 | J31: 2283 | K31: 700 | L31: 840 | M31: 138247.48 | N31: =ROUND(M31*(1-$C$3)/Лист2!$A$6,0) -> 138247
C32: Шкаф-стол морозильный СШН-0,4 GNВ-2300 | D32: Без борта
C33: Шкаф-стол морозильный СШН-0,4-2300 | D33: С бортом | E33: 0 | F33: 4 | G33: - | H33: 520 | I33: 340 | J33: 2283 | K33: 600 | L33: 840 | M33: 137823.36 | N33: =ROUND(M33*(1-$C$3)/Лист2!$A$6,0) -> 137823
C34: Шкаф-стол морозильный СШН-0,4 В-2300 | D34: Без борта
A35: Модификации к холодильным/морозильным столам( добавить к стандартной стоимости изделия)
C36: Замена стандартных ножек на колеса, 2 из них с тормозом | M36: 8218.36 | N36: =ROUND(M36*(1-$C$3)/Лист2!$A$6,0) -> 8218
A37: Опции к холодильным/морозильным столам(поставляются отдельно)
C38: Решетка защитаная для агрега из нержавеющей стали (84312), артикул СО.906.57.00.00 | M38: 1867.6 | N38: =ROUND(M38*(1-$C$3)/Лист2!$A$6,0) -> 1868
C39: Полкодержатель слева (96480) для столов 700, артикул СО.979.03.0000.05 | M39: 336.72 | N39: =ROUND(M39*(1-$C$3)/Лист2!$A$6,0) -> 337
C40: Полкодержатель справа (96481) для столов 700, артикул СО.979.03.0000.05mir | M40: 336.72 | N40: =ROUND(M40*(1-$C$3)/Лист2!$A$6,0) -> 337
C41: Полкодержатель слева (106969) для столов 700, артикул СО.906.03.0000.05 | M41: 311.88 | N41: =ROUND(M41*(1-$C$3)/Лист2!$A$6,0) -> 312
C42: Полкодержатель справа (106970) для столов 700, артикул СО.906.03.0000.05mir | M42: 311.88 | N42: =ROUND(M42*(1-$C$3)/Лист2!$A$6,0) -> 312
C43: Полка решетчатая для столов 700, крашенная (100670), артикул СО.979.56.5000.01 | J43: 332 | K43: 570 | L43: 4(6) | M43: 1184.04 | N43: =ROUND(M43*(1-$C$3)/Лист2!$A$6,0) -> 1184
C44: Полка решетчатая для столов 600, крашенная (100671), артикул СО.906.56.5000.01 | J44: 332 | K44: 470 | L44: 4(6) | M44: 996.36 | N44: =ROUND(M44*(1-$C$3)/Лист2!$A$6,0) -> 996

Sheet Столы Italfrost с нижним (hidden)
A2: Ваша скидка: | C2: =Содержание!D2 -> 0 | N2: На главную
A3: НДС: | C3: =IF(Лист2!A1=TRUE,"С НДС","БЕЗ НДС") -> С НДС
A5: Охлаждаемые столы с нижним расположением агрегата
A6: № | B6: Внешний вид | C6: Наименование | D6: С бортом/ без борта | E6: Количество | G6: Стандарт Gastronorm GN 1/1 | H6: Общий объём, л | I6: Полезный объём, л | J6: Габаритные размеры, мм | M6: Базовая цена, руб. (с НДС) | N6: =Лист2!$A$5 -> Ваша цена, руб.
E7: Ящиков | F7: Дверей | J7: Длина | K7: Ширина | L7: Высота
A8: Холодильные столы с нержавеющей столешницей (температурный режим, °C +1…+10)
C9: Шкаф-стол холодильный СШС-0,2 GN-1000 NDSBS | D9: С бортом | E9: 0 | F9: 2 | G9: + | H9: 245 | I9: 200 | J9: 1000 | K9: 700 | L9: 865 | M9: 72368.12 | N9: =ROUND(M9*(1-$C$2)/Лист2!$A$6,0) -> 72368
C10: Шкаф-стол холодильный СШС-0,2 GN-1000 NDSFS | D10: Без борта
C11: Шкаф-стол холодильный СШС-0,2-1000 NDSBS | D11: С бортом | E11: 0 | F11: 2 | G11: - | H11: 205 | I11: 165 | J11: 1000 | K11: 600 | L11: 865 | M11: 70104 | N11: =ROUND(M11*(1-$C$2)/Лист2!$A$6,0) -> 70104
C12: Шкаф-стол холодильный СШС-0,2-1000 NDSFS | D12: Без борта
C13: Шкаф-стол холодильный СШС-0,3 GN-1500 NDSBS | D13: С бортом | E13: 0 | F13: 3 | G13: + | H13: 375 | I13: 260 | J13: 1500 | K13: 700 | L13: 865 | M13: 86982.32 | N13: =ROUND(M13*(1-$C$2)/Лист2!$A$6,0) -> 86982
C14: Шкаф-стол холодильный СШС-0,3 GN-1500 NDSFS | D14: Без борта
C15: Шкаф-стол холодильный СШС-0,3-1500 NDSBS | D15: С бортом | E15: 0 | F15: 3 | G15: - | H15: 315 | I15: 215 | J15: 1500 | K15: 600 | L15: 865 | M15: 84717.28 | N15: =ROUND(M15*(1-$C$2)/Лист2!$A$6,0) -> 84717
C16: Шкаф-стол холодильный СШС-0,3-1500 NDSFS | D16: Без борта
A17: Морозильные столы с нержавеющей столешницей (температурный режим, °C -20…-10)
C18: Шкаф-стол морозильный СШН-0,2 GN-1000 NDSBS | D18: С бортом | E18: 0 | F18: 2 | G18: + | H18: 245 | I18: 200 | J18: 1000 | K18: 700 | L18: 865 | M18: 80906.64 | N18: =ROUND(M18*(1-$C$2)/Лист2!$A$6,0) -> 80907
C19: Шкаф-стол морозильный СШН-0,2 GN-1000 NDSFS | D19: Без борта
C20: Шкаф-стол морозильный СШН-0,2-1000 NDSBS | D20: С бортом | E20: 0 | F20: 2 | G20: - | H20: 205 | I20: 165 | J20: 1000 | K20: 600 | L20: 865 | M20: 78641.6 | N20: =ROUND(M20*(1-$C$2)/Лист2!$A$6,0) -> 78642
C21: Шкаф-стол морозильный СШН-0,2-1000 NDSFS | D21: Без борта
C22: Шкаф-стол морозильный СШН-0,3 GN-1500 NDSBS | D22: С бортом | E22: 0 | F22: 3 | G22: + | H22: 375 | I22: 260 | J22: 1500 | K22: 700 | L22: 865 | M22: 102087.8 | N22: =ROUND(M22*(1-$C$2)/Лист2!$A$6,0) -> 102088
C23: Шкаф-стол морозильный СШН-0,3 GN-1500 NDSFS | D23: Без борта
C24: Шкаф-стол морозильный СШН-0,3-1500 NDSBS | D24: С бортом | E24: 0 | F24: 3 | G24: - | H24: 315 | I24: 215 | J24: 1500 | K24: 600 | L24: 865 | M24: 99822.76 | N24: =ROUND(M24*(1-$C$2)/Лист2!$A$6,0) -> 99823
C25: Шкаф-стол морозильный СШН-0,3-1500 NDSFS | D25: Без борта
A26: Модификации к холодильным/морозильным столам( добавить к стандартной стоимости изделия)
C27: Замена стандартных ножек на колеса, 2 из них с тормозом | M27: 8218.36 | N27: =ROUND(M27*(1-$C$2)/Лист2!$A$6,0) -> 8218
A28: Опции к холодильным/морозильным столам(поставляются отдельно)
C29: Решетка защитаная для агрега из нержавеющей стали для 2-х секционного стола(135524), артикул СО.1499.57.00.00 | M29: 1992.72 | N29: =ROUND(M29*(1-$C$2)/Лист2!$A$6,0) -> 1993
C30: Решетка защитаная для агрега из нержавеющей стали для 3-х секционного стола(135527), артикул СО.1503.57.00.00 | M30: 2241.12 | N30: =ROUND(M30*(1-$C$2)/Лист2!$A$6,0) -> 2241
C31: Полкодержатель слева (96480) для столов 700, артикул СО.979.03.0000.05 | M31: 336.72 | N31: =ROUND(M31*(1-$C$2)/Лист2!$A$6,0) -> 337
C32: Полкодержатель справа (96481) для столов 700, артикул СО.979.03.0000.05mir | M32: 336.72 | N32: =ROUND(M32*(1-$C$2)/Лист2!$A$6,0) -> 337
C33: Полкодержатель слева (106969) для столов 700, артикул СО.906.03.0000.05 | M33: 311.88 | N33: =ROUND(M33*(1-$C$2)/Лист2!$A$6,0) -> 312
C34: Полкодержатель справа (106970) для столов 700, артикул СО.906.03.0000.05mir | M34: 311.88 | N34: =ROUND(M34*(1-$C$2)/Лист2!$A$6,0) -> 312
C35: Полка решетчатая для столов 700, крашенная (100670), артикул СО.979.56.5000.01 | J35: 332 | K35: 570 | L35: 4(6) | M35: 1184.04 | N35: =ROUND(M35*(1-$C$2)/Лист2!$A$6,0) -> 1184
C36: Полка решетчатая для столов 600, крашенная (100671), артикул СО.906.56.5000.01 | J36: 332 | K36: 470 | L36: 4(6) | M36: 996.36 | N36: =ROUND(M36*(1-$C$2)/Лист2!$A$6,0) -> 996

Sheet Ледогенераторы
K1: На главную
A3: Ваша скидка: | D3: =Содержание!D2 -> 0
A4: НДС: | D4: =IF(Лист2!A1=TRUE,"С НДС","БЕЗ НДС") -> С НДС
A5: Льдогенераторы
A7: № | B7: Изображение | C7: Артикул | D7: Наименование | F7: Производительность кг/сутки | G7: Габариты, (LxWxH) мм | H7: Габариты, (LxWxH) мм | I7: Базовая цена, руб. (с НДС) | J7: =Лист2!$A$5 -> Ваша цена, руб.
A9: Стандартная комплектация: - Корпус выполнен из нержавеющей стали - Управление электро-механическое, охлаждение системы - воздушное, подключение к водопроводу - Хладагент – энергоэффективный пропан, R-290 - Производительность льдогенератора до 20 кг в сутки, емкость бункера 4 кг, тип льда - цилиндрический
A10: 1 | B10: Льдогенератор кубикового льда
C11: ЛГК-24-1-2 | D11: Льдогенератор кубикового льда ЛГК-24-1-2 | F11: 20 | G11: 385х485х610 | H11: 425х550х700 | I11: 95058 | J11: =ROUND(I11*(1-$D$3)/Лист2!$A$6,0) -> 95058
D12: Льдогенератор кубикового льда ЛГК-32-1-2 | F12: 26 | G12: 470х845х610 | H12: 510х550х700 | I12: 111218 | J12: =ROUND(I12*(1-$D$3)/Лист2!$A$6,0) -> 111218
J13: =ROUND(I13*(1-$D$3)/Лист2!$A$6,0) -> 0
I14: НАВЕРХ
K73: =Ледогенераторы!J11=ROUND(J73*(1-$E$3)/Лист2!$A$6,0) -> FALSE

Sheet Цвет стандарт
C1: Стандартные цвета для витрин и стеллажей
M2: На главную
B3: RAL 7016 | E3: RAL 9016 | H3: RAL 1021
B11: RAL 7035 | E11: RAL 7021
B19: RAL 5005 | E19: RAL 6018
B27: RAL 3004 | E27: RAL 9005
B35: RAL 3002 | E35: RAL 5018 (Действительно только для Magnum Quadro)
B44: Структура красок: глянец
B45: За дополнительную плату могут быть
B46: другие цвета красок, краски с другой структурой (матовая).
B47: В структуры шагрень и муар производитель не красит оборудование в виду их
B48: непрактичности (сложно с покрытия без специальных средств удалять загрязнения).
H51: Дуб Сонома
B52: Расшифровка характеристик ЛДСП
B53: Тип фронталальной панели | C53: Символ | D53: Расшифровка
B54: Фронтальная панель широкая, ЛДСП | C54: G | D54: Дуб Сонома
B57: Фронтальная панель узкая, ЛДСП | C57: L | D57: Дуб Сонома
B60: Фронтальная панель широкая, ЛДСП с отбойником | C60: Q | D60: Дуб Сонома
B63: Фронтальная панель узкая, ЛДСП с отбойником | C63: U
D65: Дуб Сонома

Sheet Расчет нестанд.RAL
K1: На главную
C2: Таблица расчета нестандартных RAL
B4: Лари Itlafrost | C4: 1. Стандартный цвет корпуса - RAL9003;
C6: 2. На заказ - краска нестандартного RAL с повышающим коэффициентом +1,5% к цене
B8: Ларь-бонеты и суперструктуры | C8: 1. Стандартный цвет корпуса - RAL9003; Делители/корзины/решетки - RAL9003
C10: 2. На заказ - краска нестандартного RAL с повышающим коэффициентом +1,5% к цене Покраска в нестандартный цвет суперструктуры - наценка на глянцевую краску +3%, на матовую и структурную краску +8%;
B12: Octava | C12: 1. Стандартная цветовая гамма (без изменения цены) указана на вкладке "цвет стандарт"
C14: 2. На заказ - краска нестандартного RAL с повышающим коэффициентом +3% к цене
B16: Gamma | C16: 1. Стандартная цветовая гамма (без изменения цены) указана на вкладке "цвет стандарт"
C18: 2. На заказ - краска нестандартного RAL с повышающим коэффициентом +3% к цене
B20: Gamma Quadro | C20: 1. Стандартная цветовая гамма (без изменения цены) указана на вкладке "цвет стандарт"
C23: 2. На заказ - краска нестандартного RAL с повышающим коэффициентом +3% к цене
B25: Magnum | C25: 1. Стандартная цветовая гамма (без изменения цены) указана на вкладке "цвет стандарт"
C27: 2. На заказ - краска нестандартного RAL с повышающим коэффициентом +3% к цене
B29: Magnum Quadro | C29: 1. Стандартная цветовая гамма (без изменения цены) указана на вкладке "цвет стандарт"
C31: 2. На заказ - краска нестандартного RAL с повышающим коэффициентом +3% к цене
B34: Elegia Quadro | C34: 1. Стандартная цветовая гамма (без изменения цены) указана на вкладке "цвет стандарт"
C35: 2. На заказ - краска нестандартного RAL с повышающим коэффициентом +3% к цене
B37: Adagio | C37: 1. Стандартная цветовая гамма (без изменения цены) указана на вкладке "цвет стандарт"
C39: Покраска в нестандартный цвет наружных панелей; Покраска в нестандартный цвет внутреннего объема - наценка к стоимости витрины 3 %. Замена оцинкованного металла во внутреннем объеме на нержавеющий (базовая полка, стойки, кронштейны) - наценка к стоимости витрины 5%;
C40: 2. Срок производства витрины при покраске в нестандартный цвет может увеличится. На 7 дней и более.
B42: SOLO | C42: 1. Стандартная цветовая гамма (без изменения цены) указана на вкладке "цвет стандарт"
C44: 2. Покраска в нестандартный цвет наружных панелей - наценка к стоимости стеллажа 2 %
C45: 3. Покраска в нестандартный цвет полок, задней стенки, потолочной панели, поддона выкладки - наценка к стоимости стеллажа 6 %
C46: 4. Покраска боковин в нестандартный цвет - наценка к стоимости комплекта боковин 10%.
B48: SOLO DG | C48: 1. Стандартная цветовая гамма (без изменения цены) указана на вкладке "цвет стандарт"
C50: 2. Покраска в нестандартный цвет наружных панелей - наценка к стоимости стеллажа 1,5 %
C51: 3. Покраска в нестандартный цвет полок, задней стенки, потолочной панели, поддона выкладки - наценка к стоимости стеллажа 4,5 %
C52: 4. Покраска боковин в нестандартный цвет - наценка к стоимости комплекта боковин 10%.
B54: UNIT | C54: 1. Стандартная цветовая гамма (без изменения цены) указана на вкладке "цвет стандарт"
C56: 2. На заказ - стеллаж нестандартного RAL +2% к цене.
C58: 3. RAL, не вошедшие в список, являются заказными. Цена по запросу.
B60: Rimini | C60: 1. Стандартная цветовая гамма (без изменения цены) указана на вкладке "цвет стандарт"
C62: 2. Покраска в нестандартный цвет наружных панелей - наценка к стоимости стеллажа 2 %
C63: 3. Покраска в нестандартный цвет полок, задней стенки, потолочной панели, поддона выкладки - наценка к стоимости стеллажа 6 %
C64: 4. Покраска боковин в нестандартный цвет - наценка к стоимости комплекта боковин 10%.
B66: Rimini DG | C66: 1. Стандартная цветовая гамма (без изменения цены) указана на вкладке "цвет стандарт"
C68: 2. Покраска в нестандартный цвет наружных панелей - наценка к стоимости стеллажа 1,5 %
C69: 3. Покраска в нестандартный цвет полок, задней стенки, потолочной панели, поддона выкладки - наценка к стоимости стеллажа 4,5 %
C70: 4. Покраска боковин в нестандартный цвет - наценка к стоимости комплекта боковин 10%.
B72: Veneto | C72: 1. Стандартная цветовая гамма (без изменения цены) указана на вкладке "цвет стандарт"
C74: 2. На заказ - краска нестандартного RAL с повышающим коэффициентом +3% к цене
B76: Toscana | C76: 1. Стандартная цветовая гамма (без изменения цены) указана на вкладке "цвет стандарт"
C78: 2. На заказ - краска нестандартного RAL с повышающим коэффициентом +3% к цене
B81: Lazio | C81: 1. Стандартная цветовая гамма (без изменения цены) указана на вкладке "цвет стандарт"
C83: 2. Покраска в нестандартный цвет наружных панелей - наценка к стоимости стеллажа 2 %
C84: 3. Покраска в нестандартный цвет полок, задней стенки, потолочной панели, поддона выкладки - наценка к стоимости стеллажа 6 %
C85: 4. Покраска боковин в нестандартный цвет - наценка к стоимости комплекта боковин 10%.
B87: Milan | C87: 1. Стандартная цветовая гамма (без изменения цены) указана на вкладке "цвет стандарт"
C89: 2. Покраска в нестандартный цвет наружных панелей - наценка к стоимости стеллажа 1 %
C90: 3. Покраска в нестандартный цвет полок, задней стенки, потолочной панели, поддона выкладки - наценка к стоимости стеллажа 3 %
C91: 4. Покраска боковин в нестандартный цвет - наценка к стоимости комплекта боковин 10%.
G92: НАВЕРХ

Sheet Брендирование
K2: На главную
A6: ПРАЙС-ЛИСТ. ДОПЛАТА ЗА БРЕНДИРОВАНИЕ ЛАРЕЙ ITALFROST
G7: НДС: | I7: =IF([2]Лист2!A1=TRUE,"С НДС","БЕЗ НДС") -> С НДС
H8: Размер вашей скидки | I8: =Содержание!D2 -> 0
A9: № | B9: Изображение | C9: Оклейка | E9: Размеры стикера, мм | H9: =CONCATENATE([2]ВАЛЮТЫ!B11," С НДС") -> Базовая цена, руб. С НДС | I9: =[2]Лист2!A5 -> Ваша цена, руб. | J9: Назад на страницу ларей
E10: Фронт | F10: Боковины | G10: Спина
A11: 1 | B11: Морозильные лари с гнутыми раздвижными стеклами
C12: CF(T)200C | D12: 1 сторона | E12: 840х710 | F12: 640х800 | G12: 840х800 | H12: 1022 | I12: =ROUND(H12*(1-I8)/Лист2!$A$6,0) -> 1022
D13: 3 стороны | H13: 2271 | I13: =ROUND(H13*(1-I8)/Лист2!$A$6,0) -> 2271
D14: 4 стороны | H14: 3377 | I14: =ROUND(H14*(1-I8)/Лист2!$A$6,0) -> 3377
C15: CF(T)300C | D15: 1 сторона | E15: 1040х710 | F15: 640х800 | G15: 1040х800 | H15: 1189 | I15: =ROUND(H15*(1-I8)/Лист2!$A$6,0) -> 1189
D16: 3 стороны | H16: 2446 | I16: =ROUND(H16*(1-I8)/Лист2!$A$6,0) -> 2446
D17: 4 стороны | H17: 3744 | I17: =ROUND(H17*(1-I8)/Лист2!$A$6,0) -> 3744
C18: CF(T)400C | D18: 1 сторона | E18: 1240х710 | F18: 640х800 | G18: 1240х800 | H18: 1366 | I18: =ROUND(H18*(1-I8)/Лист2!$A$6,0) -> 1366
D19: 3 стороны | H19: 2535 | I19: =ROUND(H19*(1-I8)/Лист2!$A$6,0) -> 2535
D20: 4 стороны | H20: 4122 | I20: =ROUND(H20*(1-I8)/Лист2!$A$6,0) -> 4122
C21: CF(T)500C | D21: 1 сторона | E21: 1460х710 | F21: 640х800 | G21: 1460х800 | H21: 1559 | I21: =ROUND(H21*(1-I8)/Лист2!$A$6,0) -> 1559
D22: 3 стороны | H22: 2817 | I22: =ROUND(H22*(1-I8)/Лист2!$A$6,0) -> 2817
D23: 4 стороны | H23: 4525 | I23: =ROUND(H23*(1-I8)/Лист2!$A$6,0) -> 4525
C24: CF(T)600C | D24: 1 сторона | E24: 1680х710 | F24: 640х800 | G24: 1680х800 | H24: 1752 | I24: =ROUND(H24*(1-I8)/Лист2!$A$6,0) -> 1752
D25: 3 стороны | H25: 2999 | I25: =ROUND(H25*(1-I8)/Лист2!$A$6,0) -> 2999
D26: 4 стороны | H26: 4936 | I26: =ROUND(H26*(1-I8)/Лист2!$A$6,0) -> 4936
A27: 2 | B27: Морозильные лари с прямыми раздвижными стеклами
C28: CF(T)200F | D28: 1 сторона | E28: 840х810 | F28: 640х810 | G28: 840х810 | H28: 1123 | I28: =ROUND(H28*(1-$I$8)/[2]СОДЕРЖАНИЕ!$C$6/[2]Лист2!$A$6,0) -> 1123
D29: 3 стороны | H29: 2388 | I29: =ROUND(H29*(1-$I$8)/[2]СОДЕРЖАНИЕ!$C$6/[2]Лист2!$A$6,0) -> 2388
D30: 4 стороны | H30: 3511 | I30: =ROUND(H30*(1-$I$8)/[2]СОДЕРЖАНИЕ!$C$6/[2]Лист2!$A$6,0) -> 3511
C31: CF(T)300F | D31: 1 сторона | E31: 1040х810 | F31: 640х810 | G31: 1040х810 | H31: 1323 | I31: =ROUND(H31*(1-$I$8)/[2]СОДЕРЖАНИЕ!$C$6/[2]Лист2!$A$6,0) -> 1323
D32: 3 стороны | H32: 2588 | I32: =ROUND(H32*(1-$I$8)/[2]СОДЕРЖАНИЕ!$C$6/[2]Лист2!$A$6,0) -> 2588
D33: 4 стороны | H33: 3907 | I33: =ROUND(H33*(1-$I$8)/[2]СОДЕРЖАНИЕ!$C$6/[2]Лист2!$A$6,0) -> 3907
C34: CF(T)400F | D34: 1 сторона | E34: 1240х810 | F34: 640х810 | G34: 1240х810 | H34: 1516 | I34: =ROUND(H34*(1-$I$8)/[2]СОДЕРЖАНИЕ!$C$6/[2]Лист2!$A$6,0) -> 1516
D35: 3 стороны | H35: 2789 | I35: =ROUND(H35*(1-$I$8)/[2]СОДЕРЖАНИЕ!$C$6/[2]Лист2!$A$6,0) -> 2789
D36: 4 стороны | H36: 4300 | I36: =ROUND(H36*(1-$I$8)/[2]СОДЕРЖАНИЕ!$C$6/[2]Лист2!$A$6,0) -> 4300
C37: CF(T)500F | D37: 1 сторона | E37: 1460х810 | F37: 640х810 | G37: 1460х810 | H37: 1734 | I37: =ROUND(H37*(1-$I$8)/[2]СОДЕРЖАНИЕ!$C$6/[2]Лист2!$A$6,0) -> 1734
D38: 3 стороны | H38: 3009 | I38: =ROUND(H38*(1-$I$8)/[2]СОДЕРЖАНИЕ!$C$6/[2]Лист2!$A$6,0) -> 3009
D39: 4 стороны | H39: 4733 | I39: =ROUND(H39*(1-$I$8)/[2]СОДЕРЖАНИЕ!$C$6/[2]Лист2!$A$6,0) -> 4733
C40: CF(T)600F | D40: 1 сторона | E40: 1680Х810 | F40: 640х810 | G40: 1680х810 | H40: 1952 | I40: =ROUND(H40*(1-$I$8)/[2]СОДЕРЖАНИЕ!$C$6/[2]Лист2!$A$6,0) -> 1952
D41: 3 стороны | H41: 3227 | I41: =ROUND(H41*(1-$I$8)/[2]СОДЕРЖАНИЕ!$C$6/[2]Лист2!$A$6,0) -> 3227
D42: 4 стороны | H42: 5179 | I42: =ROUND(H42*(1-$I$8)/[2]СОДЕРЖАНИЕ!$C$6/[2]Лист2!$A$6,0) -> 5179
A43: 3 | B43: Низкотемпературная надстройка над ларем 400 л. Verona
D44: 1 сторона (верхний баннер, фронтальная часть) | E44: - | F44: - | G44: - | H44: 4735 | I44: =ROUND(H44*(1-$I$8)/[2]СОДЕРЖАНИЕ!$C$6/[2]Лист2!$A$6,0) -> 4735
D45: 3 стороны (верхний баннер (фронтальная часть) + 2 боковины) | H45: 8050 | I45: =ROUND(H45*(1-$I$8)/[2]СОДЕРЖАНИЕ!$C$6/[2]Лист2!$A$6,0) -> 8050
A48: Примечание: | C48: Пленка толщиной 100 мкр + ламинация толщиной 80 мкр. Качество 720 dpi.

Sheet Лист1 (hidden)

Sheet Лист2 (hidden)
A1: TRUE
A2: Базовая цена, руб.
A3: Базовая цена, руб. б/НДС
A4: =IF(A1=TRUE,"руб.","руб. б/НДС") -> руб.
A5: =CONCATENATE("Ваша цена, ",A4) -> Ваша цена, руб.
A6: =IF(A1=TRUE,1,1.22) -> 1
A7: =IF(A1=TRUE,1,1.22) -> 1
